Workbook

Sheet Form 42 1P
A1: Tampa Electric Company | H1: Form 42 - 1P
A2: Environmental Cost Recovery Clause (ECRC)
A3: Total Jurisdictional Amount to Be Recovered
A5: For the Projected Period
A6: January 2022 to December 2022
N8: Actual / Estimate workpaper to prorate interest: | Q8: 2021 6+6 Act-Est Filing
H10: Energy | I10: Demand | J10: Total | P10: energy | Q10: demand | R10: total
A11: Line | H11: ($) | I11: ($) | J11: ($) | N11: 42-5e lines 7 & 8 end of period | O11: O & M | P11: 9210173 | Q11: 40520 | R11: =P11+Q11 -> 9250693
N12: 42-7e lines 7 & 8 end of period | O12: Cap | P12: 42504413 | Q12: 1547089 | R12: =P12+Q12 -> 44051502
A13: 1. | B13: Total Jurisdictional Revenue Requirements for the projected period | P13: =SUM(P11:P12) -> 51714586 | Q13: =SUM(Q11:Q12) -> 1587609 | R13: =SUM(R11:R12) -> 53302195 | S13: <- should tie to 2E line 4.c.
B14: a. Projected O&M Activities (Form 42-2P, Lines 7, 8 & 9) | H14: =+'Form 42 2P'!P51 -> 4332767 | I14: =+'Form 42 2P'!P52 -> 81730 | J14: =SUM(H14:I14) -> 4414497 | K14: ='Form 42 2P'!P55-'Form 42 1P'!J14 -> 0
B15: b. Projected Capital Projects (Form 42-3P, Lines 7, 8 & 9) | H15: =+'Form 42 3P'!U54 -> 17518159 | I15: =+'Form 42 3P'!U55 -> 4409788 | J15: =SUM(H15:I15) -> 21927947 | K15: ='Form 42 3P'!U58-'Form 42 1P'!J15 -> 0 | P15: =ROUND(((P13/R13)*R15),0) -> -4161856 | Q15: =ROUND(((Q13/R13)*R15),0) -> -127767 | R15: =ROUND(J20,0) -> -4289623
B16: c. Total Jurisdictional Revenue Requirements for the projected period (Lines 1a + 1b) | H16: =SUM(H14:H15) -> 21850926 | I16: =SUM(I14:I15) -> 4491518 | J16: 26342444
A18: 2. | B18: True-up for Estimated Over/(Under) Recovery for the
B19: current period January 2021 to December 2021 | N19: True-up workpaper to prorate interest: | Q19: 2020 Final TRUP filed
B20: (Form 42-2E, Line 5 + 6 + 10) | H20: =P15 -> -4161856 | I20: =Q15 -> -127767 | J20: -4289623
P21: energy | Q21: demand | R21: total
N22: 42-5a lines 7 & 8 end of period | O22: O & M | P22: 14301956 | Q22: 77231 | R22: =SUM(P22:Q22) -> 14379187
A23: 3. | B23: Final True-up for the period January 2020 to December 2020 | N23: 42-7a lines 7 & 8 end of period | O23: Cap | P23: 43779127 | Q23: 444562 | R23: =SUM(P23:Q23) -> 44223689
B24: (Form 42-1A, Line 3) | P24: =SUM(P22:P23) -> 58081083 | Q24: =SUM(Q22:Q23) -> 521793 | R24: =SUM(R22:R23) -> 58602876 | S24: <- should tie to 2A line 4.c.
H25: =P26 -> 4199464 | I25: =Q26 -> 37727 | J25: 4237191
P26: =ROUND(((P24/R24)*R26),0) -> 4199464 | Q26: =ROUND(((Q24/R24)*R26),0) -> 37727 | R26: =ROUND(J25,0) -> 4237191
A27: 4. | B27: Total Jurisdictional Amount to Be Recovered/(Refunded)
B28: in the projection period January 2022 to December 2022
B29: (Line 1 - Line 2- Line 3) | H29: =ROUND(H16-H20-H25,0) -> 21813318 | I29: =ROUND(I16-I20-I25,0) -> 4581558 | J29: =H29+I29 -> 26394876
N30: ***updated by Onixa Otero on 9/27/21
N31: reviewed by Kimberly Jacobs on
A32: 5. | B32: Total Projected Jurisdictional Amount Adjusted for Taxes
B33: (Line 4 x Revenue Tax Multiplier) | H33: =ROUND((H29*1.00072),0) -> 21829024 | I33: =ROUND((I29*1.00072),0) -> 4584857 | J33: =H33+I33 -> 26413881 | N33: <- This is the Revenue tax multiplier of 1.00072 (not the Income Tax Multiplier) to gross up for the RAF.

Sheet Form 42 2P
A1: Tampa Electric Company | S1: Form 42 - 2P
A2: Environmental Cost Recovery Clause
A3: Calculation of the Projected Period Amount
A4: January 2022 to December 2022
A6: O&M Activities
A7: (in Dollars) | U7: Links:
U8: Emissions
P9: End of
D10: Projected | E10: Projected | F10: Projected | G10: Projected | H10: Projected | I10: Projected | J10: Projected | K10: Projected | L10: Projected | M10: Projected | N10: Projected | O10: Projected | P10: Period | R10: Method of Classification
A11: Line | D11: January | E11: February | F11: March | G11: April | H11: May | I11: June | J11: July | K11: August | L11: September | M11: October | N11: November | O11: December | P11: Total | R11: Demand | S11: Energy
A13: 1. | B13: Description of O&M Activities
B15: a. | C15: Big Bend Unit 3 Flue Gas Desulfurization Integration | D15: 0 | E15: 0 | F15: 0 | G15: 0 | H15: 0 | I15: 0 | J15: 0 | K15: 0 | L15: 0 | M15: 0 | N15: 0 | O15: 0 | P15: =SUM(D15:O15) -> 0 | S15: =P15 -> 0
B16: b. | C16: Big Bend Units 1 & 2 Flue Gas Conditioning | D16: 0 | E16: 0 | F16: 0 | G16: 0 | H16: 0 | I16: 0 | J16: 0 | K16: 0 | L16: 0 | M16: 0 | N16: 0 | O16: 0 | P16: =SUM(D16:O16) -> 0 | S16: 0
B17: c. | C17: SO2 Emissions Allowances | D17: ='Form 42 4P p24'!G36 -> -4.63 | E17: ='Form 42 4P p24'!H36 -> 7.42 | F17: ='Form 42 4P p24'!I36 -> 7.42 | G17: ='Form 42 4P p24'!J36 -> -4.63 | H17: ='Form 42 4P p24'!K36 -> 7.42 | I17: ='Form 42 4P p24'!L36 -> 7.42 | J17: ='Form 42 4P p24'!M36 -> -4.63 | K17: ='Form 42 4P p24'!N36 -> 7.42 | L17: ='Form 42 4P p24'!O36 -> 7.42 | M17: ='Form 42 4P p24'!P36 -> -4.63 | N17: ='Form 42 4P p24'!Q36 -> 7.42 | O17: ='Form 42 4P p24'!R36 -> 7.42 | P17: =SUM(D17:O17) -> 40.84 | S17: 40.84
B18: d. | C18: Big Bend Units 1 & 2 FGD | D18: 0 | E18: 0 | F18: 0 | G18: 0 | H18: 0 | I18: 0 | J18: 0 | K18: 0 | L18: 0 | M18: 0 | N18: 0 | O18: 0 | P18: 0 | S18: 0
B19: e. | C19: Big Bend PM Minimization and Monitoring | D19: 21630 | E19: 21630 | F19: 21630 | G19: 21630 | H19: 21630 | I19: 21630 | J19: 21630 | K19: 21630 | L19: 21630 | M19: 21630 | N19: 21630 | O19: 21630 | P19: 259560 | S19: 259560
B20: f. | C20: Big Bend NOx Emissions Reduction | D20: 174.07 | E20: 174.07 | F20: 174.07 | G20: 174.07 | H20: 174.07 | I20: 174.07 | J20: 174.07 | K20: 174.07 | L20: 174.07 | M20: 174.07 | N20: 174.07 | O20: 174.07 | P20: 2088.84 | S20: 2088.84
B21: g. | C21: NPDES Annual Surveillance Fees | D21: 0 | E21: 34500 | F21: 0 | G21: 0 | H21: 0 | I21: 0 | J21: 0 | K21: 0 | L21: 0 | M21: 0 | N21: 0 | O21: 0 | P21: 34500 | R21: =P21 -> 34500
B22: h. | C22: Gannon Thermal Discharge Study | D22: 0 | E22: 0 | F22: 0 | G22: 0 | H22: 0 | I22: 0 | J22: 0 | K22: 0 | L22: 0 | M22: 0 | N22: 0 | O22: 0 | P22: 0 | R22: =P22 -> 0
B23: i. | C23: Polk NOx Emissions Reduction | D23: 0 | E23: 0 | F23: 0 | G23: 0 | H23: 0 | I23: 0 | J23: 0 | K23: 0 | L23: 0 | M23: 0 | N23: 0 | O23: 0 | P23: 0 | S23: =P23 -> 0
B24: j. | C24: Bayside SCR and Ammonia | D24: 10200 | E24: 10200 | F24: 11500 | G24: 12500 | H24: 14000 | I24: 15200 | J24: 15200 | K24: 15300 | L24: 14000 | M24: 12500 | N24: 10200 | O24: 10200 | P24: 151000 | S24: 151000
B25: k. | C25: Big Bend Unit 4 SOFA | D25: 0 | E25: 0 | F25: 0 | G25: 0 | H25: 0 | I25: 0 | J25: 0 | K25: 0 | L25: 0 | M25: 0 | N25: 0 | O25: 0 | P25: 0 | S25: 0
B26: l. | C26: Big Bend Unit 1 Pre-SCR | D26: 0 | E26: 0 | F26: 0 | G26: 0 | H26: 0 | I26: 0 | J26: 0 | K26: 0 | L26: 0 | M26: 0 | N26: 0 | O26: 0 | P26: 0 | S26: 0
B27: m. | C27: Big Bend Unit 2 Pre-SCR | D27: 0 | E27: 0 | F27: 0 | G27: 0 | H27: 0 | I27: 0 | J27: 0 | K27: 0 | L27: 0 | M27: 0 | N27: 0 | O27: 0 | P27: 0 | S27: 0
B28: n. | C28: Big Bend Unit 3 Pre-SCR | D28: 0 | E28: 0 | F28: 0 | G28: 0 | H28: 0 | I28: 0 | J28: 0 | K28: 0 | L28: 0 | M28: 0 | N28: 0 | O28: 0 | P28: 0 | S28: 0
B29: o. | C29: Clean Water Act Section 316(b) Phase II Study | D29: 5000 | E29: 0 | F29: 0 | G29: 0 | H29: 2575 | I29: 2575 | J29: 0 | K29: 0 | L29: 0 | M29: 0 | N29: 0 | O29: 0 | P29: 10150 | R29: =P29 -> 10150
B30: p. | C30: Arsenic Groundwater Standard Program | D30: 3090 | E30: 3090 | F30: 3090 | G30: 3090 | H30: 3090 | I30: 3090 | J30: 3090 | K30: 3090 | L30: 3090 | M30: 3090 | N30: 3090 | O30: 3090 | P30: 37080 | R30: =P30 -> 37080
B31: q. | C31: Big Bend 1 SCR | D31: 0 | E31: 0 | F31: 0 | G31: 0 | H31: 0 | I31: 0 | J31: 0 | K31: 0 | L31: 0 | M31: 0 | N31: 0 | O31: 0 | P31: 0 | S31: =P31 -> 0
B32: r. | C32: Big Bend 2 SCR | D32: 0 | E32: 0 | F32: 0 | G32: 0 | H32: 0 | I32: 0 | J32: 0 | K32: 0 | L32: 0 | M32: 0 | N32: 0 | O32: 0 | P32: 0 | S32: 0
B33: s. | C33: Big Bend 3 SCR | D33: 20927.92141 | E33: 9135.601414 | F33: 43640.46141 | G33: 9135.601414 | H33: 35926.10141 | I33: 25552.56141 | J33: 26808.48141 | K33: 30500.07141 | L33: 33747.81141 | M33: 64666.67141 | N33: 43844.18141 | O33: 28636.62141 | P33: 372522.087 | S33: 372522.087
B34: t. | C34: Big Bend 4 SCR | D34: 126563.5625 | E34: 138355.8825 | F34: 103851.0225 | G34: 138355.8825 | H34: 111565.3825 | I34: 121938.9225 | J34: 120683.0025 | K34: 116991.4025 | L34: 113743.6725 | M34: 82824.80253 | N34: 103647.3025 | O34: 118854.8625 | P34: 1397375.7 | S34: 1397375.7
B35: u. | C35: Mercury Air Toxics Standards | D35: 0 | E35: 0 | F35: 2000 | G35: 0 | H35: 0 | I35: 0 | J35: 0 | K35: 0 | L35: 0 | M35: 0 | N35: 0 | O35: 0 | P35: 2000 | S35: 2000
B36: v. | C36: Greenhouse Gas Reduction Program | D36: 0 | E36: 0 | F36: 0 | G36: 0 | H36: 0 | I36: 0 | J36: 0 | K36: 0 | L36: 0 | M36: 0 | N36: 0 | O36: 0 | P36: 0 | S36: =P36 -> 0
B37: w. | C37: Big Bend Gypsum Storage Facility (East 40) | D37: 101102.9931 | E37: 101102.9931 | F37: 101102.9931 | G37: 101102.9931 | H37: 101102.9931 | I37: 101102.9931 | J37: 101102.9931 | K37: 101102.9931 | L37: 101102.9931 | M37: 101102.9931 | N37: 101102.9931 | O37: 101102.9931 | P37: 1213235.917 | S37: 1213235.917
B38: x. | C38: Coal Combustion Residuals (CCR) Rule - Phase I | D38: 77500 | E38: 77500 | F38: 77500 | G38: 77500 | H38: 77500 | I38: 77500 | J38: 77500 | K38: 77500 | L38: 77500 | M38: 77500 | N38: 77500 | O38: 77500 | P38: 930000 | S38: 930000
B39: y. | C39: Big Bend ELG Compliance | D39: 412 | E39: 412 | F39: 412 | G39: 412 | H39: 412 | I39: 412 | J39: 412 | K39: 412 | L39: 412 | M39: 412 | N39: 412 | O39: 412 | P39: 4944 | S39: =P39 -> 4944
B40: z. | C40: Coal Combustion Residuals (CCR) Rule - Phase II | D40: 0 | E40: 0 | F40: 0 | G40: 0 | H40: 0 | I40: 0 | J40: 0 | K40: 0 | L40: 0 | M40: 0 | N40: 0 | O40: 0 | P40: 0 | S40: 0
B41: aa. | C41: Big Bend Unit 1 Sec. 316(b) Impingement Mortality | D41: 0 | E41: 0 | F41: 0 | G41: 0 | H41: 0 | I41: 0 | J41: 0 | K41: 0 | L41: 0 | M41: 0 | N41: 0 | O41: 0 | P41: 0 | S41: 0
A43: 2. | B43: Total of O&M Activities | D43: =ROUND((SUM(D15:D42)),0) -> 366596 | E43: =ROUND((SUM(E15:E42)),0) -> 396108 | F43: 364908 | G43: 363896 | H43: 367983 | I43: 369183 | J43: =ROUND((SUM(J15:J42)),0) -> 366596 | K43: =ROUND((SUM(K15:K42)),0) -> 366708 | L43: =ROUND((SUM(L15:L42)),0) -> 365408 | M43: 363896 | N43: =ROUND((SUM(N15:N42)),0) -> 361608 | O43: =ROUND((SUM(O15:O42)),0) -> 361608 | P43: =ROUND((SUM(P15:P42)),0) -> 4414497 | R43: =SUM(R15:R40) -> 81730 | S43: =SUM(S15:S41) -> 4332767.384
A45: 3. | B45: Recoverable Costs Allocated to Energy | D45: =ROUND((SUM(D15:D42)-D46),0) -> 358506 | E45: =ROUND((SUM(E15:E42)-E46),0) -> 358518 | F45: 361818 | G45: 360806 | H45: 362318 | I45: 363518 | J45: 363506 | K45: 363618 | L45: 362318 | M45: 360806 | N45: 358518 | O45: =ROUND((SUM(O15:O42)-O46),0) -> 358518 | P45: =ROUND((SUM(P15:P42)-P46),0) -> 4332767
A46: 4. | B46: Recoverable Costs Allocated to Demand | D46: =ROUND((D22+D21+D29+D30),0) -> 8090 | E46: =ROUND((E22+E21+E29+E30),0) -> 37590 | F46: 3090 | G46: =ROUND((G22+G21+G29+G30),0) -> 3090 | H46: =ROUND((H22+H21+H29+H30),0) -> 5665 | I46: =ROUND((I22+I21+I29+I30),0) -> 5665 | J46: 3090 | K46: =ROUND((K22+K21+K29+K30),0) -> 3090 | L46: =ROUND((L22+L21+L29+L30),0) -> 3090 | M46: =ROUND((M22+M21+M29+M30),0) -> 3090 | N46: 3090 | O46: =ROUND((O22+O21+O29+O30),0) -> 3090 | P46: =ROUND((P22+P21+P29+P30),0) -> 81730
A48: 5. | B48: Retail Energy Jurisdictional Factor | D48: 1 | E48: 1 | F48: 1 | G48: 1 | H48: 1 | I48: 1 | J48: 1 | K48: 1 | L48: 1 | M48: 1 | N48: 1 | O48: 1
A49: 6. | B49: Retail Demand Jurisdictional Factor | D49: 1 | E49: 1 | F49: 1 | G49: 1 | H49: 1 | I49: 1 | J49: 1 | K49: 1 | L49: 1 | M49: 1 | N49: 1 | O49: 1
A51: 7. | B51: Jurisdictional Energy Recoverable Costs (A) | D51: =ROUND(+D45*D48,0) -> 358506 | E51: =ROUND(+E45*E48,0) -> 358518 | F51: =ROUND(+F45*F48,0) -> 361818 | G51: =ROUND(+G45*G48,0) -> 360806 | H51: =ROUND(+H45*H48,0) -> 362318 | I51: =ROUND(+I45*I48,0) -> 363518 | J51: =ROUND(+J45*J48,0) -> 363506 | K51: =ROUND(+K45*K48,0) -> 363618 | L51: 362318 | M51: 360806 | N51: 358518 | O51: =ROUND(+O45*O48,0) -> 358518 | P51: =SUM(D51:O51)-1 -> 4332767
A52: 8. | B52: Jurisdictional Demand Recoverable Costs (B) | D52: =ROUND(+D46*D49,0) -> 8090 | E52: =ROUND(+E46*E49,0) -> 37590 | F52: 3090 | G52: =ROUND(+G46*G49,0) -> 3090 | H52: =ROUND(+H46*H49,0) -> 5665 | I52: =ROUND(+I46*I49,0) -> 5665 | J52: =ROUND(+J46*J49,0) -> 3090 | K52: =ROUND(+K46*K49,0) -> 3090 | L52: 3090 | M52: 3090 | N52: 3090 | O52: 3090 | P52: =SUM(D52:O52) -> 81730
A54: 9. | B54: Total Jurisdictional Recoverable Costs for O&M
B55: Activities (Lines 7 + 8) | D55: =D52+D51 -> 366596 | E55: =E52+E51 -> 396108 | F55: 364908 | G55: 363896 | H55: =H52+H51 -> 367983 | I55: =I52+I51 -> 369183 | J55: =J52+J51 -> 366596 | K55: =K52+K51 -> 366708 | L55: 365408 | M55: 363896 | N55: 361608 | O55: 361608 | P55: =P51+P52 -> 4414497
A57: Notes:
A58: (A) | B58: Line 3 x Line 5
A59: (B) | B59: Line 4 x Line 6
C61: Total less SO2 | D61: =D55-D17 -> 366600.63 | E61: =E55-E17 -> 396100.58 | F61: 364900.58 | G61: 363900.63 | H61: 367975.58 | I61: 369175.58 | J61: 366600.63 | K61: 366700.58 | L61: 365400.58 | M61: 363900.63 | N61: 361600.58 | O61: 361600.58 | P61: 4414456.16
C62: ck to Regulatory Projection | D62: 0.08299271867 | E62: 0.03299271868 | F62: 0.03299271868 | G62: 0.08299271873 | H62: 0.03299271874 | I62: 0.03299271868 | J62: 0.08299271867 | K62: 0.04299271869 | L62: 0.03299271868 | M62: 0.09299271868 | N62: 0.03299271868 | O62: 0.03299271868 | P62: 0.6159126237

Sheet Form 42 3P
A1: ='Form 42 2P'!$A$1:$R$1 -> Tampa Electric Company | X1: Form 42-3P
A2: ='Form 42 2P'!$A$2:$R$2 -> Environmental Cost Recovery Clause
A3: ='Form 42 2P'!$A$3:$R$3 -> Calculation of the Projected Period Amount
A4: ='Form 42 2P'!$A$4:$R$4 -> January 2022 to December 2022
Z5: Links:
A6: Capital Investment Projects-Recoverable Costs | Z6: Cap Spend by Proj
A7: (in Dollars) | Z7: Monthly ROI and DEPR
Z8: Form 42 2A
U9: End of | Z9: Tot 8A pg1-29
I10: ='Form 42 2P'!$D$10 -> Projected | J10: ='Form 42 2P'!$E$10 -> Projected | K10: ='Form 42 2P'!$F$10 -> Projected | L10: ='Form 42 2P'!$G$10 -> Projected | M10: ='Form 42 2P'!$H$10 -> Projected | N10: ='Form 42 2P'!$I$10 -> Projected | O10: ='Form 42 2P'!$J$10 -> Projected | P10: ='Form 42 2P'!$K$10 -> Projected | Q10: ='Form 42 2P'!$L$10 -> Projected | R10: ='Form 42 2P'!$M$10 -> Projected | S10: ='Form 42 2P'!$N$10 -> Projected | T10: ='Form 42 2P'!$O$10 -> Projected | U10: Period | W10: Method of Classification
A11: Line | C11: Description (A) | I11: ='Form 42 2P'!$D$11 -> January | J11: ='Form 42 2P'!$E$11 -> February | K11: ='Form 42 2P'!$F$11 -> March | L11: ='Form 42 2P'!$G$11 -> April | M11: ='Form 42 2P'!$H$11 -> May | N11: ='Form 42 2P'!$I$11 -> June | O11: ='Form 42 2P'!$J$11 -> July | P11: ='Form 42 2P'!$K$11 -> August | Q11: ='Form 42 2P'!$L$11 -> September | R11: ='Form 42 2P'!$M$11 -> October | S11: ='Form 42 2P'!$N$11 -> November | T11: ='Form 42 2P'!$O$11 -> December | U11: Total | W11: Demand | X11: Energy
I12: 1 | J12: 2 | K12: 3 | L12: 4 | M12: 5 | N12: 6 | O12: 7 | P12: 8 | Q12: 9 | R12: 10 | S12: 11 | T12: 12 | U12: 13
A13: 1. | B13: a. | C13: Big Bend Unit 3 Flue Gas Desulfurization Integration | I13: ='Form 42 4P p1'!G38 -> 81016 | J13: ='Form 42 4P p1'!H38 -> 80783 | K13: ='Form 42 4P p1'!I38 -> 80549 | L13: ='Form 42 4P p1'!J38 -> 80316 | M13: ='Form 42 4P p1'!K38 -> 80083 | N13: ='Form 42 4P p1'!L38 -> 79850 | O13: ='Form 42 4P p1'!M38 -> 79617 | P13: ='Form 42 4P p1'!N38 -> 79383 | Q13: ='Form 42 4P p1'!O38 -> 79150 | R13: ='Form 42 4P p1'!P38 -> 78917 | S13: ='Form 42 4P p1'!Q38 -> 78683 | T13: ='Form 42 4P p1'!R38 -> 78450 | U13: =SUM(I13:T13) -> 956797 | X13: =U13 -> 956797
B14: b. | C14: Big Bend Units 1 and 2 Flue Gas Conditioning | I14: ='Form 42 4P p2'!G38 -> 8870 | J14: ='Form 42 4P p2'!H38 -> 8815 | K14: ='Form 42 4P p2'!I38 -> 8759 | L14: ='Form 42 4P p2'!J38 -> 8705 | M14: ='Form 42 4P p2'!K38 -> 8650 | N14: ='Form 42 4P p2'!L38 -> 8594 | O14: ='Form 42 4P p2'!M38 -> 8539 | P14: ='Form 42 4P p2'!N38 -> 8483 | Q14: ='Form 42 4P p2'!O38 -> 8428 | R14: ='Form 42 4P p2'!P38 -> 1547 | S14: ='Form 42 4P p2'!Q38 -> 0 | T14: ='Form 42 4P p2'!R38 -> 0 | U14: 79390 | X14: =U14 -> 79390
B15: c. | C15: Big Bend Unit 4 Continuous Emissions Monitors | I15: ='Form 42 4P p3'!G38 -> 3492 | J15: ='Form 42 4P p3'!H38 -> 3478 | K15: ='Form 42 4P p3'!I38 -> 3464 | L15: ='Form 42 4P p3'!J38 -> 3451 | M15: ='Form 42 4P p3'!K38 -> 3437 | N15: ='Form 42 4P p3'!L38 -> 3423 | O15: ='Form 42 4P p3'!M38 -> 3409 | P15: ='Form 42 4P p3'!N38 -> 3395 | Q15: ='Form 42 4P p3'!O38 -> 3381 | R15: ='Form 42 4P p3'!P38 -> 3367 | S15: ='Form 42 4P p3'!Q38 -> 3355 | T15: ='Form 42 4P p3'!R38 -> 3341 | U15: 40993 | X15: =U15 -> 40993
B16: d. | C16: Big Bend Fuel Oil Tank # 1 Upgrade | I16: ='Form 42 4P p4'!G38 -> 0 | J16: ='Form 42 4P p4'!H38 -> 0 | K16: ='Form 42 4P p4'!I38 -> 0 | L16: ='Form 42 4P p4'!J38 -> 0 | M16: ='Form 42 4P p4'!K38 -> 0 | N16: ='Form 42 4P p4'!L38 -> 0 | O16: ='Form 42 4P p4'!M38 -> 0 | P16: ='Form 42 4P p4'!N38 -> 0 | Q16: ='Form 42 4P p4'!O38 -> 0 | R16: ='Form 42 4P p4'!P38 -> 0 | S16: ='Form 42 4P p4'!Q38 -> 0 | T16: ='Form 42 4P p4'!R38 -> 0 | U16: 0 | W16: =U16 -> 0
B17: e. | C17: Big Bend Fuel Oil Tank # 2 Upgrade | I17: ='Form 42 4P p5'!G38 -> 0 | J17: ='Form 42 4P p5'!H38 -> 0 | K17: ='Form 42 4P p5'!I38 -> 0 | L17: ='Form 42 4P p5'!J38 -> 0 | M17: ='Form 42 4P p5'!K38 -> 0 | N17: ='Form 42 4P p5'!L38 -> 0 | O17: ='Form 42 4P p5'!M38 -> 0 | P17: ='Form 42 4P p5'!N38 -> 0 | Q17: ='Form 42 4P p5'!O38 -> 0 | R17: ='Form 42 4P p5'!P38 -> 0 | S17: ='Form 42 4P p5'!Q38 -> 0 | T17: ='Form 42 4P p5'!R38 -> 0 | U17: 0 | W17: =U17 -> 0
B18: f. | C18: Big Bend Unit 1 Classifier Replacement | I18: ='Form 42 4P p6'!G38 -> 6898 | J18: ='Form 42 4P p6'!H38 -> 6860 | K18: ='Form 42 4P p6'!I38 -> 6822 | L18: ='Form 42 4P p6'!J38 -> 6784 | M18: ='Form 42 4P p6'!K38 -> 6746 | N18: ='Form 42 4P p6'!L38 -> 6710 | O18: ='Form 42 4P p6'!M38 -> 6672 | P18: ='Form 42 4P p6'!N38 -> 6634 | Q18: ='Form 42 4P p6'!O38 -> 6596 | R18: ='Form 42 4P p6'!P38 -> 6559 | S18: ='Form 42 4P p6'!Q38 -> 6521 | T18: ='Form 42 4P p6'!R38 -> 6484 | U18: 80286 | X18: =U18 -> 80286
B19: g. | C19: Big Bend Unit 2 Classifier Replacement | I19: ='Form 42 4P p7'!G38 -> 4574 | J19: ='Form 42 4P p7'!H38 -> 4551 | K19: ='Form 42 4P p7'!I38 -> 4527 | L19: ='Form 42 4P p7'!J38 -> 4504 | M19: ='Form 42 4P p7'!K38 -> 4481 | N19: ='Form 42 4P p7'!L38 -> 4458 | O19: ='Form 42 4P p7'!M38 -> 4434 | P19: ='Form 42 4P p7'!N38 -> 4411 | Q19: ='Form 42 4P p7'!O38 -> 4387 | R19: ='Form 42 4P p7'!P38 -> 4365 | S19: ='Form 42 4P p7'!Q38 -> 4341 | T19: ='Form 42 4P p7'!R38 -> 4318 | U19: 53351 | X19: 53351
B20: h. | C20: Big Bend Section 114 Mercury Testing Platform | I20: ='Form 42 4P p8'!G38 -> 682 | J20: ='Form 42 4P p8'!H38 -> 680 | K20: ='Form 42 4P p8'!I38 -> 679 | L20: ='Form 42 4P p8'!J38 -> 676 | M20: ='Form 42 4P p8'!K38 -> 674 | N20: ='Form 42 4P p8'!L38 -> 672 | O20: ='Form 42 4P p8'!M38 -> 670 | P20: ='Form 42 4P p8'!N38 -> 667 | Q20: ='Form 42 4P p8'!O38 -> 666 | R20: ='Form 42 4P p8'!P38 -> 664 | S20: ='Form 42 4P p8'!Q38 -> 661 | T20: ='Form 42 4P p8'!R38 -> 659 | U20: 8050 | X20: 8050
B21: i. | C21: Big Bend Units 1 & 2 FGD | I21: ='Form 42 4P p9'!G38 -> 156052 | J21: ='Form 42 4P p9'!H38 -> 155379 | K21: ='Form 42 4P p9'!I38 -> 154707 | L21: ='Form 42 4P p9'!J38 -> 154035 | M21: ='Form 42 4P p9'!K38 -> 153362 | N21: ='Form 42 4P p9'!L38 -> 152690 | O21: ='Form 42 4P p9'!M38 -> 152018 | P21: ='Form 42 4P p9'!N38 -> 151345 | Q21: ='Form 42 4P p9'!O38 -> 150673 | R21: ='Form 42 4P p9'!P38 -> 150001 | S21: ='Form 42 4P p9'!Q38 -> 149329 | T21: ='Form 42 4P p9'!R38 -> 148657 | U21: 1828248 | X21: 1828248
B22: j. | C22: Big Bend FGD Optimization and Utilization | I22: ='Form 42 4P p10'!G38 -> 134545 | J22: ='Form 42 4P p10'!H38 -> 134161 | K22: ='Form 42 4P p10'!I38 -> 133776 | L22: ='Form 42 4P p10'!J38 -> 133392 | M22: ='Form 42 4P p10'!K38 -> 133008 | N22: ='Form 42 4P p10'!L38 -> 132623 | O22: ='Form 42 4P p10'!M38 -> 132239 | P22: ='Form 42 4P p10'!N38 -> 131854 | Q22: ='Form 42 4P p10'!O38 -> 131470 | R22: ='Form 42 4P p10'!P38 -> 131086 | S22: ='Form 42 4P p10'!Q38 -> 130701 | T22: ='Form 42 4P p10'!R38 -> 130318 | U22: 1589173 | X22: 1589173
B23: k. | C23: Big Bend NOx Emissions Reduction | I23: ='Form 42 4P p11'!G38 -> 42563 | J23: ='Form 42 4P p11'!H38 -> 42481 | K23: ='Form 42 4P p11'!I38 -> 42399 | L23: ='Form 42 4P p11'!J38 -> 42317 | M23: ='Form 42 4P p11'!K38 -> 42235 | N23: ='Form 42 4P p11'!L38 -> 42153 | O23: ='Form 42 4P p11'!M38 -> 42071 | P23: ='Form 42 4P p11'!N38 -> 41988 | Q23: ='Form 42 4P p11'!O38 -> 41906 | R23: ='Form 42 4P p11'!P38 -> 41824 | S23: ='Form 42 4P p11'!Q38 -> 41742 | T23: ='Form 42 4P p11'!R38 -> 41660 | U23: 505339 | X23: 505339
B24: l. | C24: Big Bend PM Minimization and Monitoring | I24: ='Form 42 4P p12'!G38 -> 147016 | J24: ='Form 42 4P p12'!H38 -> 146556 | K24: ='Form 42 4P p12'!I38 -> 146096 | L24: ='Form 42 4P p12'!J38 -> 145636 | M24: ='Form 42 4P p12'!K38 -> 145175 | N24: ='Form 42 4P p12'!L38 -> 144715 | O24: ='Form 42 4P p12'!M38 -> 144255 | P24: ='Form 42 4P p12'!N38 -> 143796 | Q24: ='Form 42 4P p12'!O38 -> 143336 | R24: ='Form 42 4P p12'!P38 -> 142876 | S24: ='Form 42 4P p12'!Q38 -> 142416 | T24: ='Form 42 4P p12'!R38 -> 141956 | U24: 1733829 | X24: 1733829
B25: m. | C25: Polk NOx Emissions Reduction | I25: ='Form 42 4P p13'!G38 -> 9358 | J25: ='Form 42 4P p13'!H38 -> 9324 | K25: ='Form 42 4P p13'!I38 -> 9289 | L25: ='Form 42 4P p13'!J38 -> 9254 | M25: ='Form 42 4P p13'!K38 -> 9218 | N25: ='Form 42 4P p13'!L38 -> 9183 | O25: ='Form 42 4P p13'!M38 -> 9148 | P25: ='Form 42 4P p13'!N38 -> 9112 | Q25: ='Form 42 4P p13'!O38 -> 9077 | R25: ='Form 42 4P p13'!P38 -> 9042 | S25: ='Form 42 4P p13'!Q38 -> 9007 | T25: ='Form 42 4P p13'!R38 -> 8971 | U25: 109983 | X25: 109983
B26: n. | C26: Big Bend Unit 4 SOFA | I26: ='Form 42 4P p14'!G38 -> 15867 | J26: ='Form 42 4P p14'!H38 -> 15821 | K26: ='Form 42 4P p14'!I38 -> 15774 | L26: ='Form 42 4P p14'!J38 -> 15728 | M26: ='Form 42 4P p14'!K38 -> 15681 | N26: ='Form 42 4P p14'!L38 -> 15635 | O26: ='Form 42 4P p14'!M38 -> 15589 | P26: ='Form 42 4P p14'!N38 -> 15542 | Q26: ='Form 42 4P p14'!O38 -> 15496 | R26: ='Form 42 4P p14'!P38 -> 15449 | S26: ='Form 42 4P p14'!Q38 -> 15402 | T26: ='Form 42 4P p14'!R38 -> 15357 | U26: 187341 | X26: 187341
B27: o. | C27: Big Bend Unit 1 Pre-SCR | I27: ='Form 42 4P p15'!G38 -> 11869 | J27: ='Form 42 4P p15'!H38 -> 11822 | K27: ='Form 42 4P p15'!I38 -> 11774 | L27: ='Form 42 4P p15'!J38 -> 11728 | M27: ='Form 42 4P p15'!K38 -> 11681 | N27: ='Form 42 4P p15'!L38 -> 11633 | O27: ='Form 42 4P p15'!M38 -> 11586 | P27: ='Form 42 4P p15'!N38 -> 11540 | Q27: ='Form 42 4P p15'!O38 -> 11492 | R27: ='Form 42 4P p15'!P38 -> 11445 | S27: ='Form 42 4P p15'!Q38 -> 11397 | T27: ='Form 42 4P p15'!R38 -> 11351 | U27: 139318 | X27: 139318
B28: p. | C28: Big Bend Unit 2 Pre-SCR | I28: ='Form 42 4P p16'!G38 -> 10619 | J28: ='Form 42 4P p16'!H38 -> 10582 | K28: ='Form 42 4P p16'!I38 -> 10544 | L28: ='Form 42 4P p16'!J38 -> 10507 | M28: ='Form 42 4P p16'!K38 -> 10470 | N28: ='Form 42 4P p16'!L38 -> 10432 | O28: ='Form 42 4P p16'!M38 -> 10395 | P28: ='Form 42 4P p16'!N38 -> 10358 | Q28: ='Form 42 4P p16'!O38 -> 10320 | R28: ='Form 42 4P p16'!P38 -> 10282 | S28: ='Form 42 4P p16'!Q38 -> 10246 | T28: ='Form 42 4P p16'!R38 -> 10208 | U28: 124963 | X28: 124963
B29: q. | C29: Big Bend Unit 3 Pre-SCR | I29: ='Form 42 4P p17'!G38 -> 17761 | J29: ='Form 42 4P p17'!H38 -> 17708 | K29: ='Form 42 4P p17'!I38 -> 17656 | L29: ='Form 42 4P p17'!J38 -> 17603 | M29: ='Form 42 4P p17'!K38 -> 17551 | N29: ='Form 42 4P p17'!L38 -> 17498 | O29: ='Form 42 4P p17'!M38 -> 17447 | P29: ='Form 42 4P p17'!N38 -> 17394 | Q29: ='Form 42 4P p17'!O38 -> 17342 | R29: ='Form 42 4P p17'!P38 -> 17289 | S29: ='Form 42 4P p17'!Q38 -> 17236 | T29: ='Form 42 4P p17'!R38 -> 17185 | U29: 209670 | X29: 209670
B30: r. | C30: Big Bend Unit 1 SCR | I30: ='Form 42 4P p18'!G38 -> 0 | J30: ='Form 42 4P p18'!H38 -> 0 | K30: ='Form 42 4P p18'!I38 -> 0 | L30: ='Form 42 4P p18'!J38 -> 0 | M30: ='Form 42 4P p18'!K38 -> 0 | N30: ='Form 42 4P p18'!L38 -> 0 | O30: ='Form 42 4P p18'!M38 -> 0 | P30: ='Form 42 4P p18'!N38 -> 0 | Q30: ='Form 42 4P p18'!O38 -> 0 | R30: ='Form 42 4P p18'!P38 -> 0 | S30: ='Form 42 4P p18'!Q38 -> 0 | T30: ='Form 42 4P p18'!R38 -> 0 | U30: 0 | X30: 0
B31: s. | C31: Big Bend Unit 2 SCR | I31: ='Form 42 4P p19'!G38 -> 0 | J31: ='Form 42 4P p19'!H38 -> 0 | K31: ='Form 42 4P p19'!I38 -> 0 | L31: ='Form 42 4P p19'!J38 -> 0 | M31: ='Form 42 4P p19'!K38 -> 0 | N31: ='Form 42 4P p19'!L38 -> 0 | O31: ='Form 42 4P p19'!M38 -> 0 | P31: ='Form 42 4P p19'!N38 -> 0 | Q31: ='Form 42 4P p19'!O38 -> 0 | R31: ='Form 42 4P p19'!P38 -> 0 | S31: ='Form 42 4P p19'!Q38 -> 0 | T31: ='Form 42 4P p19'!R38 -> 0 | U31: 0 | X31: 0
B32: t. | C32: Big Bend Unit 3 SCR | I32: ='Form 42 4P p20'!G38 -> 0 | J32: ='Form 42 4P p20'!H38 -> 0 | K32: ='Form 42 4P p20'!I38 -> 0 | L32: ='Form 42 4P p20'!J38 -> 0 | M32: ='Form 42 4P p20'!K38 -> 0 | N32: ='Form 42 4P p20'!L38 -> 0 | O32: ='Form 42 4P p20'!M38 -> 0 | P32: ='Form 42 4P p20'!N38 -> 0 | Q32: ='Form 42 4P p20'!O38 -> 0 | R32: ='Form 42 4P p20'!P38 -> 0 | S32: ='Form 42 4P p20'!Q38 -> 0 | T32: ='Form 42 4P p20'!R38 -> 0 | U32: 0 | X32: 0
B33: u. | C33: Big Bend Unit 4 SCR | I33: ='Form 42 4P p21'!G38 -> 419654 | J33: ='Form 42 4P p21'!H38 -> 418443 | K33: ='Form 42 4P p21'!I38 -> 417233 | L33: ='Form 42 4P p21'!J38 -> 416023 | M33: ='Form 42 4P p21'!K38 -> 414812 | N33: ='Form 42 4P p21'!L38 -> 413602 | O33: ='Form 42 4P p21'!M38 -> 412392 | P33: ='Form 42 4P p21'!N38 -> 411181 | Q33: ='Form 42 4P p21'!O38 -> 409971 | R33: ='Form 42 4P p21'!P38 -> 408761 | S33: ='Form 42 4P p21'!Q38 -> 407551 | T33: ='Form 42 4P p21'!R38 -> 406340 | U33: 4955963 | X33: 4955963
B34: v. | C34: Big Bend FGD System Reliability | I34: ='Form 42 4P p22'!G38 -> 177979 | J34: ='Form 42 4P p22'!H38 -> 177560 | K34: ='Form 42 4P p22'!I38 -> 177142 | L34: ='Form 42 4P p22'!J38 -> 176723 | M34: ='Form 42 4P p22'!K38 -> 176304 | N34: ='Form 42 4P p22'!L38 -> 175885 | O34: ='Form 42 4P p22'!M38 -> 175467 | P34: ='Form 42 4P p22'!N38 -> 175048 | Q34: ='Form 42 4P p22'!O38 -> 174630 | R34: ='Form 42 4P p22'!P38 -> 174212 | S34: ='Form 42 4P p22'!Q38 -> 173793 | T34: ='Form 42 4P p22'!R38 -> 173375 | U34: 2108118 | X34: 2108118
B35: w. | C35: Mercury Air Toxics Standards | I35: ='Form 42 4P p23'!G38 -> 67535 | J35: ='Form 42 4P p23'!H38 -> 67367 | K35: ='Form 42 4P p23'!I38 -> 67201 | L35: ='Form 42 4P p23'!J38 -> 67033 | M35: ='Form 42 4P p23'!K38 -> 66867 | N35: ='Form 42 4P p23'!L38 -> 66699 | O35: ='Form 42 4P p23'!M38 -> 66533 | P35: ='Form 42 4P p23'!N38 -> 66365 | Q35: ='Form 42 4P p23'!O38 -> 66199 | R35: ='Form 42 4P p23'!P38 -> 66031 | S35: ='Form 42 4P p23'!Q38 -> 65865 | T35: ='Form 42 4P p23'!R38 -> 65697 | U35: 799392 | X35: 799392
B36: x. | C36: SO2 Emissions Allowances (B) | I36: ='Form 42 4P p24'!G30 -> -226 | J36: ='Form 42 4P p24'!H30 -> -226 | K36: ='Form 42 4P p24'!I30 -> -226 | L36: ='Form 42 4P p24'!J30 -> -226 | M36: ='Form 42 4P p24'!K30 -> -226 | N36: ='Form 42 4P p24'!L30 -> -226 | O36: ='Form 42 4P p24'!M30 -> -226 | P36: ='Form 42 4P p24'!N30 -> -226 | Q36: ='Form 42 4P p24'!O30 -> -226 | R36: ='Form 42 4P p24'!P30 -> -226 | S36: ='Form 42 4P p24'!Q30 -> -226 | T36: ='Form 42 4P p24'!R30 -> -226 | U36: -2712 | X36: -2712
B37: y. | C37: Big Bend Gypsum Storage Facility | I37: ='Form 42 4P p25'!G38 -> 169633 | J37: ='Form 42 4P p25'!H38 -> 169255 | K37: ='Form 42 4P p25'!I38 -> 168878 | L37: ='Form 42 4P p25'!J38 -> 168500 | M37: ='Form 42 4P p25'!K38 -> 168122 | N37: ='Form 42 4P p25'!L38 -> 167745 | O37: ='Form 42 4P p25'!M38 -> 167367 | P37: ='Form 42 4P p25'!N38 -> 166989 | Q37: ='Form 42 4P p25'!O38 -> 166611 | R37: ='Form 42 4P p25'!P38 -> 166233 | S37: ='Form 42 4P p25'!Q38 -> 165856 | T37: ='Form 42 4P p25'!R38 -> 165478 | U37: 2010667 | X37: 2010667
B38: z. | C38: Big Bend Coal Combustion Residual Rule (CCR Rule) | I38: ='Form 42 4P p26'!G38 -> 39683 | J38: ='Form 42 4P p26'!H38 -> 42196 | K38: ='Form 42 4P p26'!I38 -> 44702 | L38: ='Form 42 4P p26'!J38 -> 48850 | M38: ='Form 42 4P p26'!K38 -> 54078 | N38: ='Form 42 4P p26'!L38 -> 53948 | O38: ='Form 42 4P p26'!M38 -> 53818 | P38: ='Form 42 4P p26'!N38 -> 53689 | Q38: ='Form 42 4P p26'!O38 -> 53559 | R38: ='Form 42 4P p26'!P38 -> 53429 | S38: ='Form 42 4P p26'!Q38 -> 53299 | T38: ='Form 42 4P p26'!R38 -> 53169 | U38: 604420 | W38: =U38 -> 604420
B39: aa. | C39: Coal Combustion Residuals (CCR-Phase II) | I39: ='Form 42 4P p27'!G38 -> 18692 | J39: ='Form 42 4P p27'!H38 -> 18656 | K39: ='Form 42 4P p27'!I38 -> 18619 | L39: ='Form 42 4P p27'!J38 -> 18583 | M39: ='Form 42 4P p27'!K38 -> 18546 | N39: ='Form 42 4P p27'!L38 -> 18510 | O39: ='Form 42 4P p27'!M38 -> 18473 | P39: ='Form 42 4P p27'!N38 -> 18437 | Q39: ='Form 42 4P p27'!O38 -> 18400 | R39: ='Form 42 4P p27'!P38 -> 18364 | S39: ='Form 42 4P p27'!Q38 -> 18327 | T39: ='Form 42 4P p27'!R38 -> 18292 | U39: ='Form 42 4P p27'!S38 -> 221899 | W39: =U39 -> 221899
B40: ab. | C40: Big Bend ELG Compliance | I40: ='Form 42 4P p28'!G38 -> 92833 | J40: ='Form 42 4P p28'!H38 -> 103783 | K40: ='Form 42 4P p28'!I38 -> 112920 | L40: ='Form 42 4P p28'!J38 -> 120176 | M40: ='Form 42 4P p28'!K38 -> 128258 | N40: ='Form 42 4P p28'!L38 -> 212190 | O40: ='Form 42 4P p28'!M38 -> 219505 | P40: ='Form 42 4P p28'!N38 -> 232746 | Q40: ='Form 42 4P p28'!O38 -> 254191 | R40: ='Form 42 4P p28'!P38 -> 264314 | S40: ='Form 42 4P p28'!Q38 -> 267731 | T40: ='Form 42 4P p28'!R38 -> 271238 | U40: ='Form 42 4P p28'!S38 -> 2279885 | W40: =U40 -> 2279885
B41: ac. | C41: Big Bend Unit 1 Impingement Mortality - 316(b) | I41: ='Form 42 4P p29'!G38 -> 86494 | J41: ='Form 42 4P p29'!H38 -> 89243 | K41: ='Form 42 4P p29'!I38 -> 91492 | L41: ='Form 42 4P p29'!J38 -> 93896 | M41: ='Form 42 4P p29'!K38 -> 95651 | N41: ='Form 42 4P p29'!L38 -> 96106 | O41: ='Form 42 4P p29'!M38 -> 96132 | P41: ='Form 42 4P p29'!N38 -> 96148 | Q41: ='Form 42 4P p29'!O38 -> 96150 | R41: ='Form 42 4P p29'!P38 -> 96150 | S41: ='Form 42 4P p29'!Q38 -> 96150 | T41: ='Form 42 4P p29'!R38 -> 96150 | U41: ='Form 42 4P p29'!S38 -> 1129762 | W41: =U41 -> 1129762
B42: ad. | C42: Bayside 316(b) Compliance | I42: ='Form 42 4P p30'!G38 -> 1088 | J42: ='Form 42 4P p30'!H38 -> 2377 | K42: ='Form 42 4P p30'!I38 -> 2778 | L42: ='Form 42 4P p30'!J38 -> 4954 | M42: ='Form 42 4P p30'!K38 -> 7130 | N42: ='Form 42 4P p30'!L38 -> 11970 | O42: ='Form 42 4P p30'!M38 -> 16811 | P42: ='Form 42 4P p30'!N38 -> 17211 | Q42: ='Form 42 4P p30'!O38 -> 17612 | R42: ='Form 42 4P p30'!P38 -> 24059 | S42: ='Form 42 4P p30'!Q38 -> 32110 | T42: ='Form 42 4P p30'!R38 -> 35722 | U42: ='Form 42 4P p30'!S38 -> 173822 | W42: =U42 -> 173822
A46: 2. | C46: Total Investment Projects - Recoverable Costs | I46: =ROUND((SUM(I13:I43)),0) -> 1724547 | J46: 1737655 | K46: 1747554 | L46: 1759148 | M46: 1771994 | N46: 1856698 | O46: =ROUND((SUM(O13:O43)),0) -> 1864361 | P46: 1873490 | Q46: 1890817 | R46: 1896040 | S46: 1901493 | T46: =ROUND((SUM(T13:T43)),0) -> 1904150 | U46: =ROUND((SUM(U13:U43)),0) -> 21927947 | W46: =SUM(W13:W45) -> 4409788 | X46: =SUM(X13:X45) -> 17518159
A48: 3. | C48: Recoverable Costs Allocated to Energy | I48: =ROUND((SUM(I18:I37)+SUM(I13:I15)),0) -> 1485757 | J48: =ROUND((SUM(J18:J37)+SUM(J13:J15)),0) -> 1481400 | K48: 1477043 | L48: 1472689 | M48: 1468331 | N48: 1463974 | O48: 1459622 | P48: 1455259 | Q48: 1450905 | R48: 1439724 | S48: 1433876 | T48: 1429579 | U48: 17518159 | X48: =X46 -> 17518159
A49: 4. | C49: Recoverable Costs Allocated to Demand | I49: =ROUND((SUM(I16:I17,I38:I42)),0) -> 238790 | J49: 256255 | K49: 270511 | L49: 286459 | M49: 303663 | N49: =ROUND((SUM(N16:N17,N38:N42)),0) -> 392724 | O49: =ROUND((SUM(O16:O17,O38:O42)),0) -> 404739 | P49: 418231 | Q49: 439912 | R49: 456316 | S49: 467617 | T49: 474571 | U49: 4409788 | W49: =W46 -> 4409788
A51: 5. | C51: Retail Energy Jurisdictional Factor | I51: ='Form 42 2P'!D48 -> 1 | J51: ='Form 42 2P'!E48 -> 1 | K51: ='Form 42 2P'!F48 -> 1 | L51: ='Form 42 2P'!G48 -> 1 | M51: ='Form 42 2P'!H48 -> 1 | N51: ='Form 42 2P'!I48 -> 1 | O51: ='Form 42 2P'!J48 -> 1 | P51: ='Form 42 2P'!K48 -> 1 | Q51: ='Form 42 2P'!L48 -> 1 | R51: ='Form 42 2P'!M48 -> 1 | S51: ='Form 42 2P'!N48 -> 1 | T51: ='Form 42 2P'!O48 -> 1
A52: 6. | C52: Retail Demand Jurisdictional Factor | I52: ='Form 42 2P'!D49 -> 1 | J52: ='Form 42 2P'!E49 -> 1 | K52: ='Form 42 2P'!F49 -> 1 | L52: ='Form 42 2P'!G49 -> 1 | M52: ='Form 42 2P'!H49 -> 1 | N52: ='Form 42 2P'!I49 -> 1 | O52: ='Form 42 2P'!J49 -> 1 | P52: ='Form 42 2P'!K49 -> 1 | Q52: ='Form 42 2P'!L49 -> 1 | R52: ='Form 42 2P'!M49 -> 1 | S52: ='Form 42 2P'!N49 -> 1 | T52: ='Form 42 2P'!O49 -> 1
A54: 7. | C54: Jurisdictional Energy Recoverable Costs (C) | I54: =ROUND(I48*I51,0) -> 1485757 | J54: =ROUND(J48*J51,0) -> 1481400 | K54: 1477043 | L54: =ROUND(L48*L51,0) -> 1472689 | M54: 1468331 | N54: 1463974 | O54: =ROUND(O48*O51,0) -> 1459622 | P54: =ROUND(P48*P51,0) -> 1455259 | Q54: 1450905 | R54: 1439724 | S54: 1433876 | T54: 1429579 | U54: =SUM(I54:T54) -> 17518159
A55: 8. | C55: Jurisdictional Demand Recoverable Costs (D) | I55: =ROUND(I49*I52,0) -> 238790 | J55: =ROUND(J49*J52,0) -> 256255 | K55: 270511 | L55: =ROUND(L49*L52,0) -> 286459 | M55: 303663 | N55: 392724 | O55: 404739 | P55: 418231 | Q55: 439912 | R55: 456316 | S55: 467617 | T55: 474571 | U55: =SUM(I55:T55) -> 4409788
A57: 9. | C57: Total Jurisdictional Recoverable Costs for
C58: Investment Projects (Lines 7 + 8) | I58: =I55+I54 -> 1724547 | J58: =J55+J54 -> 1737655 | K58: =K55+K54 -> 1747554 | L58: 1759148 | M58: =M55+M54 -> 1771994 | N58: 1856698 | O58: =O55+O54 -> 1864361 | P58: =P55+P54 -> 1873490 | Q58: 1890817 | R58: =R55+R54 -> 1896040 | S58: 1901493 | T58: 1904150 | U58: =U55+U54 -> 21927947
A60: Notes:
C61: (A) Each project's Total System Recoverable Expenses on Form 42-4P, Line 14
C62: (B) Line 3 x Line 5
C63: (C) Line 4 x Line 6
A65: Notes:
A66: (A) | B66: Each project's Total System Recoverable Expenses on Form 42-4P, Line 9
A67: (B) | B67: Project's Total Return Component on Form 42-4P, Line 6
A68: (C) | B68: Line 3 x Line 5
A69: (D) | B69: Line 4 x Line 6
F71: Actual | I71: January | J71: February | K71: March | L71: April | M71: May | N71: June | O71: July | P71: August | Q71: September | R71: October | S71: November | T71: December | U71: Total | Z71: CM
D72: RECOVERABLE | F72: Depreciation Memo Entry 1 | I72: ='Form 42 4P p1'!G32*I51+'Form 42 4P p2'!G32*I51+'Form 42 4P p3'!G32*I51+'Form 42 4P p4'!G32*I52+'Form 42 4P p5'!G32*I52+'Form 42 4P p6'!G32*I51+'Form 42 4P p7'!G32*I51+'Form 42 4P p8'!G32*I51+'Form 42 4P p9'!G32*I51+'Form 42 4P p10'!G32*I51+'Form 42 4P p11'!G32*I51+'Form 42 4P p12'!G32*I51+'Form 42 4P p13'!G32*I51+'Form 42 4P p14'!G32*I51+'Form 42 4P p15'!G32*I51+'Form 42 4P p16'!G32*I51+'Form 42 4P p17'!G32*I51+'Form 42 4P p18'!G32*I51+'Form 42 4P p19'!G32*I51+'Form 42 4P p20'!G32*I51+'Form 42 4P p21'!G32*I51+'Form 42 4P p22'!G32*I51+'Form 42 4P p23'!G32*I51+'Form 42 4P p25'!G32*I51+'Form 42 4P p26'!G32*I52+'Form 42 4P p27'!G32*I52+'Form 42 4P p28'!G32*I52+'Form 42 4P p29'!G32*I52+'Form 42 4P p30'!G32*I52 -> 679872 | J72: ='Form 42 4P p1'!H32*J51+'Form 42 4P p2'!H32*J51+'Form 42 4P p3'!H32*J51+'Form 42 4P p4'!H32*J52+'Form 42 4P p5'!H32*J52+'Form 42 4P p6'!H32*J51+'Form 42 4P p7'!H32*J51+'Form 42 4P p8'!H32*J51+'Form 42 4P p9'!H32*J51+'Form 42 4P p10'!H32*J51+'Form 42 4P p11'!H32*J51+'Form 42 4P p12'!H32*J51+'Form 42 4P p13'!H32*J51+'Form 42 4P p14'!H32*J51+'Form 42 4P p15'!H32*J51+'Form 42 4P p16'!H32*J51+'Form 42 4P p17'!H32*J51+'Form 42 4P p18'!H32*J51+'Form 42 4P p19'!H32*J51+'Form 42 4P p20'!H32*J51+'Form 42 4P p21'!H32*J51+'Form 42 4P p22'!H32*J51+'Form 42 4P p23'!H32*J51+'Form 42 4P p25'!H32*J51+'Form 42 4P p26'!H32*J52+'Form 42 4P p27'!H32*J52+'Form 42 4P p28'!H32*J52+'Form 42 4P p29'!H32*J52+'Form 42 4P p30'!H32*J52 -> 680831 | K72: ='Form 42 4P p1'!I32*K51+'Form 42 4P p2'!I32*K51+'Form 42 4P p3'!I32*K51+'Form 42 4P p4'!I32*K52+'Form 42 4P p5'!I32*K52+'Form 42 4P p6'!I32*K51+'Form 42 4P p7'!I32*K51+'Form 42 4P p8'!I32*K51+'Form 42 4P p9'!I32*K51+'Form 42 4P p10'!I32*K51+'Form 42 4P p11'!I32*K51+'Form 42 4P p12'!I32*K51+'Form 42 4P p13'!I32*K51+'Form 42 4P p14'!I32*K51+'Form 42 4P p15'!I32*K51+'Form 42 4P p16'!I32*K51+'Form 42 4P p17'!I32*K51+'Form 42 4P p18'!I32*K51+'Form 42 4P p19'!I32*K51+'Form 42 4P p20'!I32*K51+'Form 42 4P p21'!I32*K51+'Form 42 4P p22'!I32*K51+'Form 42 4P p23'!I32*K51+'Form 42 4P p25'!I32*K51+'Form 42 4P p26'!I32*K52+'Form 42 4P p27'!I32*K52+'Form 42 4P p28'!I32*K52+'Form 42 4P p29'!I32*K52+'Form 42 4P p30'!I32*K52 -> 681789 | L72: ='Form 42 4P p1'!J32*L51+'Form 42 4P p2'!J32*L51+'Form 42 4P p3'!J32*L51+'Form 42 4P p4'!J32*L52+'Form 42 4P p5'!J32*L52+'Form 42 4P p6'!J32*L51+'Form 42 4P p7'!J32*L51+'Form 42 4P p8'!J32*L51+'Form 42 4P p9'!J32*L51+'Form 42 4P p10'!J32*L51+'Form 42 4P p11'!J32*L51+'Form 42 4P p12'!J32*L51+'Form 42 4P p13'!J32*L51+'Form 42 4P p14'!J32*L51+'Form 42 4P p15'!J32*L51+'Form 42 4P p16'!J32*L51+'Form 42 4P p17'!J32*L51+'Form 42 4P p18'!J32*L51+'Form 42 4P p19'!J32*L51+'Form 42 4P p20'!J32*L51+'Form 42 4P p21'!J32*L51+'Form 42 4P p22'!J32*L51+'Form 42 4P p23'!J32*L51+'Form 42 4P p25'!J32*L51+'Form 42 4P p26'!J32*L52+'Form 42 4P p27'!J32*L52+'Form 42 4P p28'!J32*L52+'Form 42 4P p29'!J32*L52+'Form 42 4P p30'!J32*L52 -> 682747 | M72: ='Form 42 4P p1'!K32*M51+'Form 42 4P p2'!K32*M51+'Form 42 4P p3'!K32*M51+'Form 42 4P p4'!K32*M52+'Form 42 4P p5'!K32*M52+'Form 42 4P p6'!K32*M51+'Form 42 4P p7'!K32*M51+'Form 42 4P p8'!K32*M51+'Form 42 4P p9'!K32*M51+'Form 42 4P p10'!K32*M51+'Form 42 4P p11'!K32*M51+'Form 42 4P p12'!K32*M51+'Form 42 4P p13'!K32*M51+'Form 42 4P p14'!K32*M51+'Form 42 4P p15'!K32*M51+'Form 42 4P p16'!K32*M51+'Form 42 4P p17'!K32*M51+'Form 42 4P p18'!K32*M51+'Form 42 4P p19'!K32*M51+'Form 42 4P p20'!K32*M51+'Form 42 4P p21'!K32*M51+'Form 42 4P p22'!K32*M51+'Form 42 4P p23'!K32*M51+'Form 42 4P p25'!K32*M51+'Form 42 4P p26'!K32*M52+'Form 42 4P p27'!K32*M52+'Form 42 4P p28'!K32*M52+'Form 42 4P p29'!K32*M52+'Form 42 4P p30'!K32*M52 -> 685622 | N72: ='Form 42 4P p1'!L32*N51+'Form 42 4P p2'!L32*N51+'Form 42 4P p3'!L32*N51+'Form 42 4P p4'!L32*N52+'Form 42 4P p5'!L32*N52+'Form 42 4P p6'!L32*N51+'Form 42 4P p7'!L32*N51+'Form 42 4P p8'!L32*N51+'Form 42 4P p9'!L32*N51+'Form 42 4P p10'!L32*N51+'Form 42 4P p11'!L32*N51+'Form 42 4P p12'!L32*N51+'Form 42 4P p13'!L32*N51+'Form 42 4P p14'!L32*N51+'Form 42 4P p15'!L32*N51+'Form 42 4P p16'!L32*N51+'Form 42 4P p17'!L32*N51+'Form 42 4P p18'!L32*N51+'Form 42 4P p19'!L32*N51+'Form 42 4P p20'!L32*N51+'Form 42 4P p21'!L32*N51+'Form 42 4P p22'!L32*N51+'Form 42 4P p23'!L32*N51+'Form 42 4P p25'!L32*N51+'Form 42 4P p26'!L32*N52+'Form 42 4P p27'!L32*N52+'Form 42 4P p28'!L32*N52+'Form 42 4P p29'!L32*N52+'Form 42 4P p30'!L32*N52 -> 762816 | O72: ='Form 42 4P p1'!M32*O51+'Form 42 4P p2'!M32*O51+'Form 42 4P p3'!M32*O51+'Form 42 4P p4'!M32*O52+'Form 42 4P p5'!M32*O52+'Form 42 4P p6'!M32*O51+'Form 42 4P p7'!M32*O51+'Form 42 4P p8'!M32*O51+'Form 42 4P p9'!M32*O51+'Form 42 4P p10'!M32*O51+'Form 42 4P p11'!M32*O51+'Form 42 4P p12'!M32*O51+'Form 42 4P p13'!M32*O51+'Form 42 4P p14'!M32*O51+'Form 42 4P p15'!M32*O51+'Form 42 4P p16'!M32*O51+'Form 42 4P p17'!M32*O51+'Form 42 4P p18'!M32*O51+'Form 42 4P p19'!M32*O51+'Form 42 4P p20'!M32*O51+'Form 42 4P p21'!M32*O51+'Form 42 4P p22'!M32*O51+'Form 42 4P p23'!M32*O51+'Form 42 4P p25'!M32*O51+'Form 42 4P p26'!M32*O52+'Form 42 4P p27'!M32*O52+'Form 42 4P p28'!M32*O52+'Form 42 4P p29'!M32*O52+'Form 42 4P p30'!M32*O52 -> 765635 | P72: ='Form 42 4P p1'!N32*P51+'Form 42 4P p2'!N32*P51+'Form 42 4P p3'!N32*P51+'Form 42 4P p4'!N32*P52+'Form 42 4P p5'!N32*P52+'Form 42 4P p6'!N32*P51+'Form 42 4P p7'!N32*P51+'Form 42 4P p8'!N32*P51+'Form 42 4P p9'!N32*P51+'Form 42 4P p10'!N32*P51+'Form 42 4P p11'!N32*P51+'Form 42 4P p12'!N32*P51+'Form 42 4P p13'!N32*P51+'Form 42 4P p14'!N32*P51+'Form 42 4P p15'!N32*P51+'Form 42 4P p16'!N32*P51+'Form 42 4P p17'!N32*P51+'Form 42 4P p18'!N32*P51+'Form 42 4P p19'!N32*P51+'Form 42 4P p20'!N32*P51+'Form 42 4P p21'!N32*P51+'Form 42 4P p22'!N32*P51+'Form 42 4P p23'!N32*P51+'Form 42 4P p25'!N32*P51+'Form 42 4P p26'!N32*P52+'Form 42 4P p27'!N32*P52+'Form 42 4P p28'!N32*P52+'Form 42 4P p29'!N32*P52+'Form 42 4P p30'!N32*P52 -> 768644 | Q72: ='Form 42 4P p1'!O32*Q51+'Form 42 4P p2'!O32*Q51+'Form 42 4P p3'!O32*Q51+'Form 42 4P p4'!O32*Q52+'Form 42 4P p5'!O32*Q52+'Form 42 4P p6'!O32*Q51+'Form 42 4P p7'!O32*Q51+'Form 42 4P p8'!O32*Q51+'Form 42 4P p9'!O32*Q51+'Form 42 4P p10'!O32*Q51+'Form 42 4P p11'!O32*Q51+'Form 42 4P p12'!O32*Q51+'Form 42 4P p13'!O32*Q51+'Form 42 4P p14'!O32*Q51+'Form 42 4P p15'!O32*Q51+'Form 42 4P p16'!O32*Q51+'Form 42 4P p17'!O32*Q51+'Form 42 4P p18'!O32*Q51+'Form 42 4P p19'!O32*Q51+'Form 42 4P p20'!O32*Q51+'Form 42 4P p21'!O32*Q51+'Form 42 4P p22'!O32*Q51+'Form 42 4P p23'!O32*Q51+'Form 42 4P p25'!O32*Q51+'Form 42 4P p26'!O32*Q52+'Form 42 4P p27'!O32*Q52+'Form 42 4P p28'!O32*Q52+'Form 42 4P p29'!O32*Q52+'Form 42 4P p30'!O32*Q52 -> 778152 | R72: ='Form 42 4P p1'!P32*R51+'Form 42 4P p2'!P32*R51+'Form 42 4P p3'!P32*R51+'Form 42 4P p4'!P32*R52+'Form 42 4P p5'!P32*R52+'Form 42 4P p6'!P32*R51+'Form 42 4P p7'!P32*R51+'Form 42 4P p8'!P32*R51+'Form 42 4P p9'!P32*R51+'Form 42 4P p10'!P32*R51+'Form 42 4P p11'!P32*R51+'Form 42 4P p12'!P32*R51+'Form 42 4P p13'!P32*R51+'Form 42 4P p14'!P32*R51+'Form 42 4P p15'!P32*R51+'Form 42 4P p16'!P32*R51+'Form 42 4P p17'!P32*R51+'Form 42 4P p18'!P32*R51+'Form 42 4P p19'!P32*R51+'Form 42 4P p20'!P32*R51+'Form 42 4P p21'!P32*R51+'Form 42 4P p22'!P32*R51+'Form 42 4P p23'!P32*R51+'Form 42 4P p25'!P32*R51+'Form 42 4P p26'!P32*R52+'Form 42 4P p27'!P32*R52+'Form 42 4P p28'!P32*R52+'Form 42 4P p29'!P32*R52+'Form 42 4P p30'!P32*R52 -> 776346 | S72: ='Form 42 4P p1'!Q32*S51+'Form 42 4P p2'!Q32*S51+'Form 42 4P p3'!Q32*S51+'Form 42 4P p4'!Q32*S52+'Form 42 4P p5'!Q32*S52+'Form 42 4P p6'!Q32*S51+'Form 42 4P p7'!Q32*S51+'Form 42 4P p8'!Q32*S51+'Form 42 4P p9'!Q32*S51+'Form 42 4P p10'!Q32*S51+'Form 42 4P p11'!Q32*S51+'Form 42 4P p12'!Q32*S51+'Form 42 4P p13'!Q32*S51+'Form 42 4P p14'!Q32*S51+'Form 42 4P p15'!Q32*S51+'Form 42 4P p16'!Q32*S51+'Form 42 4P p17'!Q32*S51+'Form 42 4P p18'!Q32*S51+'Form 42 4P p19'!Q32*S51+'Form 42 4P p20'!Q32*S51+'Form 42 4P p21'!Q32*S51+'Form 42 4P p22'!Q32*S51+'Form 42 4P p23'!Q32*S51+'Form 42 4P p25'!Q32*S51+'Form 42 4P p26'!Q32*S52+'Form 42 4P p27'!Q32*S52+'Form 42 4P p28'!Q32*S52+'Form 42 4P p29'!Q32*S52+'Form 42 4P p30'!Q32*S52 -> 776395 | T72: ='Form 42 4P p1'!R32*T51+'Form 42 4P p2'!R32*T51+'Form 42 4P p3'!R32*T51+'Form 42 4P p4'!R32*T52+'Form 42 4P p5'!R32*T52+'Form 42 4P p6'!R32*T51+'Form 42 4P p7'!R32*T51+'Form 42 4P p8'!R32*T51+'Form 42 4P p9'!R32*T51+'Form 42 4P p10'!R32*T51+'Form 42 4P p11'!R32*T51+'Form 42 4P p12'!R32*T51+'Form 42 4P p13'!R32*T51+'Form 42 4P p14'!R32*T51+'Form 42 4P p15'!R32*T51+'Form 42 4P p16'!R32*T51+'Form 42 4P p17'!R32*T51+'Form 42 4P p18'!R32*T51+'Form 42 4P p19'!R32*T51+'Form 42 4P p20'!R32*T51+'Form 42 4P p21'!R32*T51+'Form 42 4P p22'!R32*T51+'Form 42 4P p23'!R32*T51+'Form 42 4P p25'!R32*T51+'Form 42 4P p26'!R32*T52+'Form 42 4P p27'!R32*T52+'Form 42 4P p28'!R32*T52+'Form 42 4P p29'!R32*T52+'Form 42 4P p30'!R32*T52 -> 777680 | U72: =SUM(I72:T72) -> 8816529 | Z72: =CHOOSE(#REF!,I72,J72,K72,L72,M72,N72,O72,P72,Q72,R72,S72,T72) -> 
F73: Depreciation YTD | I73: =SUM($I$72:I72) -> 679872 | J73: =SUM($I$72:J72) -> 1360703 | K73: =SUM($I$72:K72) -> 2042492 | L73: =SUM($I$72:L72) -> 2725239 | M73: =SUM($I$72:M72) -> 3410861 | N73: =SUM($I$72:N72) -> 4173677 | O73: =SUM($I$72:O72) -> 4939312 | P73: =SUM($I$72:P72) -> 5707956 | Q73: =SUM($I$72:Q72) -> 6486108 | R73: =SUM($I$72:R72) -> 7262454 | S73: =SUM($I$72:S72) -> 8038849 | T73: =SUM($I$72:T72) -> 8816529 | Z73: =CHOOSE(#REF!,I73,J73,K73,L73,M73,N73,O73,P73,Q73,R73,S73,T73) -> 
F74: ROI 1 | I74: =I58-I72 -> 1044675 | J74: =J58-J72 -> 1056824 | K74: 1065765 | L74: =L58-L72 -> 1076401 | M74: 1086372 | N74: 1093882 | O74: 1098726 | P74: 1104846 | Q74: 1112665 | R74: 1119694 | S74: 1125098 | T74: 1126470 | U74: =SUM(I74:T74) -> 13111418 | Z74: =CHOOSE(#REF!,I74,J74,K74,L74,M74,N74,O74,P74,Q74,R74,S74,T74) -> 
F75: ROI YTD | I75: =I74 -> 1044675 | J75: =J74+I75 -> 2101499 | K75: 3167264 | L75: 4243665 | M75: 5330037 | N75: 6423919 | O75: 7522645 | P75: 8627491 | Q75: 9740156 | R75: 10859850 | S75: 11984948 | T75: 13111418 | Z75: =CHOOSE(#REF!,I75,J75,K75,L75,M75,N75,O75,P75,Q75,R75,S75,T75) -> 
F77: Capital Spend by Project

Sheet Sheet1

Sheet Form 42 4P p1
A1: ='Form 42 2P'!$A$1:$R$1 -> Tampa Electric Company | S1: Form 42-4P | W1: BIG BEND 3 - FGD INTEGRATION B-42 | AF1: BIG BEND 3 - FGD INTEGRATION B-42 | AL1: BIG BEND 3 - FGD INTEGRATION B-42 | AR1: BIG BEND 3 - FGD INTEGRATION B-42
A2: ='Form 42 2P'!$A$2:$R$2 -> Environmental Cost Recovery Clause | S2: Page 1 of 30 | W2: BLENDED | AF2: 312.45 | AL2: 315.45 | AR2: 312.4
A3: ='Form 42 2P'!$A$3:$R$3 -> Calculation of the Projected Period Amount | X3: IN SERVICE | Y3: DEPREC. | Z3: DEPREC. | AG3: IN SERVICE | AH3: DEPREC. | AI3: DEPREC. | AM3: IN SERVICE | AN3: DEPREC. | AO3: DEPREC. | AS3: IN SERVICE | AT3: DEPREC. | AU3: DEPREC.
A4: ='Form 42 2P'!$A$4:$R$4 -> January 2022 to December 2022 | Y4: RATE | Z4: EXP. | AA4: ACC. DEPR. | AH4: RATE | AI4: EXP. | AJ4: ACC. DEPR. | AN4: RATE | AO4: EXP. | AP4: ACC. DEPR. | AT4: RATE | AU4: EXP. | AV4: ACC. DEPR.
A6: Return on Capital Investments, Depreciation and Taxes | W6: Dec 20 | X6: 13763263 | Y6: Blended | Z6: 28838 | AA6: 6478449 | AB6: 346056 | AC6: depreciation activity | AF6: Dec 20 | AG6: 13435774.94 | AH6: 0.002083333333 | AI6: 27991 | AJ6: 6427707 | AL6: Dec 20 | AM6: 327306.5 | AN6: 0.002583333333 | AO6: 846 | AP6: 50713 | AR6: Dec 20 | AS6: 181.56 | AT6: 0.002833333333 | AU6: 1 | AV6: 29
A7: For Project: Big Bend Unit 3 Flue Gas Desulfurization Integration | W7: BLENDED | AF7: 312.45 | AL7: 315.45 | AR7: 312.4
A8: (in Dollars) | W8: Jan 21 | X8: 13763263 | Y8: Blended | Z8: 28838 | AA8: 6507287 | AF8: Jan 21 | AG8: 13435774.94 | AH8: 0.002083333333 | AI8: 27991 | AJ8: 6455698 | AL8: Jan 21 | AM8: 327306.5 | AN8: 0.002583333333 | AO8: 846 | AP8: 51559 | AR8: Jan 21 | AS8: 181.56 | AT8: 0.002833333333 | AU8: 1 | AV8: 30
W9: Feb 21 | X9: 13763263 | Y9: Blended | Z9: 28838 | AA9: 6536125 | AF9: Feb 21 | AG9: 13435774.94 | AH9: 0.002083333333 | AI9: 27991 | AJ9: 6483689 | AL9: Feb 21 | AM9: 327306.5 | AN9: 0.002583333333 | AO9: 846 | AP9: 52405 | AR9: Feb 21 | AS9: 181.56 | AT9: 0.002833333333 | AU9: 1 | AV9: 31
S10: End of | W10: Mar 21 | X10: 13763263 | Y10: Blended | Z10: 28838 | AA10: 6564963 | AF10: Mar 21 | AG10: 13435774.94 | AH10: 0.002083333333 | AI10: 27991 | AJ10: 6511680 | AL10: Mar 21 | AM10: 327306.5 | AN10: 0.002583333333 | AO10: 846 | AP10: 53251 | AR10: Mar 21 | AS10: 181.56 | AT10: 0.002833333333 | AU10: 1 | AV10: 32
F11: Beginning of | G11: ='Form 42 2P'!$D$10 -> Projected | H11: ='Form 42 2P'!$E$10 -> Projected | I11: ='Form 42 2P'!$F$10 -> Projected | J11: ='Form 42 2P'!$G$10 -> Projected | K11: ='Form 42 2P'!$H$10 -> Projected | L11: ='Form 42 2P'!$I$10 -> Projected | M11: ='Form 42 2P'!$J$10 -> Projected | N11: ='Form 42 2P'!$K$10 -> Projected | O11: ='Form 42 2P'!$L$10 -> Projected | P11: ='Form 42 2P'!$M$10 -> Projected | Q11: ='Form 42 2P'!$N$10 -> Projected | R11: ='Form 42 2P'!$O$10 -> Projected | S11: Period | W11: Apr 21 | X11: 13763263 | Y11: Blended | Z11: 28838 | AA11: 6593801 | AF11: Apr 21 | AG11: 13435774.94 | AH11: 0.002083333333 | AI11: 27991 | AJ11: 6539671 | AL11: Apr 21 | AM11: 327306.5 | AN11: 0.002583333333 | AO11: 846 | AP11: 54097 | AR11: Apr 21 | AS11: 181.56 | AT11: 0.002833333333 | AU11: 1 | AV11: 33
A12: Line | B12: Description | F12: Period Amount | G12: ='Form 42 2P'!$D$11 -> January | H12: ='Form 42 2P'!$E$11 -> February | I12: ='Form 42 2P'!$F$11 -> March | J12: ='Form 42 2P'!$G$11 -> April | K12: ='Form 42 2P'!$H$11 -> May | L12: ='Form 42 2P'!$I$11 -> June | M12: ='Form 42 2P'!$J$11 -> July | N12: ='Form 42 2P'!$K$11 -> August | O12: ='Form 42 2P'!$L$11 -> September | P12: ='Form 42 2P'!$M$11 -> October | Q12: ='Form 42 2P'!$N$11 -> November | R12: ='Form 42 2P'!$O$11 -> December | S12: Total | W12: May 21 | X12: 13763263 | Y12: Blended | Z12: 28838 | AA12: 6622639 | AF12: May 21 | AG12: 13435774.94 | AH12: 0.002083333333 | AI12: 27991 | AJ12: 6567662 | AL12: May 21 | AM12: 327306.5 | AN12: 0.002583333333 | AO12: 846 | AP12: 54943 | AR12: May 21 | AS12: 181.56 | AT12: 0.002833333333 | AU12: 1 | AV12: 34
W13: Jun 21 | X13: 13763263 | Y13: Blended | Z13: 28838 | AA13: 6651477 | AF13: Jun 21 | AG13: 13435774.94 | AH13: 0.002083333333 | AI13: 27991 | AJ13: 6595653 | AL13: Jun 21 | AM13: 327306.5 | AN13: 0.002583333333 | AO13: 846 | AP13: 55789 | AR13: Jun 21 | AS13: 181.56 | AT13: 0.002833333333 | AU13: 1 | AV13: 35
A14: 1. | B14: Investments | W14: July 21 | X14: 13763263 | Y14: Blended | Z14: 28838 | AA14: 6680315 | AF14: July 21 | AG14: 13435774.94 | AH14: 0.002083333333 | AI14: 27991 | AJ14: 6623644 | AL14: July 21 | AM14: 327306.5 | AN14: 0.002583333333 | AO14: 846 | AP14: 56635 | AR14: July 21 | AS14: 181.56 | AT14: 0.002833333333 | AU14: 1 | AV14: 36
B15: a. Expenditures/Additions | G15: 0 | H15: 0 | I15: 0 | J15: 0 | K15: 0 | L15: 0 | M15: 0 | N15: 0 | O15: 0 | P15: 0 | Q15: 0 | R15: 0 | S15: =SUM(G15:R15) -> 0 | W15: Aug 21 | X15: 13763263 | Y15: Blended | Z15: 28838 | AA15: 6709153 | AF15: Aug 21 | AG15: 13435774.94 | AH15: 0.002083333333 | AI15: 27991 | AJ15: 6651635 | AL15: Aug 21 | AM15: 327306.5 | AN15: 0.002583333333 | AO15: 846 | AP15: 57481 | AR15: Aug 21 | AS15: 181.56 | AT15: 0.002833333333 | AU15: 1 | AV15: 37
B16: b. Clearings to Plant | G16: 0 | H16: 0 | I16: 0 | J16: 0 | K16: 0 | L16: 0 | M16: 0 | N16: 0 | O16: 0 | P16: 0 | Q16: 0 | R16: 0 | S16: =SUM(G16:R16) -> 0 | T16: =S16-AB31 -> 0 | U16: ck | W16: Sep 21 | X16: 13763263 | Y16: Blended | Z16: 28838 | AA16: 6737991 | AF16: Sep 21 | AG16: 13435774.94 | AH16: 0.002083333333 | AI16: 27991 | AJ16: 6679626 | AL16: Sep 21 | AM16: 327306.5 | AN16: 0.002583333333 | AO16: 846 | AP16: 58327 | AR16: Sep 21 | AS16: 181.56 | AT16: 0.002833333333 | AU16: 1 | AV16: 38
B17: c. Retirements | G17: 0 | H17: 0 | I17: 0 | J17: 0 | K17: 0 | L17: 0 | M17: 0 | N17: 0 | O17: 0 | P17: 0 | Q17: 0 | R17: 0 | S17: =SUM(G17:R17) -> 0 | W17: Oct 21 | X17: 13763263 | Y17: Blended | Z17: 28838 | AA17: 6766829 | AF17: Oct 21 | AG17: 13435774.94 | AH17: 0.002083333333 | AI17: 27991 | AJ17: 6707617 | AL17: Oct 21 | AM17: 327306.5 | AN17: 0.002583333333 | AO17: 846 | AP17: 59173 | AR17: Oct 21 | AS17: 181.56 | AT17: 0.002833333333 | AU17: 1 | AV17: 39
B18: d. Other - AFUDC (excl from CWIP) | G18: 0 | H18: 0 | I18: 0 | J18: 0 | K18: 0 | L18: 0 | M18: 0 | N18: 0 | O18: 0 | P18: 0 | Q18: 0 | R18: 0 | S18: 0 | W18: Nov 21 | X18: 13763263 | Y18: Blended | Z18: 28838 | AA18: 6795667 | AB18: 0 | AC18: In-Service activity | AF18: Nov 21 | AG18: 13435774.94 | AH18: 0.002083333333 | AI18: 27991 | AJ18: 6735608 | AL18: Nov 21 | AM18: 327306.5 | AN18: 0.002583333333 | AO18: 846 | AP18: 60019 | AR18: Nov 21 | AS18: 181.56 | AT18: 0.002833333333 | AU18: 1 | AV18: 40
W19: Dec 21 | X19: 13763263 | Y19: Blended | Z19: 28838 | AA19: 6824505 | AB19: 346056 | AC19: depreciation activity | AF19: Dec 21 | AG19: 13435774.94 | AH19: 0.002083333333 | AI19: 27991 | AJ19: 6763599 | AL19: Dec 21 | AM19: 327306.5 | AN19: 0.002583333333 | AO19: 846 | AP19: 60865 | AR19: Dec 21 | AS19: 181.56 | AT19: 0.002833333333 | AU19: 1 | AV19: 41
A20: 2. | B20: Plant-in-Service/Depreciation Base (A) | F20: 13763263 | G20: =$X21 -> 13763263 | H20: =$X22 -> 13763263 | I20: =$X23 -> 13763263 | J20: =$X$24 -> 13763263 | K20: =$X$25 -> 13763263 | L20: =$X$26 -> 13763263 | M20: =$X$27 -> 13763263 | N20: =$X$28 -> 13763263 | O20: =$X$29 -> 13763263 | P20: =$X$30 -> 13763263 | Q20: =$X$31 -> 13763263 | R20: =$X$32 -> 13763263 | T20: =R20-X32 -> 0 | U20: ck | W20: BLENDED | AF20: 312.45 | AL20: 315.45 | AR20: 312.4
A21: 3. | B21: Less: Accumulated Depreciation | F21: -6824505 | G21: =F21-G32 -> -6859870 | H21: =G21-H32 -> -6895235 | I21: -6930600 | J21: -6965965 | K21: -7001330 | L21: -7036695 | M21: -7072060 | N21: -7107425 | O21: -7142790 | P21: -7178155 | Q21: -7213520 | R21: -7248885 | T21: =R21+AA32 -> 0 | U21: ck | W21: =AF21 -> Jan 22 | X21: =AG21+AM21+AS21 -> 13763263 | Y21: Blended | Z21: =AI21+AO21+AU21 -> 35365 | AA21: =ROUND(+AA19+Z21,0) -> 6859870 | AF21: Jan 22 | AG21: =AG19 -> 13435774.94 | AH21: =(_xlfn.XLOOKUP(AF20,'Revised 2022 Depreciation Rates'!$A:$A,'Revised 2022 Depreciation Rates'!$B:$B)/12) -> 0.002583333333 | AI21: =IF(AG19=AJ19,0,IF((AG21-AJ19)<ROUND((AG19*AH21),0),AG21-AJ19,ROUND((AG19*AH21),0))) -> 34709 | AJ21: =ROUND(+AJ19+AI21,0) -> 6798308 | AL21: =AF21 -> Jan 22 | AM21: =AM19+0 -> 327306.5 | AN21: =(_xlfn.XLOOKUP(AL20,'Revised 2022 Depreciation Rates'!$A:$A,'Revised 2022 Depreciation Rates'!$B:$B)/12) -> 0.002 | AO21: =IF(AM19=AP19,0,IF((AM21-AP19)<ROUND((AM19*AN21),0),AM21-AP19,ROUND((AM19*AN21),0))) -> 655 | AP21: =ROUND(+AP19+AO21,0) -> 61520 | AR21: =AL21 -> Jan 22 | AS21: =AS19+0 -> 181.56 | AT21: =(_xlfn.XLOOKUP(AR20,'Revised 2022 Depreciation Rates'!$A:$A,'Revised 2022 Depreciation Rates'!$B:$B)/12) -> 0.003833333333 | AU21: =IF(AS19=AV19,0,IF((AS21-AV19)<ROUND((AS19*AT21),0),AS21-AV19,ROUND((AS19*AT21),0))) -> 1 | AV21: =ROUND(+AV19+AU21,0) -> 42
A22: 4. | B22: CWIP - Non-Interest Bearing | F22: 0 | G22: =F22+G15-G16 -> 0 | H22: =G22+H15-H16 -> 0 | I22: =H22+I15-I16 -> 0 | J22: 0 | K22: 0 | L22: 0 | M22: 0 | N22: 0 | O22: 0 | P22: =O22+P15-P16 -> 0 | Q22: =P22+Q15-Q16 -> 0 | R22: =Q22+R15-R16 -> 0 | W22: Feb 22 | X22: 13763263 | Y22: Blended | Z22: 35365 | AA22: =ROUND(+AA21+Z22,0) -> 6895235 | AF22: Feb 22 | AG22: =AG21 -> 13435774.94 | AH22: =(_xlfn.XLOOKUP(AF20,'Revised 2022 Depreciation Rates'!$A:$A,'Revised 2022 Depreciation Rates'!$B:$B)/12) -> 0.002583333333 | AI22: =IF(AG21=AJ21,0,IF((AG22-AJ21)<ROUND((AG21*AH22),0),AG22-AJ21,ROUND((AG21*AH22),0))) -> 34709 | AJ22: =ROUND(+AJ21+AI22,0) -> 6833017 | AL22: =AF22 -> Feb 22 | AM22: =AM21+0 -> 327306.5 | AN22: =(_xlfn.XLOOKUP(AL20,'Revised 2022 Depreciation Rates'!$A:$A,'Revised 2022 Depreciation Rates'!$B:$B)/12) -> 0.002 | AO22: =IF(AM21=AP21,0,IF((AM22-AP21)<ROUND((AM21*AN22),0),AM22-AP21,ROUND((AM21*AN22),0))) -> 655 | AP22: =ROUND(+AP21+AO22,0) -> 62175 | AR22: =AL22 -> Feb 22 | AS22: =AS21+0 -> 181.56 | AT22: =(_xlfn.XLOOKUP(AR20,'Revised 2022 Depreciation Rates'!$A:$A,'Revised 2022 Depreciation Rates'!$B:$B)/12) -> 0.003833333333 | AU22: =IF(AS21=AV21,0,IF((AS22-AV21)<ROUND((AS21*AT22),0),AS22-AV21,ROUND((AS21*AT22),0))) -> 1 | AV22: =ROUND(+AV21+AU22,0) -> 43
A23: 5. | B23: Net Investment (Lines 2 + 3 + 4) | F23: 6938758 | G23: =G20+G21+G22 -> 6903393 | H23: 6868028 | I23: 6832663 | J23: 6797298 | K23: 6761933 | L23: 6726568 | M23: 6691203 | N23: 6655838 | O23: 6620473 | P23: 6585108 | Q23: 6549743 | R23: 6514378 | W23: Mar 22 | X23: 13763263 | Y23: Blended | Z23: 35365 | AA23: =ROUND(+AA22+Z23,0) -> 6930600 | AF23: Mar 22 | AG23: =AG22 -> 13435774.94 | AH23: =(_xlfn.XLOOKUP(AF20,'Revised 2022 Depreciation Rates'!$A:$A,'Revised 2022 Depreciation Rates'!$B:$B)/12) -> 0.002583333333 | AI23: 34709 | AJ23: =ROUND(+AJ22+AI23,0) -> 6867726 | AL23: Mar 22 | AM23: =AM22+0 -> 327306.5 | AN23: =(_xlfn.XLOOKUP(AL20,'Revised 2022 Depreciation Rates'!$A:$A,'Revised 2022 Depreciation Rates'!$B:$B)/12) -> 0.002 | AO23: 655 | AP23: =ROUND(+AP22+AO23,0) -> 62830 | AR23: Mar 22 | AS23: =AS22+0 -> 181.56 | AT23: =(_xlfn.XLOOKUP(AR20,'Revised 2022 Depreciation Rates'!$A:$A,'Revised 2022 Depreciation Rates'!$B:$B)/12) -> 0.003833333333 | AU23: 1 | AV23: =ROUND(+AV22+AU23,0) -> 44
W24: Apr 22 | X24: 13763263 | Y24: Blended | Z24: 35365 | AA24: 6965965 | AF24: Apr 22 | AG24: =AG23 -> 13435774.94 | AH24: =(_xlfn.XLOOKUP(AF20,'Revised 2022 Depreciation Rates'!$A:$A,'Revised 2022 Depreciation Rates'!$B:$B)/12) -> 0.002583333333 | AI24: 34709 | AJ24: 6902435 | AL24: Apr 22 | AM24: =AM23+0 -> 327306.5 | AN24: =(_xlfn.XLOOKUP(AL20,'Revised 2022 Depreciation Rates'!$A:$A,'Revised 2022 Depreciation Rates'!$B:$B)/12) -> 0.002 | AO24: 655 | AP24: 63485 | AR24: Apr 22 | AS24: =AS23+0 -> 181.56 | AT24: =(_xlfn.XLOOKUP(AR20,'Revised 2022 Depreciation Rates'!$A:$A,'Revised 2022 Depreciation Rates'!$B:$B)/12) -> 0.003833333333 | AU24: 1 | AV24: 45
A25: 6. | B25: Average Net Investment | G25: =ROUND((+F23+G23)/2,0) -> 6921076 | H25: =ROUND((+G23+H23)/2,0) -> 6885711 | I25: 6850346 | J25: 6814981 | K25: 6779616 | L25: 6744251 | M25: 6708886 | N25: 6673521 | O25: 6638156 | P25: 6602791 | Q25: 6567426 | R25: 6532061 | W25: May 22 | X25: 13763263 | Y25: Blended | Z25: 35365 | AA25: 7001330 | AF25: May 22 | AG25: 13435774.94 | AH25: =(_xlfn.XLOOKUP(AF20,'Revised 2022 Depreciation Rates'!$A:$A,'Revised 2022 Depreciation Rates'!$B:$B)/12) -> 0.002583333333 | AI25: 34709 | AJ25: 6937144 | AL25: May 22 | AM25: =AM24 -> 327306.5 | AN25: =(_xlfn.XLOOKUP(AL20,'Revised 2022 Depreciation Rates'!$A:$A,'Revised 2022 Depreciation Rates'!$B:$B)/12) -> 0.002 | AO25: 655 | AP25: 64140 | AR25: May 22 | AS25: =AS24 -> 181.56 | AT25: =(_xlfn.XLOOKUP(AR20,'Revised 2022 Depreciation Rates'!$A:$A,'Revised 2022 Depreciation Rates'!$B:$B)/12) -> 0.003833333333 | AU25: 1 | AV25: 46
W26: Jun 22 | X26: 13763263 | Y26: Blended | Z26: 35365 | AA26: 7036695 | AF26: Jun 22 | AG26: 13435774.94 | AH26: =(_xlfn.XLOOKUP(AF20,'Revised 2022 Depreciation Rates'!$A:$A,'Revised 2022 Depreciation Rates'!$B:$B)/12) -> 0.002583333333 | AI26: 34709 | AJ26: 6971853 | AL26: Jun 22 | AM26: 327306.5 | AN26: =(_xlfn.XLOOKUP(AL20,'Revised 2022 Depreciation Rates'!$A:$A,'Revised 2022 Depreciation Rates'!$B:$B)/12) -> 0.002 | AO26: 655 | AP26: 64795 | AR26: Jun 22 | AS26: 181.56 | AT26: =(_xlfn.XLOOKUP(AR20,'Revised 2022 Depreciation Rates'!$A:$A,'Revised 2022 Depreciation Rates'!$B:$B)/12) -> 0.003833333333 | AU26: 1 | AV26: 47
A27: 7. | B27: Return on Average Net Investment | G27: 1 | H27: 2 | I27: 3 | J27: 4 | K27: 5 | L27: 6 | M27: 7 | N27: 8 | O27: 9 | P27: 10 | Q27: 11 | R27: 12 | S27: 13 | W27: July 22 | X27: 13763263 | Y27: Blended | Z27: 35365 | AA27: 7072060 | AF27: July 22 | AG27: 13435774.94 | AH27: =(_xlfn.XLOOKUP(AF20,'Revised 2022 Depreciation Rates'!$A:$A,'Revised 2022 Depreciation Rates'!$B:$B)/12) -> 0.002583333333 | AI27: 34709 | AJ27: 7006562 | AL27: July 22 | AM27: 327306.5 | AN27: =(_xlfn.XLOOKUP(AL20,'Revised 2022 Depreciation Rates'!$A:$A,'Revised 2022 Depreciation Rates'!$B:$B)/12) -> 0.002 | AO27: 655 | AP27: 65450 | AR27: July 22 | AS27: =AS26+0 -> 181.56 | AT27: =(_xlfn.XLOOKUP(AR20,'Revised 2022 Depreciation Rates'!$A:$A,'Revised 2022 Depreciation Rates'!$B:$B)/12) -> 0.003833333333 | AU27: 1 | AV27: 48
B28: a. Equity Component Grossed Up For Taxes (B) | G28: =ROUND(+G25*(G58)/12,0) -> 36219 | H28: =ROUND(+H25*(H58)/12,0) -> 36034 | I28: 35849 | J28: 35664 | K28: 35479 | L28: 35294 | M28: 35109 | N28: 34924 | O28: 34739 | P28: 34554 | Q28: 34368 | R28: 34183 | S28: =SUM(G28:R28) -> 422416 | W28: Aug 22 | X28: 13763263 | Y28: Blended | Z28: 35365 | AA28: 7107425 | AF28: Aug 22 | AG28: 13435774.94 | AH28: =(_xlfn.XLOOKUP(AF20,'Revised 2022 Depreciation Rates'!$A:$A,'Revised 2022 Depreciation Rates'!$B:$B)/12) -> 0.002583333333 | AI28: 34709 | AJ28: 7041271 | AL28: Aug 22 | AM28: 327306.5 | AN28: =(_xlfn.XLOOKUP(AL20,'Revised 2022 Depreciation Rates'!$A:$A,'Revised 2022 Depreciation Rates'!$B:$B)/12) -> 0.002 | AO28: 655 | AP28: 66105 | AR28: Aug 22 | AS28: 181.56 | AT28: =(_xlfn.XLOOKUP(AR20,'Revised 2022 Depreciation Rates'!$A:$A,'Revised 2022 Depreciation Rates'!$B:$B)/12) -> 0.003833333333 | AU28: 1 | AV28: 49
B29: b. Debt Component Grossed Up For Taxes (C) | G29: =ROUND(+G25*(G59)/12,0) -> 9432 | H29: =ROUND(+H25*(H59)/12,0) -> 9384 | I29: 9335 | J29: 9287 | K29: 9239 | L29: 9191 | M29: 9143 | N29: 9094 | O29: 9046 | P29: 8998 | Q29: 8950 | R29: 8902 | S29: =SUM(G29:R29) -> 110001 | W29: Sep 22 | X29: 13763263 | Y29: Blended | Z29: 35365 | AA29: 7142790 | AF29: Sep 22 | AG29: 13435774.94 | AH29: =(_xlfn.XLOOKUP(AF20,'Revised 2022 Depreciation Rates'!$A:$A,'Revised 2022 Depreciation Rates'!$B:$B)/12) -> 0.002583333333 | AI29: 34709 | AJ29: 7075980 | AL29: Sep 22 | AM29: 327306.5 | AN29: =(_xlfn.XLOOKUP(AL20,'Revised 2022 Depreciation Rates'!$A:$A,'Revised 2022 Depreciation Rates'!$B:$B)/12) -> 0.002 | AO29: 655 | AP29: 66760 | AR29: Sep 22 | AS29: 181.56 | AT29: =(_xlfn.XLOOKUP(AR20,'Revised 2022 Depreciation Rates'!$A:$A,'Revised 2022 Depreciation Rates'!$B:$B)/12) -> 0.003833333333 | AU29: 1 | AV29: 50
W30: Oct 22 | X30: 13763263 | Y30: Blended | Z30: 35365 | AA30: 7178155 | AF30: Oct 22 | AG30: 13435774.94 | AH30: =(_xlfn.XLOOKUP(AF20,'Revised 2022 Depreciation Rates'!$A:$A,'Revised 2022 Depreciation Rates'!$B:$B)/12) -> 0.002583333333 | AI30: 34709 | AJ30: 7110689 | AL30: Oct 22 | AM30: 327306.5 | AN30: =(_xlfn.XLOOKUP(AL20,'Revised 2022 Depreciation Rates'!$A:$A,'Revised 2022 Depreciation Rates'!$B:$B)/12) -> 0.002 | AO30: 655 | AP30: 67415 | AR30: Oct 22 | AS30: 181.56 | AT30: =(_xlfn.XLOOKUP(AR20,'Revised 2022 Depreciation Rates'!$A:$A,'Revised 2022 Depreciation Rates'!$B:$B)/12) -> 0.003833333333 | AU30: 1 | AV30: 51
A31: 8. | B31: Investment Expenses | W31: Nov 22 | X31: 13763263 | Y31: Blended | Z31: 35365 | AA31: 7213520 | AB31: =+X32-X19 -> 0 | AC31: In-Service activity | AF31: Nov 22 | AG31: 13435774.94 | AH31: =(_xlfn.XLOOKUP(AF20,'Revised 2022 Depreciation Rates'!$A:$A,'Revised 2022 Depreciation Rates'!$B:$B)/12) -> 0.002583333333 | AI31: 34709 | AJ31: 7145398 | AL31: Nov 22 | AM31: 327306.5 | AN31: =(_xlfn.XLOOKUP(AL20,'Revised 2022 Depreciation Rates'!$A:$A,'Revised 2022 Depreciation Rates'!$B:$B)/12) -> 0.002 | AO31: 655 | AP31: 68070 | AR31: Nov 22 | AS31: 181.56 | AT31: =(_xlfn.XLOOKUP(AR20,'Revised 2022 Depreciation Rates'!$A:$A,'Revised 2022 Depreciation Rates'!$B:$B)/12) -> 0.003833333333 | AU31: 1 | AV31: 52
B32: a. Depreciation (D) | G32: =$Z$21 -> 35365 | H32: =$Z$22 -> 35365 | I32: =$Z$23 -> 35365 | J32: =$Z$24 -> 35365 | K32: =$Z$25 -> 35365 | L32: =$Z$26 -> 35365 | M32: =$Z$27 -> 35365 | N32: =$Z$28 -> 35365 | O32: =$Z$29 -> 35365 | P32: =$Z$30 -> 35365 | Q32: =$Z$31 -> 35365 | R32: =$Z$32 -> 35365 | S32: =SUM(G32:R32) -> 424380 | T32: =S32-AB32 -> 0 | U32: ck | W32: Dec 22 | X32: 13763263 | Y32: Blended | Z32: 35365 | AA32: 7248885 | AB32: =+AA32-AA19 -> 424380 | AC32: depreciation activity | AF32: Dec 22 | AG32: 13435774.94 | AH32: =(_xlfn.XLOOKUP(AF20,'Revised 2022 Depreciation Rates'!$A:$A,'Revised 2022 Depreciation Rates'!$B:$B)/12) -> 0.002583333333 | AI32: =IF(AG31=AJ31,0,IF((AG32-AJ31)<ROUND((AG31*AH32),0),AG32-AJ31,ROUND((AG31*AH32),0))) -> 34709 | AJ32: 7180107 | AL32: Dec 22 | AM32: =AM31 -> 327306.5 | AN32: =(_xlfn.XLOOKUP(AL20,'Revised 2022 Depreciation Rates'!$A:$A,'Revised 2022 Depreciation Rates'!$B:$B)/12) -> 0.002 | AO32: =IF(AM31=AP31,0,IF((AM32-AP31)<ROUND((AM31*AN32),0),AM32-AP31,ROUND((AM31*AN32),0))) -> 655 | AP32: 68725 | AR32: Dec 22 | AS32: =AS31 -> 181.56 | AT32: =(_xlfn.XLOOKUP(AR20,'Revised 2022 Depreciation Rates'!$A:$A,'Revised 2022 Depreciation Rates'!$B:$B)/12) -> 0.003833333333 | AU32: =IF(AS31=AV31,0,IF((AS32-AV31)<ROUND((AS31*AT32),0),AS32-AV31,ROUND((AS31*AT32),0))) -> 1 | AV32: 53
B33: b. Amortization | G33: 0 | H33: 0 | I33: 0 | J33: 0 | K33: 0 | L33: 0 | M33: 0 | N33: 0 | O33: 0 | P33: 0 | Q33: 0 | R33: 0 | S33: =SUM(G33:R33) -> 0
B34: c. Dismantlement | G34: 0 | H34: 0 | I34: 0 | J34: 0 | K34: 0 | L34: 0 | M34: 0 | N34: 0 | O34: 0 | P34: 0 | Q34: 0 | R34: 0 | S34: =SUM(G34:R34) -> 0 | AF34: CM Depr Base | AG34: =+IF(AG3="","",IF(AG3="IN SERVICE",CHOOSE($C$60,AG21,AG22,AG23,AG24,AG25,AG26,AG27,AG28,AG29,AG30,AG31,AG32),"")) -> 13435774.94 | AM34: 327306.5 | AS34: 181.56
B35: d. Property Taxes | G35: 0 | H35: 0 | I35: 0 | J35: 0 | K35: 0 | L35: 0 | M35: 0 | N35: 0 | O35: 0 | P35: 0 | Q35: 0 | R35: 0 | S35: =SUM(G35:R35) -> 0
B36: e. Other | G36: 0 | H36: 0 | I36: 0 | J36: 0 | K36: 0 | L36: 0 | M36: 0 | N36: 0 | O36: 0 | P36: 0 | Q36: 0 | R36: 0 | S36: =SUM(G36:R36) -> 0
A38: 9. | B38: Total System Recoverable Expenses (Lines 7 + 8) | G38: =ROUND(+G28+G29+G32+G33+G34+G35+G36,0) -> 81016 | H38: =ROUND(+H28+H29+H32+H33+H34+H35+H36,0) -> 80783 | I38: =ROUND(+I28+I29+I32+I33+I34+I35+I36,0) -> 80549 | J38: 80316 | K38: 80083 | L38: 79850 | M38: 79617 | N38: 79383 | O38: 79150 | P38: 78917 | Q38: 78683 | R38: 78450 | S38: =SUM(G38:R38) -> 956797
B39: a. Recoverable Costs Allocated to Energy | G39: =ROUND(+G38*1,0) -> 81016 | H39: =ROUND(+H38*1,0) -> 80783 | I39: 80549 | J39: 80316 | K39: 80083 | L39: 79850 | M39: 79617 | N39: 79383 | O39: 79150 | P39: =ROUND(+P38*1,0) -> 78917 | Q39: 78683 | R39: 78450 | S39: =SUM(G39:R39) -> 956797
B40: b. Recoverable Costs Allocated to Demand | G40: =ROUND(+G38*0,0) -> 0 | H40: 0 | I40: 0 | J40: 0 | K40: 0 | L40: 0 | M40: 0 | N40: 0 | O40: 0 | P40: 0 | Q40: 0 | R40: 0 | S40: =SUM(G40:R40) -> 0
A42: 10. | B42: Energy Jurisdictional Factor | G42: ='Form 42 2P'!D48 -> 1 | H42: ='Form 42 2P'!E48 -> 1 | I42: ='Form 42 2P'!F48 -> 1 | J42: ='Form 42 2P'!G48 -> 1 | K42: ='Form 42 2P'!H48 -> 1 | L42: ='Form 42 2P'!I48 -> 1 | M42: ='Form 42 2P'!J48 -> 1 | N42: ='Form 42 2P'!K48 -> 1 | O42: ='Form 42 2P'!L48 -> 1 | P42: ='Form 42 2P'!M48 -> 1 | Q42: ='Form 42 2P'!N48 -> 1 | R42: ='Form 42 2P'!O48 -> 1
A43: 11. | B43: Demand Jurisdictional Factor | G43: =+'Form 42 2P'!D49 -> 1 | H43: =+'Form 42 2P'!E49 -> 1 | I43: =+'Form 42 2P'!F49 -> 1 | J43: =+'Form 42 2P'!G49 -> 1 | K43: =+'Form 42 2P'!H49 -> 1 | L43: =+'Form 42 2P'!I49 -> 1 | M43: =+'Form 42 2P'!J49 -> 1 | N43: =+'Form 42 2P'!K49 -> 1 | O43: =+'Form 42 2P'!L49 -> 1 | P43: =+'Form 42 2P'!M49 -> 1 | Q43: =+'Form 42 2P'!N49 -> 1 | R43: =+'Form 42 2P'!O49 -> 1
A45: 12. | B45: Retail Energy-Related Recoverable Costs (E) | G45: =ROUND((+G39*G42),0) -> 81016 | H45: =ROUND((+H39*H42),0) -> 80783 | I45: =ROUND((+I39*I42),0) -> 80549 | J45: 80316 | K45: 80083 | L45: 79850 | M45: 79617 | N45: 79383 | O45: 79150 | P45: 78917 | Q45: 78683 | R45: 78450 | S45: =SUM(G45:R45) -> 956797
A46: 13. | B46: Retail Demand-Related Recoverable Costs (F) | G46: =(+G40*G43) -> 0 | H46: 0 | I46: 0 | J46: 0 | K46: 0 | L46: 0 | M46: 0 | N46: 0 | O46: 0 | P46: 0 | Q46: 0 | R46: 0 | S46: =SUM(G46:R46) -> 0
A47: 14. | B47: Total Jurisdictional Recoverable Costs (Lines 12 + 13) | G47: =G45+G46 -> 81016 | H47: =H45+H46 -> 80783 | I47: 80549 | J47: 80316 | K47: 80083 | L47: 79850 | M47: 79617 | N47: 79383 | O47: 79150 | P47: 78917 | Q47: 78683 | R47: 78450 | S47: =SUM(G47:R47) -> 956797
A49: Notes:
A50: (A) | B50: =B61 -> Applicable depreciable base for Big Bend; accounts 312.45 ($13,435,775), 315.45 ($327,307), and 312.40 ($182).
A51: (B) | B51: ='Tot 8E pg1-30'!$B$52 -> Line 6 x 6.2798% x 1/12. Based on ROE of 9.95% and weighted income tax rate of 25.345% (expansion factor of 1.34315)
A52: (C) | B52: ='Tot 8E pg1-30'!$B$53 -> Line 6 x 1.6353% x 1/12
A53: (D) | B53: =B68 -> Applicable depreciation rate is 3.1%, 2.4%, and 4.6%
A54: (E) | B54: Line 9a x Line 10
A55: (F) | B55: Line 9b x Line 11
F58: ROI WACC-Equity | G58: ='Form 42 8P'!$E$50 -> 0.062798 | H58: ='Form 42 8P'!$E$50 -> 0.062798 | I58: ='Form 42 8P'!$E$50 -> 0.062798 | J58: ='Form 42 8P'!$E$50 -> 0.062798 | K58: ='Form 42 8P'!$E$50 -> 0.062798 | L58: ='Form 42 8P'!$E$50 -> 0.062798 | M58: ='Form 42 8P'!$E$50 -> 0.062798 | N58: ='Form 42 8P'!$E$50 -> 0.062798 | O58: ='Form 42 8P'!$E$50 -> 0.062798 | P58: ='Form 42 8P'!$E$50 -> 0.062798 | Q58: ='Form 42 8P'!$E$50 -> 0.062798 | R58: ='Form 42 8P'!$E$50 -> 0.062798
F59: ROI WACC-Debt | G59: ='Form 42 8P'!$E$59 -> 0.016353 | H59: ='Form 42 8P'!$E$59 -> 0.016353 | I59: ='Form 42 8P'!$E$59 -> 0.016353 | J59: ='Form 42 8P'!$E$59 -> 0.016353 | K59: ='Form 42 8P'!$E$59 -> 0.016353 | L59: ='Form 42 8P'!$E$59 -> 0.016353 | M59: ='Form 42 8P'!$E$59 -> 0.016353 | N59: ='Form 42 8P'!$E$59 -> 0.016353 | O59: ='Form 42 8P'!$E$59 -> 0.016353 | P59: ='Form 42 8P'!$E$59 -> 0.016353 | Q59: ='Form 42 8P'!$E$59 -> 0.016353 | R59: ='Form 42 8P'!$E$59 -> 0.016353
B60: CM | C60: 12
B61: =+"Applicable depreciable base for Big Bend; accounts "&G62&G63&G64&"." -> Applicable depreciable base for Big Bend; accounts 312.45 ($13,435,775), 315.45 ($327,307), and 312.40 ($182).
A62: =+INDEX($AF$27:$DP$27,1,MATCH($B62,$AF$2:$DP$2,0)+2)*12 -> 0.031 | B62: 312.45 | C62: =+INDEX($AF$34:$DP$34,1,MATCH($B62,$AF$2:$DP$2,0)+1) -> 13435774.94 | D62: =+TEXT(B62,"#.00") -> 312.45 | E62: =+TEXT(C62,"$#,###") -> $13,435,775 | F62: =+IF(C62=0,"",TEXT(A62,"#.0%")) -> 3.1% | G62: =+D62&" ("&E62&")" -> 312.45 ($13,435,775) | H62: =+F62 -> 3.1%
A63: =+INDEX($AF$27:$DP$27,1,MATCH($B63,$AF$2:$DP$2,0)+2)*12 -> 0.024 | B63: 315.45 | C63: =+INDEX($AF$34:$DP$34,1,MATCH($B63,$AF$2:$DP$2,0)+1) -> 327306.5 | D63: =+TEXT(B63,"#.00") -> 315.45 | E63: =+TEXT(C63,"$#,###") -> $327,307 | F63: 2.4% | G63: =IF(C63=0,"",(", "&D63&" ("&E63&")")) -> , 315.45 ($327,307) | H63: =+IF(C63=0,"",(", "&F63)) -> , 2.4%
A64: =+INDEX($AF$27:$DP$27,1,MATCH($B64,$AF$2:$DP$2,0)+2)*12 -> 0.046 | B64: 312.4 | C64: =+INDEX($AF$34:$DP$34,1,MATCH($B64,$AF$2:$DP$2,0)+1) -> 181.56 | D64: 312.40 | E64: =+TEXT(C64,"$#,###") -> $182 | F64: 4.6% | G64: =IF(C64=0,"",(", and "&D64&" ("&E64&")")) -> , and 312.40 ($182) | H64: =+IF(C64=0,"",(", and "&F64)) -> , and 4.6%
C66: =+SUM(C62:C65) -> 13763263
C67: =+X32-C66 -> 0
B68: =+"Applicable depreciation rate is "&H62&H63&H64 -> Applicable depreciation rate is 3.1%, 2.4%, and 4.6%

Sheet Form 42 4P p2
A1: ='Form 42 2P'!$A$1:$R$1 -> Tampa Electric Company | S1: Form 42-4P | W1: TOTAL FLUE GAS CONDITIONING | AE1: FLUE GAS CONDITIONING - BB1 (L-34) | AK1: FLUE GAS CONDITIONING - BB2 (L-35)
A2: ='Form 42 2P'!$A$2:$R$2 -> Environmental Cost Recovery Clause | S2: Page 2 of 30 | W2: BLENDED | AE2: 312.41 | AK2: 312.42
A3: ='Form 42 2P'!$A$3:$R$3 -> Calculation of the Projected Period Amount | X3: IN SERVICE | Z3: DEPREC. | AF3: IN SERVICE | AG3: DEPREC. | AH3: DEPREC. | AL3: IN SERVICE | AM3: DEPREC. | AN3: DEPREC.
A4: ='Form 42 2P'!$A$4:$R$4 -> January 2022 to December 2022 | Z4: EXP. | AA4: ACC. DEPR. | AG4: RATE | AH4: EXP. | AI4: ACC. DEPR. | AM4: RATE | AN4: EXP. | AO4: ACC. DEPR.
A6: Return on Capital Investments, Depreciation and Taxes | W6: Dec 20 | X6: 5017734 | Y6: Blended | Z6: 16141 | AA6: 4760354 | AB6: 193692 | AC6: depreciation activity | AE6: Dec 20 | AF6: 2676217 | AG6: 0.003333333333 | AH6: 8921 | AI6: 2582529 | AK6: Dec 20 | AL6: 2341517 | AM6: 0.003083333333 | AN6: 7220 | AO6: 2177825
A7: For Project: Big Bend Units 1 and 2 Flue Gas Conditioning | W7: BLENDED | AE7: 312.41 | AK7: 312.42
A8: (in Dollars) | W8: Jan 21 | X8: 5017734 | Y8: Blended | Z8: 16141 | AA8: 4776495 | AB8: 0 | AE8: Jan 21 | AF8: 2676217 | AG8: 0.003333333333 | AH8: 8921 | AI8: 2591450 | AK8: Jan 21 | AL8: 2341517 | AM8: 0.003083333333 | AN8: 7220 | AO8: 2185045
W9: Feb 21 | X9: 5017734 | Y9: Blended | Z9: 16141 | AA9: 4792636 | AE9: Feb 21 | AF9: 2676217 | AG9: 0.003333333333 | AH9: 8921 | AI9: 2600371 | AK9: Feb 21 | AL9: 2341517 | AM9: 0.003083333333 | AN9: 7220 | AO9: 2192265
S10: End of | W10: Mar 21 | X10: 5017734 | Y10: Blended | Z10: 16141 | AA10: 4808777 | AE10: Mar 21 | AF10: 2676217 | AG10: 0.003333333333 | AH10: 8921 | AI10: 2609292 | AK10: Mar 21 | AL10: 2341517 | AM10: 0.003083333333 | AN10: 7220 | AO10: 2199485
F11: Beginning of | G11: ='Form 42 2P'!$D$10 -> Projected | H11: ='Form 42 2P'!$E$10 -> Projected | I11: ='Form 42 2P'!$F$10 -> Projected | J11: ='Form 42 2P'!$G$10 -> Projected | K11: ='Form 42 2P'!$H$10 -> Projected | L11: ='Form 42 2P'!$I$10 -> Projected | M11: ='Form 42 2P'!$J$10 -> Projected | N11: ='Form 42 2P'!$K$10 -> Projected | O11: ='Form 42 2P'!$L$10 -> Projected | P11: ='Form 42 2P'!$M$10 -> Projected | Q11: ='Form 42 2P'!$N$10 -> Projected | R11: ='Form 42 2P'!$O$10 -> Projected | S11: Period | W11: Apr 21 | X11: 5017734 | Y11: Blended | Z11: 16141 | AA11: 4824918 | AE11: Apr 21 | AF11: 2676217 | AG11: 0.003333333333 | AH11: 8921 | AI11: 2618213 | AK11: Apr 21 | AL11: 2341517 | AM11: 0.003083333333 | AN11: 7220 | AO11: 2206705
A12: Line | B12: Description | F12: Period Amount | G12: ='Form 42 2P'!$D$11 -> January | H12: ='Form 42 2P'!$E$11 -> February | I12: ='Form 42 2P'!$F$11 -> March | J12: ='Form 42 2P'!$G$11 -> April | K12: ='Form 42 2P'!$H$11 -> May | L12: ='Form 42 2P'!$I$11 -> June | M12: ='Form 42 2P'!$J$11 -> July | N12: ='Form 42 2P'!$K$11 -> August | O12: ='Form 42 2P'!$L$11 -> September | P12: ='Form 42 2P'!$M$11 -> October | Q12: ='Form 42 2P'!$N$11 -> November | R12: ='Form 42 2P'!$O$11 -> December | S12: Total | W12: May 21 | X12: 5017734 | Y12: Blended | Z12: 16141 | AA12: 4841059 | AE12: May 21 | AF12: 2676217 | AG12: 0.003333333333 | AH12: 8921 | AI12: 2627134 | AK12: May 21 | AL12: 2341517 | AM12: 0.003083333333 | AN12: 7220 | AO12: 2213925
W13: Jun 21 | X13: 5017734 | Y13: Blended | Z13: 16141 | AA13: 4857200 | AE13: Jun 21 | AF13: 2676217 | AG13: 0.003333333333 | AH13: 8921 | AI13: 2636055 | AK13: Jun 21 | AL13: 2341517 | AM13: 0.003083333333 | AN13: 7220 | AO13: 2221145
A14: 1. | B14: Investments | W14: July 21 | X14: 5017734 | Y14: Blended | Z14: 16141 | AA14: 4873341 | AE14: July 21 | AF14: 2676217 | AG14: 0.003333333333 | AH14: 8921 | AI14: 2644976 | AK14: July 21 | AL14: 2341517 | AM14: 0.003083333333 | AN14: 7220 | AO14: 2228365
B15: a. Expenditures/Additions | G15: 0 | H15: 0 | I15: 0 | J15: 0 | K15: 0 | L15: 0 | M15: 0 | N15: 0 | O15: 0 | P15: 0 | Q15: 0 | R15: 0 | S15: =SUM(G15:R15) -> 0 | W15: Aug 21 | X15: 5017734 | Y15: Blended | Z15: 16141 | AA15: 4889482 | AE15: Aug 21 | AF15: 2676217 | AG15: 0.003333333333 | AH15: 8921 | AI15: 2653897 | AK15: Aug 21 | AL15: 2341517 | AM15: 0.003083333333 | AN15: 7220 | AO15: 2235585
B16: b. Clearings to Plant | G16: 0 | H16: 0 | I16: 0 | J16: 0 | K16: 0 | L16: 0 | M16: 0 | N16: 0 | O16: 0 | P16: 0 | Q16: 0 | R16: 0 | S16: =SUM(G16:R16) -> 0 | W16: Sep 21 | X16: 5017734 | Y16: Blended | Z16: 16141 | AA16: 4905623 | AE16: Sep 21 | AF16: 2676217 | AG16: 0.003333333333 | AH16: 8921 | AI16: 2662818 | AK16: Sep 21 | AL16: 2341517 | AM16: 0.003083333333 | AN16: 7220 | AO16: 2242805
B17: c. Retirements | G17: 0 | H17: 0 | I17: 0 | J17: 0 | K17: 0 | L17: 0 | M17: 0 | N17: 0 | O17: 0 | P17: 0 | Q17: 0 | R17: 0 | S17: =SUM(G17:R17) -> 0 | W17: Oct 21 | X17: 5017734 | Y17: Blended | Z17: 16141 | AA17: 4921764 | AE17: Oct 21 | AF17: 2676217 | AG17: 0.003333333333 | AH17: 8921 | AI17: 2671739 | AK17: Oct 21 | AL17: 2341517 | AM17: 0.003083333333 | AN17: 7220 | AO17: 2250025
B18: d. Other | G18: 0 | H18: 0 | I18: 0 | J18: 0 | K18: 0 | L18: 0 | M18: 0 | N18: 0 | O18: 0 | P18: 0 | Q18: 0 | R18: 0 | S18: 0 | W18: Nov 21 | X18: 5017734 | Y18: Blended | Z18: 11698 | AA18: 4933462 | AB18: 0 | AC18: in-service activity | AE18: Nov 21 | AF18: 2676217 | AG18: 0.003333333333 | AH18: 4478 | AI18: 2676217 | AK18: Nov 21 | AL18: 2341517 | AM18: 0.003083333333 | AN18: 7220 | AO18: 2257245
W19: Dec 21 | X19: 5017734 | Y19: Blended | Z19: 7220 | AA19: 4940682 | AB19: 180328 | AC19: depreciation activity | AE19: Dec 21 | AF19: 2676217 | AG19: 0.003333333333 | AH19: 0 | AI19: 2676217 | AK19: Dec 21 | AL19: 2341517 | AM19: 0.003083333333 | AN19: 7220 | AO19: 2264465
A20: 2. | B20: Plant-in-Service/Depreciation Base (A) | F20: 5017734 | G20: =$X$21 -> 5017734 | H20: =$X$22 -> 5017734 | I20: =$X$23 -> 5017734 | J20: =$X$24 -> 5017734 | K20: =$X$25 -> 5017734 | L20: =$X$26 -> 5017734 | M20: =$X$27 -> 5017734 | N20: =$X$28 -> 5017734 | O20: =$X$29 -> 5017734 | P20: =$X$30 -> 5017734 | Q20: =$X$31 -> 5017734 | R20: =$X$32 -> 5017734 | T20: =R20-X32 -> 0 | U20: ck | W20: BLENDED | AE20: 312.41 | AK20: 312.42
A21: 3. | B21: Less: Accumulated Depreciation | F21: -4940682 | G21: =F21-G32 -> -4949072 | H21: =G21-H32 -> -4957462 | I21: -4965852 | J21: -4974242 | K21: =J21-K32 -> -4982632 | L21: -4991022 | M21: -4999412 | N21: -5007802 | O21: -5016192 | P21: -5017734 | Q21: -5017734 | R21: -5017734 | T21: =R21+AA32 -> 0 | U21: ck | W21: =AK21 -> Jan 22 | X21: =AF21+AL21 -> 5017734 | Y21: Blended | Z21: =AN21+AH21 -> 8390 | AA21: =AA19+Z21 -> 4949072 | AB21: =AA21-AO21-AI21 -> 0 | AE21: Jan 22 | AF21: =AF19 -> 2676217 | AG21: =(_xlfn.XLOOKUP(AE20,'Revised 2022 Depreciation Rates'!$A:$A,'Revised 2022 Depreciation Rates'!$B:$B)/12) -> 0.004333333333 | AH21: =IF(AF19=AI19,0,IF((AF21-AI19)<ROUND((AF19*AG21),0),AF21-AI19,ROUND((AF19*AG21),0))) -> 0 | AI21: =ROUND(+AI19+AH21,0) -> 2676217 | AK21: =AE21 -> Jan 22 | AL21: =AL19 -> 2341517 | AM21: =(_xlfn.XLOOKUP(AK20,'Revised 2022 Depreciation Rates'!$A:$A,'Revised 2022 Depreciation Rates'!$B:$B)/12) -> 0.003583333333 | AN21: =IF(AL19=AO19,0,IF((AL21-AO19)<ROUND((AL19*AM21),0),AL21-AO19,ROUND((AL19*AM21),0))) -> 8390 | AO21: =ROUND(+AO19+AN21,0) -> 2272855
A22: 4. | B22: CWIP - Non-Interest Bearing | F22: 0 | G22: =F22+G15-G16 -> 0 | H22: 0 | I22: 0 | J22: 0 | K22: 0 | L22: 0 | M22: 0 | N22: 0 | O22: 0 | P22: 0 | Q22: 0 | R22: 0 | W22: Feb 22 | X22: 5017734 | Y22: Blended | Z22: 8390 | AA22: =AO22+AI22 -> 4957462 | AE22: Feb 22 | AF22: =AF21 -> 2676217 | AG22: =(_xlfn.XLOOKUP(AE20,'Revised 2022 Depreciation Rates'!$A:$A,'Revised 2022 Depreciation Rates'!$B:$B)/12) -> 0.004333333333 | AH22: =IF(AF21=AI21,0,IF((AF22-AI21)<ROUND((AF21*AG22),0),AF22-AI21,ROUND((AF21*AG22),0))) -> 0 | AI22: =ROUND(+AI21+AH22,0) -> 2676217 | AK22: =AE22 -> Feb 22 | AL22: =AL21 -> 2341517 | AM22: =(_xlfn.XLOOKUP(AK20,'Revised 2022 Depreciation Rates'!$A:$A,'Revised 2022 Depreciation Rates'!$B:$B)/12) -> 0.003583333333 | AN22: =IF(AL21=AO21,0,IF((AL22-AO21)<ROUND((AL21*AM22),0),AL22-AO21,ROUND((AL21*AM22),0))) -> 8390 | AO22: =ROUND(+AO21+AN22,0) -> 2281245
A23: 5. | B23: Net Investment (Lines 2 + 3 + 4) | F23: 77052 | G23: =G20+G21+G22 -> 68662 | H23: 60272 | I23: 51882 | J23: 43492 | K23: 35102 | L23: 26712 | M23: 18322 | N23: 9932 | O23: 1542 | P23: 0 | Q23: 0 | R23: 0 | W23: Mar 22 | X23: 5017734 | Y23: Blended | Z23: 8390 | AA23: 4965852 | AE23: Mar 22 | AF23: =AF22 -> 2676217 | AG23: =(_xlfn.XLOOKUP(AE20,'Revised 2022 Depreciation Rates'!$A:$A,'Revised 2022 Depreciation Rates'!$B:$B)/12) -> 0.004333333333 | AH23: 0 | AI23: =ROUND(+AI22+AH23,0) -> 2676217 | AK23: Mar 22 | AL23: =AL22 -> 2341517 | AM23: =(_xlfn.XLOOKUP(AK20,'Revised 2022 Depreciation Rates'!$A:$A,'Revised 2022 Depreciation Rates'!$B:$B)/12) -> 0.003583333333 | AN23: 8390 | AO23: 2289635
W24: Apr 22 | X24: 5017734 | Y24: Blended | Z24: 8390 | AA24: 4974242 | AE24: Apr 22 | AF24: =AF23 -> 2676217 | AG24: =(_xlfn.XLOOKUP(AE20,'Revised 2022 Depreciation Rates'!$A:$A,'Revised 2022 Depreciation Rates'!$B:$B)/12) -> 0.004333333333 | AH24: 0 | AI24: =ROUND(+AI23+AH24,0) -> 2676217 | AK24: Apr 22 | AL24: 2341517 | AM24: =(_xlfn.XLOOKUP(AK20,'Revised 2022 Depreciation Rates'!$A:$A,'Revised 2022 Depreciation Rates'!$B:$B)/12) -> 0.003583333333 | AN24: 8390 | AO24: 2298025
A25: 6. | B25: Average Net Investment | G25: =ROUND((+F23+G23)/2,0) -> 72857 | H25: 64467 | I25: 56077 | J25: 47687 | K25: 39297 | L25: 30907 | M25: 22517 | N25: 14127 | O25: 5737 | P25: 771 | Q25: 0 | R25: 0 | W25: May 22 | X25: 5017734 | Y25: Blended | Z25: 8390 | AA25: 4982632 | AE25: May 22 | AF25: =AF24 -> 2676217 | AG25: =(_xlfn.XLOOKUP(AE20,'Revised 2022 Depreciation Rates'!$A:$A,'Revised 2022 Depreciation Rates'!$B:$B)/12) -> 0.004333333333 | AH25: 0 | AI25: =ROUND(+AI24+AH25,0) -> 2676217 | AK25: May 22 | AL25: 2341517 | AM25: =(_xlfn.XLOOKUP(AK20,'Revised 2022 Depreciation Rates'!$A:$A,'Revised 2022 Depreciation Rates'!$B:$B)/12) -> 0.003583333333 | AN25: 8390 | AO25: 2306415
W26: Jun 22 | X26: 5017734 | Y26: Blended | Z26: 8390 | AA26: 4991022 | AE26: Jun 22 | AF26: =AF25 -> 2676217 | AG26: =(_xlfn.XLOOKUP(AE20,'Revised 2022 Depreciation Rates'!$A:$A,'Revised 2022 Depreciation Rates'!$B:$B)/12) -> 0.004333333333 | AH26: 0 | AI26: =ROUND(+AI25+AH26,0) -> 2676217 | AK26: Jun 22 | AL26: 2341517 | AM26: =(_xlfn.XLOOKUP(AK20,'Revised 2022 Depreciation Rates'!$A:$A,'Revised 2022 Depreciation Rates'!$B:$B)/12) -> 0.003583333333 | AN26: 8390 | AO26: 2314805
A27: 7. | B27: Return on Average Net Investment | G27: 1 | H27: 2 | I27: 3 | J27: 4 | K27: 5 | L27: 6 | M27: 7 | N27: 8 | O27: 9 | P27: 10 | Q27: 11 | R27: 12 | S27: 13 | W27: July 22 | X27: 5017734 | Y27: Blended | Z27: 8390 | AA27: 4999412 | AE27: July 22 | AF27: =AF26 -> 2676217 | AG27: =(_xlfn.XLOOKUP(AE20,'Revised 2022 Depreciation Rates'!$A:$A,'Revised 2022 Depreciation Rates'!$B:$B)/12) -> 0.004333333333 | AH27: 0 | AI27: 2676217 | AK27: July 22 | AL27: 2341517 | AM27: =(_xlfn.XLOOKUP(AK20,'Revised 2022 Depreciation Rates'!$A:$A,'Revised 2022 Depreciation Rates'!$B:$B)/12) -> 0.003583333333 | AN27: 8390 | AO27: 2323195
B28: a. Equity Component Grossed Up For Taxes (B) | G28: =ROUND(+G25*(G58)/12,0) -> 381 | H28: =ROUND(+H25*(H58)/12,0) -> 337 | I28: 293 | J28: 250 | K28: 206 | L28: 162 | M28: 118 | N28: 74 | O28: 30 | P28: 4 | Q28: 0 | R28: 0 | S28: =SUM(G28:R28) -> 1855 | W28: Aug 22 | X28: 5017734 | Y28: Blended | Z28: 8390 | AA28: 5007802 | AE28: Aug 22 | AF28: 2676217 | AG28: =(_xlfn.XLOOKUP(AE20,'Revised 2022 Depreciation Rates'!$A:$A,'Revised 2022 Depreciation Rates'!$B:$B)/12) -> 0.004333333333 | AH28: 0 | AI28: 2676217 | AK28: Aug 22 | AL28: 2341517 | AM28: =(_xlfn.XLOOKUP(AK20,'Revised 2022 Depreciation Rates'!$A:$A,'Revised 2022 Depreciation Rates'!$B:$B)/12) -> 0.003583333333 | AN28: 8390 | AO28: 2331585
B29: b. Debt Component Grossed Up For Taxes (C) | G29: =ROUND(+G25*(G59)/12,0) -> 99 | H29: =ROUND(+H25*(H59)/12,0) -> 88 | I29: 76 | J29: 65 | K29: 54 | L29: 42 | M29: 31 | N29: 19 | O29: 8 | P29: 1 | Q29: 0 | R29: 0 | S29: =SUM(G29:R29) -> 483 | W29: Sep 22 | X29: 5017734 | Y29: Blended | Z29: 8390 | AA29: 5016192 | AE29: Sep 22 | AF29: 2676217 | AG29: =(_xlfn.XLOOKUP(AE20,'Revised 2022 Depreciation Rates'!$A:$A,'Revised 2022 Depreciation Rates'!$B:$B)/12) -> 0.004333333333 | AH29: 0 | AI29: 2676217 | AK29: Sep 22 | AL29: 2341517 | AM29: =(_xlfn.XLOOKUP(AK20,'Revised 2022 Depreciation Rates'!$A:$A,'Revised 2022 Depreciation Rates'!$B:$B)/12) -> 0.003583333333 | AN29: 8390 | AO29: 2339975
W30: Oct 22 | X30: 5017734 | Y30: Blended | Z30: 1542 | AA30: 5017734 | AE30: Oct 22 | AF30: 2676217 | AG30: =(_xlfn.XLOOKUP(AE20,'Revised 2022 Depreciation Rates'!$A:$A,'Revised 2022 Depreciation Rates'!$B:$B)/12) -> 0.004333333333 | AH30: 0 | AI30: 2676217 | AK30: Oct 22 | AL30: 2341517 | AM30: =(_xlfn.XLOOKUP(AK20,'Revised 2022 Depreciation Rates'!$A:$A,'Revised 2022 Depreciation Rates'!$B:$B)/12) -> 0.003583333333 | AN30: 1542 | AO30: 2341517
A31: 8. | B31: Investment Expenses | W31: Nov 22 | X31: 5017734 | Y31: Blended | Z31: 0 | AA31: 5017734 | AB31: =X32-X19 -> 0 | AC31: in-service activity | AE31: Nov 22 | AF31: 2676217 | AG31: =(_xlfn.XLOOKUP(AE20,'Revised 2022 Depreciation Rates'!$A:$A,'Revised 2022 Depreciation Rates'!$B:$B)/12) -> 0.004333333333 | AH31: 0 | AI31: 2676217 | AK31: Nov 22 | AL31: 2341517 | AM31: =(_xlfn.XLOOKUP(AK20,'Revised 2022 Depreciation Rates'!$A:$A,'Revised 2022 Depreciation Rates'!$B:$B)/12) -> 0.003583333333 | AN31: 0 | AO31: =ROUND(+AO30+AN31,0) -> 2341517
B32: a. Depreciation (D) | G32: =$Z$21 -> 8390 | H32: =$Z$22 -> 8390 | I32: =$Z$23 -> 8390 | J32: =$Z$24 -> 8390 | K32: =$Z$25 -> 8390 | L32: =$Z$26 -> 8390 | M32: =$Z$27 -> 8390 | N32: =$Z$28 -> 8390 | O32: =$Z$29 -> 8390 | P32: =$Z$30 -> 1542 | Q32: =$Z$31 -> 0 | R32: =$Z$32 -> 0 | S32: =SUM(G32:R32) -> 77052 | T32: =S32-AB32 -> 0 | W32: Dec 22 | X32: 5017734 | Y32: Blended | Z32: 0 | AA32: 5017734 | AB32: =AA32-AA19 -> 77052 | AC32: depreciation activity | AE32: Dec 22 | AF32: 2676217 | AG32: =(_xlfn.XLOOKUP(AE20,'Revised 2022 Depreciation Rates'!$A:$A,'Revised 2022 Depreciation Rates'!$B:$B)/12) -> 0.004333333333 | AH32: =IF(AF31=AI31,0,IF((AF32-AI31)<ROUND((AF31*AG32),0),AF32-AI31,ROUND((AF31*AG32),0))) -> 0 | AI32: 2676217 | AK32: Dec 22 | AL32: 2341517 | AM32: =(_xlfn.XLOOKUP(AK20,'Revised 2022 Depreciation Rates'!$A:$A,'Revised 2022 Depreciation Rates'!$B:$B)/12) -> 0.003583333333 | AN32: =IF(AL31=AO31,0,IF((AL32-AO31)<ROUND((AL31*AM32),0),AL32-AO31,ROUND((AL31*AM32),0))) -> 0 | AO32: 2341517
B33: b. Amortization | G33: 0 | H33: 0 | I33: 0 | J33: 0 | K33: 0 | L33: 0 | M33: 0 | N33: 0 | O33: 0 | P33: 0 | Q33: 0 | R33: 0 | S33: =SUM(G33:R33) -> 0
B34: c. Dismantlement | G34: 0 | H34: 0 | I34: 0 | J34: 0 | K34: 0 | L34: 0 | M34: 0 | N34: 0 | O34: 0 | P34: 0 | Q34: 0 | R34: 0 | S34: =SUM(G34:R34) -> 0 | AE34: CM Depr Base | AF34: =+IF(AF3="","",IF(AF3="IN SERVICE",CHOOSE($C$60,AF21,AF22,AF23,AF24,AF25,AF26,AF27,AF28,AF29,AF30,AF31,AF32),"")) -> 2676217 | AL34: 2341517
B35: d. Property Taxes | G35: 0 | H35: 0 | I35: 0 | J35: 0 | K35: 0 | L35: 0 | M35: 0 | N35: 0 | O35: 0 | P35: 0 | Q35: 0 | R35: 0 | S35: =SUM(G35:R35) -> 0
B36: e. Other | G36: 0 | H36: 0 | I36: 0 | J36: 0 | K36: 0 | L36: 0 | M36: 0 | N36: 0 | O36: 0 | P36: 0 | Q36: 0 | R36: 0 | S36: =SUM(G36:R36) -> 0
A38: 9. | B38: Total System Recoverable Expenses (Lines 7 + 8) | G38: =ROUND(+G28+G29+G32+G33+G34+G35+G36,0) -> 8870 | H38: 8815 | I38: 8759 | J38: 8705 | K38: 8650 | L38: 8594 | M38: 8539 | N38: 8483 | O38: 8428 | P38: 1547 | Q38: 0 | R38: 0 | S38: =SUM(G38:R38) -> 79390
B39: a. Recoverable Costs Allocated to Energy | G39: =ROUND(+G38*1,0) -> 8870 | H39: 8815 | I39: =ROUND(+I38*1,0) -> 8759 | J39: 8705 | K39: 8650 | L39: 8594 | M39: 8539 | N39: 8483 | O39: 8428 | P39: 1547 | Q39: 0 | R39: 0 | S39: =SUM(G39:R39) -> 79390
B40: b. Recoverable Costs Allocated to Demand | G40: =ROUND(+G38*0,0) -> 0 | H40: 0 | I40: 0 | J40: 0 | K40: 0 | L40: 0 | M40: 0 | N40: 0 | O40: 0 | P40: 0 | Q40: 0 | R40: 0 | S40: =SUM(G40:R40) -> 0
A42: 10. | B42: Energy Jurisdictional Factor | G42: ='Form 42 2P'!D48 -> 1 | H42: ='Form 42 2P'!E48 -> 1 | I42: ='Form 42 2P'!F48 -> 1 | J42: ='Form 42 2P'!G48 -> 1 | K42: ='Form 42 2P'!H48 -> 1 | L42: ='Form 42 2P'!I48 -> 1 | M42: ='Form 42 2P'!J48 -> 1 | N42: ='Form 42 2P'!K48 -> 1 | O42: ='Form 42 2P'!L48 -> 1 | P42: ='Form 42 2P'!M48 -> 1 | Q42: ='Form 42 2P'!N48 -> 1 | R42: ='Form 42 2P'!O48 -> 1
A43: 11. | B43: Demand Jurisdictional Factor | G43: =+'Form 42 2P'!D49 -> 1 | H43: =+'Form 42 2P'!E49 -> 1 | I43: =+'Form 42 2P'!F49 -> 1 | J43: =+'Form 42 2P'!G49 -> 1 | K43: =+'Form 42 2P'!H49 -> 1 | L43: =+'Form 42 2P'!I49 -> 1 | M43: =+'Form 42 2P'!J49 -> 1 | N43: =+'Form 42 2P'!K49 -> 1 | O43: =+'Form 42 2P'!L49 -> 1 | P43: =+'Form 42 2P'!M49 -> 1 | Q43: =+'Form 42 2P'!N49 -> 1 | R43: =+'Form 42 2P'!O49 -> 1
A45: 12. | B45: Retail Energy-Related Recoverable Costs (E) | G45: =ROUND((+G39*G42),0) -> 8870 | H45: 8815 | I45: 8759 | J45: 8705 | K45: 8650 | L45: 8594 | M45: 8539 | N45: 8483 | O45: 8428 | P45: =ROUND((+P39*P42),0) -> 1547 | Q45: 0 | R45: 0 | S45: =SUM(G45:R45) -> 79390
A46: 13. | B46: Retail Demand-Related Recoverable Costs (F) | G46: =(+G40*G43) -> 0 | H46: 0 | I46: 0 | J46: 0 | K46: 0 | L46: 0 | M46: 0 | N46: 0 | O46: 0 | P46: 0 | Q46: 0 | R46: 0 | S46: =SUM(G46:R46) -> 0
A47: 14. | B47: Total Jurisdictional Recoverable Costs (Lines 12 + 13) | G47: =G45+G46 -> 8870 | H47: =H45+H46 -> 8815 | I47: 8759 | J47: 8705 | K47: 8650 | L47: 8594 | M47: 8539 | N47: 8483 | O47: 8428 | P47: 1547 | Q47: 0 | R47: 0 | S47: =SUM(G47:R47) -> 79390
A49: Notes:
A50: (A) | B50: =B61 -> Applicable depreciable base for Big Bend; accounts 312.41 ($2,676,217) and 312.42 ($2,341,517).
A51: (B) | B51: ='Tot 8E pg1-30'!$B$52 -> Line 6 x 6.2798% x 1/12. Based on ROE of 9.95% and weighted income tax rate of 25.345% (expansion factor of 1.34315)
A52: (C) | B52: ='Tot 8E pg1-30'!$B$53 -> Line 6 x 1.6353% x 1/12
A53: (D) | B53: =B67 -> Applicable depreciation rate is 5.2% and 4.3%
A54: (E) | B54: Line 9a x Line 10
A55: (F) | B55: Line 9b x Line 11
F58: ROI WACC-Equity | G58: ='Form 42 8P'!$E$50 -> 0.062798 | H58: ='Form 42 8P'!$E$50 -> 0.062798 | I58: ='Form 42 8P'!$E$50 -> 0.062798 | J58: ='Form 42 8P'!$E$50 -> 0.062798 | K58: ='Form 42 8P'!$E$50 -> 0.062798 | L58: ='Form 42 8P'!$E$50 -> 0.062798 | M58: ='Form 42 8P'!$E$50 -> 0.062798 | N58: ='Form 42 8P'!$E$50 -> 0.062798 | O58: ='Form 42 8P'!$E$50 -> 0.062798 | P58: ='Form 42 8P'!$E$50 -> 0.062798 | Q58: ='Form 42 8P'!$E$50 -> 0.062798 | R58: ='Form 42 8P'!$E$50 -> 0.062798
F59: ROI WACC-Debt | G59: ='Form 42 8P'!$E$59 -> 0.016353 | H59: ='Form 42 8P'!$E$59 -> 0.016353 | I59: ='Form 42 8P'!$E$59 -> 0.016353 | J59: ='Form 42 8P'!$E$59 -> 0.016353 | K59: ='Form 42 8P'!$E$59 -> 0.016353 | L59: ='Form 42 8P'!$E$59 -> 0.016353 | M59: ='Form 42 8P'!$E$59 -> 0.016353 | N59: ='Form 42 8P'!$E$59 -> 0.016353 | O59: ='Form 42 8P'!$E$59 -> 0.016353 | P59: ='Form 42 8P'!$E$59 -> 0.016353 | Q59: ='Form 42 8P'!$E$59 -> 0.016353 | R59: ='Form 42 8P'!$E$59 -> 0.016353
B60: CM | C60: 12
B61: =+"Applicable depreciable base for Big Bend; accounts "&G62&G63&"." -> Applicable depreciable base for Big Bend; accounts 312.41 ($2,676,217) and 312.42 ($2,341,517).
A62: =+INDEX($AE$27:$DO$27,1,MATCH($B62,$AE$2:$DO$2,0)+2)*12 -> 0.052 | B62: 312.41 | C62: =+INDEX($AE$34:$DO$34,1,MATCH($B62,$AE$2:$DO$2,0)+1) -> 2676217 | D62: =+TEXT(B62,"#.00") -> 312.41 | E62: =+TEXT(C62,"$#,###") -> $2,676,217 | F62: =+IF(C62=0,"",TEXT(A62,"#.0%")) -> 5.2% | G62: =+D62&" ("&E62&")" -> 312.41 ($2,676,217) | H62: =+F62 -> 5.2%
A63: =+INDEX($AE$27:$DO$27,1,MATCH($B63,$AE$2:$DO$2,0)+2)*12 -> 0.043 | B63: 312.42 | C63: =+INDEX($AE$34:$DO$34,1,MATCH($B63,$AE$2:$DO$2,0)+1) -> 2341517 | D63: =+TEXT(B63,"#.00") -> 312.42 | E63: =+TEXT(C63,"$#,###") -> $2,341,517 | F63: 4.3% | G63: =IF(C63=0,"",(" and "&D63&" ("&E63&")")) -> and 312.42 ($2,341,517) | H63: =+IF(C63=0,"",(" and "&F63)) -> and 4.3%
C65: =+SUM(C62:C64) -> 5017734
C66: =+X32-C65 -> 0
B67: =+"Applicable depreciation rate is "&H62&H63 -> Applicable depreciation rate is 5.2% and 4.3%

Sheet Form 42 4P p3
A1: ='Form 42 2P'!$A$1:$R$1 -> Tampa Electric Company | S1: Form 42-4P | W1: BIG BEND #4 CEM ADDITION (L-13)
A2: ='Form 42 2P'!$A$2:$R$2 -> Environmental Cost Recovery Clause | S2: Page 3 of 30 | W2: 315.44
A3: ='Form 42 2P'!$A$3:$R$3 -> Calculation of the Projected Period Amount | X3: IN SERVICE | Y3: DEPREC. | Z3: DEPREC.
A4: ='Form 42 2P'!$A$4:$R$4 -> January 2022 to December 2022 | Y4: RATE | Z4: EXP. | AA4: ACC. DEPR.
A6: Return on Capital Investments, Depreciation and Taxes | W6: Dec 20 | X6: 866211 | Y6: 0.002666666667 | Z6: 2310 | AA6: 625325
A7: For Project: Big Bend Unit 4 Continuous Emissions Monitors | W7: 315.44
A8: (in Dollars) | W8: Jan 21 | X8: 866211 | Y8: 0.002666666667 | Z8: 2310 | AA8: 627635
W9: Feb 21 | X9: 866211 | Y9: 0.002666666667 | Z9: 2310 | AA9: 629945
S10: End of | W10: Mar 21 | X10: 866211 | Y10: 0.002666666667 | Z10: 2310 | AA10: 632255
F11: Beginning of | G11: ='Form 42 2P'!$D$10 -> Projected | H11: ='Form 42 2P'!$E$10 -> Projected | I11: ='Form 42 2P'!$F$10 -> Projected | J11: ='Form 42 2P'!$G$10 -> Projected | K11: ='Form 42 2P'!$H$10 -> Projected | L11: ='Form 42 2P'!$I$10 -> Projected | M11: ='Form 42 2P'!$J$10 -> Projected | N11: ='Form 42 2P'!$K$10 -> Projected | O11: ='Form 42 2P'!$L$10 -> Projected | P11: ='Form 42 2P'!$M$10 -> Projected | Q11: ='Form 42 2P'!$N$10 -> Projected | R11: ='Form 42 2P'!$O$10 -> Projected | S11: Period | W11: Apr 21 | X11: 866211 | Y11: 0.002666666667 | Z11: 2310 | AA11: 634565
A12: Line | B12: Description | F12: Period Amount | G12: ='Form 42 2P'!$D$11 -> January | H12: ='Form 42 2P'!$E$11 -> February | I12: ='Form 42 2P'!$F$11 -> March | J12: ='Form 42 2P'!$G$11 -> April | K12: ='Form 42 2P'!$H$11 -> May | L12: ='Form 42 2P'!$I$11 -> June | M12: ='Form 42 2P'!$J$11 -> July | N12: ='Form 42 2P'!$K$11 -> August | O12: ='Form 42 2P'!$L$11 -> September | P12: ='Form 42 2P'!$M$11 -> October | Q12: ='Form 42 2P'!$N$11 -> November | R12: ='Form 42 2P'!$O$11 -> December | S12: Total | W12: May 21 | X12: 866211 | Y12: 0.002666666667 | Z12: 2310 | AA12: 636875
W13: Jun 21 | X13: 866211 | Y13: 0.002666666667 | Z13: 2310 | AA13: 639185
A14: 1. | B14: Investments | W14: July 21 | X14: 866211 | Y14: 0.002666666667 | Z14: 2310 | AA14: 641495
B15: a. Expenditures/Additions | G15: 0 | H15: 0 | I15: 0 | J15: 0 | K15: 0 | L15: 0 | M15: 0 | N15: 0 | O15: 0 | P15: 0 | Q15: 0 | R15: 0 | S15: =SUM(G15:R15) -> 0 | W15: Aug 21 | X15: 866211 | Y15: 0.002666666667 | Z15: 2310 | AA15: 643805
B16: b. Clearings to Plant | G16: 0 | H16: 0 | I16: 0 | J16: 0 | K16: 0 | L16: 0 | M16: 0 | N16: 0 | O16: 0 | P16: 0 | Q16: 0 | R16: 0 | S16: =SUM(G16:R16) -> 0 | W16: Sep 21 | X16: 866211 | Y16: 0.002666666667 | Z16: 2310 | AA16: 646115
B17: c. Retirements | G17: 0 | H17: 0 | I17: 0 | J17: 0 | K17: 0 | L17: 0 | M17: 0 | N17: 0 | O17: 0 | P17: 0 | Q17: 0 | R17: 0 | S17: =SUM(G17:R17) -> 0 | W17: Oct 21 | X17: 866211 | Y17: 0.002666666667 | Z17: 2310 | AA17: 648425
B18: d. Other | G18: 0 | H18: 0 | I18: 0 | J18: 0 | K18: 0 | L18: 0 | M18: 0 | N18: 0 | O18: 0 | P18: 0 | Q18: 0 | R18: 0 | S18: 0 | W18: Nov 21 | X18: 866211 | Y18: 0.002666666667 | Z18: 2310 | AA18: 650735 | AB18: 0 | AC18: in-service activity
W19: Dec 21 | X19: 866211 | Y19: 0.002666666667 | Z19: 2310 | AA19: 653045 | AB19: 27720 | AC19: depreciation activity
A20: 2. | B20: Plant-in-Service/Depreciation Base (A) | F20: 866211 | G20: =$X$21 -> 866211 | H20: =$X$22 -> 866211 | I20: =$X$23 -> 866211 | J20: =$X$24 -> 866211 | K20: =$X$25 -> 866211 | L20: =$X$26 -> 866211 | M20: =$X$27 -> 866211 | N20: =$X$28 -> 866211 | O20: =$X$29 -> 866211 | P20: =$X$30 -> 866211 | Q20: =$X$31 -> 866211 | R20: =$X$32 -> 866211 | T20: =R20-X32 -> 0 | U20: ck | W20: =W7 -> 315.44
A21: 3. | B21: Less: Accumulated Depreciation | F21: -653045 | G21: =F21-G32 -> -655138 | H21: -657231 | I21: -659324 | J21: -661417 | K21: -663510 | L21: -665603 | M21: -667696 | N21: -669789 | O21: -671882 | P21: -673975 | Q21: -676068 | R21: -678161 | T21: =R21+AA32 -> 0 | U21: ck | W21: Jan 22 | X21: =X19 -> 866211 | Y21: =(_xlfn.XLOOKUP(W20,'Revised 2022 Depreciation Rates'!$A:$A,'Revised 2022 Depreciation Rates'!$B:$B)/12) -> 0.002416666667 | Z21: =IF(X19=AA19,0,IF((X21-AA19)<ROUND((X19*Y21),0),X21-AA19,ROUND((X19*Y21),0))) -> 2093 | AA21: =ROUND(+AA19+Z21,0) -> 655138
A22: 4. | B22: CWIP - Non-Interest Bearing | F22: 0 | G22: =F22+G15-G16 -> 0 | H22: =G22+H15-H16 -> 0 | I22: 0 | J22: 0 | K22: 0 | L22: 0 | M22: 0 | N22: 0 | O22: 0 | P22: 0 | Q22: 0 | R22: 0 | W22: Feb 22 | X22: =X21 -> 866211 | Y22: =(_xlfn.XLOOKUP(W20,'Revised 2022 Depreciation Rates'!$A:$A,'Revised 2022 Depreciation Rates'!$B:$B)/12) -> 0.002416666667 | Z22: =IF(X21=AA21,0,IF((X22-AA21)<ROUND((X21*Y22),0),X22-AA21,ROUND((X21*Y22),0))) -> 2093 | AA22: =ROUND(+AA21+Z22,0) -> 657231
A23: 5. | B23: Net Investment (Lines 2 + 3 + 4) | F23: 213166 | G23: =G20+G21+G22 -> 211073 | H23: 208980 | I23: 206887 | J23: 204794 | K23: 202701 | L23: 200608 | M23: 198515 | N23: 196422 | O23: 194329 | P23: 192236 | Q23: 190143 | R23: 188050 | W23: Mar 22 | X23: =X22 -> 866211 | Y23: =(_xlfn.XLOOKUP(W20,'Revised 2022 Depreciation Rates'!$A:$A,'Revised 2022 Depreciation Rates'!$B:$B)/12) -> 0.002416666667 | Z23: 2093 | AA23: =ROUND(+AA22+Z23,0) -> 659324
W24: Apr 22 | X24: 866211 | Y24: =(_xlfn.XLOOKUP(W20,'Revised 2022 Depreciation Rates'!$A:$A,'Revised 2022 Depreciation Rates'!$B:$B)/12) -> 0.002416666667 | Z24: 2093 | AA24: 661417
A25: 6. | B25: Average Net Investment | G25: =ROUND((+F23+G23)/2,0) -> 212120 | H25: =ROUND((+G23+H23)/2,0) -> 210027 | I25: 207934 | J25: 205841 | K25: 203748 | L25: 201655 | M25: 199562 | N25: 197469 | O25: 195376 | P25: 193283 | Q25: 191190 | R25: 189097 | W25: May 22 | X25: 866211 | Y25: =(_xlfn.XLOOKUP(W20,'Revised 2022 Depreciation Rates'!$A:$A,'Revised 2022 Depreciation Rates'!$B:$B)/12) -> 0.002416666667 | Z25: 2093 | AA25: 663510
W26: Jun 22 | X26: 866211 | Y26: =(_xlfn.XLOOKUP(W20,'Revised 2022 Depreciation Rates'!$A:$A,'Revised 2022 Depreciation Rates'!$B:$B)/12) -> 0.002416666667 | Z26: 2093 | AA26: 665603
A27: 7. | B27: Return on Average Net Investment | G27: 1 | H27: 2 | I27: 3 | J27: 4 | K27: 5 | L27: 6 | M27: 7 | N27: 8 | O27: 9 | P27: 10 | Q27: 11 | R27: 12 | S27: 13 | W27: July 22 | X27: 866211 | Y27: =(_xlfn.XLOOKUP(W20,'Revised 2022 Depreciation Rates'!$A:$A,'Revised 2022 Depreciation Rates'!$B:$B)/12) -> 0.002416666667 | Z27: 2093 | AA27: 667696
B28: a. Equity Component Grossed Up For Taxes (B) | G28: =ROUND(+G25*(G58)/12,0) -> 1110 | H28: =ROUND(+H25*(H58)/12,0) -> 1099 | I28: 1088 | J28: 1077 | K28: 1066 | L28: 1055 | M28: 1044 | N28: 1033 | O28: 1022 | P28: 1011 | Q28: 1001 | R28: 990 | S28: =SUM(G28:R28) -> 12596 | W28: Aug 22 | X28: 866211 | Y28: =(_xlfn.XLOOKUP(W20,'Revised 2022 Depreciation Rates'!$A:$A,'Revised 2022 Depreciation Rates'!$B:$B)/12) -> 0.002416666667 | Z28: 2093 | AA28: 669789
B29: b. Debt Component Grossed Up For Taxes (C) | G29: =ROUND(+G25*(G59)/12,0) -> 289 | H29: =ROUND(+H25*(H59)/12,0) -> 286 | I29: 283 | J29: 281 | K29: 278 | L29: 275 | M29: 272 | N29: 269 | O29: 266 | P29: 263 | Q29: 261 | R29: 258 | S29: =SUM(G29:R29) -> 3281 | W29: Sep 22 | X29: 866211 | Y29: =(_xlfn.XLOOKUP(W20,'Revised 2022 Depreciation Rates'!$A:$A,'Revised 2022 Depreciation Rates'!$B:$B)/12) -> 0.002416666667 | Z29: 2093 | AA29: 671882
W30: Oct 22 | X30: 866211 | Y30: =(_xlfn.XLOOKUP(W20,'Revised 2022 Depreciation Rates'!$A:$A,'Revised 2022 Depreciation Rates'!$B:$B)/12) -> 0.002416666667 | Z30: 2093 | AA30: 673975
A31: 8. | B31: Investment Expenses | W31: Nov 22 | X31: 866211 | Y31: =(_xlfn.XLOOKUP(W20,'Revised 2022 Depreciation Rates'!$A:$A,'Revised 2022 Depreciation Rates'!$B:$B)/12) -> 0.002416666667 | Z31: 2093 | AA31: 676068 | AB31: =X32-X19 -> 0 | AC31: in-service activity
B32: a. Depreciation (D) | G32: =$Z$21 -> 2093 | H32: =$Z$22 -> 2093 | I32: =$Z$23 -> 2093 | J32: =$Z$24 -> 2093 | K32: =$Z$25 -> 2093 | L32: =$Z$26 -> 2093 | M32: =$Z$27 -> 2093 | N32: =$Z$28 -> 2093 | O32: =$Z$29 -> 2093 | P32: =$Z$30 -> 2093 | Q32: =$Z$31 -> 2093 | R32: =$Z$32 -> 2093 | S32: =SUM(G32:R32) -> 25116 | T32: =S32-AB32 -> 0 | U32: ck | W32: Dec 22 | X32: 866211 | Y32: =(_xlfn.XLOOKUP(W20,'Revised 2022 Depreciation Rates'!$A:$A,'Revised 2022 Depreciation Rates'!$B:$B)/12) -> 0.002416666667 | Z32: =IF(X31=AA31,0,IF((X32-AA31)<ROUND((X31*Y32),0),X32-AA31,ROUND((X31*Y32),0))) -> 2093 | AA32: 678161 | AB32: =AA32-AA19 -> 25116 | AC32: depreciation activity
B33: b. Amortization | G33: 0 | H33: 0 | I33: 0 | J33: 0 | K33: 0 | L33: 0 | M33: 0 | N33: 0 | O33: 0 | P33: 0 | Q33: 0 | R33: 0 | S33: =SUM(G33:R33) -> 0
B34: c. Dismantlement | G34: 0 | H34: 0 | I34: 0 | J34: 0 | K34: 0 | L34: 0 | M34: 0 | N34: 0 | O34: 0 | P34: 0 | Q34: 0 | R34: 0 | S34: =SUM(G34:R34) -> 0
B35: d. Property Taxes | G35: 0 | H35: 0 | I35: 0 | J35: 0 | K35: 0 | L35: 0 | M35: 0 | N35: 0 | O35: 0 | P35: 0 | Q35: 0 | R35: 0 | S35: =SUM(G35:R35) -> 0
B36: e. Other | G36: 0 | H36: 0 | I36: 0 | J36: 0 | K36: 0 | L36: 0 | M36: 0 | N36: 0 | O36: 0 | P36: 0 | Q36: 0 | R36: 0 | S36: =SUM(G36:R36) -> 0
A38: 9. | B38: Total System Recoverable Expenses (Lines 7 + 8) | G38: =ROUND(+G28+G29+G32+G33+G34+G35+G36,0) -> 3492 | H38: 3478 | I38: 3464 | J38: 3451 | K38: 3437 | L38: 3423 | M38: 3409 | N38: 3395 | O38: 3381 | P38: 3367 | Q38: 3355 | R38: 3341 | S38: =SUM(G38:R38) -> 40993
B39: a. Recoverable Costs Allocated to Energy | G39: =ROUND(+G38*1,0) -> 3492 | H39: 3478 | I39: 3464 | J39: 3451 | K39: 3437 | L39: 3423 | M39: 3409 | N39: 3395 | O39: 3381 | P39: 3367 | Q39: 3355 | R39: 3341 | S39: =SUM(G39:R39) -> 40993
B40: b. Recoverable Costs Allocated to Demand | G40: =ROUND(+G39*0,0) -> 0 | H40: 0 | I40: 0 | J40: 0 | K40: 0 | L40: 0 | M40: 0 | N40: 0 | O40: 0 | P40: 0 | Q40: 0 | R40: 0 | S40: =SUM(G40:R40) -> 0
A42: 10. | B42: Energy Jurisdictional Factor | G42: ='Form 42 2P'!D48 -> 1 | H42: ='Form 42 2P'!E48 -> 1 | I42: ='Form 42 2P'!F48 -> 1 | J42: ='Form 42 2P'!G48 -> 1 | K42: ='Form 42 2P'!H48 -> 1 | L42: ='Form 42 2P'!I48 -> 1 | M42: ='Form 42 2P'!J48 -> 1 | N42: ='Form 42 2P'!K48 -> 1 | O42: ='Form 42 2P'!L48 -> 1 | P42: ='Form 42 2P'!M48 -> 1 | Q42: ='Form 42 2P'!N48 -> 1 | R42: ='Form 42 2P'!O48 -> 1
A43: 11. | B43: Demand Jurisdictional Factor | G43: =+'Form 42 2P'!D49 -> 1 | H43: =+'Form 42 2P'!E49 -> 1 | I43: =+'Form 42 2P'!F49 -> 1 | J43: =+'Form 42 2P'!G49 -> 1 | K43: =+'Form 42 2P'!H49 -> 1 | L43: =+'Form 42 2P'!I49 -> 1 | M43: =+'Form 42 2P'!J49 -> 1 | N43: =+'Form 42 2P'!K49 -> 1 | O43: =+'Form 42 2P'!L49 -> 1 | P43: =+'Form 42 2P'!M49 -> 1 | Q43: =+'Form 42 2P'!N49 -> 1 | R43: =+'Form 42 2P'!O49 -> 1
A45: 12. | B45: Retail Energy-Related Recoverable Costs (E) | G45: =ROUND(G42*G39,0) -> 3492 | H45: 3478 | I45: 3464 | J45: 3451 | K45: 3437 | L45: 3423 | M45: 3409 | N45: 3395 | O45: 3381 | P45: 3367 | Q45: 3355 | R45: 3341 | S45: =SUM(G45:R45) -> 40993
A46: 13. | B46: Retail Demand-Related Recoverable Costs (F) | G46: =ROUND((+G40*G43),0) -> 0 | H46: 0 | I46: 0 | J46: 0 | K46: 0 | L46: 0 | M46: 0 | N46: 0 | O46: 0 | P46: 0 | Q46: 0 | R46: 0 | S46: =SUM(G46:R46) -> 0
A47: 14. | B47: Total Jurisdictional Recoverable Costs (Lines 12 + 13) | G47: =G45+G46 -> 3492 | H47: =H45+H46 -> 3478 | I47: 3464 | J47: 3451 | K47: 3437 | L47: 3423 | M47: 3409 | N47: 3395 | O47: 3381 | P47: 3367 | Q47: 3355 | R47: 3341 | S47: =SUM(G47:R47) -> 40993
A49: Notes:
A50: (A) | B50: Applicable depreciable base for Big Bend; account 315.44
A51: (B) | B51: ='Tot 8E pg1-30'!$B$52 -> Line 6 x 6.2798% x 1/12. Based on ROE of 9.95% and weighted income tax rate of 25.345% (expansion factor of 1.34315)
A52: (C) | B52: ='Tot 8E pg1-30'!$B$53 -> Line 6 x 1.6353% x 1/12
A53: (D) | B53: ="Applicable depreciation rate is "&TEXT(_xlfn.XLOOKUP(VALUE(RIGHT(B50,6)),'Revised 2022 Depreciation Rates'!A:A,'Revised 2022 Depreciation Rates'!B:B),"0.0%") -> Applicable depreciation rate is 2.9%
A54: (E) | B54: Line 9a x Line 10
A55: (F) | B55: Line 9b x Line 11
F58: ROI WACC-Equity | G58: ='Form 42 8P'!$E$50 -> 0.062798 | H58: ='Form 42 8P'!$E$50 -> 0.062798 | I58: ='Form 42 8P'!$E$50 -> 0.062798 | J58: ='Form 42 8P'!$E$50 -> 0.062798 | K58: ='Form 42 8P'!$E$50 -> 0.062798 | L58: ='Form 42 8P'!$E$50 -> 0.062798 | M58: ='Form 42 8P'!$E$50 -> 0.062798 | N58: ='Form 42 8P'!$E$50 -> 0.062798 | O58: ='Form 42 8P'!$E$50 -> 0.062798 | P58: ='Form 42 8P'!$E$50 -> 0.062798 | Q58: ='Form 42 8P'!$E$50 -> 0.062798 | R58: ='Form 42 8P'!$E$50 -> 0.062798
F59: ROI WACC-Debt | G59: ='Form 42 8P'!$E$59 -> 0.016353 | H59: ='Form 42 8P'!$E$59 -> 0.016353 | I59: ='Form 42 8P'!$E$59 -> 0.016353 | J59: ='Form 42 8P'!$E$59 -> 0.016353 | K59: ='Form 42 8P'!$E$59 -> 0.016353 | L59: ='Form 42 8P'!$E$59 -> 0.016353 | M59: ='Form 42 8P'!$E$59 -> 0.016353 | N59: ='Form 42 8P'!$E$59 -> 0.016353 | O59: ='Form 42 8P'!$E$59 -> 0.016353 | P59: ='Form 42 8P'!$E$59 -> 0.016353 | Q59: ='Form 42 8P'!$E$59 -> 0.016353 | R59: ='Form 42 8P'!$E$59 -> 0.016353

Sheet Form 42 4P p4
A1: ='Form 42 2P'!$A$1:$R$1 -> Tampa Electric Company | S1: Form 42-4P | W1: BIG BEND FUEL TANK #1 (B14)
A2: ='Form 42 2P'!$A$2:$R$2 -> Environmental Cost Recovery Clause | S2: Page 4 of 30
A3: ='Form 42 2P'!$A$3:$R$3 -> Calculation of the Projected Period Amount | W3: 312.4 | X3: IN SERVICE | Y3: DEPREC. | Z3: DEPREC.
A4: ='Form 42 2P'!$A$4:$R$4 -> January 2022 to December 2022 | Y4: RATE | Z4: EXP. | AA4: ACC. DEPR.
A6: Return on Capital Investments, Depreciation and Taxes | W6: Dec 20 | X6: 497578 | Y6: 0.010296 | Z6: 5123 | AA6: 436102
A7: For Project: Big Bend Fuel Oil Tank # 1 Upgrade | W7: 312.4
A8: (in Dollars) | W8: Jan 21 | X8: 497578 | Y8: 0.010296 | Z8: 5123 | AA8: 441225
W9: Feb 21 | X9: 497578 | Y9: 0.010296 | Z9: 5123 | AA9: 446348
S10: End of | W10: Mar 21 | X10: 497578 | Y10: 0.010296 | Z10: 5123 | AA10: 451471
F11: Beginning of | G11: ='Form 42 2P'!$D$10 -> Projected | H11: ='Form 42 2P'!$E$10 -> Projected | I11: ='Form 42 2P'!$F$10 -> Projected | J11: ='Form 42 2P'!$G$10 -> Projected | K11: ='Form 42 2P'!$H$10 -> Projected | L11: ='Form 42 2P'!$I$10 -> Projected | M11: ='Form 42 2P'!$J$10 -> Projected | N11: ='Form 42 2P'!$K$10 -> Projected | O11: ='Form 42 2P'!$L$10 -> Projected | P11: ='Form 42 2P'!$M$10 -> Projected | Q11: ='Form 42 2P'!$N$10 -> Projected | R11: ='Form 42 2P'!$O$10 -> Projected | S11: Period | W11: Apr 21 | X11: 497578 | Y11: 0.010296 | Z11: 5123 | AA11: 456594
A12: Line | B12: Description | F12: Period Amount | G12: ='Form 42 2P'!$D$11 -> January | H12: ='Form 42 2P'!$E$11 -> February | I12: ='Form 42 2P'!$F$11 -> March | J12: ='Form 42 2P'!$G$11 -> April | K12: ='Form 42 2P'!$H$11 -> May | L12: ='Form 42 2P'!$I$11 -> June | M12: ='Form 42 2P'!$J$11 -> July | N12: ='Form 42 2P'!$K$11 -> August | O12: ='Form 42 2P'!$L$11 -> September | P12: ='Form 42 2P'!$M$11 -> October | Q12: ='Form 42 2P'!$N$11 -> November | R12: ='Form 42 2P'!$O$11 -> December | S12: Total | W12: May 21 | X12: 497578 | Y12: 0.010296 | Z12: 5123 | AA12: 461717
W13: Jun 21 | X13: 497578 | Y13: 0.010296 | Z13: 5123 | AA13: 466840
A14: 1. | B14: Investments | W14: July 21 | X14: 497578 | Y14: 0.010296 | Z14: 5123 | AA14: 471963
B15: a. Expenditures/Additions | G15: 0 | H15: 0 | I15: 0 | J15: 0 | K15: 0 | L15: 0 | M15: 0 | N15: 0 | O15: 0 | P15: 0 | Q15: 0 | R15: 0 | S15: =SUM(G15:R15) -> 0 | W15: Aug 21 | X15: 497578 | Y15: 0.010296 | Z15: 5123 | AA15: 477086
B16: b. Clearings to Plant | G16: 0 | H16: 0 | I16: 0 | J16: 0 | K16: 0 | L16: 0 | M16: 0 | N16: 0 | O16: 0 | P16: 0 | Q16: 0 | R16: 0 | S16: =SUM(G16:R16) -> 0 | W16: Sep 21 | X16: 497578 | Y16: 0.010296 | Z16: 5123 | AA16: 482209
B17: c. Retirements | G17: 0 | H17: 0 | I17: 0 | J17: 0 | K17: 0 | L17: 0 | M17: 0 | N17: 0 | O17: 0 | P17: 0 | Q17: 0 | R17: 0 | S17: =SUM(G17:R17) -> 0 | W17: Oct 21 | X17: 497578 | Y17: 0.010296 | Z17: 5123 | AA17: 487332
B18: d. Other | G18: 0 | H18: 0 | I18: 0 | J18: 0 | K18: 0 | L18: 0 | M18: 0 | N18: 0 | O18: 0 | P18: 0 | Q18: 0 | R18: 0 | S18: 0 | W18: Nov 21 | X18: 497578 | Y18: 0.010296 | Z18: 5123 | AA18: 492455 | AB18: 0 | AC18: in-service activity
W19: Dec 21 | X19: 497578 | Y19: 0.010296 | Z19: 5123 | AA19: 497578 | AB19: 61476 | AC19: depreciation activity
A20: 2. | B20: Plant-in-Service/Depreciation Base (A) | F20: 497578 | G20: =+$X$21 -> 497578 | H20: =+$X$22 -> 497578 | I20: =+$X$23 -> 497578 | J20: =+$X$24 -> 497578 | K20: =+$X$25 -> 497578 | L20: =+$X$26 -> 497578 | M20: =+$X$27 -> 497578 | N20: =+$X$28 -> 497578 | O20: =+$X$29 -> 497578 | P20: =+$X$30 -> 497578 | Q20: =+$X$31 -> 497578 | R20: =+$X$32 -> 497578 | T20: =R20-X32 -> 0 | U20: ck | W20: 312.4
A21: 3. | B21: Less: Accumulated Depreciation | F21: -497578 | G21: =-G32+F21 -> -497578 | H21: =-H32+G21 -> -497578 | I21: =-I32+H21 -> -497578 | J21: -497578 | K21: -497578 | L21: -497578 | M21: -497578 | N21: -497578 | O21: -497578 | P21: -497578 | Q21: -497578 | R21: =-R32+Q21 -> -497578 | T21: =R21+AA32 -> 0 | U21: ck | W21: 2022-01-30 | X21: =X19 -> 497578 | Y21: =(_xlfn.XLOOKUP(W20,'Revised 2022 Depreciation Rates'!$A:$A,'Revised 2022 Depreciation Rates'!$B:$B)/12) -> 0.003833333333 | Z21: =IF(X19=AA19,0,IF((X21-AA19)<ROUND((X19*Y21),0),X21-AA19,ROUND((X19*Y21),0))) -> 0 | AA21: =ROUND(+AA19+Z21,0) -> 497578
A22: 4. | B22: CWIP - Non-Interest Bearing | F22: 0 | G22: =F22+G15-G16 -> 0 | H22: =+-H16 -> 0 | I22: 0 | J22: 0 | K22: 0 | L22: 0 | M22: 0 | N22: 0 | O22: 0 | P22: 0 | Q22: 0 | R22: 0 | W22: 2022-02-28 | X22: =X21 -> 497578 | Y22: =(_xlfn.XLOOKUP(W20,'Revised 2022 Depreciation Rates'!$A:$A,'Revised 2022 Depreciation Rates'!$B:$B)/12) -> 0.003833333333 | Z22: =IF(X21=AA21,0,IF((X22-AA21)<ROUND((X21*Y22),0),X22-AA21,ROUND((X21*Y22),0))) -> 0 | AA22: =ROUND(+AA21+Z22,0) -> 497578
A23: 5. | B23: Net Investment (Lines 2 + 3 + 4) | F23: 0 | G23: =G20+G21+G22 -> 0 | H23: 0 | I23: 0 | J23: 0 | K23: 0 | L23: 0 | M23: 0 | N23: 0 | O23: 0 | P23: 0 | Q23: 0 | R23: 0 | W23: 2022-03-29 | X23: 497578 | Y23: =(_xlfn.XLOOKUP(W20,'Revised 2022 Depreciation Rates'!$A:$A,'Revised 2022 Depreciation Rates'!$B:$B)/12) -> 0.003833333333 | Z23: 0 | AA23: 497578
W24: 2022-04-27 | X24: 497578 | Y24: =(_xlfn.XLOOKUP(W20,'Revised 2022 Depreciation Rates'!$A:$A,'Revised 2022 Depreciation Rates'!$B:$B)/12) -> 0.003833333333 | Z24: 0 | AA24: 497578
A25: 6. | B25: Average Net Investment | G25: =ROUND((+F23+G23)/2,0) -> 0 | H25: 0 | I25: 0 | J25: 0 | K25: 0 | L25: 0 | M25: 0 | N25: 0 | O25: 0 | P25: 0 | Q25: 0 | R25: 0 | W25: 2022-05-26 | X25: 497578 | Y25: =(_xlfn.XLOOKUP(W20,'Revised 2022 Depreciation Rates'!$A:$A,'Revised 2022 Depreciation Rates'!$B:$B)/12) -> 0.003833333333 | Z25: 0 | AA25: 497578
W26: 2022-06-24 | X26: 497578 | Y26: =(_xlfn.XLOOKUP(W20,'Revised 2022 Depreciation Rates'!$A:$A,'Revised 2022 Depreciation Rates'!$B:$B)/12) -> 0.003833333333 | Z26: 0 | AA26: 497578
A27: 7. | B27: Return on Average Net Investment | G27: 1 | H27: 2 | I27: 3 | J27: 4 | K27: 5 | L27: 6 | M27: 7 | N27: 8 | O27: 9 | P27: 10 | Q27: 11 | R27: 12 | S27: 13 | W27: 2022-07-23 | X27: 497578 | Y27: =(_xlfn.XLOOKUP(W20,'Revised 2022 Depreciation Rates'!$A:$A,'Revised 2022 Depreciation Rates'!$B:$B)/12) -> 0.003833333333 | Z27: 0 | AA27: 497578
B28: a. Equity Component Grossed Up For Taxes (B) | G28: =ROUND(+G25*(G58)/12,0) -> 0 | H28: =ROUND(+H25*(H58)/12,0) -> 0 | I28: 0 | J28: 0 | K28: 0 | L28: 0 | M28: 0 | N28: 0 | O28: 0 | P28: 0 | Q28: 0 | R28: 0 | S28: =SUM(G28:R28) -> 0 | W28: 2022-08-21 | X28: 497578 | Y28: =(_xlfn.XLOOKUP(W20,'Revised 2022 Depreciation Rates'!$A:$A,'Revised 2022 Depreciation Rates'!$B:$B)/12) -> 0.003833333333 | Z28: 0 | AA28: 497578
B29: b. Debt Component Grossed Up For Taxes (C) | G29: =ROUND(+G25*(G59)/12,0) -> 0 | H29: =ROUND(+H25*(H59)/12,0) -> 0 | I29: 0 | J29: 0 | K29: 0 | L29: 0 | M29: 0 | N29: 0 | O29: 0 | P29: 0 | Q29: 0 | R29: 0 | S29: =SUM(G29:R29) -> 0 | W29: 2022-09-19 | X29: 497578 | Y29: =(_xlfn.XLOOKUP(W20,'Revised 2022 Depreciation Rates'!$A:$A,'Revised 2022 Depreciation Rates'!$B:$B)/12) -> 0.003833333333 | Z29: 0 | AA29: 497578
W30: 2022-10-18 | X30: 497578 | Y30: =(_xlfn.XLOOKUP(W20,'Revised 2022 Depreciation Rates'!$A:$A,'Revised 2022 Depreciation Rates'!$B:$B)/12) -> 0.003833333333 | Z30: 0 | AA30: 497578
A31: 8. | B31: Investment Expenses | W31: 2022-11-16 | X31: 497578 | Y31: =(_xlfn.XLOOKUP(W20,'Revised 2022 Depreciation Rates'!$A:$A,'Revised 2022 Depreciation Rates'!$B:$B)/12) -> 0.003833333333 | Z31: 0 | AA31: 497578 | AB31: =X32-X19 -> 0 | AC31: in-service activity
B32: a. Depreciation (D) | G32: =+$Z$21 -> 0 | H32: =+$Z$22 -> 0 | I32: =+$Z$22 -> 0 | J32: =+$Z$24 -> 0 | K32: =+$Z$25 -> 0 | L32: =+$Z$26 -> 0 | M32: =+$Z$27 -> 0 | N32: =+$Z$28 -> 0 | O32: =+$Z$29 -> 0 | P32: =+$Z$30 -> 0 | Q32: =+$Z$31 -> 0 | R32: =+$Z$32 -> 0 | S32: =SUM(G32:R32) -> 0 | T32: =+S32-AB32 -> 0 | U32: ck | W32: 2022-12-15 | X32: 497578 | Y32: =(_xlfn.XLOOKUP(W20,'Revised 2022 Depreciation Rates'!$A:$A,'Revised 2022 Depreciation Rates'!$B:$B)/12) -> 0.003833333333 | Z32: =IF(X31=AA31,0,IF((X32-AA31)<ROUND((X31*Y32),0),X32-AA31,ROUND((X31*Y32),0))) -> 0 | AA32: 497578 | AB32: =AA32-AA19 -> 0 | AC32: depreciation activity
B33: b. Amortization | G33: 0 | H33: 0 | I33: 0 | J33: 0 | K33: 0 | L33: 0 | M33: 0 | N33: 0 | O33: 0 | P33: 0 | Q33: 0 | R33: 0 | S33: =SUM(G33:R33) -> 0
B34: c. Dismantlement | G34: 0 | H34: 0 | I34: 0 | J34: 0 | K34: 0 | L34: 0 | M34: 0 | N34: 0 | O34: 0 | P34: 0 | Q34: 0 | R34: 0 | S34: =SUM(G34:R34) -> 0
B35: d. Property Taxes | G35: 0 | H35: 0 | I35: 0 | J35: 0 | K35: 0 | L35: 0 | M35: 0 | N35: 0 | O35: 0 | P35: 0 | Q35: 0 | R35: 0 | S35: =SUM(G35:R35) -> 0
B36: e. Other | G36: 0 | H36: 0 | I36: 0 | J36: 0 | K36: 0 | L36: 0 | M36: 0 | N36: 0 | O36: 0 | P36: 0 | Q36: 0 | R36: 0 | S36: =SUM(G36:R36) -> 0
A38: 9. | B38: Total System Recoverable Expenses (Lines 7 + 8) | G38: =ROUND(+G28+G29+G32+G33+G34+G35+G36,0) -> 0 | H38: =ROUND(+H28+H29+H32+H33+H34+H35+H36,0) -> 0 | I38: 0 | J38: 0 | K38: 0 | L38: 0 | M38: 0 | N38: 0 | O38: 0 | P38: 0 | Q38: 0 | R38: 0 | S38: =SUM(G38:R38) -> 0
B39: a. Recoverable Costs Allocated to Energy | G39: =ROUND(+G38*0,0) -> 0 | H39: =ROUND(+H38*0,0) -> 0 | I39: 0 | J39: 0 | K39: 0 | L39: 0 | M39: 0 | N39: 0 | O39: 0 | P39: 0 | Q39: 0 | R39: 0 | S39: =SUM(G39:R39) -> 0
B40: b. Recoverable Costs Allocated to Demand | G40: =ROUND(+G38*1,0) -> 0 | H40: =ROUND(+H38*1,0) -> 0 | I40: 0 | J40: 0 | K40: 0 | L40: 0 | M40: 0 | N40: 0 | O40: 0 | P40: 0 | Q40: 0 | R40: 0 | S40: =SUM(G40:R40) -> 0
A42: 10. | B42: Energy Jurisdictional Factor | G42: ='Form 42 2P'!D48 -> 1 | H42: ='Form 42 2P'!E48 -> 1 | I42: ='Form 42 2P'!F48 -> 1 | J42: ='Form 42 2P'!G48 -> 1 | K42: ='Form 42 2P'!H48 -> 1 | L42: ='Form 42 2P'!I48 -> 1 | M42: ='Form 42 2P'!J48 -> 1 | N42: ='Form 42 2P'!K48 -> 1 | O42: ='Form 42 2P'!L48 -> 1 | P42: ='Form 42 2P'!M48 -> 1 | Q42: ='Form 42 2P'!N48 -> 1 | R42: ='Form 42 2P'!O48 -> 1
A43: 11. | B43: Demand Jurisdictional Factor | G43: =+'Form 42 2P'!D49 -> 1 | H43: =+'Form 42 2P'!E49 -> 1 | I43: =+'Form 42 2P'!F49 -> 1 | J43: =+'Form 42 2P'!G49 -> 1 | K43: =+'Form 42 2P'!H49 -> 1 | L43: =+'Form 42 2P'!I49 -> 1 | M43: =+'Form 42 2P'!J49 -> 1 | N43: =+'Form 42 2P'!K49 -> 1 | O43: =+'Form 42 2P'!L49 -> 1 | P43: =+'Form 42 2P'!M49 -> 1 | Q43: =+'Form 42 2P'!N49 -> 1 | R43: =+'Form 42 2P'!O49 -> 1
A45: 12. | B45: Retail Energy-Related Recoverable Costs (E) | G45: =ROUND((+G39*G42),0) -> 0 | H45: =ROUND((+H39*H42),0) -> 0 | I45: 0 | J45: 0 | K45: 0 | L45: 0 | M45: 0 | N45: 0 | O45: 0 | P45: 0 | Q45: 0 | R45: 0 | S45: =SUM(G45:R45) -> 0
A46: 13. | B46: Retail Demand-Related Recoverable Costs (F) | G46: =ROUND((+G40*G43),0) -> 0 | H46: 0 | I46: 0 | J46: 0 | K46: 0 | L46: 0 | M46: 0 | N46: 0 | O46: 0 | P46: 0 | Q46: 0 | R46: 0 | S46: =SUM(G46:R46) -> 0
A47: 14. | B47: Total Jurisdictional Recoverable Costs (Lines 12 + 13) | G47: =G45+G46 -> 0 | H47: =H45+H46 -> 0 | I47: 0 | J47: 0 | K47: 0 | L47: 0 | M47: 0 | N47: 0 | O47: 0 | P47: 0 | Q47: 0 | R47: 0 | S47: =SUM(G47:R47) -> 0
A49: Notes:
A50: (A) | B50: Applicable depreciable base for Big Bend; account 312.40
A51: (B) | B51: ='Tot 8E pg1-30'!$B$52 -> Line 6 x 6.2798% x 1/12. Based on ROE of 9.95% and weighted income tax rate of 25.345% (expansion factor of 1.34315)
A52: (C) | B52: ='Tot 8E pg1-30'!$B$53 -> Line 6 x 1.6353% x 1/12
A53: (D) | B53: ="Applicable depreciation rate is "&TEXT(_xlfn.XLOOKUP(VALUE(RIGHT(B50,6)),'Revised 2022 Depreciation Rates'!A:A,'Revised 2022 Depreciation Rates'!B:B),"0.0%") -> Applicable depreciation rate is 4.6%
A54: (E) | B54: Line 9a x Line 10
A55: (F) | B55: Line 9b x Line 11
F58: ROI WACC-Equity | G58: ='Form 42 8P'!$E$50 -> 0.062798 | H58: ='Form 42 8P'!$E$50 -> 0.062798 | I58: ='Form 42 8P'!$E$50 -> 0.062798 | J58: ='Form 42 8P'!$E$50 -> 0.062798 | K58: ='Form 42 8P'!$E$50 -> 0.062798 | L58: ='Form 42 8P'!$E$50 -> 0.062798 | M58: ='Form 42 8P'!$E$50 -> 0.062798 | N58: ='Form 42 8P'!$E$50 -> 0.062798 | O58: ='Form 42 8P'!$E$50 -> 0.062798 | P58: ='Form 42 8P'!$E$50 -> 0.062798 | Q58: ='Form 42 8P'!$E$50 -> 0.062798 | R58: ='Form 42 8P'!$E$50 -> 0.062798
F59: ROI WACC-Debt | G59: ='Form 42 8P'!$E$59 -> 0.016353 | H59: ='Form 42 8P'!$E$59 -> 0.016353 | I59: ='Form 42 8P'!$E$59 -> 0.016353 | J59: ='Form 42 8P'!$E$59 -> 0.016353 | K59: ='Form 42 8P'!$E$59 -> 0.016353 | L59: ='Form 42 8P'!$E$59 -> 0.016353 | M59: ='Form 42 8P'!$E$59 -> 0.016353 | N59: ='Form 42 8P'!$E$59 -> 0.016353 | O59: ='Form 42 8P'!$E$59 -> 0.016353 | P59: ='Form 42 8P'!$E$59 -> 0.016353 | Q59: ='Form 42 8P'!$E$59 -> 0.016353 | R59: ='Form 42 8P'!$E$59 -> 0.016353

Sheet Form 42 4P p5
A1: ='Form 42 2P'!$A$1:$R$1 -> Tampa Electric Company | S1: Form 42-4P | W1: BIG BEND FUEL TANK #2 (B03)
A2: ='Form 42 2P'!$A$2:$R$2 -> Environmental Cost Recovery Clause | S2: Page 5 of 30
A3: ='Form 42 2P'!$A$3:$R$3 -> Calculation of the Projected Period Amount | W3: 312.4 | X3: IN SERVICE | Y3: DEPREC. | Z3: DEPREC.
A4: ='Form 42 2P'!$A$4:$R$4 -> January 2022 to December 2022 | Y4: RATE | Z4: EXP. | AA4: ACC. DEPR.
A6: Return on Capital Investments, Depreciation and Taxes | W6: 2020-12-20 | X6: 818401 | Y6: 0.01029575 | Z6: 8426 | AA6: 717286
A7: For Project: Big Bend Fuel Oil Tank # 2 Upgrade | W7: 312.4
A8: (in Dollars) | W8: Jan 21 | X8: 818401 | Y8: 0.01029575 | Z8: 8426 | AA8: 725712
W9: 2121-02-21 | X9: 818401 | Y9: 0.01029575 | Z9: 8426 | AA9: 734138
S10: End of | W10: 2121-03-21 | X10: 818401 | Y10: 0.01029575 | Z10: 8426 | AA10: 742564
F11: Beginning of | G11: ='Form 42 2P'!$D$10 -> Projected | H11: ='Form 42 2P'!$E$10 -> Projected | I11: ='Form 42 2P'!$F$10 -> Projected | J11: ='Form 42 2P'!$G$10 -> Projected | K11: ='Form 42 2P'!$H$10 -> Projected | L11: ='Form 42 2P'!$I$10 -> Projected | M11: ='Form 42 2P'!$J$10 -> Projected | N11: ='Form 42 2P'!$K$10 -> Projected | O11: ='Form 42 2P'!$L$10 -> Projected | P11: ='Form 42 2P'!$M$10 -> Projected | Q11: ='Form 42 2P'!$N$10 -> Projected | R11: ='Form 42 2P'!$O$10 -> Projected | S11: Period | W11: 2121-04-21 | X11: 818401 | Y11: 0.01029575 | Z11: 8426 | AA11: 750990
A12: Line | B12: Description | F12: Period Amount | G12: ='Form 42 2P'!$D$11 -> January | H12: ='Form 42 2P'!$E$11 -> February | I12: ='Form 42 2P'!$F$11 -> March | J12: ='Form 42 2P'!$G$11 -> April | K12: ='Form 42 2P'!$H$11 -> May | L12: ='Form 42 2P'!$I$11 -> June | M12: ='Form 42 2P'!$J$11 -> July | N12: ='Form 42 2P'!$K$11 -> August | O12: ='Form 42 2P'!$L$11 -> September | P12: ='Form 42 2P'!$M$11 -> October | Q12: ='Form 42 2P'!$N$11 -> November | R12: ='Form 42 2P'!$O$11 -> December | S12: Total | W12: 2121-05-21 | X12: 818401 | Y12: 0.01029575 | Z12: 8426 | AA12: 759416
W13: 2121-06-21 | X13: 818401 | Y13: 0.01029575 | Z13: 8426 | AA13: 767842
A14: 1. | B14: Investments | W14: 2121-07-21 | X14: 818401 | Y14: 0.01029575 | Z14: 8426 | AA14: 776268
B15: a. Expenditures/Additions | G15: 0 | H15: 0 | I15: 0 | J15: 0 | K15: 0 | L15: 0 | M15: 0 | N15: 0 | O15: 0 | P15: 0 | Q15: 0 | R15: 0 | S15: =SUM(G15:R15) -> 0 | W15: 2121-08-21 | X15: 818401 | Y15: 0.01029575 | Z15: 8426 | AA15: 784694
B16: b. Clearings to Plant | G16: 0 | H16: 0 | I16: 0 | J16: 0 | K16: 0 | L16: 0 | M16: 0 | N16: 0 | O16: 0 | P16: 0 | Q16: 0 | R16: 0 | S16: =SUM(G16:R16) -> 0 | W16: 2121-09-21 | X16: 818401 | Y16: 0.01029575 | Z16: 8426 | AA16: 793120
B17: c. Retirements | G17: 0 | H17: 0 | I17: 0 | J17: 0 | K17: 0 | L17: 0 | M17: 0 | N17: 0 | O17: 0 | P17: 0 | Q17: 0 | R17: 0 | S17: =SUM(G17:R17) -> 0 | W17: 2121-10-21 | X17: 818401 | Y17: 0.01029575 | Z17: 8426 | AA17: 801546
B18: d. Other | G18: 0 | H18: 0 | I18: 0 | J18: 0 | K18: 0 | L18: 0 | M18: 0 | N18: 0 | O18: 0 | P18: 0 | Q18: 0 | R18: 0 | S18: 0 | W18: 2121-11-21 | X18: 818401 | Y18: 0.01029575 | Z18: 8426 | AA18: 809972 | AB18: 0 | AC18: in-service activity
W19: 2121-12-21 | X19: 818401 | Y19: 0.01029575 | Z19: 8429 | AA19: 818401 | AB19: 101115 | AC19: depreciation activity
A20: 2. | B20: Plant-in-Service/Depreciation Base (A) | F20: 818401 | G20: =+$X$21 -> 818401 | H20: =+$X$22 -> 818401 | I20: =+$X$23 -> 818401 | J20: =+$X$24 -> 818401 | K20: =+$X$25 -> 818401 | L20: =+$X$26 -> 818401 | M20: =+$X$27 -> 818401 | N20: =+$X$28 -> 818401 | O20: =+$X$29 -> 818401 | P20: =+$X$30 -> 818401 | Q20: =+$X$31 -> 818401 | R20: =+$X$32 -> 818401 | T20: =R20-X32 -> 0 | U20: ck | W20: 312.4
A21: 3. | B21: Less: Accumulated Depreciation | F21: -818401 | G21: =-G32+F21 -> -818401 | H21: -818401 | I21: -818401 | J21: -818401 | K21: -818401 | L21: -818401 | M21: -818401 | N21: -818401 | O21: -818401 | P21: -818401 | Q21: -818401 | R21: -818401 | T21: =R21+AA32 -> 0 | U21: ck | W21: 2022-01-21 | X21: =X19 -> 818401 | Y21: =(_xlfn.XLOOKUP(W20,'Revised 2022 Depreciation Rates'!$A:$A,'Revised 2022 Depreciation Rates'!$B:$B)/12) -> 0.003833333333 | Z21: =IF(X19=AA19,0,IF((X21-AA19)<ROUND((X19*Y21),0),X21-AA19,ROUND((X19*Y21),0))) -> 0 | AA21: =ROUND(+AA19+Z21,0) -> 818401
A22: 4. | B22: CWIP - Non-Interest Bearing | F22: 0 | G22: =F22+G15-G16 -> 0 | H22: =G22+H15-H16 -> 0 | I22: 0 | J22: 0 | K22: 0 | L22: 0 | M22: 0 | N22: 0 | O22: 0 | P22: 0 | Q22: 0 | R22: 0 | W22: 2022-02-21 | X22: =X21 -> 818401 | Y22: =(_xlfn.XLOOKUP(W20,'Revised 2022 Depreciation Rates'!$A:$A,'Revised 2022 Depreciation Rates'!$B:$B)/12) -> 0.003833333333 | Z22: =IF(X21=AA21,0,IF((X22-AA21)<ROUND((X21*Y22),0),X22-AA21,ROUND((X21*Y22),0))) -> 0 | AA22: =ROUND(+AA21+Z22,0) -> 818401
A23: 5. | B23: Net Investment (Lines 2 + 3 + 4) | F23: 0 | G23: =G20+G21+G22 -> 0 | H23: 0 | I23: 0 | J23: 0 | K23: 0 | L23: 0 | M23: 0 | N23: 0 | O23: 0 | P23: 0 | Q23: 0 | R23: 0 | W23: 2022-03-21 | X23: =X22 -> 818401 | Y23: =(_xlfn.XLOOKUP(W20,'Revised 2022 Depreciation Rates'!$A:$A,'Revised 2022 Depreciation Rates'!$B:$B)/12) -> 0.003833333333 | Z23: 0 | AA23: =ROUND(+AA22+Z23,0) -> 818401
W24: 2022-04-21 | X24: 818401 | Y24: =(_xlfn.XLOOKUP(W20,'Revised 2022 Depreciation Rates'!$A:$A,'Revised 2022 Depreciation Rates'!$B:$B)/12) -> 0.003833333333 | Z24: 0 | AA24: 818401
A25: 6. | B25: Average Net Investment | G25: =ROUND((+F23+G23)/2,0) -> 0 | H25: =ROUND((+G23+H23)/2,0) -> 0 | I25: 0 | J25: 0 | K25: 0 | L25: 0 | M25: 0 | N25: 0 | O25: 0 | P25: 0 | Q25: 0 | R25: 0 | W25: 2022-05-21 | X25: 818401 | Y25: =(_xlfn.XLOOKUP(W20,'Revised 2022 Depreciation Rates'!$A:$A,'Revised 2022 Depreciation Rates'!$B:$B)/12) -> 0.003833333333 | Z25: 0 | AA25: 818401
W26: 2022-06-21 | X26: 818401 | Y26: =(_xlfn.XLOOKUP(W20,'Revised 2022 Depreciation Rates'!$A:$A,'Revised 2022 Depreciation Rates'!$B:$B)/12) -> 0.003833333333 | Z26: 0 | AA26: 818401
A27: 7. | B27: Return on Average Net Investment | G27: 1 | H27: 2 | I27: 3 | J27: 4 | K27: 5 | L27: 6 | M27: 7 | N27: 8 | O27: 9 | P27: 10 | Q27: 11 | R27: 12 | S27: 13 | W27: 2022-07-21 | X27: 818401 | Y27: =(_xlfn.XLOOKUP(W20,'Revised 2022 Depreciation Rates'!$A:$A,'Revised 2022 Depreciation Rates'!$B:$B)/12) -> 0.003833333333 | Z27: 0 | AA27: 818401
B28: a. Equity Component Grossed Up For Taxes (B) | G28: =ROUND(+G25*(G58)/12,0) -> 0 | H28: =ROUND(+H25*(H58)/12,0) -> 0 | I28: 0 | J28: 0 | K28: 0 | L28: 0 | M28: 0 | N28: 0 | O28: 0 | P28: 0 | Q28: 0 | R28: 0 | S28: =SUM(G28:R28) -> 0 | W28: 2022-08-21 | X28: 818401 | Y28: =(_xlfn.XLOOKUP(W20,'Revised 2022 Depreciation Rates'!$A:$A,'Revised 2022 Depreciation Rates'!$B:$B)/12) -> 0.003833333333 | Z28: 0 | AA28: 818401
B29: b. Debt Component Grossed Up For Taxes (C) | G29: =ROUND(+G25*(G59)/12,0) -> 0 | H29: =ROUND(+H25*(H59)/12,0) -> 0 | I29: 0 | J29: 0 | K29: 0 | L29: 0 | M29: 0 | N29: 0 | O29: 0 | P29: 0 | Q29: 0 | R29: 0 | S29: =SUM(G29:R29) -> 0 | W29: 2022-09-21 | X29: 818401 | Y29: =(_xlfn.XLOOKUP(W20,'Revised 2022 Depreciation Rates'!$A:$A,'Revised 2022 Depreciation Rates'!$B:$B)/12) -> 0.003833333333 | Z29: 0 | AA29: 818401
W30: 2022-10-21 | X30: 818401 | Y30: =(_xlfn.XLOOKUP(W20,'Revised 2022 Depreciation Rates'!$A:$A,'Revised 2022 Depreciation Rates'!$B:$B)/12) -> 0.003833333333 | Z30: 0 | AA30: 818401
A31: 8. | B31: Investment Expenses | W31: 2022-11-21 | X31: 818401 | Y31: =(_xlfn.XLOOKUP(W20,'Revised 2022 Depreciation Rates'!$A:$A,'Revised 2022 Depreciation Rates'!$B:$B)/12) -> 0.003833333333 | Z31: 0 | AA31: 818401 | AB31: =X32-X19 -> 0 | AC31: in-service activity
B32: a. Depreciation (D) | G32: =$Z$21 -> 0 | H32: =$Z$22 -> 0 | I32: =$Z$23 -> 0 | J32: =$Z$24 -> 0 | K32: =$Z$25 -> 0 | L32: =$Z$26 -> 0 | M32: =$Z$27 -> 0 | N32: =$Z$28 -> 0 | O32: =$Z$29 -> 0 | P32: =$Z$30 -> 0 | Q32: =$Z$31 -> 0 | R32: =$Z$32 -> 0 | S32: =SUM(G32:R32) -> 0 | T32: =S32-AB32 -> 0 | U32: ck | W32: 2022-12-21 | X32: 818401 | Y32: =(_xlfn.XLOOKUP(W20,'Revised 2022 Depreciation Rates'!$A:$A,'Revised 2022 Depreciation Rates'!$B:$B)/12) -> 0.003833333333 | Z32: =IF(X31=AA31,0,IF((X32-AA31)<ROUND((X31*Y32),0),X32-AA31,ROUND((X31*Y32),0))) -> 0 | AA32: 818401 | AB32: =AA32-AA19 -> 0 | AC32: depreciation activity
B33: b. Amortization | G33: 0 | H33: 0 | I33: 0 | J33: 0 | K33: 0 | L33: 0 | M33: 0 | N33: 0 | O33: 0 | P33: 0 | Q33: 0 | R33: 0 | S33: =SUM(G33:R33) -> 0
B34: c. Dismantlement | G34: 0 | H34: 0 | I34: 0 | J34: 0 | K34: 0 | L34: 0 | M34: 0 | N34: 0 | O34: 0 | P34: 0 | Q34: 0 | R34: 0 | S34: =SUM(G34:R34) -> 0 | W34: Adjusted Depreciation Expense amount in Dec-21 to ensure the Depreciation Base is fully depreciated by the end of 2021.
B35: d. Property Taxes | G35: 0 | H35: 0 | I35: 0 | J35: 0 | K35: 0 | L35: 0 | M35: 0 | N35: 0 | O35: 0 | P35: 0 | Q35: 0 | R35: 0 | S35: =SUM(G35:R35) -> 0
B36: e. Other | G36: 0 | H36: 0 | I36: 0 | J36: 0 | K36: 0 | L36: 0 | M36: 0 | N36: 0 | O36: 0 | P36: 0 | Q36: 0 | R36: 0 | S36: =SUM(G36:R36) -> 0
A38: 9. | B38: Total System Recoverable Expenses (Lines 7 + 8) | G38: =ROUND(+G28+G29+G32+G33+G34+G35+G36,0) -> 0 | H38: 0 | I38: 0 | J38: 0 | K38: 0 | L38: 0 | M38: 0 | N38: 0 | O38: 0 | P38: 0 | Q38: 0 | R38: 0 | S38: =SUM(G38:R38) -> 0
B39: a. Recoverable Costs Allocated to Energy | G39: =ROUND(+G38*0,0) -> 0 | H39: =ROUND(+H38*0,0) -> 0 | I39: 0 | J39: 0 | K39: 0 | L39: 0 | M39: 0 | N39: 0 | O39: 0 | P39: 0 | Q39: 0 | R39: 0 | S39: =SUM(G39:R39) -> 0
B40: b. Recoverable Costs Allocated to Demand | G40: =ROUND(+G38*1,0) -> 0 | H40: =ROUND(+H38*1,0) -> 0 | I40: 0 | J40: 0 | K40: 0 | L40: 0 | M40: 0 | N40: 0 | O40: 0 | P40: 0 | Q40: 0 | R40: 0 | S40: =SUM(G40:R40) -> 0
A42: 10. | B42: Energy Jurisdictional Factor | G42: ='Form 42 2P'!D48 -> 1 | H42: ='Form 42 2P'!E48 -> 1 | I42: ='Form 42 2P'!F48 -> 1 | J42: ='Form 42 2P'!G48 -> 1 | K42: ='Form 42 2P'!H48 -> 1 | L42: ='Form 42 2P'!I48 -> 1 | M42: ='Form 42 2P'!J48 -> 1 | N42: ='Form 42 2P'!K48 -> 1 | O42: ='Form 42 2P'!L48 -> 1 | P42: ='Form 42 2P'!M48 -> 1 | Q42: ='Form 42 2P'!N48 -> 1 | R42: ='Form 42 2P'!O48 -> 1
A43: 11. | B43: Demand Jurisdictional Factor | G43: =+'Form 42 2P'!D49 -> 1 | H43: =+'Form 42 2P'!E49 -> 1 | I43: =+'Form 42 2P'!F49 -> 1 | J43: =+'Form 42 2P'!G49 -> 1 | K43: =+'Form 42 2P'!H49 -> 1 | L43: =+'Form 42 2P'!I49 -> 1 | M43: =+'Form 42 2P'!J49 -> 1 | N43: =+'Form 42 2P'!K49 -> 1 | O43: =+'Form 42 2P'!L49 -> 1 | P43: =+'Form 42 2P'!M49 -> 1 | Q43: =+'Form 42 2P'!N49 -> 1 | R43: =+'Form 42 2P'!O49 -> 1
A45: 12. | B45: Retail Energy-Related Recoverable Costs (E) | G45: =ROUND((+G39*G42),0) -> 0 | H45: =ROUND((+H39*H42),0) -> 0 | I45: 0 | J45: 0 | K45: 0 | L45: 0 | M45: 0 | N45: 0 | O45: 0 | P45: 0 | Q45: 0 | R45: 0 | S45: =SUM(G45:R45) -> 0
A46: 13. | B46: Retail Demand-Related Recoverable Costs (F) | G46: =ROUND((+G40*G43),0) -> 0 | H46: 0 | I46: 0 | J46: 0 | K46: 0 | L46: 0 | M46: 0 | N46: 0 | O46: 0 | P46: 0 | Q46: 0 | R46: 0 | S46: =SUM(G46:R46) -> 0
A47: 14. | B47: Total Jurisdictional Recoverable Costs (Lines 12 + 13) | G47: =G45+G46 -> 0 | H47: =H45+H46 -> 0 | I47: 0 | J47: 0 | K47: 0 | L47: 0 | M47: 0 | N47: 0 | O47: 0 | P47: 0 | Q47: 0 | R47: 0 | S47: =SUM(G47:R47) -> 0
A49: Notes:
A50: (A) | B50: Applicable depreciable base for Big Bend; account 312.40
A51: (B) | B51: ='Tot 8E pg1-30'!$B$52 -> Line 6 x 6.2798% x 1/12. Based on ROE of 9.95% and weighted income tax rate of 25.345% (expansion factor of 1.34315)
A52: (C) | B52: ='Tot 8E pg1-30'!$B$53 -> Line 6 x 1.6353% x 1/12
A53: (D) | B53: ="Applicable depreciation rate is "&TEXT(_xlfn.XLOOKUP(VALUE(RIGHT(B50,6)),'Revised 2022 Depreciation Rates'!A:A,'Revised 2022 Depreciation Rates'!B:B),"0.0%") -> Applicable depreciation rate is 4.6%
A54: (E) | B54: Line 9a x Line 10
A55: (F) | B55: Line 9b x Line 11
F58: ROI WACC-Equity | G58: ='Form 42 8P'!$E$50 -> 0.062798 | H58: ='Form 42 8P'!$E$50 -> 0.062798 | I58: ='Form 42 8P'!$E$50 -> 0.062798 | J58: ='Form 42 8P'!$E$50 -> 0.062798 | K58: ='Form 42 8P'!$E$50 -> 0.062798 | L58: ='Form 42 8P'!$E$50 -> 0.062798 | M58: ='Form 42 8P'!$E$50 -> 0.062798 | N58: ='Form 42 8P'!$E$50 -> 0.062798 | O58: ='Form 42 8P'!$E$50 -> 0.062798 | P58: ='Form 42 8P'!$E$50 -> 0.062798 | Q58: ='Form 42 8P'!$E$50 -> 0.062798 | R58: ='Form 42 8P'!$E$50 -> 0.062798
F59: ROI WACC-Debt | G59: ='Form 42 8P'!$E$59 -> 0.016353 | H59: ='Form 42 8P'!$E$59 -> 0.016353 | I59: ='Form 42 8P'!$E$59 -> 0.016353 | J59: ='Form 42 8P'!$E$59 -> 0.016353 | K59: ='Form 42 8P'!$E$59 -> 0.016353 | L59: ='Form 42 8P'!$E$59 -> 0.016353 | M59: ='Form 42 8P'!$E$59 -> 0.016353 | N59: ='Form 42 8P'!$E$59 -> 0.016353 | O59: ='Form 42 8P'!$E$59 -> 0.016353 | P59: ='Form 42 8P'!$E$59 -> 0.016353 | Q59: ='Form 42 8P'!$E$59 -> 0.016353 | R59: ='Form 42 8P'!$E$59 -> 0.016353

Sheet Form 42 4P p6
A1: ='Form 42 2P'!$A$1:$R$1 -> Tampa Electric Company | S1: Form 42-4P | W1: BIG BEND UNIT 1 CLASSIFIER REPLACEMENT (B50)
A2: ='Form 42 2P'!$A$2:$R$2 -> Environmental Cost Recovery Clause | S2: Page 6 of 30
A3: ='Form 42 2P'!$A$3:$R$3 -> Calculation of the Projected Period Amount | W3: 312.41 | X3: IN SERVICE | Y3: DEPREC. | Z3: DEPREC.
A4: ='Form 42 2P'!$A$4:$R$4 -> January 2022 to December 2022 | Y4: RATE | Z4: EXP. | AA4: ACC. DEPR.
A6: Return on Capital Investments, Depreciation and Taxes | W6: 2020-12-20 | X6: 1316257 | Y6: 0.003333333333 | Z6: 4388 | AA6: 1079816
A7: For Project: Big Bend Unit 1 Classifier Replacement | W7: 312.41
A8: (in Dollars) | W8: Jan 21 | X8: 1316257 | Y8: 0.003333333333 | Z8: 4388 | AA8: 1084204
W9: 2121-02-21 | X9: 1316257 | Y9: 0.003333333333 | Z9: 4388 | AA9: 1088592
S10: End of | W10: 2121-03-21 | X10: 1316257 | Y10: 0.003333333333 | Z10: 4388 | AA10: 1092980
F11: Beginning of | G11: ='Form 42 2P'!$D$10 -> Projected | H11: ='Form 42 2P'!$E$10 -> Projected | I11: ='Form 42 2P'!$F$10 -> Projected | J11: ='Form 42 2P'!$G$10 -> Projected | K11: ='Form 42 2P'!$H$10 -> Projected | L11: ='Form 42 2P'!$I$10 -> Projected | M11: ='Form 42 2P'!$J$10 -> Projected | N11: ='Form 42 2P'!$K$10 -> Projected | O11: ='Form 42 2P'!$L$10 -> Projected | P11: ='Form 42 2P'!$M$10 -> Projected | Q11: ='Form 42 2P'!$N$10 -> Projected | R11: ='Form 42 2P'!$O$10 -> Projected | S11: Period | W11: 2121-04-21 | X11: 1316257 | Y11: 0.003333333333 | Z11: 4388 | AA11: 1097368
A12: Line | B12: Description | F12: Period Amount | G12: ='Form 42 2P'!$D$11 -> January | H12: ='Form 42 2P'!$E$11 -> February | I12: ='Form 42 2P'!$F$11 -> March | J12: ='Form 42 2P'!$G$11 -> April | K12: ='Form 42 2P'!$H$11 -> May | L12: ='Form 42 2P'!$I$11 -> June | M12: ='Form 42 2P'!$J$11 -> July | N12: ='Form 42 2P'!$K$11 -> August | O12: ='Form 42 2P'!$L$11 -> September | P12: ='Form 42 2P'!$M$11 -> October | Q12: ='Form 42 2P'!$N$11 -> November | R12: ='Form 42 2P'!$O$11 -> December | S12: Total | W12: 2121-05-21 | X12: 1316257 | Y12: 0.003333333333 | Z12: 4388 | AA12: 1101756
W13: 2121-06-21 | X13: 1316257 | Y13: 0.003333333333 | Z13: 4388 | AA13: 1106144
A14: 1. | B14: Investments | W14: 2121-07-21 | X14: 1316257 | Y14: 0.003333333333 | Z14: 4388 | AA14: 1110532
B15: a. Expenditures/Additions | G15: 0 | H15: 0 | I15: 0 | J15: 0 | K15: 0 | L15: 0 | M15: 0 | N15: 0 | O15: 0 | P15: 0 | Q15: 0 | R15: 0 | S15: =SUM(G15:R15) -> 0 | W15: 2121-08-21 | X15: 1316257 | Y15: 0.003333333333 | Z15: 4388 | AA15: 1114920
B16: b. Clearings to Plant | G16: 0 | H16: 0 | I16: 0 | J16: 0 | K16: 0 | L16: 0 | M16: 0 | N16: 0 | O16: 0 | P16: 0 | Q16: 0 | R16: 0 | S16: =SUM(G16:R16) -> 0 | W16: 2121-09-21 | X16: 1316257 | Y16: 0.003333333333 | Z16: 4388 | AA16: 1119308
B17: c. Retirements | G17: 0 | H17: 0 | I17: 0 | J17: 0 | K17: 0 | L17: 0 | M17: 0 | N17: 0 | O17: 0 | P17: 0 | Q17: 0 | R17: 0 | S17: =SUM(G17:R17) -> 0 | W17: 2121-10-21 | X17: 1316257 | Y17: 0.003333333333 | Z17: 4388 | AA17: 1123696
B18: d. Other | G18: 0 | H18: 0 | I18: 0 | J18: 0 | K18: 0 | L18: 0 | M18: 0 | N18: 0 | O18: 0 | P18: 0 | Q18: 0 | R18: 0 | S18: 0 | W18: 2121-11-21 | X18: 1316257 | Y18: 0.003333333333 | Z18: 4388 | AA18: 1128084 | AB18: 0 | AC18: in-service activity
T19: =R20-F20-S16 -> 0 | U19: ck | W19: 2121-12-21 | X19: 1316257 | Y19: 0.003333333333 | Z19: 4388 | AA19: 1132472 | AB19: 52656 | AC19: depreciation activity
A20: 2. | B20: Plant-in-Service/Depreciation Base (A) | F20: 1316257 | G20: =$X$21 -> 1316257 | H20: =$X$22 -> 1316257 | I20: =$X$23 -> 1316257 | J20: =$X$24 -> 1316257 | K20: =$X$25 -> 1316257 | L20: =$X$26 -> 1316257 | M20: =$X$27 -> 1316257 | N20: =$X$28 -> 1316257 | O20: =$X$29 -> 1316257 | P20: =$X$30 -> 1316257 | Q20: =$X$31 -> 1316257 | R20: =$X$32 -> 1316257 | T20: =R20-X32 -> 0 | U20: ck | W20: 312.41
A21: 3. | B21: Less: Accumulated Depreciation | F21: -1132472 | G21: =F21-G32 -> -1138176 | H21: =G21-H32 -> -1143880 | I21: =H21-I32 -> -1149584 | J21: =I21-J32 -> -1155288 | K21: -1160992 | L21: -1166696 | M21: =L21-M32 -> -1172400 | N21: -1178104 | O21: -1183808 | P21: -1189512 | Q21: =P21-Q32 -> -1195216 | R21: =Q21-R32 -> -1200920 | T21: =R21+AA32 -> 0 | U21: ck | W21: 2022-01-21 | X21: =X19 -> 1316257 | Y21: =(_xlfn.XLOOKUP(W20,'Revised 2022 Depreciation Rates'!$A:$A,'Revised 2022 Depreciation Rates'!$B:$B)/12) -> 0.004333333333 | Z21: =IF(X19=AA19,0,IF((X21-AA19)<ROUND((X19*Y21),0),X21-AA19,ROUND((X19*Y21),0))) -> 5704 | AA21: =ROUND(+AA19+Z21,0) -> 1138176
A22: 4. | B22: CWIP - Non-Interest Bearing | F22: 0 | G22: =F22+G15-G16 -> 0 | H22: =G22+H15-H16 -> 0 | I22: 0 | J22: 0 | K22: 0 | L22: 0 | M22: 0 | N22: 0 | O22: 0 | P22: 0 | Q22: 0 | R22: 0 | W22: 2022-02-21 | X22: =X21 -> 1316257 | Y22: =(_xlfn.XLOOKUP(W20,'Revised 2022 Depreciation Rates'!$A:$A,'Revised 2022 Depreciation Rates'!$B:$B)/12) -> 0.004333333333 | Z22: =IF(X21=AA21,0,IF((X22-AA21)<ROUND((X21*Y22),0),X22-AA21,ROUND((X21*Y22),0))) -> 5704 | AA22: =ROUND(+AA21+Z22,0) -> 1143880
A23: 5. | B23: Net Investment (Lines 2 + 3 + 4) | F23: 183785 | G23: =G20+G21+G22 -> 178081 | H23: 172377 | I23: 166673 | J23: 160969 | K23: 155265 | L23: 149561 | M23: 143857 | N23: 138153 | O23: 132449 | P23: 126745 | Q23: 121041 | R23: 115337 | W23: 2022-03-21 | X23: 1316257 | Y23: =(_xlfn.XLOOKUP(W20,'Revised 2022 Depreciation Rates'!$A:$A,'Revised 2022 Depreciation Rates'!$B:$B)/12) -> 0.004333333333 | Z23: 5704 | AA23: 1149584
W24: 2022-04-21 | X24: 1316257 | Y24: =(_xlfn.XLOOKUP(W20,'Revised 2022 Depreciation Rates'!$A:$A,'Revised 2022 Depreciation Rates'!$B:$B)/12) -> 0.004333333333 | Z24: 5704 | AA24: 1155288
A25: 6. | B25: Average Net Investment | G25: =ROUND((+F23+G23)/2,0) -> 180933 | H25: 175229 | I25: 169525 | J25: 163821 | K25: 158117 | L25: 152413 | M25: 146709 | N25: 141005 | O25: 135301 | P25: 129597 | Q25: 123893 | R25: 118189 | W25: 2022-05-21 | X25: 1316257 | Y25: =(_xlfn.XLOOKUP(W20,'Revised 2022 Depreciation Rates'!$A:$A,'Revised 2022 Depreciation Rates'!$B:$B)/12) -> 0.004333333333 | Z25: 5704 | AA25: 1160992
W26: 2022-06-21 | X26: 1316257 | Y26: =(_xlfn.XLOOKUP(W20,'Revised 2022 Depreciation Rates'!$A:$A,'Revised 2022 Depreciation Rates'!$B:$B)/12) -> 0.004333333333 | Z26: 5704 | AA26: 1166696
A27: 7. | B27: Return on Average Net Investment | G27: 1 | H27: 2 | I27: 3 | J27: 4 | K27: 5 | L27: 6 | M27: 7 | N27: 8 | O27: 9 | P27: 10 | Q27: 11 | R27: 12 | S27: 13 | W27: 2022-07-21 | X27: 1316257 | Y27: =(_xlfn.XLOOKUP(W20,'Revised 2022 Depreciation Rates'!$A:$A,'Revised 2022 Depreciation Rates'!$B:$B)/12) -> 0.004333333333 | Z27: 5704 | AA27: 1172400
B28: a. Equity Component Grossed Up For Taxes (B) | G28: =ROUND(+G25*(G58)/12,0) -> 947 | H28: =ROUND(+H25*(H58)/12,0) -> 917 | I28: 887 | J28: 857 | K28: 827 | L28: 798 | M28: 768 | N28: 738 | O28: 708 | P28: 678 | Q28: 648 | R28: 619 | S28: =SUM(G28:R28) -> 9392 | W28: 2022-08-21 | X28: 1316257 | Y28: =(_xlfn.XLOOKUP(W20,'Revised 2022 Depreciation Rates'!$A:$A,'Revised 2022 Depreciation Rates'!$B:$B)/12) -> 0.004333333333 | Z28: 5704 | AA28: 1178104
B29: b. Debt Component Grossed Up For Taxes (C) | G29: =ROUND(+G25*(G59)/12,0) -> 247 | H29: =ROUND(+H25*(H59)/12,0) -> 239 | I29: 231 | J29: 223 | K29: 215 | L29: 208 | M29: 200 | N29: 192 | O29: 184 | P29: 177 | Q29: 169 | R29: 161 | S29: =SUM(G29:R29) -> 2446 | W29: 2022-09-21 | X29: 1316257 | Y29: =(_xlfn.XLOOKUP(W20,'Revised 2022 Depreciation Rates'!$A:$A,'Revised 2022 Depreciation Rates'!$B:$B)/12) -> 0.004333333333 | Z29: 5704 | AA29: 1183808
W30: 2022-10-21 | X30: 1316257 | Y30: =(_xlfn.XLOOKUP(W20,'Revised 2022 Depreciation Rates'!$A:$A,'Revised 2022 Depreciation Rates'!$B:$B)/12) -> 0.004333333333 | Z30: 5704 | AA30: 1189512
A31: 8. | B31: Investment Expenses | W31: 2022-11-21 | X31: 1316257 | Y31: =(_xlfn.XLOOKUP(W20,'Revised 2022 Depreciation Rates'!$A:$A,'Revised 2022 Depreciation Rates'!$B:$B)/12) -> 0.004333333333 | Z31: 5704 | AA31: 1195216 | AB31: =X32-X19 -> 0 | AC31: in-service activity
B32: a. Depreciation (D) | G32: =$Z$21 -> 5704 | H32: =$Z$22 -> 5704 | I32: =$Z$23 -> 5704 | J32: =$Z$24 -> 5704 | K32: =$Z$25 -> 5704 | L32: =$Z$26 -> 5704 | M32: =$Z$27 -> 5704 | N32: =$Z$28 -> 5704 | O32: =$Z$29 -> 5704 | P32: =$Z$30 -> 5704 | Q32: =$Z$31 -> 5704 | R32: =$Z$32 -> 5704 | S32: =SUM(G32:R32) -> 68448 | T32: =+S32-AB32 -> 0 | U32: ck | W32: 2022-12-21 | X32: 1316257 | Y32: =(_xlfn.XLOOKUP(W20,'Revised 2022 Depreciation Rates'!$A:$A,'Revised 2022 Depreciation Rates'!$B:$B)/12) -> 0.004333333333 | Z32: =IF(X31=AA31,0,IF((X32-AA31)<ROUND((X31*Y32),0),X32-AA31,ROUND((X31*Y32),0))) -> 5704 | AA32: 1200920 | AB32: =AA32-AA19 -> 68448 | AC32: depreciation activity
B33: b. Amortization | G33: 0 | H33: 0 | I33: 0 | J33: 0 | K33: 0 | L33: 0 | M33: 0 | N33: 0 | O33: 0 | P33: 0 | Q33: 0 | R33: 0 | S33: =SUM(G33:R33) -> 0
B34: c. Dismantlement | G34: 0 | H34: 0 | I34: 0 | J34: 0 | K34: 0 | L34: 0 | M34: 0 | N34: 0 | O34: 0 | P34: 0 | Q34: 0 | R34: 0 | S34: =SUM(G34:R34) -> 0
B35: d. Property Taxes | G35: 0 | H35: 0 | I35: 0 | J35: 0 | K35: 0 | L35: 0 | M35: 0 | N35: 0 | O35: 0 | P35: 0 | Q35: 0 | R35: 0 | S35: =SUM(G35:R35) -> 0
B36: e. Other | G36: 0 | H36: 0 | I36: 0 | J36: 0 | K36: 0 | L36: 0 | M36: 0 | N36: 0 | O36: 0 | P36: 0 | Q36: 0 | R36: 0 | S36: =SUM(G36:R36) -> 0
A38: 9. | B38: Total System Recoverable Expenses (Lines 7 + 8) | G38: =ROUND(+G28+G29+G32+G33+G34+G35+G36,0) -> 6898 | H38: =ROUND(+H28+H29+H32+H33+H34+H35+H36,0) -> 6860 | I38: 6822 | J38: 6784 | K38: 6746 | L38: 6710 | M38: 6672 | N38: 6634 | O38: 6596 | P38: 6559 | Q38: 6521 | R38: 6484 | S38: =SUM(G38:R38) -> 80286
B39: a. Recoverable Costs Allocated to Energy | G39: =ROUND(+G38*1,0) -> 6898 | H39: 6860 | I39: 6822 | J39: 6784 | K39: 6746 | L39: 6710 | M39: 6672 | N39: 6634 | O39: 6596 | P39: 6559 | Q39: 6521 | R39: 6484 | S39: =SUM(G39:R39) -> 80286
B40: b. Recoverable Costs Allocated to Demand | G40: =ROUND(+G38*0,0) -> 0 | H40: =ROUND(+H38*0,0) -> 0 | I40: 0 | J40: 0 | K40: 0 | L40: 0 | M40: 0 | N40: 0 | O40: 0 | P40: 0 | Q40: 0 | R40: 0 | S40: =SUM(G40:R40) -> 0
A42: 10. | B42: Energy Jurisdictional Factor | G42: ='Form 42 2P'!D48 -> 1 | H42: ='Form 42 2P'!E48 -> 1 | I42: ='Form 42 2P'!F48 -> 1 | J42: ='Form 42 2P'!G48 -> 1 | K42: ='Form 42 2P'!H48 -> 1 | L42: ='Form 42 2P'!I48 -> 1 | M42: ='Form 42 2P'!J48 -> 1 | N42: ='Form 42 2P'!K48 -> 1 | O42: ='Form 42 2P'!L48 -> 1 | P42: ='Form 42 2P'!M48 -> 1 | Q42: ='Form 42 2P'!N48 -> 1 | R42: ='Form 42 2P'!O48 -> 1
A43: 11. | B43: Demand Jurisdictional Factor | G43: =+'Form 42 2P'!D49 -> 1 | H43: =+'Form 42 2P'!E49 -> 1 | I43: =+'Form 42 2P'!F49 -> 1 | J43: =+'Form 42 2P'!G49 -> 1 | K43: =+'Form 42 2P'!H49 -> 1 | L43: =+'Form 42 2P'!I49 -> 1 | M43: =+'Form 42 2P'!J49 -> 1 | N43: =+'Form 42 2P'!K49 -> 1 | O43: =+'Form 42 2P'!L49 -> 1 | P43: =+'Form 42 2P'!M49 -> 1 | Q43: =+'Form 42 2P'!N49 -> 1 | R43: =+'Form 42 2P'!O49 -> 1
A45: 12. | B45: Retail Energy-Related Recoverable Costs (E) | G45: =ROUND((+G39*G42),0) -> 6898 | H45: =ROUND((+H39*H42),0) -> 6860 | I45: 6822 | J45: 6784 | K45: 6746 | L45: 6710 | M45: 6672 | N45: 6634 | O45: 6596 | P45: 6559 | Q45: 6521 | R45: 6484 | S45: =SUM(G45:R45) -> 80286
A46: 13. | B46: Retail Demand-Related Recoverable Costs (F) | G46: =(+G40*G43) -> 0 | H46: =(+H40*H43) -> 0 | I46: 0 | J46: 0 | K46: 0 | L46: 0 | M46: 0 | N46: 0 | O46: 0 | P46: 0 | Q46: 0 | R46: 0 | S46: =SUM(G46:R46) -> 0
A47: 14. | B47: Total Jurisdictional Recoverable Costs (Lines 12 + 13) | G47: =G45+G46 -> 6898 | H47: =H45+H46 -> 6860 | I47: 6822 | J47: 6784 | K47: 6746 | L47: 6710 | M47: 6672 | N47: 6634 | O47: 6596 | P47: 6559 | Q47: 6521 | R47: 6484 | S47: =SUM(G47:R47) -> 80286
A49: Notes:
A50: (A) | B50: Applicable depreciable base for Big Bend; account 312.41
A51: (B) | B51: ='Tot 8E pg1-30'!$B$52 -> Line 6 x 6.2798% x 1/12. Based on ROE of 9.95% and weighted income tax rate of 25.345% (expansion factor of 1.34315)
A52: (C) | B52: ='Tot 8E pg1-30'!$B$53 -> Line 6 x 1.6353% x 1/12
A53: (D) | B53: ="Applicable depreciation rate is "&TEXT(_xlfn.XLOOKUP(VALUE(RIGHT(B50,6)),'Revised 2022 Depreciation Rates'!A:A,'Revised 2022 Depreciation Rates'!B:B),"0.0%") -> Applicable depreciation rate is 5.2%
A54: (E) | B54: Line 9a x Line 10
A55: (F) | B55: Line 9b x Line 11
F58: ROI WACC-Equity | G58: ='Form 42 8P'!$E$50 -> 0.062798 | H58: ='Form 42 8P'!$E$50 -> 0.062798 | I58: ='Form 42 8P'!$E$50 -> 0.062798 | J58: ='Form 42 8P'!$E$50 -> 0.062798 | K58: ='Form 42 8P'!$E$50 -> 0.062798 | L58: ='Form 42 8P'!$E$50 -> 0.062798 | M58: ='Form 42 8P'!$E$50 -> 0.062798 | N58: ='Form 42 8P'!$E$50 -> 0.062798 | O58: ='Form 42 8P'!$E$50 -> 0.062798 | P58: ='Form 42 8P'!$E$50 -> 0.062798 | Q58: ='Form 42 8P'!$E$50 -> 0.062798 | R58: ='Form 42 8P'!$E$50 -> 0.062798
F59: ROI WACC-Debt | G59: ='Form 42 8P'!$E$59 -> 0.016353 | H59: ='Form 42 8P'!$E$59 -> 0.016353 | I59: ='Form 42 8P'!$E$59 -> 0.016353 | J59: ='Form 42 8P'!$E$59 -> 0.016353 | K59: ='Form 42 8P'!$E$59 -> 0.016353 | L59: ='Form 42 8P'!$E$59 -> 0.016353 | M59: ='Form 42 8P'!$E$59 -> 0.016353 | N59: ='Form 42 8P'!$E$59 -> 0.016353 | O59: ='Form 42 8P'!$E$59 -> 0.016353 | P59: ='Form 42 8P'!$E$59 -> 0.016353 | Q59: ='Form 42 8P'!$E$59 -> 0.016353 | R59: ='Form 42 8P'!$E$59 -> 0.016353

Sheet Form 42 4P p7
A1: ='Form 42 2P'!$A$1:$R$1 -> Tampa Electric Company | S1: Form 42-4P | W1: BIG BEND UNIT 2 CLASSIFIER REPLACEMENT (B54)
A2: ='Form 42 2P'!$A$2:$R$2 -> Environmental Cost Recovery Clause | S2: Page 7 of 30
A3: ='Form 42 2P'!$A$3:$R$3 -> Calculation of the Projected Period Amount | W3: 312.42 | X3: IN SERVICE | Y3: DEPREC. | Z3: DEPREC.
A4: ='Form 42 2P'!$A$4:$R$4 -> January 2022 to December 2022 | Y4: RATE | Z4: EXP. | AA4: ACC. DEPR.
A6: Return on Capital Investments, Depreciation and Taxes | W6: 2020-12-20 | X6: 984794 | Y6: 0.003083333333 | Z6: 3036 | AA6: 788166
A7: For Project: Big Bend Unit 2 Classifier Replacement | W7: 312.42
A8: (in Dollars) | W8: Jan 21 | X8: 984794 | Y8: 0.003083333333 | Z8: 3036 | AA8: 791202
W9: 2121-02-21 | X9: 984794 | Y9: 0.003083333333 | Z9: 3036 | AA9: 794238
S10: End of | W10: 2121-03-21 | X10: 984794 | Y10: 0.003083333333 | Z10: 3036 | AA10: 797274
F11: Beginning of | G11: ='Form 42 2P'!$D$10 -> Projected | H11: ='Form 42 2P'!$E$10 -> Projected | I11: ='Form 42 2P'!$F$10 -> Projected | J11: ='Form 42 2P'!$G$10 -> Projected | K11: ='Form 42 2P'!$H$10 -> Projected | L11: ='Form 42 2P'!$I$10 -> Projected | M11: ='Form 42 2P'!$J$10 -> Projected | N11: ='Form 42 2P'!$K$10 -> Projected | O11: ='Form 42 2P'!$L$10 -> Projected | P11: ='Form 42 2P'!$M$10 -> Projected | Q11: ='Form 42 2P'!$N$10 -> Projected | R11: ='Form 42 2P'!$O$10 -> Projected | S11: Period | W11: 2121-04-21 | X11: 984794 | Y11: 0.003083333333 | Z11: 3036 | AA11: 800310
A12: Line | B12: Description | F12: Period Amount | G12: ='Form 42 2P'!$D$11 -> January | H12: ='Form 42 2P'!$E$11 -> February | I12: ='Form 42 2P'!$F$11 -> March | J12: ='Form 42 2P'!$G$11 -> April | K12: ='Form 42 2P'!$H$11 -> May | L12: ='Form 42 2P'!$I$11 -> June | M12: ='Form 42 2P'!$J$11 -> July | N12: ='Form 42 2P'!$K$11 -> August | O12: ='Form 42 2P'!$L$11 -> September | P12: ='Form 42 2P'!$M$11 -> October | Q12: ='Form 42 2P'!$N$11 -> November | R12: ='Form 42 2P'!$O$11 -> December | S12: Total | W12: 2121-05-21 | X12: 984794 | Y12: 0.003083333333 | Z12: 3036 | AA12: 803346
W13: 2121-06-21 | X13: 984794 | Y13: 0.003083333333 | Z13: 3036 | AA13: 806382
A14: 1. | B14: Investments | W14: 2121-07-21 | X14: 984794 | Y14: 0.003083333333 | Z14: 3036 | AA14: 809418
B15: a. Expenditures/Additions | G15: 0 | H15: 0 | I15: 0 | J15: 0 | K15: 0 | L15: 0 | M15: 0 | N15: 0 | O15: 0 | P15: 0 | Q15: 0 | R15: 0 | S15: =SUM(G15:R15) -> 0 | W15: 2121-08-21 | X15: 984794 | Y15: 0.003083333333 | Z15: 3036 | AA15: 812454
B16: b. Clearings to Plant | G16: 0 | H16: 0 | I16: 0 | J16: 0 | K16: 0 | L16: 0 | M16: 0 | N16: 0 | O16: 0 | P16: 0 | Q16: 0 | R16: 0 | S16: =SUM(G16:R16) -> 0 | W16: 2121-09-21 | X16: 984794 | Y16: 0.003083333333 | Z16: 3036 | AA16: 815490
B17: c. Retirements | G17: 0 | H17: 0 | I17: 0 | J17: 0 | K17: 0 | L17: 0 | M17: 0 | N17: 0 | O17: 0 | P17: 0 | Q17: 0 | R17: 0 | S17: =SUM(G17:R17) -> 0 | W17: 2121-10-21 | X17: 984794 | Y17: 0.003083333333 | Z17: 3036 | AA17: 818526
B18: d. Other | G18: 0 | H18: 0 | I18: 0 | J18: 0 | K18: 0 | L18: 0 | M18: 0 | N18: 0 | O18: 0 | P18: 0 | Q18: 0 | R18: 0 | S18: 0 | W18: 2121-11-21 | X18: 984794 | Y18: 0.003083333333 | Z18: 3036 | AA18: 821562 | AB18: 0 | AC18: in-service activity
T19: =R20-F20-S16 -> 0 | U19: ck | W19: 2121-12-21 | X19: 984794 | Y19: 0.003083333333 | Z19: 3036 | AA19: 824598 | AB19: 36432 | AC19: depreciation activity
A20: 2. | B20: Plant-in-Service/Depreciation Base (A) | F20: 984794 | G20: =$X$21 -> 984794 | H20: =$X$22 -> 984794 | I20: =$X$23 -> 984794 | J20: =$X$24 -> 984794 | K20: =$X$25 -> 984794 | L20: =$X$26 -> 984794 | M20: =$X$27 -> 984794 | N20: =$X$28 -> 984794 | O20: =$X$29 -> 984794 | P20: =$X$30 -> 984794 | Q20: =$X$31 -> 984794 | R20: =$X$32 -> 984794 | T20: =R20-X32 -> 0 | U20: ck | W20: 312.42
A21: 3. | B21: Less: Accumulated Depreciation | F21: -824598 | G21: =F21-G32 -> -828127 | H21: =G21-H32 -> -831656 | I21: =H21-I32 -> -835185 | J21: =I21-J32 -> -838714 | K21: =J21-K32 -> -842243 | L21: -845772 | M21: -849301 | N21: -852830 | O21: -856359 | P21: -859888 | Q21: -863417 | R21: =Q21-R32 -> -866946 | T21: =R21+AA32 -> 0 | U21: ck | W21: 2022-01-21 | X21: =X19 -> 984794 | Y21: =(_xlfn.XLOOKUP(W20,'Revised 2022 Depreciation Rates'!$A:$A,'Revised 2022 Depreciation Rates'!$B:$B)/12) -> 0.003583333333 | Z21: =IF(X19=AA19,0,IF((X21-AA19)<ROUND((X19*Y21),0),X21-AA19,ROUND((X19*Y21),0))) -> 3529 | AA21: =ROUND(+AA19+Z21,0) -> 828127
A22: 4. | B22: CWIP - Non-Interest Bearing | F22: 0 | G22: =F22+G15-G16 -> 0 | H22: =0-H16 -> 0 | I22: 0 | J22: 0 | K22: 0 | L22: 0 | M22: 0 | N22: 0 | O22: 0 | P22: 0 | Q22: 0 | R22: 0 | W22: 2022-02-21 | X22: =X21 -> 984794 | Y22: =(_xlfn.XLOOKUP(W20,'Revised 2022 Depreciation Rates'!$A:$A,'Revised 2022 Depreciation Rates'!$B:$B)/12) -> 0.003583333333 | Z22: =IF(X21=AA21,0,IF((X22-AA21)<ROUND((X21*Y22),0),X22-AA21,ROUND((X21*Y22),0))) -> 3529 | AA22: =ROUND(+AA21+Z22,0) -> 831656
A23: 5. | B23: Net Investment (Lines 2 + 3 + 4) | F23: 160196 | G23: =G20+G21+G22 -> 156667 | H23: 153138 | I23: 149609 | J23: 146080 | K23: 142551 | L23: 139022 | M23: 135493 | N23: 131964 | O23: 128435 | P23: 124906 | Q23: 121377 | R23: 117848 | W23: 2022-03-21 | X23: =X22 -> 984794 | Y23: =(_xlfn.XLOOKUP(W20,'Revised 2022 Depreciation Rates'!$A:$A,'Revised 2022 Depreciation Rates'!$B:$B)/12) -> 0.003583333333 | Z23: 3529 | AA23: =ROUND(+AA22+Z23,0) -> 835185
W24: 2022-04-21 | X24: 984794 | Y24: =(_xlfn.XLOOKUP(W20,'Revised 2022 Depreciation Rates'!$A:$A,'Revised 2022 Depreciation Rates'!$B:$B)/12) -> 0.003583333333 | Z24: 3529 | AA24: 838714
A25: 6. | B25: Average Net Investment | G25: =ROUND((+F23+G23)/2,0) -> 158432 | H25: 154903 | I25: 151374 | J25: 147845 | K25: 144316 | L25: 140787 | M25: 137258 | N25: 133729 | O25: 130200 | P25: 126671 | Q25: 123142 | R25: 119613 | W25: 2022-05-21 | X25: 984794 | Y25: =(_xlfn.XLOOKUP(W20,'Revised 2022 Depreciation Rates'!$A:$A,'Revised 2022 Depreciation Rates'!$B:$B)/12) -> 0.003583333333 | Z25: 3529 | AA25: 842243
W26: 2022-06-21 | X26: 984794 | Y26: =(_xlfn.XLOOKUP(W20,'Revised 2022 Depreciation Rates'!$A:$A,'Revised 2022 Depreciation Rates'!$B:$B)/12) -> 0.003583333333 | Z26: 3529 | AA26: 845772
A27: 7. | B27: Return on Average Net Investment | G27: 1 | H27: 2 | I27: 3 | J27: 4 | K27: 5 | L27: 6 | M27: 7 | N27: 8 | O27: 9 | P27: 10 | Q27: 11 | R27: 12 | S27: 13 | W27: 2022-07-21 | X27: 984794 | Y27: =(_xlfn.XLOOKUP(W20,'Revised 2022 Depreciation Rates'!$A:$A,'Revised 2022 Depreciation Rates'!$B:$B)/12) -> 0.003583333333 | Z27: 3529 | AA27: 849301
B28: a. Equity Component Grossed Up For Taxes (B) | G28: =ROUND(+G25*(G58)/12,0) -> 829 | H28: =ROUND(+H25*(H58)/12,0) -> 811 | I28: 792 | J28: 774 | K28: 755 | L28: 737 | M28: 718 | N28: 700 | O28: 681 | P28: 663 | Q28: 644 | R28: 626 | S28: =SUM(G28:R28) -> 8730 | W28: 2022-08-21 | X28: 984794 | Y28: =(_xlfn.XLOOKUP(W20,'Revised 2022 Depreciation Rates'!$A:$A,'Revised 2022 Depreciation Rates'!$B:$B)/12) -> 0.003583333333 | Z28: 3529 | AA28: 852830
B29: b. Debt Component Grossed Up For Taxes (C) | G29: =ROUND(+G25*(G59)/12,0) -> 216 | H29: =ROUND(+H25*(H59)/12,0) -> 211 | I29: 206 | J29: 201 | K29: 197 | L29: 192 | M29: 187 | N29: 182 | O29: 177 | P29: 173 | Q29: 168 | R29: 163 | S29: =SUM(G29:R29) -> 2273 | W29: 2022-09-21 | X29: 984794 | Y29: =(_xlfn.XLOOKUP(W20,'Revised 2022 Depreciation Rates'!$A:$A,'Revised 2022 Depreciation Rates'!$B:$B)/12) -> 0.003583333333 | Z29: 3529 | AA29: 856359
W30: 2022-10-21 | X30: 984794 | Y30: =(_xlfn.XLOOKUP(W20,'Revised 2022 Depreciation Rates'!$A:$A,'Revised 2022 Depreciation Rates'!$B:$B)/12) -> 0.003583333333 | Z30: 3529 | AA30: 859888
A31: 8. | B31: Investment Expenses | W31: 2022-11-21 | X31: 984794 | Y31: =(_xlfn.XLOOKUP(W20,'Revised 2022 Depreciation Rates'!$A:$A,'Revised 2022 Depreciation Rates'!$B:$B)/12) -> 0.003583333333 | Z31: 3529 | AA31: 863417 | AB31: =X32-X19 -> 0 | AC31: in-service activity
B32: a. Depreciation (D) | G32: =$Z$21 -> 3529 | H32: =$Z$22 -> 3529 | I32: =$Z$23 -> 3529 | J32: =$Z$24 -> 3529 | K32: =$Z$25 -> 3529 | L32: =$Z$26 -> 3529 | M32: =$Z$27 -> 3529 | N32: =$Z$28 -> 3529 | O32: =$Z$29 -> 3529 | P32: =$Z$30 -> 3529 | Q32: =$Z$31 -> 3529 | R32: =$Z$32 -> 3529 | S32: =SUM(G32:R32) -> 42348 | T32: =+S32-AB32 -> 0 | U32: ck | W32: 2022-12-21 | X32: 984794 | Y32: =(_xlfn.XLOOKUP(W20,'Revised 2022 Depreciation Rates'!$A:$A,'Revised 2022 Depreciation Rates'!$B:$B)/12) -> 0.003583333333 | Z32: =IF(X31=AA31,0,IF((X32-AA31)<ROUND((X31*Y32),0),X32-AA31,ROUND((X31*Y32),0))) -> 3529 | AA32: 866946 | AB32: =AA32-AA19 -> 42348 | AC32: depreciation activity
B33: b. Amortization | G33: 0 | H33: 0 | I33: 0 | J33: 0 | K33: 0 | L33: 0 | M33: 0 | N33: 0 | O33: 0 | P33: 0 | Q33: 0 | R33: 0 | S33: =SUM(G33:R33) -> 0
B34: c. Dismantlement | G34: 0 | H34: 0 | I34: 0 | J34: 0 | K34: 0 | L34: 0 | M34: 0 | N34: 0 | O34: 0 | P34: 0 | Q34: 0 | R34: 0 | S34: =SUM(G34:R34) -> 0
B35: d. Property Taxes | G35: 0 | H35: 0 | I35: 0 | J35: 0 | K35: 0 | L35: 0 | M35: 0 | N35: 0 | O35: 0 | P35: 0 | Q35: 0 | R35: 0 | S35: =SUM(G35:R35) -> 0
B36: e. Other | G36: 0 | H36: 0 | I36: 0 | J36: 0 | K36: 0 | L36: 0 | M36: 0 | N36: 0 | O36: 0 | P36: 0 | Q36: 0 | R36: 0 | S36: =SUM(G36:R36) -> 0
A38: 9. | B38: Total System Recoverable Expenses (Lines 7 + 8) | G38: =ROUND(+G28+G29+G32+G33+G34+G35+G36,0) -> 4574 | H38: 4551 | I38: 4527 | J38: 4504 | K38: 4481 | L38: 4458 | M38: 4434 | N38: 4411 | O38: 4387 | P38: 4365 | Q38: 4341 | R38: 4318 | S38: =SUM(G38:R38) -> 53351
B39: a. Recoverable Costs Allocated to Energy | G39: =ROUND(+G38*1,0) -> 4574 | H39: 4551 | I39: 4527 | J39: 4504 | K39: 4481 | L39: 4458 | M39: 4434 | N39: 4411 | O39: 4387 | P39: 4365 | Q39: 4341 | R39: 4318 | S39: =SUM(G39:R39) -> 53351
B40: b. Recoverable Costs Allocated to Demand | G40: =ROUND(+G38*0,0) -> 0 | H40: 0 | I40: 0 | J40: 0 | K40: 0 | L40: 0 | M40: 0 | N40: 0 | O40: 0 | P40: 0 | Q40: 0 | R40: 0 | S40: =SUM(G40:R40) -> 0
A42: 10. | B42: Energy Jurisdictional Factor | G42: ='Form 42 2P'!D48 -> 1 | H42: ='Form 42 2P'!E48 -> 1 | I42: ='Form 42 2P'!F48 -> 1 | J42: ='Form 42 2P'!G48 -> 1 | K42: ='Form 42 2P'!H48 -> 1 | L42: ='Form 42 2P'!I48 -> 1 | M42: ='Form 42 2P'!J48 -> 1 | N42: ='Form 42 2P'!K48 -> 1 | O42: ='Form 42 2P'!L48 -> 1 | P42: ='Form 42 2P'!M48 -> 1 | Q42: ='Form 42 2P'!N48 -> 1 | R42: ='Form 42 2P'!O48 -> 1
A43: 11. | B43: Demand Jurisdictional Factor | G43: =+'Form 42 2P'!D49 -> 1 | H43: =+'Form 42 2P'!E49 -> 1 | I43: =+'Form 42 2P'!F49 -> 1 | J43: =+'Form 42 2P'!G49 -> 1 | K43: =+'Form 42 2P'!H49 -> 1 | L43: =+'Form 42 2P'!I49 -> 1 | M43: =+'Form 42 2P'!J49 -> 1 | N43: =+'Form 42 2P'!K49 -> 1 | O43: =+'Form 42 2P'!L49 -> 1 | P43: =+'Form 42 2P'!M49 -> 1 | Q43: =+'Form 42 2P'!N49 -> 1 | R43: =+'Form 42 2P'!O49 -> 1
A45: 12. | B45: Retail Energy-Related Recoverable Costs (E) | G45: =ROUND((+G39*G42),0) -> 4574 | H45: =ROUND((+H39*H42),0) -> 4551 | I45: 4527 | J45: 4504 | K45: 4481 | L45: 4458 | M45: 4434 | N45: 4411 | O45: 4387 | P45: 4365 | Q45: 4341 | R45: 4318 | S45: =SUM(G45:R45) -> 53351
A46: 13. | B46: Retail Demand-Related Recoverable Costs (F) | G46: =(+G40*G43) -> 0 | H46: =(+H40*H43) -> 0 | I46: 0 | J46: 0 | K46: 0 | L46: 0 | M46: 0 | N46: 0 | O46: 0 | P46: 0 | Q46: 0 | R46: 0 | S46: =SUM(G46:R46) -> 0
A47: 15 | B47: Total Jurisdictional Recoverable Costs (Lines 12 + 13) | G47: =G45+G46 -> 4574 | H47: =H45+H46 -> 4551 | I47: 4527 | J47: 4504 | K47: 4481 | L47: 4458 | M47: 4434 | N47: 4411 | O47: 4387 | P47: 4365 | Q47: 4341 | R47: 4318 | S47: =SUM(G47:R47) -> 53351
A49: Notes:
A50: (A) | B50: Applicable depreciable base for Big Bend; account 312.42
A51: (B) | B51: ='Tot 8E pg1-30'!$B$52 -> Line 6 x 6.2798% x 1/12. Based on ROE of 9.95% and weighted income tax rate of 25.345% (expansion factor of 1.34315)
A52: (C) | B52: ='Tot 8E pg1-30'!$B$53 -> Line 6 x 1.6353% x 1/12
A53: (D) | B53: ="Applicable depreciation rate is "&TEXT(_xlfn.XLOOKUP(VALUE(RIGHT(B50,6)),'Revised 2022 Depreciation Rates'!A:A,'Revised 2022 Depreciation Rates'!B:B),"0.0%") -> Applicable depreciation rate is 4.3%
A54: (E) | B54: Line 9a x Line 10
A55: (F) | B55: Line 9b x Line 11
F58: ROI WACC-Equity | G58: ='Form 42 8P'!$E$50 -> 0.062798 | H58: ='Form 42 8P'!$E$50 -> 0.062798 | I58: ='Form 42 8P'!$E$50 -> 0.062798 | J58: ='Form 42 8P'!$E$50 -> 0.062798 | K58: ='Form 42 8P'!$E$50 -> 0.062798 | L58: ='Form 42 8P'!$E$50 -> 0.062798 | M58: ='Form 42 8P'!$E$50 -> 0.062798 | N58: ='Form 42 8P'!$E$50 -> 0.062798 | O58: ='Form 42 8P'!$E$50 -> 0.062798 | P58: ='Form 42 8P'!$E$50 -> 0.062798 | Q58: ='Form 42 8P'!$E$50 -> 0.062798 | R58: ='Form 42 8P'!$E$50 -> 0.062798
F59: ROI WACC-Debt | G59: ='Form 42 8P'!$E$59 -> 0.016353 | H59: ='Form 42 8P'!$E$59 -> 0.016353 | I59: ='Form 42 8P'!$E$59 -> 0.016353 | J59: ='Form 42 8P'!$E$59 -> 0.016353 | K59: ='Form 42 8P'!$E$59 -> 0.016353 | L59: ='Form 42 8P'!$E$59 -> 0.016353 | M59: ='Form 42 8P'!$E$59 -> 0.016353 | N59: ='Form 42 8P'!$E$59 -> 0.016353 | O59: ='Form 42 8P'!$E$59 -> 0.016353 | P59: ='Form 42 8P'!$E$59 -> 0.016353 | Q59: ='Form 42 8P'!$E$59 -> 0.016353 | R59: ='Form 42 8P'!$E$59 -> 0.016353

Sheet Form 42 4P p8
A1: ='Form 42 2P'!$A$1:$R$1 -> Tampa Electric Company | S1: Form 42-4P | W1: MERCURY TESTING PLATFORM (B9176)
A2: ='Form 42 2P'!$A$2:$R$2 -> Environmental Cost Recovery Clause | S2: Page 8 of 30
A3: ='Form 42 2P'!$A$3:$R$3 -> Calculation of the Projected Period Amount | W3: 311.4 | X3: IN SERVICE | Y3: DEPREC. | Z3: DEPREC.
A4: ='Form 42 2P'!$A$4:$R$4 -> January 2022 to December 2022 | Y4: RATE | Z4: EXP. | AA4: ACC. DEPR.
A6: Return on Capital Investments, Depreciation and Taxes | W6: 2020-12-20 | X6: 120737 | Y6: 0.002416666667 | Z6: 292 | AA6: 62419
A7: For Project: Big Bend Section 114 Mercury Testing Platform | W7: 311.4
A8: (in Dollars) | W8: Jan 21 | X8: 120737 | Y8: 0.002416666667 | Z8: 292 | AA8: 62711
W9: 2121-02-21 | X9: 120737 | Y9: 0.002416666667 | Z9: 292 | AA9: 63003
S10: End of | W10: 2121-03-21 | X10: 120737 | Y10: 0.002416666667 | Z10: 292 | AA10: 63295
F11: Beginning of | G11: ='Form 42 2P'!$D$10 -> Projected | H11: ='Form 42 2P'!$E$10 -> Projected | I11: ='Form 42 2P'!$F$10 -> Projected | J11: ='Form 42 2P'!$G$10 -> Projected | K11: ='Form 42 2P'!$H$10 -> Projected | L11: ='Form 42 2P'!$I$10 -> Projected | M11: ='Form 42 2P'!$J$10 -> Projected | N11: ='Form 42 2P'!$K$10 -> Projected | O11: ='Form 42 2P'!$L$10 -> Projected | P11: ='Form 42 2P'!$M$10 -> Projected | Q11: ='Form 42 2P'!$N$10 -> Projected | R11: ='Form 42 2P'!$O$10 -> Projected | S11: Period | W11: 2121-04-21 | X11: 120737 | Y11: 0.002416666667 | Z11: 292 | AA11: 63587
A12: Line | B12: Description | F12: Period Amount | G12: ='Form 42 2P'!$D$11 -> January | H12: ='Form 42 2P'!$E$11 -> February | I12: ='Form 42 2P'!$F$11 -> March | J12: ='Form 42 2P'!$G$11 -> April | K12: ='Form 42 2P'!$H$11 -> May | L12: ='Form 42 2P'!$I$11 -> June | M12: ='Form 42 2P'!$J$11 -> July | N12: ='Form 42 2P'!$K$11 -> August | O12: ='Form 42 2P'!$L$11 -> September | P12: ='Form 42 2P'!$M$11 -> October | Q12: ='Form 42 2P'!$N$11 -> November | R12: ='Form 42 2P'!$O$11 -> December | S12: Total | W12: 2121-05-21 | X12: 120737 | Y12: 0.002416666667 | Z12: 292 | AA12: 63879
W13: 2121-06-21 | X13: 120737 | Y13: 0.002416666667 | Z13: 292 | AA13: 64171
A14: 1. | B14: Investments | W14: 2121-07-21 | X14: 120737 | Y14: 0.002416666667 | Z14: 292 | AA14: 64463
B15: a. Expenditures/Additions | G15: 0 | H15: 0 | I15: 0 | J15: 0 | K15: 0 | L15: 0 | M15: 0 | N15: 0 | O15: 0 | P15: 0 | Q15: 0 | R15: 0 | S15: =SUM(G15:R15) -> 0 | W15: 2121-08-21 | X15: 120737 | Y15: 0.002416666667 | Z15: 292 | AA15: 64755
B16: b. Clearings to Plant | G16: 0 | H16: 0 | I16: 0 | J16: 0 | K16: 0 | L16: 0 | M16: 0 | N16: 0 | O16: 0 | P16: 0 | Q16: 0 | R16: 0 | S16: =SUM(G16:R16) -> 0 | W16: 2121-09-21 | X16: 120737 | Y16: 0.002416666667 | Z16: 292 | AA16: 65047
B17: c. Retirements | G17: 0 | H17: 0 | I17: 0 | J17: 0 | K17: 0 | L17: 0 | M17: 0 | N17: 0 | O17: 0 | P17: 0 | Q17: 0 | R17: 0 | S17: =SUM(G17:R17) -> 0 | W17: 2121-10-21 | X17: 120737 | Y17: 0.002416666667 | Z17: 292 | AA17: 65339
B18: d. Other | G18: 0 | H18: 0 | I18: 0 | J18: 0 | K18: 0 | L18: 0 | M18: 0 | N18: 0 | O18: 0 | P18: 0 | Q18: 0 | R18: 0 | S18: 0 | W18: 2121-11-21 | X18: 120737 | Y18: 0.002416666667 | Z18: 292 | AA18: 65631 | AB18: 0 | AC18: in-service activity
T19: =R20-F20-S16 -> 0 | U19: ck | W19: 2121-12-21 | X19: 120737 | Y19: 0.002416666667 | Z19: 292 | AA19: 65923 | AB19: 3504 | AC19: depreciation activity
A20: 2. | B20: Plant-in-Service/Depreciation Base (A) | F20: 120737 | G20: =$X$21 -> 120737 | H20: =$X$22 -> 120737 | I20: =$X$23 -> 120737 | J20: =$X$24 -> 120737 | K20: =$X$25 -> 120737 | L20: =$X$26 -> 120737 | M20: =$X$27 -> 120737 | N20: =$X$28 -> 120737 | O20: =$X$29 -> 120737 | P20: =$X$30 -> 120737 | Q20: =$X$31 -> 120737 | R20: =$X$32 -> 120737 | T20: =R20-X32 -> 0 | U20: ck | W20: 311.4
A21: 3. | B21: Less: Accumulated Depreciation | F21: -65923 | G21: =F21-G32 -> -66245 | H21: -66567 | I21: -66889 | J21: -67211 | K21: -67533 | L21: -67855 | M21: -68177 | N21: -68499 | O21: -68821 | P21: -69143 | Q21: -69465 | R21: -69787 | T21: =R21+AA32 -> 0 | U21: ck | W21: 2022-01-21 | X21: =X19 -> 120737 | Y21: =(_xlfn.XLOOKUP(W20,'Revised 2022 Depreciation Rates'!$A:$A,'Revised 2022 Depreciation Rates'!$B:$B)/12) -> 0.002666666667 | Z21: =IF(X19=AA19,0,IF((X21-AA19)<ROUND((X19*Y21),0),X21-AA19,ROUND((X19*Y21),0))) -> 322 | AA21: =ROUND(AA19+Z21,0) -> 66245
A22: 4. | B22: CWIP - Non-Interest Bearing | F22: 0 | G22: =F22+G15-G16 -> 0 | H22: =0-H16 -> 0 | I22: 0 | J22: 0 | K22: 0 | L22: 0 | M22: 0 | N22: 0 | O22: 0 | P22: 0 | Q22: 0 | R22: 0 | W22: 2022-02-21 | X22: =X21 -> 120737 | Y22: =(_xlfn.XLOOKUP(W20,'Revised 2022 Depreciation Rates'!$A:$A,'Revised 2022 Depreciation Rates'!$B:$B)/12) -> 0.002666666667 | Z22: =IF(X21=AA21,0,IF((X22-AA21)<ROUND((X21*Y22),0),X22-AA21,ROUND((X21*Y22),0))) -> 322 | AA22: =ROUND(AA21+Z22,0) -> 66567
A23: 5. | B23: Net Investment (Lines 2 + 3 + 4) | F23: 54814 | G23: =G20+G21+G22 -> 54492 | H23: 54170 | I23: 53848 | J23: 53526 | K23: 53204 | L23: 52882 | M23: 52560 | N23: 52238 | O23: 51916 | P23: 51594 | Q23: 51272 | R23: 50950 | W23: 2022-03-21 | X23: 120737 | Y23: =(_xlfn.XLOOKUP(W20,'Revised 2022 Depreciation Rates'!$A:$A,'Revised 2022 Depreciation Rates'!$B:$B)/12) -> 0.002666666667 | Z23: 322 | AA23: =ROUND(AA22+Z23,0) -> 66889
W24: 2022-04-21 | X24: 120737 | Y24: =(_xlfn.XLOOKUP(W20,'Revised 2022 Depreciation Rates'!$A:$A,'Revised 2022 Depreciation Rates'!$B:$B)/12) -> 0.002666666667 | Z24: 322 | AA24: 67211
A25: 6. | B25: Average Net Investment | G25: =ROUND((+F23+G23)/2,0) -> 54653 | H25: 54331 | I25: 54009 | J25: 53687 | K25: 53365 | L25: 53043 | M25: 52721 | N25: =ROUND((+M23+N23)/2,0) -> 52399 | O25: =ROUND((+N23+O23)/2,0) -> 52077 | P25: =ROUND((+O23+P23)/2,0) -> 51755 | Q25: =ROUND((+P23+Q23)/2,0) -> 51433 | R25: =ROUND((+Q23+R23)/2,0) -> 51111 | W25: 2022-05-21 | X25: 120737 | Y25: =(_xlfn.XLOOKUP(W20,'Revised 2022 Depreciation Rates'!$A:$A,'Revised 2022 Depreciation Rates'!$B:$B)/12) -> 0.002666666667 | Z25: 322 | AA25: 67533
W26: 2022-06-21 | X26: 120737 | Y26: =(_xlfn.XLOOKUP(W20,'Revised 2022 Depreciation Rates'!$A:$A,'Revised 2022 Depreciation Rates'!$B:$B)/12) -> 0.002666666667 | Z26: 322 | AA26: 67855
A27: 7. | B27: Return on Average Net Investment | G27: 1 | H27: 2 | I27: 3 | J27: 4 | K27: 5 | L27: 6 | M27: 7 | N27: 8 | O27: 9 | P27: 10 | Q27: 11 | R27: 12 | S27: 13 | W27: 2022-07-21 | X27: 120737 | Y27: =(_xlfn.XLOOKUP(W20,'Revised 2022 Depreciation Rates'!$A:$A,'Revised 2022 Depreciation Rates'!$B:$B)/12) -> 0.002666666667 | Z27: 322 | AA27: 68177
B28: a. Equity Component Grossed Up For Taxes (B) | G28: =ROUND(+G25*(G58)/12,0) -> 286 | H28: =ROUND(+H25*(H58)/12,0) -> 284 | I28: 283 | J28: 281 | K28: 279 | L28: 278 | M28: 276 | N28: 274 | O28: 273 | P28: 271 | Q28: 269 | R28: 267 | S28: =SUM(G28:R28) -> 3321 | W28: 2022-08-21 | X28: 120737 | Y28: =(_xlfn.XLOOKUP(W20,'Revised 2022 Depreciation Rates'!$A:$A,'Revised 2022 Depreciation Rates'!$B:$B)/12) -> 0.002666666667 | Z28: 322 | AA28: 68499
B29: b. Debt Component Grossed Up For Taxes (C) | G29: =ROUND(+G25*(G59)/12,0) -> 74 | H29: =ROUND(+H25*(H59)/12,0) -> 74 | I29: 74 | J29: 73 | K29: 73 | L29: 72 | M29: 72 | N29: 71 | O29: 71 | P29: 71 | Q29: 70 | R29: 70 | S29: =SUM(G29:R29) -> 865 | W29: 2022-09-21 | X29: 120737 | Y29: =(_xlfn.XLOOKUP(W20,'Revised 2022 Depreciation Rates'!$A:$A,'Revised 2022 Depreciation Rates'!$B:$B)/12) -> 0.002666666667 | Z29: 322 | AA29: 68821
W30: 2022-10-21 | X30: 120737 | Y30: =(_xlfn.XLOOKUP(W20,'Revised 2022 Depreciation Rates'!$A:$A,'Revised 2022 Depreciation Rates'!$B:$B)/12) -> 0.002666666667 | Z30: 322 | AA30: 69143
A31: 8. | B31: Investment Expenses | W31: 2022-11-21 | X31: 120737 | Y31: =(_xlfn.XLOOKUP(W20,'Revised 2022 Depreciation Rates'!$A:$A,'Revised 2022 Depreciation Rates'!$B:$B)/12) -> 0.002666666667 | Z31: 322 | AA31: 69465 | AB31: =X32-X19 -> 0 | AC31: in-service activity
B32: a. Depreciation (D) | G32: =$Z$21 -> 322 | H32: =$Z$22 -> 322 | I32: =$Z$23 -> 322 | J32: =$Z$24 -> 322 | K32: =$Z$25 -> 322 | L32: =$Z$26 -> 322 | M32: =$Z$27 -> 322 | N32: =$Z$28 -> 322 | O32: =$Z$29 -> 322 | P32: =$Z$30 -> 322 | Q32: =$Z$31 -> 322 | R32: =$Z$32 -> 322 | S32: =SUM(G32:R32) -> 3864 | T32: =+S32-AB32 -> 0 | U32: ck | W32: 2022-12-21 | X32: 120737 | Y32: =(_xlfn.XLOOKUP(W20,'Revised 2022 Depreciation Rates'!$A:$A,'Revised 2022 Depreciation Rates'!$B:$B)/12) -> 0.002666666667 | Z32: =IF(X31=AA31,0,IF((X32-AA31)<ROUND((X31*Y32),0),X32-AA31,ROUND((X31*Y32),0))) -> 322 | AA32: 69787 | AB32: =AA32-AA19 -> 3864 | AC32: depreciation activity
B33: b. Amortization | G33: 0 | H33: 0 | I33: 0 | J33: 0 | K33: 0 | L33: 0 | M33: 0 | N33: 0 | O33: 0 | P33: 0 | Q33: 0 | R33: 0 | S33: =SUM(G33:R33) -> 0
B34: c. Dismantlement | G34: 0 | H34: 0 | I34: 0 | J34: 0 | K34: 0 | L34: 0 | M34: 0 | N34: 0 | O34: 0 | P34: 0 | Q34: 0 | R34: 0 | S34: =SUM(G34:R34) -> 0
B35: d. Property Taxes | G35: 0 | H35: 0 | I35: 0 | J35: 0 | K35: 0 | L35: 0 | M35: 0 | N35: 0 | O35: 0 | P35: 0 | Q35: 0 | R35: 0 | S35: =SUM(G35:R35) -> 0
B36: e. Other | G36: 0 | H36: 0 | I36: 0 | J36: 0 | K36: 0 | L36: 0 | M36: 0 | N36: 0 | O36: 0 | P36: 0 | Q36: 0 | R36: 0 | S36: =SUM(G36:R36) -> 0
A38: 9. | B38: Total System Recoverable Expenses (Lines 7 + 8) | G38: =ROUND(+G28+G29+G32+G33+G34+G35+G36,0) -> 682 | H38: 680 | I38: 679 | J38: 676 | K38: 674 | L38: 672 | M38: 670 | N38: 667 | O38: 666 | P38: 664 | Q38: 661 | R38: 659 | S38: =SUM(G38:R38) -> 8050
B39: a. Recoverable Costs Allocated to Energy | G39: =ROUND(+G38*1,0) -> 682 | H39: 680 | I39: 679 | J39: 676 | K39: 674 | L39: 672 | M39: 670 | N39: 667 | O39: 666 | P39: 664 | Q39: 661 | R39: 659 | S39: =SUM(G39:R39) -> 8050
B40: b. Recoverable Costs Allocated to Demand | G40: =ROUND(+G38*0,0) -> 0 | H40: 0 | I40: 0 | J40: 0 | K40: 0 | L40: 0 | M40: 0 | N40: 0 | O40: 0 | P40: 0 | Q40: 0 | R40: 0 | S40: =SUM(G40:R40) -> 0
A42: 10. | B42: Energy Jurisdictional Factor | G42: ='Form 42 2P'!D48 -> 1 | H42: ='Form 42 2P'!E48 -> 1 | I42: ='Form 42 2P'!F48 -> 1 | J42: ='Form 42 2P'!G48 -> 1 | K42: ='Form 42 2P'!H48 -> 1 | L42: ='Form 42 2P'!I48 -> 1 | M42: ='Form 42 2P'!J48 -> 1 | N42: ='Form 42 2P'!K48 -> 1 | O42: ='Form 42 2P'!L48 -> 1 | P42: ='Form 42 2P'!M48 -> 1 | Q42: ='Form 42 2P'!N48 -> 1 | R42: ='Form 42 2P'!O48 -> 1
A43: 11. | B43: Demand Jurisdictional Factor | G43: =+'Form 42 2P'!D49 -> 1 | H43: =+'Form 42 2P'!E49 -> 1 | I43: =+'Form 42 2P'!F49 -> 1 | J43: =+'Form 42 2P'!G49 -> 1 | K43: =+'Form 42 2P'!H49 -> 1 | L43: =+'Form 42 2P'!I49 -> 1 | M43: =+'Form 42 2P'!J49 -> 1 | N43: =+'Form 42 2P'!K49 -> 1 | O43: =+'Form 42 2P'!L49 -> 1 | P43: =+'Form 42 2P'!M49 -> 1 | Q43: =+'Form 42 2P'!N49 -> 1 | R43: =+'Form 42 2P'!O49 -> 1
A45: 12. | B45: Retail Energy-Related Recoverable Costs (E) | G45: =ROUND((+G39*G42),0) -> 682 | H45: 680 | I45: 679 | J45: 676 | K45: 674 | L45: 672 | M45: 670 | N45: 667 | O45: 666 | P45: 664 | Q45: 661 | R45: 659 | S45: =SUM(G45:R45) -> 8050
A46: 13. | B46: Retail Demand-Related Recoverable Costs (F) | G46: =(+G40*G43) -> 0 | H46: 0 | I46: 0 | J46: 0 | K46: 0 | L46: 0 | M46: 0 | N46: 0 | O46: 0 | P46: 0 | Q46: 0 | R46: 0 | S46: =SUM(G46:R46) -> 0
A47: 14. | B47: Total Jurisdictional Recoverable Costs (Lines 12 + 13) | G47: =G45+G46 -> 682 | H47: =H45+H46 -> 680 | I47: 679 | J47: 676 | K47: 674 | L47: 672 | M47: 670 | N47: 667 | O47: 666 | P47: 664 | Q47: 661 | R47: 659 | S47: =SUM(G47:R47) -> 8050
A49: Notes:
A50: (A) | B50: Applicable depreciable base for Big Bend; account 311.40
A51: (B) | B51: ='Tot 8E pg1-30'!$B$52 -> Line 6 x 6.2798% x 1/12. Based on ROE of 9.95% and weighted income tax rate of 25.345% (expansion factor of 1.34315)
A52: (C) | B52: ='Tot 8E pg1-30'!$B$53 -> Line 6 x 1.6353% x 1/12
A53: (D) | B53: ="Applicable depreciation rate is "&TEXT(_xlfn.XLOOKUP(VALUE(RIGHT(B50,6)),'Revised 2022 Depreciation Rates'!A:A,'Revised 2022 Depreciation Rates'!B:B),"0.0%") -> Applicable depreciation rate is 3.2%
A54: (E) | B54: Line 9a x Line 10
A55: (F) | B55: Line 9b x Line 11
F58: ROI WACC-Equity | G58: ='Form 42 8P'!$E$50 -> 0.062798 | H58: ='Form 42 8P'!$E$50 -> 0.062798 | I58: ='Form 42 8P'!$E$50 -> 0.062798 | J58: ='Form 42 8P'!$E$50 -> 0.062798 | K58: ='Form 42 8P'!$E$50 -> 0.062798 | L58: ='Form 42 8P'!$E$50 -> 0.062798 | M58: ='Form 42 8P'!$E$50 -> 0.062798 | N58: ='Form 42 8P'!$E$50 -> 0.062798 | O58: ='Form 42 8P'!$E$50 -> 0.062798 | P58: ='Form 42 8P'!$E$50 -> 0.062798 | Q58: ='Form 42 8P'!$E$50 -> 0.062798 | R58: ='Form 42 8P'!$E$50 -> 0.062798
F59: ROI WACC-Debt | G59: ='Form 42 8P'!$E$59 -> 0.016353 | H59: ='Form 42 8P'!$E$59 -> 0.016353 | I59: ='Form 42 8P'!$E$59 -> 0.016353 | J59: ='Form 42 8P'!$E$59 -> 0.016353 | K59: ='Form 42 8P'!$E$59 -> 0.016353 | L59: ='Form 42 8P'!$E$59 -> 0.016353 | M59: ='Form 42 8P'!$E$59 -> 0.016353 | N59: ='Form 42 8P'!$E$59 -> 0.016353 | O59: ='Form 42 8P'!$E$59 -> 0.016353 | P59: ='Form 42 8P'!$E$59 -> 0.016353 | Q59: ='Form 42 8P'!$E$59 -> 0.016353 | R59: ='Form 42 8P'!$E$59 -> 0.016353

Sheet Form 42 4P p9
A1: ='Form 42 2P'!$A$1:$R$1 -> Tampa Electric Company | S1: Form 42-4P | AE1: BIG BEND 1&2 SCRUBBER | AG1: BB Units 1&2 FGD | AL1: BIG BEND 1&2 SCRUBBER | AN1: BB Units 1&2 FGD
A2: ='Form 42 2P'!$A$2:$R$2 -> Environmental Cost Recovery Clause | S2: Page 9 of 30
A3: ='Form 42 2P'!$A$3:$R$3 -> Calculation of the Projected Period Amount | W3: BLENDED | X3: IN SERVICE | Y3: DEPREC. | Z3: DEPREC. | AE3: 311.46 | AF3: IN SERVICE | AG3: DEPREC. | AH3: DEPREC. | AL3: 312.46 | AM3: IN SERVICE | AN3: DEPREC. | AO3: DEPREC. | AR3: 312.45 | AS3: IN SERVICE | AT3: DEPREC. | AU3: DEPREC. | AX3: 315.46 | AY3: IN SERVICE | AZ3: DEPREC. | BA3: DEPREC.
A4: ='Form 42 2P'!$A$4:$R$4 -> January 2022 to December 2022 | Y4: RATE | Z4: EXP. | AA4: ACC. DEPR. | AG4: RATE | AH4: EXP. | AI4: ACC. DEPR. | AN4: RATE | AO4: EXP. | AP4: ACC. DEPR. | AT4: RATE | AU4: EXP. | AV4: ACC. DEPR. | AZ4: RATE | BA4: EXP. | BB4: ACC. DEPR.
A6: Return on Capital Investments, Depreciation and Taxes | W6: 2020-12-20 | X6: 95255241.72 | Y6: Blended | Z6: 261919 | AA6: 64503293 | AE6: 2019-12-19 | AL6: 2020-12-20 | AM6: 94929061.39 | AN6: 0.00275 | AO6: 261055 | AP6: 64455192 | AR6: 2020-12-20 | AS6: 105397.91 | AT6: 0.002083333333 | AU6: 220 | AV6: 13417 | AX6: 2020-12-20 | AY6: 220782.42 | AZ6: 0.002916666667 | BA6: 644 | BB6: 34684
A7: For Project: Big Bend Units 1 and 2 FGD | W7: BLENDED | AE7: 311.46 | AL7: 312.46 | AR7: 312.45 | AX7: 315.46
A8: (in Dollars) | W8: 2121-01-21 | X8: 95255241.72 | Y8: Blended | Z8: 261919 | AA8: 64765212 | AB8: 0 | AE8: 2121-01-21 | AL8: 2121-01-21 | AM8: 94929061.39 | AN8: 0.00275 | AO8: 261055 | AP8: 64716247 | AR8: 2121-01-21 | AS8: 105397.91 | AT8: 0.002083333333 | AU8: 220 | AV8: 13637 | AX8: 2121-01-21 | AY8: 220782.42 | AZ8: 0.002916666667 | BA8: 644 | BB8: 35328
W9: 2121-02-21 | X9: 95255241.72 | Y9: Blended | Z9: 261919 | AA9: 65027131 | AE9: 2121-02-21 | AL9: 2121-02-21 | AM9: 94929061.39 | AN9: 0.00275 | AO9: 261055 | AP9: 64977302 | AR9: 2121-02-21 | AS9: 105397.91 | AT9: 0.002083333333 | AU9: 220 | AV9: 13857 | AX9: 2121-02-21 | AY9: 220782.42 | AZ9: 0.002916666667 | BA9: 644 | BB9: 35972
S10: End of | W10: 2121-03-21 | X10: 95255241.72 | Y10: Blended | Z10: 261919 | AA10: 65289050 | AE10: 2121-03-21 | AL10: 2121-03-21 | AM10: 94929061.39 | AN10: 0.00275 | AO10: 261055 | AP10: 65238357 | AR10: 2121-03-21 | AS10: 105397.91 | AT10: 0.002083333333 | AU10: 220 | AV10: 14077 | AX10: 2121-03-21 | AY10: 220782.42 | AZ10: 0.002916666667 | BA10: 644 | BB10: 36616
F11: Beginning of | G11: ='Form 42 2P'!$D$10 -> Projected | H11: ='Form 42 2P'!$E$10 -> Projected | I11: ='Form 42 2P'!$F$10 -> Projected | J11: ='Form 42 2P'!$G$10 -> Projected | K11: ='Form 42 2P'!$H$10 -> Projected | L11: ='Form 42 2P'!$I$10 -> Projected | M11: ='Form 42 2P'!$J$10 -> Projected | N11: ='Form 42 2P'!$K$10 -> Projected | O11: ='Form 42 2P'!$L$10 -> Projected | P11: ='Form 42 2P'!$M$10 -> Projected | Q11: ='Form 42 2P'!$N$10 -> Projected | R11: ='Form 42 2P'!$O$10 -> Projected | S11: Period | W11: 2121-04-21 | X11: 95255241.72 | Y11: Blended | Z11: 261919 | AA11: 65550969 | AE11: 2121-04-21 | AL11: 2121-04-21 | AM11: 94929061.39 | AN11: 0.00275 | AO11: 261055 | AP11: 65499412 | AR11: 2121-04-21 | AS11: 105397.91 | AT11: 0.002083333333 | AU11: 220 | AV11: 14297 | AX11: 2121-04-21 | AY11: 220782.42 | AZ11: 0.002916666667 | BA11: 644 | BB11: 37260
A12: Line | B12: Description | F12: Period Amount | G12: ='Form 42 2P'!$D$11 -> January | H12: ='Form 42 2P'!$E$11 -> February | I12: ='Form 42 2P'!$F$11 -> March | J12: ='Form 42 2P'!$G$11 -> April | K12: ='Form 42 2P'!$H$11 -> May | L12: ='Form 42 2P'!$I$11 -> June | M12: ='Form 42 2P'!$J$11 -> July | N12: ='Form 42 2P'!$K$11 -> August | O12: ='Form 42 2P'!$L$11 -> September | P12: ='Form 42 2P'!$M$11 -> October | Q12: ='Form 42 2P'!$N$11 -> November | R12: ='Form 42 2P'!$O$11 -> December | S12: Total | W12: 2121-05-21 | X12: 95255241.72 | Y12: Blended | Z12: 261919 | AA12: 65812888 | AE12: 2121-05-21 | AL12: 2121-05-21 | AM12: 94929061.39 | AN12: 0.00275 | AO12: 261055 | AP12: 65760467 | AR12: 2121-05-21 | AS12: 105397.91 | AT12: 0.002083333333 | AU12: 220 | AV12: 14517 | AX12: 2121-05-21 | AY12: 220782.42 | AZ12: 0.002916666667 | BA12: 644 | BB12: 37904
W13: 2121-06-21 | X13: 95255241.72 | Y13: Blended | Z13: 261919 | AA13: 66074807 | AE13: 2121-06-21 | AL13: 2121-06-21 | AM13: 94929061.39 | AN13: 0.00275 | AO13: 261055 | AP13: 66021522 | AR13: 2121-06-21 | AS13: 105397.91 | AT13: 0.002083333333 | AU13: 220 | AV13: 14737 | AX13: 2121-06-21 | AY13: 220782.42 | AZ13: 0.002916666667 | BA13: 644 | BB13: 38548
A14: 1. | B14: Investments | W14: 2121-07-21 | X14: 95255241.72 | Y14: Blended | Z14: 261919 | AA14: 66336726 | AE14: 2121-07-21 | AL14: 2121-07-21 | AM14: 94929061.39 | AN14: 0.00275 | AO14: 261055 | AP14: 66282577 | AR14: 2121-07-21 | AS14: 105397.91 | AT14: 0.002083333333 | AU14: 220 | AV14: 14957 | AX14: 2121-07-21 | AY14: 220782.42 | AZ14: 0.002916666667 | BA14: 644 | BB14: 39192
B15: a. Expenditures/Additions | G15: 0 | H15: 0 | I15: 0 | J15: 0 | K15: 0 | L15: 0 | M15: 0 | N15: 0 | O15: 0 | P15: 0 | Q15: 0 | R15: 0 | S15: =SUM(G15:R15) -> 0 | W15: 2121-08-21 | X15: 95255241.72 | Y15: Blended | Z15: 261919 | AA15: 66598645 | AE15: 2121-08-21 | AL15: 2121-08-21 | AM15: 94929061.39 | AN15: 0.00275 | AO15: 261055 | AP15: 66543632 | AR15: 2121-08-21 | AS15: 105397.91 | AT15: 0.002083333333 | AU15: 220 | AV15: 15177 | AX15: 2121-08-21 | AY15: 220782.42 | AZ15: 0.002916666667 | BA15: 644 | BB15: 39836
B16: b. Clearings to Plant | G16: 0 | H16: 0 | I16: 0 | J16: 0 | K16: 0 | L16: 0 | M16: 0 | N16: 0 | O16: 0 | P16: 0 | Q16: 0 | R16: 0 | S16: =SUM(G16:R16) -> 0 | T16: =ROUND(+S16-AC6,0) -> 0 | W16: 2121-09-21 | X16: 95255241.72 | Y16: Blended | Z16: 261919 | AA16: 66860564 | AE16: 2121-09-21 | AL16: 2121-09-21 | AM16: 94929061.39 | AN16: 0.00275 | AO16: 261055 | AP16: 66804687 | AR16: 2121-09-21 | AS16: 105397.91 | AT16: 0.002083333333 | AU16: 220 | AV16: 15397 | AX16: 2121-09-21 | AY16: 220782.42 | AZ16: 0.002916666667 | BA16: 644 | BB16: 40480
B17: c. Retirements | G17: 0 | H17: 0 | I17: 0 | J17: 0 | K17: 0 | L17: 0 | M17: 0 | N17: 0 | O17: 0 | P17: 0 | Q17: 0 | R17: 0 | S17: =SUM(G17:R17) -> 0 | W17: 2121-10-21 | X17: 95255241.72 | Y17: Blended | Z17: 261919 | AA17: 67122483 | AE17: 2121-10-21 | AL17: 2121-10-21 | AM17: 94929061.39 | AN17: 0.00275 | AO17: 261055 | AP17: 67065742 | AR17: 2121-10-21 | AS17: 105397.91 | AT17: 0.002083333333 | AU17: 220 | AV17: 15617 | AX17: 2121-10-21 | AY17: 220782.42 | AZ17: 0.002916666667 | BA17: 644 | BB17: 41124
B18: d. Other - AFUDC (excl from CWIP) | G18: 0 | H18: 0 | I18: 0 | J18: 0 | K18: 0 | L18: 0 | M18: 0 | N18: 0 | O18: 0 | P18: 0 | Q18: 0 | R18: 0 | S18: 0 | W18: 2121-11-21 | X18: 95255241.72 | Y18: Blended | Z18: 261919 | AA18: 67384402 | AB18: 0 | AC18: in-service activity | AE18: 2121-11-21 | AL18: 2121-11-21 | AM18: 94929061.39 | AN18: 0.00275 | AO18: 261055 | AP18: 67326797 | AR18: 2121-11-21 | AS18: 105397.91 | AT18: 0.002083333333 | AU18: 220 | AV18: 15837 | AX18: 2121-11-21 | AY18: 220782.42 | AZ18: 0.002916666667 | BA18: 644 | BB18: 41768
T19: =ROUND(R20-F20-S16,0) -> 0 | U19: ck | W19: 2121-12-21 | X19: 28490542.32 | Y19: Blended | Z19: 261919 | AA19: 20232925.6 | AB19: 3143028 | AC19: depreciation activity | AE19: 2121-12-21 | AF19: 141968.14 | AI19: 37479.83 | AL19: 2121-12-21 | AM19: 28341531.22 | AN19: 0.00275 | AO19: 261055 | AP19: 20194092.83 | AR19: 2121-12-21 | AS19: 0 | AT19: 0.002083333333 | AU19: 220 | AV19: 0 | AX19: 2121-12-21 | AY19: 7042.96 | AZ19: 0.002916666667 | BA19: 644 | BB19: 1352.94
A20: 2. | B20: Plant-in-Service/Depreciation Base (A) | F20: 28490542.32 | G20: =+$X$21 -> 28490542.32 | H20: =+$X$22 -> 28490542.32 | I20: =+$X$23 -> 28490542.32 | J20: =+$X$24 -> 28490542.32 | K20: =+$X$25 -> 28490542.32 | L20: =+$X$26 -> 28490542.32 | M20: =+$X$27 -> 28490542.32 | N20: =+$X$28 -> 28490542.32 | O20: =+$X$29 -> 28490542.32 | P20: =+$X$30 -> 28490542.32 | Q20: =+$X$31 -> 28490542.32 | R20: =+$X$32 -> 28490542.32 | T20: =R20-X32 -> 0 | U20: ck | W20: BLENDED | AE20: 311.46 | AL20: 312.46 | AR20: 312.45 | AX20: 315.46
A21: 3. | B21: Less: Accumulated Depreciation | F21: -20232925.6 | G21: =-G32+F21 -> -20334846.6 | H21: =-H32+G21 -> -20436767.6 | I21: -20538688.6 | J21: -20640609.6 | K21: =-K32+J21 -> -20742530.6 | L21: -20844451.6 | M21: -20946372.6 | N21: -21048293.6 | O21: -21150214.6 | P21: -21252135.6 | Q21: -21354056.6 | R21: =-R32+Q21 -> -21455977.6 | T21: =R21+AA32 -> 0.3999999985 | U21: ck | W21: =AL21 -> 2022-01-21 | X21: =AM21+AS21+AY21+AF21 -> 28490542.32 | Y21: Blended | Z21: =AO21+AU21+BA21+AH21 -> 101921 | AA21: =ROUND(+AA19+Z21,0) -> 20334847 | AB21: =AA21-AA19-BA21-AU21-AO21-AH21 -> 0.4000000022 | AE21: 2121-01-21 | AF21: =AF19 -> 141968.14 | AG21: =(_xlfn.XLOOKUP(AE20,'Revised 2022 Depreciation Rates'!$A:$A,'Revised 2022 Depreciation Rates'!$B:$B)/12) -> 0.002416666667 | AH21: =IF(AF19=AI19,0,IF((AF21-AI19)<ROUND((AF19*AG21),0),AF21-AI19,ROUND((AF19*AG21),0))) -> 343 | AI21: =ROUND(+AI19+AH21,0) -> 37823 | AL21: 2022-01-21 | AM21: =AM19 -> 28341531.22 | AN21: =(_xlfn.XLOOKUP(AL20,'Revised 2022 Depreciation Rates'!$A:$A,'Revised 2022 Depreciation Rates'!$B:$B)/12) -> 0.003583333333 | AO21: =IF(AM19=AP19,0,IF((AM21-AP19)<ROUND((AM19*AN21),0),AM21-AP19,ROUND((AM19*AN21),0))) -> 101557 | AP21: =ROUND(+AP19+AO21,0) -> 20295650 | AR21: =AL21 -> 2022-01-21 | AS21: =AS19 -> 0 | AT21: =(_xlfn.XLOOKUP(AR20,'Revised 2022 Depreciation Rates'!$A:$A,'Revised 2022 Depreciation Rates'!$B:$B)/12) -> 0.002583333333 | AU21: =IF(AS19=AV19,0,IF((AS21-AV19)<ROUND((AS19*AT21),0),AS21-AV19,ROUND((AS19*AT21),0))) -> 0 | AV21: =ROUND(+AV19+AU21,0) -> 0 | AX21: =AL21 -> 2022-01-21 | AY21: =AY19 -> 7042.96 | AZ21: =(_xlfn.XLOOKUP(AX20,'Revised 2022 Depreciation Rates'!$A:$A,'Revised 2022 Depreciation Rates'!$B:$B)/12) -> 0.002916666667 | BA21: =IF(AY19=BB19,0,IF((AY21-BB19)<ROUND((AY19*AZ21),0),AY21-BB19,ROUND((AY19*AZ21),0))) -> 21 | BB21: =ROUND(+BB19+BA21,0) -> 1374
A22: 4. | B22: CWIP - Non-Interest Bearing | F22: 0 | G22: =F22+G15-G16 -> 0 | H22: =+H15+G22-H16 -> 0 | I22: =+I15+H22-I16+0 -> 0 | J22: =+J15+I22-J16 -> 0 | K22: =+K15+J22-K16 -> 0 | L22: =+L15+K22-L16+0 -> 0 | M22: =+M15+L22-M16 -> 0 | N22: =+N15+M22-N16 -> 0 | O22: =+O15+N22-O16 -> 0 | P22: =+P15+O22-P16 -> 0 | Q22: =+Q15+P22-Q16+0 -> 0 | R22: =+R15+Q22-R16 -> 0 | W22: 2022-02-21 | X22: =AM22+AS22+AY22+AF22 -> 28490542.32 | Y22: Blended | Z22: =AO22+AU22+BA22+AH22 -> 101921 | AA22: =ROUND(+AA21+Z22,0) -> 20436768 | AE22: 2121-02-21 | AF22: =AF21+0 -> 141968.14 | AG22: =(_xlfn.XLOOKUP(AE20,'Revised 2022 Depreciation Rates'!$A:$A,'Revised 2022 Depreciation Rates'!$B:$B)/12) -> 0.002416666667 | AH22: =IF(AF21=AI21,0,IF((AF22-AI21)<ROUND((AF21*AG22),0),AF22-AI21,ROUND((AF21*AG22),0))) -> 343 | AI22: =ROUND(+AI21+AH22,0) -> 38166 | AL22: 2022-02-21 | AM22: =AM21+0 -> 28341531.22 | AN22: =(_xlfn.XLOOKUP(AL20,'Revised 2022 Depreciation Rates'!$A:$A,'Revised 2022 Depreciation Rates'!$B:$B)/12) -> 0.003583333333 | AO22: =IF(AM21=AP21,0,IF((AM22-AP21)<ROUND((AM21*AN22),0),AM22-AP21,ROUND((AM21*AN22),0))) -> 101557 | AP22: =ROUND(+AP21+AO22,0) -> 20397207 | AR22: =AL22 -> 2022-02-21 | AS22: =AS21 -> 0 | AT22: =(_xlfn.XLOOKUP(AR20,'Revised 2022 Depreciation Rates'!$A:$A,'Revised 2022 Depreciation Rates'!$B:$B)/12) -> 0.002583333333 | AU22: =IF(AS21=AV21,0,IF((AS22-AV21)<ROUND((AS21*AT22),0),AS22-AV21,ROUND((AS21*AT22),0))) -> 0 | AV22: =ROUND(+AV21+AU22,0) -> 0 | AX22: =AL22 -> 2022-02-21 | AY22: =AY21+0 -> 7042.96 | AZ22: =(_xlfn.XLOOKUP(AX20,'Revised 2022 Depreciation Rates'!$A:$A,'Revised 2022 Depreciation Rates'!$B:$B)/12) -> 0.002916666667 | BA22: =IF(AY21=BB21,0,IF((AY22-BB21)<ROUND((AY21*AZ22),0),AY22-BB21,ROUND((AY21*AZ22),0))) -> 21 | BB22: =ROUND(+BB21+BA22,0) -> 1395
A23: 5. | B23: Net Investment (Lines 2 + 3 + 4) | F23: 8257616.72 | G23: =G20+G21+G22 -> 8155695.72 | H23: 8053774.72 | I23: =I20+I21+I22 -> 7951853.72 | J23: 7849932.72 | K23: =K20+K21+K22 -> 7748011.72 | L23: 7646090.72 | M23: 7544169.72 | N23: 7442248.72 | O23: 7340327.72 | P23: 7238406.72 | Q23: 7136485.72 | R23: 7034564.72 | W23: 2022-03-21 | X23: 28490542.32 | Y23: Blended | Z23: 101921 | AA23: =ROUND(+AA22+Z23,0) -> 20538689 | AE23: 2121-03-21 | AF23: =AF22+0 -> 141968.14 | AG23: =(_xlfn.XLOOKUP(AE20,'Revised 2022 Depreciation Rates'!$A:$A,'Revised 2022 Depreciation Rates'!$B:$B)/12) -> 0.002416666667 | AH23: 343 | AI23: =ROUND(+AI22+AH23,0) -> 38509 | AL23: 2022-03-21 | AM23: =AM22+0 -> 28341531.22 | AN23: =(_xlfn.XLOOKUP(AL20,'Revised 2022 Depreciation Rates'!$A:$A,'Revised 2022 Depreciation Rates'!$B:$B)/12) -> 0.003583333333 | AO23: 101557 | AP23: =ROUND(+AP22+AO23,0) -> 20498764 | AR23: 2022-03-21 | AS23: =AS22 -> 0 | AT23: =(_xlfn.XLOOKUP(AR20,'Revised 2022 Depreciation Rates'!$A:$A,'Revised 2022 Depreciation Rates'!$B:$B)/12) -> 0.002583333333 | AU23: 0 | AV23: =ROUND(+AV22+AU23,0) -> 0 | AX23: 2022-03-21 | AY23: 7042.96 | AZ23: =(_xlfn.XLOOKUP(AX20,'Revised 2022 Depreciation Rates'!$A:$A,'Revised 2022 Depreciation Rates'!$B:$B)/12) -> 0.002916666667 | BA23: 21 | BB23: =ROUND(+BB22+BA23,0) -> 1416
W24: 2022-04-21 | X24: 28490542.32 | Y24: Blended | Z24: 101921 | AA24: 20640610 | AE24: 2121-04-21 | AF24: =AF23+0 -> 141968.14 | AG24: =(_xlfn.XLOOKUP(AE20,'Revised 2022 Depreciation Rates'!$A:$A,'Revised 2022 Depreciation Rates'!$B:$B)/12) -> 0.002416666667 | AH24: 343 | AI24: 38852 | AL24: 2022-04-21 | AM24: =AM23+0 -> 28341531.22 | AN24: =(_xlfn.XLOOKUP(AL20,'Revised 2022 Depreciation Rates'!$A:$A,'Revised 2022 Depreciation Rates'!$B:$B)/12) -> 0.003583333333 | AO24: 101557 | AP24: 20600321 | AR24: 2022-04-21 | AS24: 0 | AT24: =(_xlfn.XLOOKUP(AR20,'Revised 2022 Depreciation Rates'!$A:$A,'Revised 2022 Depreciation Rates'!$B:$B)/12) -> 0.002583333333 | AU24: 0 | AV24: 0 | AX24: 2022-04-21 | AY24: 7042.96 | AZ24: =(_xlfn.XLOOKUP(AX20,'Revised 2022 Depreciation Rates'!$A:$A,'Revised 2022 Depreciation Rates'!$B:$B)/12) -> 0.002916666667 | BA24: 21 | BB24: 1437
A25: 6. | B25: Average Net Investment | G25: =ROUND((+F23+G23)/2,0) -> 8206656 | H25: 8104735 | I25: 8002814 | J25: =ROUND((+I23+J23)/2,0) -> 7900893 | K25: =ROUND((+J23+K23)/2,0) -> 7798972 | L25: 7697051 | M25: 7595130 | N25: =ROUND((+M23+N23)/2,0) -> 7493209 | O25: =ROUND((+N23+O23)/2,0) -> 7391288 | P25: =ROUND((+O23+P23)/2,0) -> 7289367 | Q25: =ROUND((+P23+Q23)/2,0) -> 7187446 | R25: =ROUND((+Q23+R23)/2,0) -> 7085525 | W25: 2022-05-21 | X25: 28490542.32 | Y25: Blended | Z25: 101921 | AA25: 20742531 | AE25: 2121-05-21 | AF25: =AF24+0 -> 141968.14 | AG25: =(_xlfn.XLOOKUP(AE20,'Revised 2022 Depreciation Rates'!$A:$A,'Revised 2022 Depreciation Rates'!$B:$B)/12) -> 0.002416666667 | AH25: 343 | AI25: 39195 | AL25: 2022-05-21 | AM25: =AM24+0 -> 28341531.22 | AN25: =(_xlfn.XLOOKUP(AL20,'Revised 2022 Depreciation Rates'!$A:$A,'Revised 2022 Depreciation Rates'!$B:$B)/12) -> 0.003583333333 | AO25: 101557 | AP25: 20701878 | AR25: 2022-05-21 | AS25: 0 | AT25: =(_xlfn.XLOOKUP(AR20,'Revised 2022 Depreciation Rates'!$A:$A,'Revised 2022 Depreciation Rates'!$B:$B)/12) -> 0.002583333333 | AU25: 0 | AV25: 0 | AX25: 2022-05-21 | AY25: 7042.96 | AZ25: =(_xlfn.XLOOKUP(AX20,'Revised 2022 Depreciation Rates'!$A:$A,'Revised 2022 Depreciation Rates'!$B:$B)/12) -> 0.002916666667 | BA25: 21 | BB25: 1458
W26: 2022-06-21 | X26: 28490542.32 | Y26: Blended | Z26: 101921 | AA26: 20844452 | AE26: 2121-06-21 | AF26: =AF25+0 -> 141968.14 | AG26: =(_xlfn.XLOOKUP(AE20,'Revised 2022 Depreciation Rates'!$A:$A,'Revised 2022 Depreciation Rates'!$B:$B)/12) -> 0.002416666667 | AH26: 343 | AI26: 39538 | AL26: 2022-06-21 | AM26: =AM25+0 -> 28341531.22 | AN26: =(_xlfn.XLOOKUP(AL20,'Revised 2022 Depreciation Rates'!$A:$A,'Revised 2022 Depreciation Rates'!$B:$B)/12) -> 0.003583333333 | AO26: 101557 | AP26: 20803435 | AR26: 2022-06-21 | AS26: 0 | AT26: =(_xlfn.XLOOKUP(AR20,'Revised 2022 Depreciation Rates'!$A:$A,'Revised 2022 Depreciation Rates'!$B:$B)/12) -> 0.002583333333 | AU26: 0 | AV26: 0 | AX26: 2022-06-21 | AY26: 7042.96 | AZ26: =(_xlfn.XLOOKUP(AX20,'Revised 2022 Depreciation Rates'!$A:$A,'Revised 2022 Depreciation Rates'!$B:$B)/12) -> 0.002916666667 | BA26: 21 | BB26: 1479
A27: 7. | B27: Return on Average Net Investment | G27: 1 | H27: 2 | I27: 3 | J27: 4 | K27: 5 | L27: 6 | M27: 7 | N27: 8 | O27: 9 | P27: 10 | Q27: 11 | R27: 12 | S27: 13 | W27: 2022-07-21 | X27: 28490542.32 | Y27: Blended | Z27: 101921 | AA27: 20946373 | AE27: 2121-07-21 | AF27: 141968.14 | AG27: =(_xlfn.XLOOKUP(AE20,'Revised 2022 Depreciation Rates'!$A:$A,'Revised 2022 Depreciation Rates'!$B:$B)/12) -> 0.002416666667 | AH27: 343 | AI27: 39881 | AL27: 2022-07-21 | AM27: 28341531.22 | AN27: =(_xlfn.XLOOKUP(AL20,'Revised 2022 Depreciation Rates'!$A:$A,'Revised 2022 Depreciation Rates'!$B:$B)/12) -> 0.003583333333 | AO27: 101557 | AP27: 20904992 | AR27: 2022-07-21 | AS27: 0 | AT27: =(_xlfn.XLOOKUP(AR20,'Revised 2022 Depreciation Rates'!$A:$A,'Revised 2022 Depreciation Rates'!$B:$B)/12) -> 0.002583333333 | AU27: 0 | AV27: 0 | AX27: 2022-07-21 | AY27: 7042.96 | AZ27: =(_xlfn.XLOOKUP(AX20,'Revised 2022 Depreciation Rates'!$A:$A,'Revised 2022 Depreciation Rates'!$B:$B)/12) -> 0.002916666667 | BA27: 21 | BB27: 1500
B28: a. Equity Component Grossed Up For Taxes (B) | G28: =ROUND(+G25*(G58)/12,0) -> 42947 | H28: =ROUND(+H25*(H58)/12,0) -> 42413 | I28: 41880 | J28: 41347 | K28: 40813 | L28: 40280 | M28: 39747 | N28: 39213 | O28: 38680 | P28: 38146 | Q28: 37613 | R28: 37080 | S28: =SUM(G28:R28) -> 480159 | W28: 2022-08-21 | X28: 28490542.32 | Y28: Blended | Z28: 101921 | AA28: 21048294 | AE28: 2121-08-21 | AF28: 141968.14 | AG28: =(_xlfn.XLOOKUP(AE20,'Revised 2022 Depreciation Rates'!$A:$A,'Revised 2022 Depreciation Rates'!$B:$B)/12) -> 0.002416666667 | AH28: 343 | AI28: 40224 | AL28: 2022-08-21 | AM28: 28341531.22 | AN28: =(_xlfn.XLOOKUP(AL20,'Revised 2022 Depreciation Rates'!$A:$A,'Revised 2022 Depreciation Rates'!$B:$B)/12) -> 0.003583333333 | AO28: 101557 | AP28: 21006549 | AR28: 2022-08-21 | AS28: 0 | AT28: =(_xlfn.XLOOKUP(AR20,'Revised 2022 Depreciation Rates'!$A:$A,'Revised 2022 Depreciation Rates'!$B:$B)/12) -> 0.002583333333 | AU28: 0 | AV28: 0 | AX28: 2022-08-21 | AY28: 7042.96 | AZ28: =(_xlfn.XLOOKUP(AX20,'Revised 2022 Depreciation Rates'!$A:$A,'Revised 2022 Depreciation Rates'!$B:$B)/12) -> 0.002916666667 | BA28: 21 | BB28: 1521
B29: b. Debt Component Grossed Up For Taxes (C) | G29: =ROUND(+G25*(G59)/12,0) -> 11184 | H29: =ROUND(+H25*(H59)/12,0) -> 11045 | I29: 10906 | J29: 10767 | K29: 10628 | L29: 10489 | M29: 10350 | N29: 10211 | O29: 10072 | P29: 9934 | Q29: 9795 | R29: 9656 | S29: =SUM(G29:R29) -> 125037 | W29: 2022-09-21 | X29: 28490542.32 | Y29: Blended | Z29: 101921 | AA29: 21150215 | AE29: 2121-09-21 | AF29: 141968.14 | AG29: =(_xlfn.XLOOKUP(AE20,'Revised 2022 Depreciation Rates'!$A:$A,'Revised 2022 Depreciation Rates'!$B:$B)/12) -> 0.002416666667 | AH29: 343 | AI29: 40567 | AL29: 2022-09-21 | AM29: 28341531.22 | AN29: =(_xlfn.XLOOKUP(AL20,'Revised 2022 Depreciation Rates'!$A:$A,'Revised 2022 Depreciation Rates'!$B:$B)/12) -> 0.003583333333 | AO29: 101557 | AP29: 21108106 | AR29: 2022-09-21 | AS29: 0 | AT29: =(_xlfn.XLOOKUP(AR20,'Revised 2022 Depreciation Rates'!$A:$A,'Revised 2022 Depreciation Rates'!$B:$B)/12) -> 0.002583333333 | AU29: 0 | AV29: =ROUND(+AV28+AU29,0) -> 0 | AX29: 2022-09-21 | AY29: 7042.96 | AZ29: =(_xlfn.XLOOKUP(AX20,'Revised 2022 Depreciation Rates'!$A:$A,'Revised 2022 Depreciation Rates'!$B:$B)/12) -> 0.002916666667 | BA29: 21 | BB29: 1542
W30: 2022-10-21 | X30: 28490542.32 | Y30: Blended | Z30: 101921 | AA30: 21252136 | AE30: 2121-10-21 | AF30: 141968.14 | AG30: =(_xlfn.XLOOKUP(AE20,'Revised 2022 Depreciation Rates'!$A:$A,'Revised 2022 Depreciation Rates'!$B:$B)/12) -> 0.002416666667 | AH30: 343 | AI30: 40910 | AL30: 2022-10-21 | AM30: 28341531.22 | AN30: =(_xlfn.XLOOKUP(AL20,'Revised 2022 Depreciation Rates'!$A:$A,'Revised 2022 Depreciation Rates'!$B:$B)/12) -> 0.003583333333 | AO30: 101557 | AP30: 21209663 | AR30: 2022-10-21 | AS30: 0 | AT30: =(_xlfn.XLOOKUP(AR20,'Revised 2022 Depreciation Rates'!$A:$A,'Revised 2022 Depreciation Rates'!$B:$B)/12) -> 0.002583333333 | AU30: 0 | AV30: =ROUND(+AV29+AU30,0) -> 0 | AX30: 2022-10-21 | AY30: 7042.96 | AZ30: =(_xlfn.XLOOKUP(AX20,'Revised 2022 Depreciation Rates'!$A:$A,'Revised 2022 Depreciation Rates'!$B:$B)/12) -> 0.002916666667 | BA30: 21 | BB30: 1563
A31: 8. | B31: Investment Expenses | W31: 2022-11-21 | X31: 28490542.32 | Y31: Blended | Z31: 101921 | AA31: 21354057 | AB31: =X32-X19 -> 0 | AC31: in-service activity | AE31: 2121-11-21 | AF31: 141968.14 | AG31: =(_xlfn.XLOOKUP(AE20,'Revised 2022 Depreciation Rates'!$A:$A,'Revised 2022 Depreciation Rates'!$B:$B)/12) -> 0.002416666667 | AH31: 343 | AI31: 41253 | AL31: 2022-11-21 | AM31: 28341531.22 | AN31: =(_xlfn.XLOOKUP(AL20,'Revised 2022 Depreciation Rates'!$A:$A,'Revised 2022 Depreciation Rates'!$B:$B)/12) -> 0.003583333333 | AO31: 101557 | AP31: 21311220 | AR31: 2022-11-21 | AS31: 0 | AT31: =(_xlfn.XLOOKUP(AR20,'Revised 2022 Depreciation Rates'!$A:$A,'Revised 2022 Depreciation Rates'!$B:$B)/12) -> 0.002583333333 | AU31: 0 | AV31: =ROUND(+AV30+AU31,0) -> 0 | AX31: 2022-11-21 | AY31: 7042.96 | AZ31: =(_xlfn.XLOOKUP(AX20,'Revised 2022 Depreciation Rates'!$A:$A,'Revised 2022 Depreciation Rates'!$B:$B)/12) -> 0.002916666667 | BA31: 21 | BB31: 1584
B32: a. Depreciation (D) | G32: =+$Z$21 -> 101921 | H32: =+$Z$22 -> 101921 | I32: =+$Z$23 -> 101921 | J32: =+$Z$24 -> 101921 | K32: =+$Z$25 -> 101921 | L32: =+$Z$26 -> 101921 | M32: =+$Z$27 -> 101921 | N32: =+$Z$28 -> 101921 | O32: =+$Z$29 -> 101921 | P32: =+$Z$30 -> 101921 | Q32: =+$Z$31 -> 101921 | R32: =+$Z$32 -> 101921 | S32: =SUM(G32:R32) -> 1223052 | T32: =+S32-AB32 -> -0.4000000022 | U32: ck | W32: 2022-12-21 | X32: 28490542.32 | Y32: Blended | Z32: 101921 | AA32: 21455978 | AB32: =AA32-AA19 -> 1223052.4 | AC32: depreciation activity | AE32: 2121-12-21 | AF32: 141968.14 | AG32: =(_xlfn.XLOOKUP(AE20,'Revised 2022 Depreciation Rates'!$A:$A,'Revised 2022 Depreciation Rates'!$B:$B)/12) -> 0.002416666667 | AH32: =IF(AF31=AI31,0,IF((AF32-AI31)<ROUND((AF31*AG32),0),AF32-AI31,ROUND((AF31*AG32),0))) -> 343 | AI32: 41596 | AL32: 2022-12-21 | AM32: 28341531.22 | AN32: =(_xlfn.XLOOKUP(AL20,'Revised 2022 Depreciation Rates'!$A:$A,'Revised 2022 Depreciation Rates'!$B:$B)/12) -> 0.003583333333 | AO32: =IF(AM31=AP31,0,IF((AM32-AP31)<ROUND((AM31*AN32),0),AM32-AP31,ROUND((AM31*AN32),0))) -> 101557 | AP32: 21412777 | AR32: 2022-12-21 | AS32: 0 | AT32: =(_xlfn.XLOOKUP(AR20,'Revised 2022 Depreciation Rates'!$A:$A,'Revised 2022 Depreciation Rates'!$B:$B)/12) -> 0.002583333333 | AU32: =IF(AS31=AV31,0,IF((AS32-AV31)<ROUND((AS31*AT32),0),AS32-AV31,ROUND((AS31*AT32),0))) -> 0 | AV32: =ROUND(+AV31+AU32,0) -> 0 | AX32: 2022-12-21 | AY32: 7042.96 | AZ32: =(_xlfn.XLOOKUP(AX20,'Revised 2022 Depreciation Rates'!$A:$A,'Revised 2022 Depreciation Rates'!$B:$B)/12) -> 0.002916666667 | BA32: =IF(AY31=BB31,0,IF((AY32-BB31)<ROUND((AY31*AZ32),0),AY32-BB31,ROUND((AY31*AZ32),0))) -> 21 | BB32: 1605
B33: b. Amortization | G33: 0 | H33: 0 | I33: 0 | J33: 0 | K33: 0 | L33: 0 | M33: 0 | N33: 0 | O33: 0 | P33: 0 | Q33: 0 | R33: 0 | S33: =SUM(G33:R33) -> 0
B34: c. Dismantlement | G34: 0 | H34: 0 | I34: 0 | J34: 0 | K34: 0 | L34: 0 | M34: 0 | N34: 0 | O34: 0 | P34: 0 | Q34: 0 | R34: 0 | S34: =SUM(G34:R34) -> 0 | AE34: CM Depr | AF34: =+IF(AF3="","",IF(AF3="IN SERVICE",CHOOSE($C$60,AF21,AF22,AF23,AF24,AF25,AF26,AF27,AF28,AF29,AF30,AF31,AF32),"")) -> 141968.14 | AM34: =+IF(AM3="","",IF(AM3="IN SERVICE",CHOOSE($C$60,AM21,AM22,AM23,AM24,AM25,AM26,AM27,AM28,AM29,AM30,AM31,AM32),"")) -> 28341531.22 | AS34: 0 | AY34: 7042.96
B35: d. Property Taxes | G35: 0 | H35: 0 | I35: 0 | J35: 0 | K35: 0 | L35: 0 | M35: 0 | N35: 0 | O35: 0 | P35: 0 | Q35: 0 | R35: 0 | S35: =SUM(G35:R35) -> 0
B36: e. Other | G36: 0 | H36: 0 | I36: 0 | J36: 0 | K36: 0 | L36: 0 | M36: 0 | N36: 0 | O36: 0 | P36: 0 | Q36: 0 | R36: 0 | S36: =SUM(G36:R36) -> 0
A38: 9. | B38: Total System Recoverable Expenses (Lines 7 + 8) | G38: =ROUND(+G28+G29+G32+G33+G34+G35+G36,0) -> 156052 | H38: 155379 | I38: 154707 | J38: 154035 | K38: 153362 | L38: 152690 | M38: 152018 | N38: 151345 | O38: =ROUND(+O28+O29+O32+O33+O34+O35+O36,0) -> 150673 | P38: 150001 | Q38: 149329 | R38: 148657 | S38: =SUM(G38:R38) -> 1828248
B39: a. Recoverable Costs Allocated to Energy | G39: =ROUND(+G38*1,0) -> 156052 | H39: 155379 | I39: 154707 | J39: 154035 | K39: 153362 | L39: 152690 | M39: 152018 | N39: 151345 | O39: 150673 | P39: 150001 | Q39: =ROUND(+Q38*1,0) -> 149329 | R39: =ROUND(+R38*1,0) -> 148657 | S39: =SUM(G39:R39) -> 1828248
B40: b. Recoverable Costs Allocated to Demand | G40: =ROUND(+G38*0,0) -> 0 | H40: 0 | I40: 0 | J40: 0 | K40: 0 | L40: 0 | M40: 0 | N40: 0 | O40: 0 | P40: 0 | Q40: 0 | R40: 0 | S40: =SUM(G40:R40) -> 0
A42: 10. | B42: Energy Jurisdictional Factor | G42: ='Form 42 2P'!D48 -> 1 | H42: ='Form 42 2P'!E48 -> 1 | I42: ='Form 42 2P'!F48 -> 1 | J42: ='Form 42 2P'!G48 -> 1 | K42: ='Form 42 2P'!H48 -> 1 | L42: ='Form 42 2P'!I48 -> 1 | M42: ='Form 42 2P'!J48 -> 1 | N42: ='Form 42 2P'!K48 -> 1 | O42: ='Form 42 2P'!L48 -> 1 | P42: ='Form 42 2P'!M48 -> 1 | Q42: ='Form 42 2P'!N48 -> 1 | R42: ='Form 42 2P'!O48 -> 1
A43: 11. | B43: Demand Jurisdictional Factor | G43: =+'Form 42 2P'!D49 -> 1 | H43: =+'Form 42 2P'!E49 -> 1 | I43: =+'Form 42 2P'!F49 -> 1 | J43: =+'Form 42 2P'!G49 -> 1 | K43: =+'Form 42 2P'!H49 -> 1 | L43: =+'Form 42 2P'!I49 -> 1 | M43: =+'Form 42 2P'!J49 -> 1 | N43: =+'Form 42 2P'!K49 -> 1 | O43: =+'Form 42 2P'!L49 -> 1 | P43: =+'Form 42 2P'!M49 -> 1 | Q43: =+'Form 42 2P'!N49 -> 1 | R43: =+'Form 42 2P'!O49 -> 1
A45: 12. | B45: Retail Energy-Related Recoverable Costs (E) | G45: =ROUND((+G39*G42),0) -> 156052 | H45: =ROUND((+H39*H42),0) -> 155379 | I45: 154707 | J45: 154035 | K45: 153362 | L45: 152690 | M45: 152018 | N45: 151345 | O45: 150673 | P45: 150001 | Q45: 149329 | R45: 148657 | S45: =SUM(G45:R45) -> 1828248
A46: 13. | B46: Retail Demand-Related Recoverable Costs (F) | G46: =(+G40*G43) -> 0 | H46: =(+H40*H43) -> 0 | I46: 0 | J46: 0 | K46: 0 | L46: 0 | M46: 0 | N46: 0 | O46: 0 | P46: 0 | Q46: 0 | R46: 0 | S46: =SUM(G46:R46) -> 0
A47: 14. | B47: Total Jurisdictional Recoverable Costs (Lines 12 + 13) | G47: =G45+G46 -> 156052 | H47: =H45+H46 -> 155379 | I47: 154707 | J47: 154035 | K47: 153362 | L47: 152690 | M47: 152018 | N47: 151345 | O47: 150673 | P47: 150001 | Q47: 149329 | R47: 148657 | S47: =SUM(G47:R47) -> 1828248
A49: Notes:
A50: (A) | B50: =+B61 -> Applicable depreciable base for Big Bend; accounts 311.46 ($141,968), 312.46 ($28,341,531), and 315.46 ($7,043).
A51: (B) | B51: ='Tot 8E pg1-30'!$B$52 -> Line 6 x 6.2798% x 1/12. Based on ROE of 9.95% and weighted income tax rate of 25.345% (expansion factor of 1.34315)
A52: (C) | B52: ='Tot 8E pg1-30'!$B$53 -> Line 6 x 1.6353% x 1/12
A53: (D) | B53: =+B68 -> Applicable depreciation rate is 2.9%, 4.3%, and 3.5%
A54: (E) | B54: Line 9a x Line 10
A55: (F) | B55: Line 9b x Line 11
F58: ROI WACC-Equity | G58: ='Form 42 8P'!$E$50 -> 0.062798 | H58: ='Form 42 8P'!$E$50 -> 0.062798 | I58: ='Form 42 8P'!$E$50 -> 0.062798 | J58: ='Form 42 8P'!$E$50 -> 0.062798 | K58: ='Form 42 8P'!$E$50 -> 0.062798 | L58: ='Form 42 8P'!$E$50 -> 0.062798 | M58: ='Form 42 8P'!$E$50 -> 0.062798 | N58: ='Form 42 8P'!$E$50 -> 0.062798 | O58: ='Form 42 8P'!$E$50 -> 0.062798 | P58: ='Form 42 8P'!$E$50 -> 0.062798 | Q58: ='Form 42 8P'!$E$50 -> 0.062798 | R58: ='Form 42 8P'!$E$50 -> 0.062798
F59: ROI WACC-Debt | G59: ='Form 42 8P'!$E$59 -> 0.016353 | H59: ='Form 42 8P'!$E$59 -> 0.016353 | I59: ='Form 42 8P'!$E$59 -> 0.016353 | J59: ='Form 42 8P'!$E$59 -> 0.016353 | K59: ='Form 42 8P'!$E$59 -> 0.016353 | L59: ='Form 42 8P'!$E$59 -> 0.016353 | M59: ='Form 42 8P'!$E$59 -> 0.016353 | N59: ='Form 42 8P'!$E$59 -> 0.016353 | O59: ='Form 42 8P'!$E$59 -> 0.016353 | P59: ='Form 42 8P'!$E$59 -> 0.016353 | Q59: ='Form 42 8P'!$E$59 -> 0.016353 | R59: ='Form 42 8P'!$E$59 -> 0.016353
B60: CM | C60: 12
B61: =+"Applicable depreciable base for Big Bend; accounts "&G62&G63&G64&"." -> Applicable depreciable base for Big Bend; accounts 311.46 ($141,968), 312.46 ($28,341,531), and 315.46 ($7,043).
A62: =+INDEX($AE$27:$DV$27,1,MATCH($B62,$AE$3:$DV$3,0)+2)*12 -> 0.029 | B62: 311.46 | C62: =+INDEX($AE$34:$DV$34,1,MATCH($B62,$AE$3:$DV$3,0)+1) -> 141968.14 | D62: =+TEXT(B62,"#.00") -> 311.46 | E62: =+TEXT(C62,"$#,###") -> $141,968 | F62: =+IF(C62=0,"",TEXT(A62,"#.0%")) -> 2.9% | G62: =+D62&" ("&E62&")" -> 311.46 ($141,968) | H62: =+F62 -> 2.9%
A63: =+INDEX($AE$27:$DV$27,1,MATCH($B63,$AE$3:$DV$3,0)+2)*12 -> 0.043 | B63: 312.46 | C63: =+INDEX($AE$34:$DV$34,1,MATCH($B63,$AE$3:$DV$3,0)+1) -> 28341531.22 | D63: =+TEXT(B63,"#.00") -> 312.46 | E63: =+TEXT(C63,"$#,###") -> $28,341,531 | F63: 4.3% | G63: =IF(C63=0,"",(", "&D63&" ("&E63&")")) -> , 312.46 ($28,341,531) | H63: =+IF(C63=0,"",(", "&F63)) -> , 4.3%
A64: =+INDEX($AE$27:$DV$27,1,MATCH($B64,$AE$3:$DV$3,0)+2)*12 -> 0.035 | B64: 315.46 | C64: =+INDEX($AE$34:$DV$34,1,MATCH($B64,$AE$3:$DV$3,0)+1) -> 7042.96 | D64: 315.46 | E64: =+TEXT(C64,"$#,###") -> $7,043 | F64: 3.5% | G64: =IF(C64=0,"",(", and "&D64&" ("&E64&")")) -> , and 315.46 ($7,043) | H64: =+IF(C64=0,"",(", and "&F64)) -> , and 3.5%
C66: =+SUM(C62:C65) -> 28490542.32
C67: =+X32-C66 -> 0
B68: =+"Applicable depreciation rate is "&H62&H63&H64 -> Applicable depreciation rate is 2.9%, 4.3%, and 3.5%

Sheet Form 42 4P p10
A1: ='Form 42 2P'!$A$1:$R$1 -> Tampa Electric Company | S1: Form 42-4P
A2: ='Form 42 2P'!$A$2:$R$2 -> Environmental Cost Recovery Clause | S2: Page 10 of 30 | AE2: FGD #3 Optimization | AK2: FGD #3 Optimization | AQ2: FGD #3 Optimization
A3: ='Form 42 2P'!$A$3:$R$3 -> Calculation of the Projected Period Amount | AM3: not used
A4: ='Form 42 2P'!$A$4:$R$4 -> January 2022 to December 2022 | W4: Blended | X4: IN SERVICE | Y4: DEPREC. | Z4: DEPREC. | AE4: 312.45 | AF4: IN SERVICE | AG4: DEPREC. | AH4: DEPREC. | AL4: IN SERVICE | AM4: DEPREC. | AN4: DEPREC. | AQ4: 311.45 | AR4: IN SERVICE | AS4: DEPREC. | AT4: DEPREC. | AW4: 316.4 | AX4: IN SERVICE | AY4: DEPREC. | AZ4: DEPREC. | BC4: 315.45 | BD4: IN SERVICE | BE4: DEPREC. | BF4: DEPREC. | BI4: 312.46 | BJ4: IN SERVICE | BK4: DEPREC. | BL4: DEPREC. | BO4: 312.42 | BP4: IN SERVICE | BQ4: DEPREC. | BR4: DEPREC. | BU4: 312.4 | BV4: IN SERVICE | BW4: DEPREC. | BX4: DEPREC.
Y5: RATE | Z5: EXP. | AA5: ACC. DEPR. | AG5: RATE | AH5: EXP. | AI5: ACC. DEPR. | AM5: RATE | AN5: EXP. | AO5: ACC. DEPR. | AS5: RATE | AT5: EXP. | AU5: ACC. DEPR. | AY5: RATE | AZ5: EXP. | BA5: ACC. DEPR. | BE5: RATE | BF5: EXP. | BG5: ACC. DEPR. | BK5: RATE | BL5: EXP. | BM5: ACC. DEPR. | BQ5: RATE | BR5: EXP. | BS5: ACC. DEPR. | BW5: RATE | BX5: EXP. | BY5: ACC. DEPR.
A6: Return on Capital Investments, Depreciation and Taxes
A7: For Project: Big Bend FGD Optimization and Utilization | W7: 2020-12-20 | X7: 22653929.18 | Y7: Blended | Z7: 47647 | AA7: 10488770 | AE7: 2020-12-20 | AF7: 21855886.2 | AG7: 0.002083333333 | AH7: 45533 | AI7: 10415222 | AK7: 2020-12-20 | AL7: 0 | AM7: 0.00225 | AN7: 0 | AO7: 325 | AQ7: 2020-12-20 | AR7: 40015.69 | AS7: 0.001666666667 | AT7: 67 | AU7: 14899 | AW7: 2020-12-20 | AX7: 71401.09 | AY7: 0.0035 | AZ7: 250 | BA7: 7757 | BC7: 2020-12-20 | BD7: 594900.87 | BE7: 0.002583333333 | BF7: 1537 | BG7: 43804 | BI7: 2020-12-20 | BJ7: 0 | BK7: 0.00275 | BL7: 0 | BM7: 0 | BO7: 2020-12-20 | BP7: 1637.28 | BQ7: 0.003083333333 | BR7: 5 | BS7: 130 | BU7: 2020-12-20 | BV7: 90088.05 | BW7: 0.002833333333 | BX7: 255 | BY7: 6633
A8: (in Dollars) | W8: Blended | AE8: 312.45 | AQ8: 311.45 | AW8: 316.4 | BC8: 315.45 | BI8: 312.46 | BO8: 312.42 | BU8: 312.4
W9: Jan 21 | X9: 22653929.18 | Y9: Blended | Z9: 47647 | AA9: 10536417 | AB9: 0 | AE9: Jan 21 | AF9: 21855886.2 | AG9: 0.002083333333 | AH9: 45533 | AI9: 10460755 | AK9: Jan 21 | AL9: 0 | AM9: 0.00225 | AN9: 0 | AO9: 325 | AQ9: Jan 21 | AR9: 40015.69 | AS9: 0.001666666667 | AT9: 67 | AU9: 14966 | AW9: Jan 21 | AX9: 71401.09 | AY9: 0.0035 | AZ9: 250 | BA9: 8007 | BC9: Jan 21 | BD9: 594900.87 | BE9: 0.002583333333 | BF9: 1537 | BG9: 45341 | BI9: Jan 21 | BJ9: 0 | BK9: 0.00275 | BL9: 0 | BM9: 0 | BO9: Jan 21 | BP9: 1637.28 | BQ9: 0.003083333333 | BR9: 5 | BS9: 135 | BU9: Jan 21 | BV9: 90088.05 | BW9: 0.002833333333 | BX9: 255 | BY9: 6888
S10: End of | W10: 2121-02-21 | X10: 22653929.18 | Y10: Blended | Z10: 47647 | AA10: 10584064 | AE10: 2121-02-21 | AF10: 21855886.2 | AG10: 0.002083333333 | AH10: 45533 | AI10: 10506288 | AK10: 2121-02-21 | AL10: 0 | AM10: 0.00225 | AN10: 0 | AO10: 325 | AQ10: 2121-02-21 | AR10: 40015.69 | AS10: 0.001666666667 | AT10: 67 | AU10: 15033 | AW10: 2121-02-21 | AX10: 71401.09 | AY10: 0.0035 | AZ10: 250 | BA10: 8257 | BC10: 2121-02-21 | BD10: 594900.87 | BE10: 0.002583333333 | BF10: 1537 | BG10: 46878 | BI10: 2121-02-21 | BJ10: 0 | BK10: 0.00275 | BL10: 0 | BM10: 0 | BO10: 2121-02-21 | BP10: 1637.28 | BQ10: 0.003083333333 | BR10: 5 | BS10: 140 | BU10: 2121-02-21 | BV10: 90088.05 | BW10: 0.002833333333 | BX10: 255 | BY10: 7143
F11: Beginning of | G11: ='Form 42 2P'!$D$10 -> Projected | H11: ='Form 42 2P'!$E$10 -> Projected | I11: ='Form 42 2P'!$F$10 -> Projected | J11: ='Form 42 2P'!$G$10 -> Projected | K11: ='Form 42 2P'!$H$10 -> Projected | L11: ='Form 42 2P'!$I$10 -> Projected | M11: ='Form 42 2P'!$J$10 -> Projected | N11: ='Form 42 2P'!$K$10 -> Projected | O11: ='Form 42 2P'!$L$10 -> Projected | P11: ='Form 42 2P'!$M$10 -> Projected | Q11: ='Form 42 2P'!$N$10 -> Projected | R11: ='Form 42 2P'!$O$10 -> Projected | S11: Period | W11: 2121-03-21 | X11: 22653929.18 | Y11: Blended | Z11: 47647 | AA11: 10631711 | AE11: 2121-03-21 | AF11: 21855886.2 | AG11: 0.002083333333 | AH11: 45533 | AI11: 10551821 | AK11: 2121-03-21 | AL11: 0 | AM11: 0.00225 | AN11: 0 | AO11: 325 | AQ11: 2121-03-21 | AR11: 40015.69 | AS11: 0.001666666667 | AT11: 67 | AU11: 15100 | AW11: 2121-03-21 | AX11: 71401.09 | AY11: 0.0035 | AZ11: 250 | BA11: 8507 | BC11: 2121-03-21 | BD11: 594900.87 | BE11: 0.002583333333 | BF11: 1537 | BG11: 48415 | BI11: 2121-03-21 | BJ11: 0 | BK11: 0.00275 | BL11: 0 | BM11: 0 | BO11: 2121-03-21 | BP11: 1637.28 | BQ11: 0.003083333333 | BR11: 5 | BS11: 145 | BU11: 2121-03-21 | BV11: 90088.05 | BW11: 0.002833333333 | BX11: 255 | BY11: 7398
A12: Line | B12: Description | F12: Period Amount | G12: ='Form 42 2P'!$D$11 -> January | H12: ='Form 42 2P'!$E$11 -> February | I12: ='Form 42 2P'!$F$11 -> March | J12: ='Form 42 2P'!$G$11 -> April | K12: ='Form 42 2P'!$H$11 -> May | L12: ='Form 42 2P'!$I$11 -> June | M12: ='Form 42 2P'!$J$11 -> July | N12: ='Form 42 2P'!$K$11 -> August | O12: ='Form 42 2P'!$L$11 -> September | P12: ='Form 42 2P'!$M$11 -> October | Q12: ='Form 42 2P'!$N$11 -> November | R12: ='Form 42 2P'!$O$11 -> December | S12: Total | W12: 2121-04-21 | X12: 22653929.18 | Y12: Blended | Z12: 47647 | AA12: 10679358 | AE12: 2121-04-21 | AF12: 21855886.2 | AG12: 0.002083333333 | AH12: 45533 | AI12: 10597354 | AK12: 2121-04-21 | AL12: 0 | AM12: 0.00225 | AN12: 0 | AO12: 325 | AQ12: 2121-04-21 | AR12: 40015.69 | AS12: 0.001666666667 | AT12: 67 | AU12: 15167 | AW12: 2121-04-21 | AX12: 71401.09 | AY12: 0.0035 | AZ12: 250 | BA12: 8757 | BC12: 2121-04-21 | BD12: 594900.87 | BE12: 0.002583333333 | BF12: 1537 | BG12: 49952 | BI12: 2121-04-21 | BJ12: 0 | BK12: 0.00275 | BL12: 0 | BM12: 0 | BO12: 2121-04-21 | BP12: 1637.28 | BQ12: 0.003083333333 | BR12: 5 | BS12: 150 | BU12: 2121-04-21 | BV12: 90088.05 | BW12: 0.002833333333 | BX12: 255 | BY12: 7653
W13: 2121-05-21 | X13: 22653929.18 | Y13: Blended | Z13: 47647 | AA13: 10727005 | AE13: 2121-05-21 | AF13: 21855886.2 | AG13: 0.002083333333 | AH13: 45533 | AI13: 10642887 | AK13: 2121-05-21 | AL13: 0 | AM13: 0.00225 | AN13: 0 | AO13: 325 | AQ13: 2121-05-21 | AR13: 40015.69 | AS13: 0.001666666667 | AT13: 67 | AU13: 15234 | AW13: 2121-05-21 | AX13: 71401.09 | AY13: 0.0035 | AZ13: 250 | BA13: 9007 | BC13: 2121-05-21 | BD13: 594900.87 | BE13: 0.002583333333 | BF13: 1537 | BG13: 51489 | BI13: 2121-05-21 | BJ13: 0 | BK13: 0.00275 | BL13: 0 | BM13: 0 | BO13: 2121-05-21 | BP13: 1637.28 | BQ13: 0.003083333333 | BR13: 5 | BS13: 155 | BU13: 2121-05-21 | BV13: 90088.05 | BW13: 0.002833333333 | BX13: 255 | BY13: 7908
A14: 1. | B14: Investments | W14: 2121-06-21 | X14: 22653929.18 | Y14: Blended | Z14: 47647 | AA14: 10774652 | AE14: 2121-06-21 | AF14: 21855886.2 | AG14: 0.002083333333 | AH14: 45533 | AI14: 10688420 | AK14: 2121-06-21 | AL14: 0 | AM14: 0.00225 | AN14: 0 | AO14: 325 | AQ14: 2121-06-21 | AR14: 40015.69 | AS14: 0.001666666667 | AT14: 67 | AU14: 15301 | AW14: 2121-06-21 | AX14: 71401.09 | AY14: 0.0035 | AZ14: 250 | BA14: 9257 | BC14: 2121-06-21 | BD14: 594900.87 | BE14: 0.002583333333 | BF14: 1537 | BG14: 53026 | BI14: 2121-06-21 | BJ14: 0 | BK14: 0.00275 | BL14: 0 | BM14: 0 | BO14: 2121-06-21 | BP14: 1637.28 | BQ14: 0.003083333333 | BR14: 5 | BS14: 160 | BU14: 2121-06-21 | BV14: 90088.05 | BW14: 0.002833333333 | BX14: 255 | BY14: 8163
B15: a. Expenditures/Additions | G15: 0 | H15: 0 | I15: 0 | J15: 0 | K15: 0 | L15: 0 | M15: 0 | N15: 0 | O15: 0 | P15: 0 | Q15: 0 | R15: 0 | S15: =SUM(G15:R15) -> 0 | W15: 2121-07-21 | X15: 22653929.18 | Y15: Blended | Z15: 47647 | AA15: 10822299 | AE15: 2121-07-21 | AF15: 21855886.2 | AG15: 0.002083333333 | AH15: 45533 | AI15: 10733953 | AK15: 2121-07-21 | AL15: 0 | AM15: 0.00225 | AN15: 0 | AO15: 325 | AQ15: 2121-07-21 | AR15: 40015.69 | AS15: 0.001666666667 | AT15: 67 | AU15: 15368 | AW15: 2121-07-21 | AX15: 71401.09 | AY15: 0.0035 | AZ15: 250 | BA15: 9507 | BC15: 2121-07-21 | BD15: 594900.87 | BE15: 0.002583333333 | BF15: 1537 | BG15: 54563 | BI15: 2121-07-21 | BJ15: 0 | BK15: 0.00275 | BL15: 0 | BM15: 0 | BO15: 2121-07-21 | BP15: 1637.28 | BQ15: 0.003083333333 | BR15: 5 | BS15: 165 | BU15: 2121-07-21 | BV15: 90088.05 | BW15: 0.002833333333 | BX15: 255 | BY15: 8418
B16: b. Clearings to Plant | G16: 0 | H16: 0 | I16: 0 | J16: 0 | K16: 0 | L16: 0 | M16: 0 | N16: 0 | O16: 0 | P16: 0 | Q16: 0 | R16: 0 | S16: =SUM(G16:R16) -> 0 | T16: =ROUND(AB32-S16,6) -> 0 | U16: CK | W16: 2121-08-21 | X16: 22653929.18 | Y16: Blended | Z16: 47647 | AA16: 10869946 | AE16: 2121-08-21 | AF16: 21855886.2 | AG16: 0.002083333333 | AH16: 45533 | AI16: 10779486 | AK16: 2121-08-21 | AL16: 0 | AM16: 0.00225 | AN16: 0 | AO16: 325 | AQ16: 2121-08-21 | AR16: 40015.69 | AS16: 0.001666666667 | AT16: 67 | AU16: 15435 | AW16: 2121-08-21 | AX16: 71401.09 | AY16: 0.0035 | AZ16: 250 | BA16: 9757 | BC16: 2121-08-21 | BD16: 594900.87 | BE16: 0.002583333333 | BF16: 1537 | BG16: 56100 | BI16: 2121-08-21 | BJ16: 0 | BK16: 0.00275 | BL16: 0 | BM16: 0 | BO16: 2121-08-21 | BP16: 1637.28 | BQ16: 0.003083333333 | BR16: 5 | BS16: 170 | BU16: 2121-08-21 | BV16: 90088.05 | BW16: 0.002833333333 | BX16: 255 | BY16: 8673
B17: c. Retirements | G17: 0 | H17: 0 | I17: 0 | J17: 0 | K17: 0 | L17: 0 | M17: 0 | N17: 0 | O17: 0 | P17: 0 | Q17: 0 | R17: 0 | S17: =SUM(G17:R17) -> 0 | W17: 2121-09-21 | X17: 22653929.18 | Y17: Blended | Z17: 47647 | AA17: 10917593 | AE17: 2121-09-21 | AF17: 21855886.2 | AG17: 0.002083333333 | AH17: 45533 | AI17: 10825019 | AK17: 2121-09-21 | AL17: 0 | AM17: 0.00225 | AN17: 0 | AO17: 325 | AQ17: 2121-09-21 | AR17: 40015.69 | AS17: 0.001666666667 | AT17: 67 | AU17: 15502 | AW17: 2121-09-21 | AX17: 71401.09 | AY17: 0.0035 | AZ17: 250 | BA17: 10007 | BC17: 2121-09-21 | BD17: 594900.87 | BE17: 0.002583333333 | BF17: 1537 | BG17: 57637 | BI17: 2121-09-21 | BJ17: 0 | BK17: 0.00275 | BL17: 0 | BM17: 0 | BO17: 2121-09-21 | BP17: 1637.28 | BQ17: 0.003083333333 | BR17: 5 | BS17: 175 | BU17: 2121-09-21 | BV17: 90088.05 | BW17: 0.002833333333 | BX17: 255 | BY17: 8928
B18: d. Other | G18: 0 | H18: 0 | I18: 0 | J18: 0 | K18: 0 | L18: 0 | M18: 0 | N18: 0 | O18: 0 | P18: 0 | Q18: 0 | R18: 0 | S18: 0 | W18: 2121-10-21 | X18: 22653929.18 | Y18: Blended | Z18: 47647 | AA18: 10965240 | AE18: 2121-10-21 | AF18: 21855886.2 | AG18: 0.002083333333 | AH18: 45533 | AI18: 10870552 | AK18: 2121-10-21 | AL18: 0 | AM18: 0.00225 | AN18: 0 | AO18: 325 | AQ18: 2121-10-21 | AR18: 40015.69 | AS18: 0.001666666667 | AT18: 67 | AU18: 15569 | AW18: 2121-10-21 | AX18: 71401.09 | AY18: 0.0035 | AZ18: 250 | BA18: 10257 | BC18: 2121-10-21 | BD18: 594900.87 | BE18: 0.002583333333 | BF18: 1537 | BG18: 59174 | BI18: 2121-10-21 | BJ18: 0 | BK18: 0.00275 | BL18: 0 | BM18: 0 | BO18: 2121-10-21 | BP18: 1637.28 | BQ18: 0.003083333333 | BR18: 5 | BS18: 180 | BU18: 2121-10-21 | BV18: 90088.05 | BW18: 0.002833333333 | BX18: 255 | BY18: 9183
W19: 2121-11-21 | X19: 22653929.18 | Y19: Blended | Z19: 47647 | AA19: 11012887 | AB19: 0 | AC19: in-service activity | AE19: 2121-11-21 | AF19: 21855886.2 | AG19: 0.002083333333 | AH19: 45533 | AI19: 10916085 | AK19: 2121-11-21 | AL19: 0 | AM19: 0.00225 | AN19: 0 | AO19: 325 | AQ19: 2121-11-21 | AR19: 40015.69 | AS19: 0.001666666667 | AT19: 67 | AU19: 15636 | AW19: 2121-11-21 | AX19: 71401.09 | AY19: 0.0035 | AZ19: 250 | BA19: 10507 | BC19: 2121-11-21 | BD19: 594900.87 | BE19: 0.002583333333 | BF19: 1537 | BG19: 60711 | BI19: 2121-11-21 | BJ19: 0 | BK19: 0.00275 | BL19: 0 | BM19: 0 | BO19: 2121-11-21 | BP19: 1637.28 | BQ19: 0.003083333333 | BR19: 5 | BS19: 185 | BU19: 2121-11-21 | BV19: 90088.05 | BW19: 0.002833333333 | BX19: 255 | BY19: 9438
A20: 2. | B20: Plant-in-Service/Depreciation Base (A) | F20: 22653929.18 | G20: =$X$22 -> 22653929.18 | H20: =$X$23 -> 22653929.18 | I20: =$X$24 -> 22653929.18 | J20: =$X$25 -> 22653929.18 | K20: =$X$26 -> 22653929.18 | L20: =$X$27 -> 22653929.18 | M20: =$X$28 -> 22653929.18 | N20: =$X$29 -> 22653929.18 | O20: =$X$30 -> 22653929.18 | P20: =$X$31 -> 22653929.18 | Q20: =$X$32 -> 22653929.18 | R20: =$X$33 -> 22653929.18 | T20: =+R20-X33 -> 0 | U20: ck | W20: 2121-12-21 | X20: 22653929.18 | Y20: Blended | Z20: 47647 | AA20: 11060534 | AB20: 571764 | AC20: depreciation activity | AE20: 2121-12-21 | AF20: 21855886.2 | AG20: 0.002083333333 | AH20: 45533 | AI20: 10961618 | AK20: 2121-12-21 | AL20: 0 | AM20: 0.00225 | AN20: 0 | AO20: 325 | AQ20: 2121-12-21 | AR20: 40015.69 | AS20: 0.001666666667 | AT20: 67 | AU20: 15703 | AW20: 2121-12-21 | AX20: 71401.09 | AY20: 0.0035 | AZ20: 250 | BA20: 10757 | BC20: 2121-12-21 | BD20: 594900.87 | BE20: 0.002583333333 | BF20: 1537 | BG20: 62248 | BI20: 2121-12-21 | BJ20: 0 | BK20: 0.00275 | BL20: 0 | BM20: 0 | BO20: 2121-12-21 | BP20: 1637.28 | BQ20: 0.003083333333 | BR20: 5 | BS20: 190 | BU20: 2121-12-21 | BV20: 90088.05 | BW20: 0.002833333333 | BX20: 255 | BY20: 9693
A21: 3. | B21: Less: Accumulated Depreciation | F21: -11060534 | G21: =-G32+F21 -> -11118802 | H21: -11177070 | I21: -11235338 | J21: -11293606 | K21: -11351874 | L21: -11410142 | M21: =-M32+L21 -> -11468410 | N21: -11526678 | O21: -11584946 | P21: -11643214 | Q21: -11701482 | R21: -11759750 | T21: =R21+AA33 -> 0 | U21: ck | W21: Blended | AE21: 312.45 | AQ21: 311.45 | AW21: 316.4 | BC21: 315.45 | BI21: 312.46 | BO21: 312.42 | BU21: 312.4
A22: 4. | B22: CWIP - Non-Interest Bearing | F22: 0 | G22: =F22+G15-G16 -> 0 | H22: =G22+H15-H16 -> 0 | I22: =H22+I15-I16 -> 0 | J22: 0 | K22: 0 | L22: =ROUND((K22+L15-L16),4) -> 0 | M22: 0 | N22: 0 | O22: 0 | P22: 0 | Q22: 0 | R22: 0 | W22: =+AQ22 -> 2022-01-21 | X22: =AF22+AL22+AR22+AX22+BD22+BJ22+BP22+BV22 -> 22653929.18 | Y22: Blended | Z22: =AH22+AN22+AT22+AZ22*1+BF22+BL22+BR22+BX22 -> 58268 | AA22: =ROUND(+AA20+Z22,0) -> 11118802 | AB22: =AA22-AA20-AT22-AN22-AZ22-BF22-BL22-BR22-BX22-AH22 -> 0 | AE22: 2022-01-21 | AF22: =AF20+0 -> 21855886.2 | AG22: =(_xlfn.XLOOKUP(AE21,'Revised 2022 Depreciation Rates'!$A:$A,'Revised 2022 Depreciation Rates'!$B:$B)/12) -> 0.002583333333 | AH22: =IF(AF20=AI20,0,IF((AF22-AI20)<ROUND((AF20*AG22),0),AF22-AI20,ROUND((AF20*AG22),0))) -> 56461 | AI22: =ROUND(+AI20+AH22,0) -> 11018079 | AK22: =+AE22 -> 2022-01-21 | AL22: =AL20 -> 0 | AM22: =(_xlfn.XLOOKUP(AK21,'Revised 2022 Depreciation Rates'!$A:$A,'Revised 2022 Depreciation Rates'!$B:$B)/12) -> 0 | AN22: =ROUND((AL20*AM22),0) -> 0 | AO22: =ROUND(+AO20+AN22,0) -> 325 | AQ22: =+AK22 -> 2022-01-21 | AR22: =AR20+0 -> 40015.69 | AS22: =(_xlfn.XLOOKUP(AQ21,'Revised 2022 Depreciation Rates'!$A:$A,'Revised 2022 Depreciation Rates'!$B:$B)/12) -> 0.00175 | AT22: =IF(AR20=AU20,0,IF((AR22-AU20)<ROUND((AR20*AS22),0),AR22-AU20,ROUND((AR20*AS22),0))) -> 70 | AU22: =ROUND(+AU20+AT22,0) -> 15773 | AW22: =+AQ22 -> 2022-01-21 | AX22: =AX20 -> 71401.09 | AY22: =(_xlfn.XLOOKUP(AW21,'Revised 2022 Depreciation Rates'!$A:$A,'Revised 2022 Depreciation Rates'!$B:$B)/12) -> 0.00275 | AZ22: =IF(AX20=BA20,0,IF((AX22-BA20)<ROUND((AX20*AY22),0),AX22-BA20,ROUND((AX20*AY22),0))) -> 196 | BA22: =ROUND(+BA20+AZ22,0) -> 10953 | BC22: =+AW22 -> 2022-01-21 | BD22: =BD20+0 -> 594900.87 | BE22: =(_xlfn.XLOOKUP(BC21,'Revised 2022 Depreciation Rates'!$A:$A,'Revised 2022 Depreciation Rates'!$B:$B)/12) -> 0.002 | BF22: =IF(BD20=BG20,0,IF((BD22-BG20)<ROUND((BD20*BE22),0),BD22-BG20,ROUND((BD20*BE22),0))) -> 1190 | BG22: =ROUND(+BG20+BF22,0) -> 63438 | BI22: =+BC22 -> 2022-01-21 | BJ22: =BJ20+0 -> 0 | BK22: =(_xlfn.XLOOKUP(BI21,'Revised 2022 Depreciation Rates'!$A:$A,'Revised 2022 Depreciation Rates'!$B:$B)/12) -> 0.003583333333 | BL22: =IF(BJ20=BM20,0,IF((BJ22-BM20)<ROUND((BJ20*BK22),0),BJ22-BM20,ROUND((BJ20*BK22),0))) -> 0 | BM22: =ROUND(+BM20+BL22,0) -> 0 | BO22: =+BI22 -> 2022-01-21 | BP22: =BP20+0 -> 1637.28 | BQ22: =(_xlfn.XLOOKUP(BO21,'Revised 2022 Depreciation Rates'!$A:$A,'Revised 2022 Depreciation Rates'!$B:$B)/12) -> 0.003583333333 | BR22: =IF(BP20=BS20,0,IF((BP22-BS20)<ROUND((BP20*BQ22),0),BP22-BS20,ROUND((BP20*BQ22),0))) -> 6 | BS22: =ROUND(+BS20+BR22,0) -> 196 | BU22: =+BO22 -> 2022-01-21 | BV22: =BV20+0 -> 90088.05 | BW22: =(_xlfn.XLOOKUP(BU21,'Revised 2022 Depreciation Rates'!$A:$A,'Revised 2022 Depreciation Rates'!$B:$B)/12) -> 0.003833333333 | BX22: =IF(BV20=BY20,0,IF((BV22-BY20)<ROUND((BV20*BW22),0),BV22-BY20,ROUND((BV20*BW22),0))) -> 345 | BY22: =ROUND(+BY20+BX22,0) -> 10038
A23: 5. | B23: Net Investment (Lines 2 + 3 + 4) | F23: 11593395.18 | G23: =G20+G21+G22 -> 11535127.18 | H23: 11476859.18 | I23: 11418591.18 | J23: 11360323.18 | K23: 11302055.18 | L23: 11243787.18 | M23: 11185519.18 | N23: 11127251.18 | O23: 11068983.18 | P23: 11010715.18 | Q23: 10952447.18 | R23: 10894179.18 | W23: 2022-02-21 | X23: 22653929.18 | Y23: Blended | Z23: 58268 | AA23: =ROUND(+AA22+Z23,0) -> 11177070 | AE23: 2022-02-21 | AF23: =AF22+0 -> 21855886.2 | AG23: =(_xlfn.XLOOKUP(AE21,'Revised 2022 Depreciation Rates'!$A:$A,'Revised 2022 Depreciation Rates'!$B:$B)/12) -> 0.002583333333 | AH23: =IF(AF22=AI22,0,IF((AF23-AI22)<ROUND((AF22*AG23),0),AF23-AI22,ROUND((AF22*AG23),0))) -> 56461 | AI23: =ROUND(+AI22+AH23,0) -> 11074540 | AK23: =+AE23 -> 2022-02-21 | AL23: =AL22 -> 0 | AM23: =(_xlfn.XLOOKUP(AK21,'Revised 2022 Depreciation Rates'!$A:$A,'Revised 2022 Depreciation Rates'!$B:$B)/12) -> 0 | AN23: =ROUND((AL22*AM23),0) -> 0 | AO23: =ROUND(+AO22+AN23,0) -> 325 | AQ23: =+AK23 -> 2022-02-21 | AR23: =AR22 -> 40015.69 | AS23: =(_xlfn.XLOOKUP(AQ21,'Revised 2022 Depreciation Rates'!$A:$A,'Revised 2022 Depreciation Rates'!$B:$B)/12) -> 0.00175 | AT23: =IF(AR22=AU22,0,IF((AR23-AU22)<ROUND((AR22*AS23),0),AR23-AU22,ROUND((AR22*AS23),0))) -> 70 | AU23: =ROUND(+AU22+AT23,0) -> 15843 | AW23: =+AQ23 -> 2022-02-21 | AX23: =AX22+0 -> 71401.09 | AY23: =(_xlfn.XLOOKUP(AW21,'Revised 2022 Depreciation Rates'!$A:$A,'Revised 2022 Depreciation Rates'!$B:$B)/12) -> 0.00275 | AZ23: =IF(AX22=BA22,0,IF((AX23-BA22)<ROUND((AX22*AY23),0),AX23-BA22,ROUND((AX22*AY23),0))) -> 196 | BA23: =ROUND(+BA22+AZ23,0) -> 11149 | BC23: =+AW23 -> 2022-02-21 | BD23: =BD22+0 -> 594900.87 | BE23: =(_xlfn.XLOOKUP(BC21,'Revised 2022 Depreciation Rates'!$A:$A,'Revised 2022 Depreciation Rates'!$B:$B)/12) -> 0.002 | BF23: =IF(BD22=BG22,0,IF((BD23-BG22)<ROUND((BD22*BE23),0),BD23-BG22,ROUND((BD22*BE23),0))) -> 1190 | BG23: =ROUND(+BG22+BF23,0) -> 64628 | BI23: =+BC23 -> 2022-02-21 | BJ23: =BJ22+0 -> 0 | BK23: =(_xlfn.XLOOKUP(BI21,'Revised 2022 Depreciation Rates'!$A:$A,'Revised 2022 Depreciation Rates'!$B:$B)/12) -> 0.003583333333 | BL23: =IF(BJ22=BM22,0,IF((BJ23-BM22)<ROUND((BJ22*BK23),0),BJ23-BM22,ROUND((BJ22*BK23),0))) -> 0 | BM23: =ROUND(+BM22+BL23,0) -> 0 | BO23: =+BI23 -> 2022-02-21 | BP23: =BP22+0 -> 1637.28 | BQ23: =(_xlfn.XLOOKUP(BO21,'Revised 2022 Depreciation Rates'!$A:$A,'Revised 2022 Depreciation Rates'!$B:$B)/12) -> 0.003583333333 | BR23: =IF(BP22=BS22,0,IF((BP23-BS22)<ROUND((BP22*BQ23),0),BP23-BS22,ROUND((BP22*BQ23),0))) -> 6 | BS23: =ROUND(+BS22+BR23,0) -> 202 | BU23: =+BO23 -> 2022-02-21 | BV23: =BV22+0 -> 90088.05 | BW23: =(_xlfn.XLOOKUP(BU21,'Revised 2022 Depreciation Rates'!$A:$A,'Revised 2022 Depreciation Rates'!$B:$B)/12) -> 0.003833333333 | BX23: =IF(BV22=BY22,0,IF((BV23-BY22)<ROUND((BV22*BW23),0),BV23-BY22,ROUND((BV22*BW23),0))) -> 345 | BY23: =ROUND(+BY22+BX23,0) -> 10383
W24: 2022-03-21 | X24: 22653929.18 | Y24: Blended | Z24: 58268 | AA24: =ROUND(+AA23+Z24,0) -> 11235338 | AE24: 2022-03-21 | AF24: 21855886.2 | AG24: =(_xlfn.XLOOKUP(AE21,'Revised 2022 Depreciation Rates'!$A:$A,'Revised 2022 Depreciation Rates'!$B:$B)/12) -> 0.002583333333 | AH24: 56461 | AI24: 11131001 | AK24: 2022-03-21 | AL24: 0 | AM24: =(_xlfn.XLOOKUP(AK21,'Revised 2022 Depreciation Rates'!$A:$A,'Revised 2022 Depreciation Rates'!$B:$B)/12) -> 0 | AN24: =ROUND((AL23*AM24),0) -> 0 | AO24: 325 | AQ24: 2022-03-21 | AR24: 40015.69 | AS24: =(_xlfn.XLOOKUP(AQ21,'Revised 2022 Depreciation Rates'!$A:$A,'Revised 2022 Depreciation Rates'!$B:$B)/12) -> 0.00175 | AT24: 70 | AU24: 15913 | AW24: 2022-03-21 | AX24: =AX23+0 -> 71401.09 | AY24: =(_xlfn.XLOOKUP(AW21,'Revised 2022 Depreciation Rates'!$A:$A,'Revised 2022 Depreciation Rates'!$B:$B)/12) -> 0.00275 | AZ24: 196 | BA24: 11345 | BC24: 2022-03-21 | BD24: 594900.87 | BE24: =(_xlfn.XLOOKUP(BC21,'Revised 2022 Depreciation Rates'!$A:$A,'Revised 2022 Depreciation Rates'!$B:$B)/12) -> 0.002 | BF24: 1190 | BG24: 65818 | BI24: 2022-03-21 | BJ24: =BJ23+0 -> 0 | BK24: =(_xlfn.XLOOKUP(BI21,'Revised 2022 Depreciation Rates'!$A:$A,'Revised 2022 Depreciation Rates'!$B:$B)/12) -> 0.003583333333 | BL24: 0 | BM24: 0 | BO24: 2022-03-21 | BP24: =BP23+0 -> 1637.28 | BQ24: =(_xlfn.XLOOKUP(BO21,'Revised 2022 Depreciation Rates'!$A:$A,'Revised 2022 Depreciation Rates'!$B:$B)/12) -> 0.003583333333 | BR24: 6 | BS24: 208 | BU24: 2022-03-21 | BV24: 90088.05 | BW24: =(_xlfn.XLOOKUP(BU21,'Revised 2022 Depreciation Rates'!$A:$A,'Revised 2022 Depreciation Rates'!$B:$B)/12) -> 0.003833333333 | BX24: 345 | BY24: 10728
A25: 6. | B25: Average Net Investment | G25: =ROUND((+F23+G23)/2,0) -> 11564261 | H25: 11505993 | I25: 11447725 | J25: 11389457 | K25: 11331189 | L25: 11272921 | M25: 11214653 | N25: 11156385 | O25: 11098117 | P25: 11039849 | Q25: 10981581 | R25: 10923313 | W25: 2022-04-21 | X25: 22653929.18 | Y25: Blended | Z25: 58268 | AA25: 11293606 | AE25: 2022-04-21 | AF25: 21855886.2 | AG25: =(_xlfn.XLOOKUP(AE21,'Revised 2022 Depreciation Rates'!$A:$A,'Revised 2022 Depreciation Rates'!$B:$B)/12) -> 0.002583333333 | AH25: 56461 | AI25: 11187462 | AK25: 2022-04-21 | AL25: 0 | AM25: =(_xlfn.XLOOKUP(AK21,'Revised 2022 Depreciation Rates'!$A:$A,'Revised 2022 Depreciation Rates'!$B:$B)/12) -> 0 | AN25: 0 | AO25: 325 | AQ25: 2022-04-21 | AR25: =AR24+0 -> 40015.69 | AS25: =(_xlfn.XLOOKUP(AQ21,'Revised 2022 Depreciation Rates'!$A:$A,'Revised 2022 Depreciation Rates'!$B:$B)/12) -> 0.00175 | AT25: 70 | AU25: 15983 | AW25: 2022-04-21 | AX25: =AX24+0 -> 71401.09 | AY25: =(_xlfn.XLOOKUP(AW21,'Revised 2022 Depreciation Rates'!$A:$A,'Revised 2022 Depreciation Rates'!$B:$B)/12) -> 0.00275 | AZ25: 196 | BA25: 11541 | BC25: 2022-04-21 | BD25: 594900.87 | BE25: =(_xlfn.XLOOKUP(BC21,'Revised 2022 Depreciation Rates'!$A:$A,'Revised 2022 Depreciation Rates'!$B:$B)/12) -> 0.002 | BF25: 1190 | BG25: 67008 | BI25: 2022-04-21 | BJ25: =BJ24+0 -> 0 | BK25: =(_xlfn.XLOOKUP(BI21,'Revised 2022 Depreciation Rates'!$A:$A,'Revised 2022 Depreciation Rates'!$B:$B)/12) -> 0.003583333333 | BL25: 0 | BM25: 0 | BO25: 2022-04-21 | BP25: =BP24+0 -> 1637.28 | BQ25: =(_xlfn.XLOOKUP(BO21,'Revised 2022 Depreciation Rates'!$A:$A,'Revised 2022 Depreciation Rates'!$B:$B)/12) -> 0.003583333333 | BR25: 6 | BS25: 214 | BU25: 2022-04-21 | BV25: 90088.05 | BW25: =(_xlfn.XLOOKUP(BU21,'Revised 2022 Depreciation Rates'!$A:$A,'Revised 2022 Depreciation Rates'!$B:$B)/12) -> 0.003833333333 | BX25: 345 | BY25: 11073
W26: 2022-05-21 | X26: 22653929.18 | Y26: Blended | Z26: 58268 | AA26: 11351874 | AE26: 2022-05-21 | AF26: 21855886.2 | AG26: =(_xlfn.XLOOKUP(AE21,'Revised 2022 Depreciation Rates'!$A:$A,'Revised 2022 Depreciation Rates'!$B:$B)/12) -> 0.002583333333 | AH26: 56461 | AI26: 11243923 | AK26: 2022-05-21 | AL26: 0 | AM26: =(_xlfn.XLOOKUP(AK21,'Revised 2022 Depreciation Rates'!$A:$A,'Revised 2022 Depreciation Rates'!$B:$B)/12) -> 0 | AN26: 0 | AO26: 325 | AQ26: 2022-05-21 | AR26: 40015.69 | AS26: =(_xlfn.XLOOKUP(AQ21,'Revised 2022 Depreciation Rates'!$A:$A,'Revised 2022 Depreciation Rates'!$B:$B)/12) -> 0.00175 | AT26: 70 | AU26: 16053 | AW26: 2022-05-21 | AX26: 71401.09 | AY26: =(_xlfn.XLOOKUP(AW21,'Revised 2022 Depreciation Rates'!$A:$A,'Revised 2022 Depreciation Rates'!$B:$B)/12) -> 0.00275 | AZ26: 196 | BA26: 11737 | BC26: 2022-05-21 | BD26: 594900.87 | BE26: =(_xlfn.XLOOKUP(BC21,'Revised 2022 Depreciation Rates'!$A:$A,'Revised 2022 Depreciation Rates'!$B:$B)/12) -> 0.002 | BF26: 1190 | BG26: 68198 | BI26: 2022-05-21 | BJ26: =BJ25+0 -> 0 | BK26: =(_xlfn.XLOOKUP(BI21,'Revised 2022 Depreciation Rates'!$A:$A,'Revised 2022 Depreciation Rates'!$B:$B)/12) -> 0.003583333333 | BL26: 0 | BM26: 0 | BO26: 2022-05-21 | BP26: =BP25+0 -> 1637.28 | BQ26: =(_xlfn.XLOOKUP(BO21,'Revised 2022 Depreciation Rates'!$A:$A,'Revised 2022 Depreciation Rates'!$B:$B)/12) -> 0.003583333333 | BR26: 6 | BS26: 220 | BU26: 2022-05-21 | BV26: 90088.05 | BW26: =(_xlfn.XLOOKUP(BU21,'Revised 2022 Depreciation Rates'!$A:$A,'Revised 2022 Depreciation Rates'!$B:$B)/12) -> 0.003833333333 | BX26: 345 | BY26: 11418
A27: 7. | B27: Return on Average Net Investment | G27: 1 | H27: 2 | I27: 3 | J27: 4 | K27: 5 | L27: 6 | M27: 7 | N27: 8 | O27: 9 | P27: 10 | Q27: 11 | R27: 12 | S27: 13 | W27: 2022-06-21 | X27: 22653929.18 | Y27: Blended | Z27: 58268 | AA27: 11410142 | AE27: 2022-06-21 | AF27: 21855886.2 | AG27: =(_xlfn.XLOOKUP(AE21,'Revised 2022 Depreciation Rates'!$A:$A,'Revised 2022 Depreciation Rates'!$B:$B)/12) -> 0.002583333333 | AH27: 56461 | AI27: 11300384 | AK27: 2022-06-21 | AL27: 0 | AM27: =(_xlfn.XLOOKUP(AK21,'Revised 2022 Depreciation Rates'!$A:$A,'Revised 2022 Depreciation Rates'!$B:$B)/12) -> 0 | AN27: 0 | AO27: 325 | AQ27: 2022-06-21 | AR27: 40015.69 | AS27: =(_xlfn.XLOOKUP(AQ21,'Revised 2022 Depreciation Rates'!$A:$A,'Revised 2022 Depreciation Rates'!$B:$B)/12) -> 0.00175 | AT27: 70 | AU27: 16123 | AW27: 2022-06-21 | AX27: =AX26+0 -> 71401.09 | AY27: =(_xlfn.XLOOKUP(AW21,'Revised 2022 Depreciation Rates'!$A:$A,'Revised 2022 Depreciation Rates'!$B:$B)/12) -> 0.00275 | AZ27: 196 | BA27: 11933 | BC27: 2022-06-21 | BD27: 594900.87 | BE27: =(_xlfn.XLOOKUP(BC21,'Revised 2022 Depreciation Rates'!$A:$A,'Revised 2022 Depreciation Rates'!$B:$B)/12) -> 0.002 | BF27: 1190 | BG27: 69388 | BI27: 2022-06-21 | BJ27: =BJ26+0 -> 0 | BK27: =(_xlfn.XLOOKUP(BI21,'Revised 2022 Depreciation Rates'!$A:$A,'Revised 2022 Depreciation Rates'!$B:$B)/12) -> 0.003583333333 | BL27: 0 | BM27: 0 | BO27: 2022-06-21 | BP27: =BP26+0 -> 1637.28 | BQ27: =(_xlfn.XLOOKUP(BO21,'Revised 2022 Depreciation Rates'!$A:$A,'Revised 2022 Depreciation Rates'!$B:$B)/12) -> 0.003583333333 | BR27: 6 | BS27: 226 | BU27: 2022-06-21 | BV27: 90088.05 | BW27: =(_xlfn.XLOOKUP(BU21,'Revised 2022 Depreciation Rates'!$A:$A,'Revised 2022 Depreciation Rates'!$B:$B)/12) -> 0.003833333333 | BX27: 345 | BY27: 11763
B28: a. Equity Component Grossed Up For Taxes (B) | G28: =ROUND(+G25*(G58)/12,0) -> 60518 | H28: =ROUND(+H25*(H58)/12,0) -> 60213 | I28: 59908 | J28: 59603 | K28: 59298 | L28: 58993 | M28: 58688 | N28: 58383 | O28: 58078 | P28: 57773 | Q28: 57468 | R28: 57164 | S28: =SUM(G28:R28) -> 706087 | W28: 2022-07-21 | X28: 22653929.18 | Y28: Blended | Z28: 58268 | AA28: 11468410 | AE28: 2022-07-21 | AF28: 21855886.2 | AG28: =(_xlfn.XLOOKUP(AE21,'Revised 2022 Depreciation Rates'!$A:$A,'Revised 2022 Depreciation Rates'!$B:$B)/12) -> 0.002583333333 | AH28: 56461 | AI28: 11356845 | AK28: 2022-07-21 | AL28: 0 | AM28: =(_xlfn.XLOOKUP(AK21,'Revised 2022 Depreciation Rates'!$A:$A,'Revised 2022 Depreciation Rates'!$B:$B)/12) -> 0 | AN28: 0 | AO28: 325 | AQ28: 2022-07-21 | AR28: 40015.69 | AS28: =(_xlfn.XLOOKUP(AQ21,'Revised 2022 Depreciation Rates'!$A:$A,'Revised 2022 Depreciation Rates'!$B:$B)/12) -> 0.00175 | AT28: 70 | AU28: 16193 | AW28: 2022-07-21 | AX28: =AX27+0 -> 71401.09 | AY28: =(_xlfn.XLOOKUP(AW21,'Revised 2022 Depreciation Rates'!$A:$A,'Revised 2022 Depreciation Rates'!$B:$B)/12) -> 0.00275 | AZ28: 196 | BA28: 12129 | BC28: 2022-07-21 | BD28: 594900.87 | BE28: =(_xlfn.XLOOKUP(BC21,'Revised 2022 Depreciation Rates'!$A:$A,'Revised 2022 Depreciation Rates'!$B:$B)/12) -> 0.002 | BF28: 1190 | BG28: 70578 | BI28: 2022-07-21 | BJ28: =BJ27+0 -> 0 | BK28: =(_xlfn.XLOOKUP(BI21,'Revised 2022 Depreciation Rates'!$A:$A,'Revised 2022 Depreciation Rates'!$B:$B)/12) -> 0.003583333333 | BL28: 0 | BM28: 0 | BO28: 2022-07-21 | BP28: 1637.28 | BQ28: =(_xlfn.XLOOKUP(BO21,'Revised 2022 Depreciation Rates'!$A:$A,'Revised 2022 Depreciation Rates'!$B:$B)/12) -> 0.003583333333 | BR28: 6 | BS28: 232 | BU28: 2022-07-21 | BV28: 90088.05 | BW28: =(_xlfn.XLOOKUP(BU21,'Revised 2022 Depreciation Rates'!$A:$A,'Revised 2022 Depreciation Rates'!$B:$B)/12) -> 0.003833333333 | BX28: 345 | BY28: 12108
B29: b. Debt Component Grossed Up For Taxes (C) | G29: =ROUND(+G25*(G59)/12,0) -> 15759 | H29: =ROUND(+H25*(H59)/12,0) -> 15680 | I29: 15600 | J29: 15521 | K29: 15442 | L29: 15362 | M29: 15283 | N29: 15203 | O29: 15124 | P29: 15045 | Q29: 14965 | R29: 14886 | S29: =SUM(G29:R29) -> 183870 | W29: 2022-08-21 | X29: 22653929.18 | Y29: Blended | Z29: 58268 | AA29: 11526678 | AE29: 2022-08-21 | AF29: 21855886.2 | AG29: =(_xlfn.XLOOKUP(AE21,'Revised 2022 Depreciation Rates'!$A:$A,'Revised 2022 Depreciation Rates'!$B:$B)/12) -> 0.002583333333 | AH29: 56461 | AI29: 11413306 | AK29: 2022-08-21 | AL29: 0 | AM29: =(_xlfn.XLOOKUP(AK21,'Revised 2022 Depreciation Rates'!$A:$A,'Revised 2022 Depreciation Rates'!$B:$B)/12) -> 0 | AN29: 0 | AO29: 325 | AQ29: 2022-08-21 | AR29: =AR28+0 -> 40015.69 | AS29: =(_xlfn.XLOOKUP(AQ21,'Revised 2022 Depreciation Rates'!$A:$A,'Revised 2022 Depreciation Rates'!$B:$B)/12) -> 0.00175 | AT29: 70 | AU29: 16263 | AW29: 2022-08-21 | AX29: =AX28+0 -> 71401.09 | AY29: =(_xlfn.XLOOKUP(AW21,'Revised 2022 Depreciation Rates'!$A:$A,'Revised 2022 Depreciation Rates'!$B:$B)/12) -> 0.00275 | AZ29: 196 | BA29: 12325 | BC29: 2022-08-21 | BD29: 594900.87 | BE29: =(_xlfn.XLOOKUP(BC21,'Revised 2022 Depreciation Rates'!$A:$A,'Revised 2022 Depreciation Rates'!$B:$B)/12) -> 0.002 | BF29: 1190 | BG29: 71768 | BI29: 2022-08-21 | BJ29: 0 | BK29: =(_xlfn.XLOOKUP(BI21,'Revised 2022 Depreciation Rates'!$A:$A,'Revised 2022 Depreciation Rates'!$B:$B)/12) -> 0.003583333333 | BL29: 0 | BM29: 0 | BO29: 2022-08-21 | BP29: 1637.28 | BQ29: =(_xlfn.XLOOKUP(BO21,'Revised 2022 Depreciation Rates'!$A:$A,'Revised 2022 Depreciation Rates'!$B:$B)/12) -> 0.003583333333 | BR29: 6 | BS29: 238 | BU29: 2022-08-21 | BV29: 90088.05 | BW29: =(_xlfn.XLOOKUP(BU21,'Revised 2022 Depreciation Rates'!$A:$A,'Revised 2022 Depreciation Rates'!$B:$B)/12) -> 0.003833333333 | BX29: 345 | BY29: 12453
W30: 2022-09-21 | X30: 22653929.18 | Y30: Blended | Z30: 58268 | AA30: 11584946 | AE30: 2022-09-21 | AF30: 21855886.2 | AG30: =(_xlfn.XLOOKUP(AE21,'Revised 2022 Depreciation Rates'!$A:$A,'Revised 2022 Depreciation Rates'!$B:$B)/12) -> 0.002583333333 | AH30: 56461 | AI30: 11469767 | AK30: 2022-09-21 | AL30: 0 | AM30: =(_xlfn.XLOOKUP(AK21,'Revised 2022 Depreciation Rates'!$A:$A,'Revised 2022 Depreciation Rates'!$B:$B)/12) -> 0 | AN30: 0 | AO30: 325 | AQ30: 2022-09-21 | AR30: 40015.69 | AS30: =(_xlfn.XLOOKUP(AQ21,'Revised 2022 Depreciation Rates'!$A:$A,'Revised 2022 Depreciation Rates'!$B:$B)/12) -> 0.00175 | AT30: 70 | AU30: 16333 | AW30: 2022-09-21 | AX30: =AX29+0 -> 71401.09 | AY30: =(_xlfn.XLOOKUP(AW21,'Revised 2022 Depreciation Rates'!$A:$A,'Revised 2022 Depreciation Rates'!$B:$B)/12) -> 0.00275 | AZ30: 196 | BA30: 12521 | BC30: 2022-09-21 | BD30: 594900.87 | BE30: =(_xlfn.XLOOKUP(BC21,'Revised 2022 Depreciation Rates'!$A:$A,'Revised 2022 Depreciation Rates'!$B:$B)/12) -> 0.002 | BF30: 1190 | BG30: 72958 | BI30: 2022-09-21 | BJ30: 0 | BK30: =(_xlfn.XLOOKUP(BI21,'Revised 2022 Depreciation Rates'!$A:$A,'Revised 2022 Depreciation Rates'!$B:$B)/12) -> 0.003583333333 | BL30: 0 | BM30: 0 | BO30: 2022-09-21 | BP30: 1637.28 | BQ30: =(_xlfn.XLOOKUP(BO21,'Revised 2022 Depreciation Rates'!$A:$A,'Revised 2022 Depreciation Rates'!$B:$B)/12) -> 0.003583333333 | BR30: 6 | BS30: 244 | BU30: 2022-09-21 | BV30: 90088.05 | BW30: =(_xlfn.XLOOKUP(BU21,'Revised 2022 Depreciation Rates'!$A:$A,'Revised 2022 Depreciation Rates'!$B:$B)/12) -> 0.003833333333 | BX30: 345 | BY30: 12798
A31: 8. | B31: Investment Expenses | W31: 2022-10-21 | X31: 22653929.18 | Y31: Blended | Z31: 58268 | AA31: 11643214 | AE31: 2022-10-21 | AF31: 21855886.2 | AG31: =(_xlfn.XLOOKUP(AE21,'Revised 2022 Depreciation Rates'!$A:$A,'Revised 2022 Depreciation Rates'!$B:$B)/12) -> 0.002583333333 | AH31: 56461 | AI31: 11526228 | AK31: 2022-10-21 | AL31: 0 | AM31: =(_xlfn.XLOOKUP(AK21,'Revised 2022 Depreciation Rates'!$A:$A,'Revised 2022 Depreciation Rates'!$B:$B)/12) -> 0 | AN31: 0 | AO31: 325 | AQ31: 2022-10-21 | AR31: 40015.69 | AS31: =(_xlfn.XLOOKUP(AQ21,'Revised 2022 Depreciation Rates'!$A:$A,'Revised 2022 Depreciation Rates'!$B:$B)/12) -> 0.00175 | AT31: 70 | AU31: 16403 | AW31: 2022-10-21 | AX31: 71401.09 | AY31: =(_xlfn.XLOOKUP(AW21,'Revised 2022 Depreciation Rates'!$A:$A,'Revised 2022 Depreciation Rates'!$B:$B)/12) -> 0.00275 | AZ31: 196 | BA31: 12717 | BC31: 2022-10-21 | BD31: 594900.87 | BE31: =(_xlfn.XLOOKUP(BC21,'Revised 2022 Depreciation Rates'!$A:$A,'Revised 2022 Depreciation Rates'!$B:$B)/12) -> 0.002 | BF31: 1190 | BG31: 74148 | BI31: 2022-10-21 | BJ31: 0 | BK31: =(_xlfn.XLOOKUP(BI21,'Revised 2022 Depreciation Rates'!$A:$A,'Revised 2022 Depreciation Rates'!$B:$B)/12) -> 0.003583333333 | BL31: 0 | BM31: 0 | BO31: 2022-10-21 | BP31: =BP30+0 -> 1637.28 | BQ31: =(_xlfn.XLOOKUP(BO21,'Revised 2022 Depreciation Rates'!$A:$A,'Revised 2022 Depreciation Rates'!$B:$B)/12) -> 0.003583333333 | BR31: 6 | BS31: 250 | BU31: 2022-10-21 | BV31: =BV30+0 -> 90088.05 | BW31: =(_xlfn.XLOOKUP(BU21,'Revised 2022 Depreciation Rates'!$A:$A,'Revised 2022 Depreciation Rates'!$B:$B)/12) -> 0.003833333333 | BX31: 345 | BY31: 13143
B32: a. Depreciation (D) | G32: =$Z$22 -> 58268 | H32: =$Z$23 -> 58268 | I32: =$Z$24 -> 58268 | J32: =$Z$25 -> 58268 | K32: =$Z$26 -> 58268 | L32: =$Z$27 -> 58268 | M32: =$Z$28 -> 58268 | N32: =$Z$29 -> 58268 | O32: =$Z$30 -> 58268 | P32: =$Z$31 -> 58268 | Q32: =$Z$32 -> 58268 | R32: =$Z$33 -> 58268 | S32: =SUM(G32:R32) -> 699216 | T32: =+S32-AB33 -> 0 | U32: ck | W32: 2022-11-21 | X32: 22653929.18 | Y32: Blended | Z32: 58268 | AA32: 11701482 | AB32: =X33-X20 -> 0 | AC32: in-service activity | AE32: 2022-11-21 | AF32: =AF31+0 -> 21855886.2 | AG32: =(_xlfn.XLOOKUP(AE21,'Revised 2022 Depreciation Rates'!$A:$A,'Revised 2022 Depreciation Rates'!$B:$B)/12) -> 0.002583333333 | AH32: 56461 | AI32: 11582689 | AK32: 2022-11-21 | AL32: 0 | AM32: =(_xlfn.XLOOKUP(AK21,'Revised 2022 Depreciation Rates'!$A:$A,'Revised 2022 Depreciation Rates'!$B:$B)/12) -> 0 | AN32: 0 | AO32: 325 | AQ32: 2022-11-21 | AR32: 40015.69 | AS32: =(_xlfn.XLOOKUP(AQ21,'Revised 2022 Depreciation Rates'!$A:$A,'Revised 2022 Depreciation Rates'!$B:$B)/12) -> 0.00175 | AT32: 70 | AU32: 16473 | AW32: 2022-11-21 | AX32: =AX31+0 -> 71401.09 | AY32: =(_xlfn.XLOOKUP(AW21,'Revised 2022 Depreciation Rates'!$A:$A,'Revised 2022 Depreciation Rates'!$B:$B)/12) -> 0.00275 | AZ32: 196 | BA32: 12913 | BC32: 2022-11-21 | BD32: =BD31+0 -> 594900.87 | BE32: =(_xlfn.XLOOKUP(BC21,'Revised 2022 Depreciation Rates'!$A:$A,'Revised 2022 Depreciation Rates'!$B:$B)/12) -> 0.002 | BF32: 1190 | BG32: 75338 | BI32: 2022-11-21 | BJ32: 0 | BK32: =(_xlfn.XLOOKUP(BI21,'Revised 2022 Depreciation Rates'!$A:$A,'Revised 2022 Depreciation Rates'!$B:$B)/12) -> 0.003583333333 | BL32: 0 | BM32: 0 | BO32: 2022-11-21 | BP32: 1637.28 | BQ32: =(_xlfn.XLOOKUP(BO21,'Revised 2022 Depreciation Rates'!$A:$A,'Revised 2022 Depreciation Rates'!$B:$B)/12) -> 0.003583333333 | BR32: 6 | BS32: 256 | BU32: 2022-11-21 | BV32: 90088.05 | BW32: =(_xlfn.XLOOKUP(BU21,'Revised 2022 Depreciation Rates'!$A:$A,'Revised 2022 Depreciation Rates'!$B:$B)/12) -> 0.003833333333 | BX32: 345 | BY32: 13488
B33: b. Amortization | G33: 0 | H33: 0 | I33: 0 | J33: 0 | K33: 0 | L33: 0 | M33: 0 | N33: 0 | O33: 0 | P33: 0 | Q33: 0 | R33: 0 | S33: =SUM(G33:R33) -> 0 | W33: 2022-12-21 | X33: 22653929.18 | Y33: Blended | Z33: 58268 | AA33: 11759750 | AB33: =AA33-AA20 -> 699216 | AC33: depreciation activity | AE33: 2022-12-21 | AF33: 21855886.2 | AG33: =(_xlfn.XLOOKUP(AE21,'Revised 2022 Depreciation Rates'!$A:$A,'Revised 2022 Depreciation Rates'!$B:$B)/12) -> 0.002583333333 | AH33: =IF(AF32=AI32,0,IF((AF33-AI32)<ROUND((AF32*AG33),0),AF33-AI32,ROUND((AF32*AG33),0))) -> 56461 | AI33: 11639150 | AK33: 2022-12-21 | AL33: 0 | AM33: =(_xlfn.XLOOKUP(AK21,'Revised 2022 Depreciation Rates'!$A:$A,'Revised 2022 Depreciation Rates'!$B:$B)/12) -> 0 | AN33: =ROUND((AL32*AM33),0) -> 0 | AO33: 325 | AQ33: 2022-12-21 | AR33: 40015.69 | AS33: =(_xlfn.XLOOKUP(AQ21,'Revised 2022 Depreciation Rates'!$A:$A,'Revised 2022 Depreciation Rates'!$B:$B)/12) -> 0.00175 | AT33: =IF(AR32=AU32,0,IF((AR33-AU32)<ROUND((AR32*AS33),0),AR33-AU32,ROUND((AR32*AS33),0))) -> 70 | AU33: 16543 | AW33: 2022-12-21 | AX33: =AX32+0 -> 71401.09 | AY33: =(_xlfn.XLOOKUP(AW21,'Revised 2022 Depreciation Rates'!$A:$A,'Revised 2022 Depreciation Rates'!$B:$B)/12) -> 0.00275 | AZ33: =IF(AX32=BA32,0,IF((AX33-BA32)<ROUND((AX32*AY33),0),AX33-BA32,ROUND((AX32*AY33),0))) -> 196 | BA33: 13109 | BC33: 2022-12-21 | BD33: 594900.87 | BE33: =(_xlfn.XLOOKUP(BC21,'Revised 2022 Depreciation Rates'!$A:$A,'Revised 2022 Depreciation Rates'!$B:$B)/12) -> 0.002 | BF33: =IF(BD32=BG32,0,IF((BD33-BG32)<ROUND((BD32*BE33),0),BD33-BG32,ROUND((BD32*BE33),0))) -> 1190 | BG33: 76528 | BI33: 2022-12-21 | BJ33: 0 | BK33: =(_xlfn.XLOOKUP(BI21,'Revised 2022 Depreciation Rates'!$A:$A,'Revised 2022 Depreciation Rates'!$B:$B)/12) -> 0.003583333333 | BL33: =IF(BJ32=BM32,0,IF((BJ33-BM32)<ROUND((BJ32*BK33),0),BJ33-BM32,ROUND((BJ32*BK33),0))) -> 0 | BM33: 0 | BO33: 2022-12-21 | BP33: 1637.28 | BQ33: =(_xlfn.XLOOKUP(BO21,'Revised 2022 Depreciation Rates'!$A:$A,'Revised 2022 Depreciation Rates'!$B:$B)/12) -> 0.003583333333 | BR33: =IF(BP32=BS32,0,IF((BP33-BS32)<ROUND((BP32*BQ33),0),BP33-BS32,ROUND((BP32*BQ33),0))) -> 6 | BS33: 262 | BU33: 2022-12-21 | BV33: 90088.05 | BW33: =(_xlfn.XLOOKUP(BU21,'Revised 2022 Depreciation Rates'!$A:$A,'Revised 2022 Depreciation Rates'!$B:$B)/12) -> 0.003833333333 | BX33: =IF(BV32=BY32,0,IF((BV33-BY32)<ROUND((BV32*BW33),0),BV33-BY32,ROUND((BV32*BW33),0))) -> 345 | BY33: 13833
B34: c. Dismantlement | G34: 0 | H34: 0 | I34: 0 | J34: 0 | K34: 0 | L34: 0 | M34: 0 | N34: 0 | O34: 0 | P34: 0 | Q34: 0 | R34: 0 | S34: =SUM(G34:R34) -> 0
B35: d. Property Taxes | G35: 0 | H35: 0 | I35: 0 | J35: 0 | K35: 0 | L35: 0 | M35: 0 | N35: 0 | O35: 0 | P35: 0 | Q35: 0 | R35: 0 | S35: =SUM(G35:R35) -> 0 | AE35: CM Depr Base | AF35: =+IF(AF4="","",IF(AF4="IN SERVICE",CHOOSE($C$60,AF22,AF23,AF24,AF25,AF26,AF27,AF28,AF29,AF30,AF31,AF32,AF33),"")) -> 21855886.2 | AL35: 0 | AR35: 40015.69 | AX35: 71401.09 | BD35: 594900.87 | BJ35: 0 | BP35: 1637.28 | BV35: 90088.05
B36: e. Other | G36: 0 | H36: 0 | I36: 0 | J36: 0 | K36: 0 | L36: 0 | M36: 0 | N36: 0 | O36: 0 | P36: 0 | Q36: 0 | R36: 0 | S36: =SUM(G36:R36) -> 0
A38: 9. | B38: Total System Recoverable Expenses (Lines 7 + 8) | G38: =ROUND(+G28+G29+G32+G33+G34+G35+G36,0) -> 134545 | H38: 134161 | I38: 133776 | J38: 133392 | K38: 133008 | L38: 132623 | M38: 132239 | N38: 131854 | O38: 131470 | P38: 131086 | Q38: 130701 | R38: 130318 | S38: =SUM(G38:R38) -> 1589173
B39: a. Recoverable Costs Allocated to Energy | G39: =ROUND(+G38*1,0) -> 134545 | H39: 134161 | I39: 133776 | J39: 133392 | K39: 133008 | L39: 132623 | M39: 132239 | N39: 131854 | O39: 131470 | P39: 131086 | Q39: 130701 | R39: 130318 | S39: =SUM(G39:R39) -> 1589173
B40: b. Recoverable Costs Allocated to Demand | G40: =ROUND(+G38*0,0) -> 0 | H40: 0 | I40: 0 | J40: 0 | K40: 0 | L40: 0 | M40: 0 | N40: 0 | O40: 0 | P40: 0 | Q40: 0 | R40: 0 | S40: =SUM(G40:R40) -> 0
A42: 10. | B42: Energy Jurisdictional Factor | G42: ='Form 42 2P'!D48 -> 1 | H42: ='Form 42 2P'!E48 -> 1 | I42: ='Form 42 2P'!F48 -> 1 | J42: ='Form 42 2P'!G48 -> 1 | K42: ='Form 42 2P'!H48 -> 1 | L42: ='Form 42 2P'!I48 -> 1 | M42: ='Form 42 2P'!J48 -> 1 | N42: ='Form 42 2P'!K48 -> 1 | O42: ='Form 42 2P'!L48 -> 1 | P42: ='Form 42 2P'!M48 -> 1 | Q42: ='Form 42 2P'!N48 -> 1 | R42: ='Form 42 2P'!O48 -> 1
A43: 11. | B43: Demand Jurisdictional Factor | G43: =+'Form 42 2P'!D49 -> 1 | H43: =+'Form 42 2P'!E49 -> 1 | I43: =+'Form 42 2P'!F49 -> 1 | J43: =+'Form 42 2P'!G49 -> 1 | K43: =+'Form 42 2P'!H49 -> 1 | L43: =+'Form 42 2P'!I49 -> 1 | M43: =+'Form 42 2P'!J49 -> 1 | N43: =+'Form 42 2P'!K49 -> 1 | O43: =+'Form 42 2P'!L49 -> 1 | P43: =+'Form 42 2P'!M49 -> 1 | Q43: =+'Form 42 2P'!N49 -> 1 | R43: =+'Form 42 2P'!O49 -> 1
A45: 12. | B45: Retail Energy-Related Recoverable Costs (E) | G45: =ROUND((+G39*G42),0) -> 134545 | H45: 134161 | I45: 133776 | J45: 133392 | K45: 133008 | L45: 132623 | M45: 132239 | N45: 131854 | O45: 131470 | P45: 131086 | Q45: 130701 | R45: 130318 | S45: =SUM(G45:R45) -> 1589173
A46: 13. | B46: Retail Demand-Related Recoverable Costs (F) | G46: =(+G40*G43) -> 0 | H46: 0 | I46: 0 | J46: 0 | K46: 0 | L46: 0 | M46: 0 | N46: 0 | O46: 0 | P46: 0 | Q46: 0 | R46: 0 | S46: =SUM(G46:R46) -> 0
A47: 14. | B47: Total Jurisdictional Recoverable Costs (Lines 12 + 13) | G47: =G45+G46 -> 134545 | H47: =H45+H46 -> 134161 | I47: 133776 | J47: 133392 | K47: 133008 | L47: 132623 | M47: 132239 | N47: 131854 | O47: 131470 | P47: 131086 | Q47: 130701 | R47: 130318 | S47: =SUM(G47:R47) -> 1589173
A49: Notes:
A50: (A) | B50: =+B61 -> Applicable depreciable base for Big Bend; accounts 312.45 ($21,855,886), 311.45 ($40,016), 316.40 ($71,401), 315.45 ($594,901), 312.42 ($1,637), and 312.40 ($90,088).
A51: (B) | B51: ='Tot 8E pg1-30'!$B$52 -> Line 6 x 6.2798% x 1/12. Based on ROE of 9.95% and weighted income tax rate of 25.345% (expansion factor of 1.34315)
A52: (C) | B52: ='Tot 8E pg1-30'!$B$53 -> Line 6 x 1.6353% x 1/12
A53: (D) | B53: =+B72 -> Applicable depreciation rate is 3.1%, 2.1%, 3.3%, 2.4%, 4.3%, and 4.6%
A54: (E) | B54: Line 9a x Line 10
A55: (F) | B55: Line 9b x Line 11
F58: ROI WACC-Equity | G58: ='Form 42 8P'!$E$50 -> 0.062798 | H58: ='Form 42 8P'!$E$50 -> 0.062798 | I58: ='Form 42 8P'!$E$50 -> 0.062798 | J58: ='Form 42 8P'!$E$50 -> 0.062798 | K58: ='Form 42 8P'!$E$50 -> 0.062798 | L58: ='Form 42 8P'!$E$50 -> 0.062798 | M58: ='Form 42 8P'!$E$50 -> 0.062798 | N58: ='Form 42 8P'!$E$50 -> 0.062798 | O58: ='Form 42 8P'!$E$50 -> 0.062798 | P58: ='Form 42 8P'!$E$50 -> 0.062798 | Q58: ='Form 42 8P'!$E$50 -> 0.062798 | R58: ='Form 42 8P'!$E$50 -> 0.062798
F59: ROI WACC-Debt | G59: ='Form 42 8P'!$E$59 -> 0.016353 | H59: ='Form 42 8P'!$E$59 -> 0.016353 | I59: ='Form 42 8P'!$E$59 -> 0.016353 | J59: ='Form 42 8P'!$E$59 -> 0.016353 | K59: ='Form 42 8P'!$E$59 -> 0.016353 | L59: ='Form 42 8P'!$E$59 -> 0.016353 | M59: ='Form 42 8P'!$E$59 -> 0.016353 | N59: ='Form 42 8P'!$E$59 -> 0.016353 | O59: ='Form 42 8P'!$E$59 -> 0.016353 | P59: ='Form 42 8P'!$E$59 -> 0.016353 | Q59: ='Form 42 8P'!$E$59 -> 0.016353 | R59: ='Form 42 8P'!$E$59 -> 0.016353
B60: CM | C60: 12
B61: =+"Applicable depreciable base for Big Bend; accounts "&G62&G63&G64&G65&G66&G67&G68&"." -> Applicable depreciable base for Big Bend; accounts 312.45 ($21,855,886), 311.45 ($40,016), 316.40 ($71,401), 315.45 ($594,901), 312.42 ($1,637), and 312.40 ($90,088).
A62: =+INDEX($AE$27:$DO$27,1,MATCH($B62,$AE$4:$DO$4,0)+2)*12 -> 0.031 | B62: 312.45 | C62: =+INDEX($AE$35:$DO$35,1,MATCH($B62,$AE$4:$DO$4,0)+1) -> 21855886.2 | D62: =+TEXT(B62,"#.00") -> 312.45 | E62: =+TEXT(C62,"$#,###") -> $21,855,886 | F62: =+IF(C62=0,"",TEXT(A62,"#.0%")) -> 3.1% | G62: =+D62&" ("&E62&")" -> 312.45 ($21,855,886) | H62: =+F62 -> 3.1%
A63: =+INDEX($AE$27:$DO$27,1,MATCH($B63,$AE$4:$DO$4,0)+2)*12 -> 0.021 | B63: 311.45 | C63: =+INDEX($AE$35:$DO$35,1,MATCH($B63,$AE$4:$DO$4,0)+1) -> 40015.69 | D63: =+TEXT(B63,"#.00") -> 311.45 | E63: $40,016 | F63: 2.1% | G63: =IF(C63=0,"",(", "&D63&" ("&E63&")")) -> , 311.45 ($40,016) | H63: =+IF(C63=0,"",(", "&F63)) -> , 2.1%
A64: =+INDEX($AE$27:$DO$27,1,MATCH($B64,$AE$4:$DO$4,0)+2)*12 -> 0.033 | B64: 316.4 | C64: =+INDEX($AE$35:$DO$35,1,MATCH($B64,$AE$4:$DO$4,0)+1) -> 71401.09 | D64: 316.40 | E64: $71,401 | F64: 3.3% | G64: , 316.40 ($71,401) | H64: , 3.3%
A65: =+INDEX($AE$27:$DO$27,1,MATCH($B65,$AE$4:$DO$4,0)+2)*12 -> 0.024 | B65: 315.45 | C65: =+INDEX($AE$35:$DO$35,1,MATCH($B65,$AE$4:$DO$4,0)+1) -> 594900.87 | D65: 315.45 | E65: $594,901 | F65: 2.4% | G65: , 315.45 ($594,901) | H65: , 2.4%
A66: =+INDEX($AE$27:$DO$27,1,MATCH($B66,$AE$4:$DO$4,0)+2)*12 -> 0.043 | B66: 312.46 | C66: =+INDEX($AE$35:$DO$35,1,MATCH($B66,$AE$4:$DO$4,0)+1) -> 0 | D66: 312.46 | E66: $
A67: =+INDEX($AE$27:$DO$27,1,MATCH($B67,$AE$4:$DO$4,0)+2)*12 -> 0.043 | B67: 312.42 | C67: =+INDEX($AE$35:$DO$35,1,MATCH($B67,$AE$4:$DO$4,0)+1) -> 1637.28 | D67: =+TEXT(B67,"#.00") -> 312.42 | E67: $1,637 | F67: =+IF(C67=0,"",TEXT(A67,"#.0%")) -> 4.3% | G67: =IF(C67=0,"",(", "&D67&" ("&E67&")")) -> , 312.42 ($1,637) | H67: =+IF(C67=0,"",(", "&F67)) -> , 4.3%
A68: =+INDEX($AE$27:$DO$27,1,MATCH($B68,$AE$4:$DO$4,0)+2)*12 -> 0.046 | B68: 312.4 | C68: =+INDEX($AE$35:$DO$35,1,MATCH($B68,$AE$4:$DO$4,0)+1) -> 90088.05 | D68: 312.40 | E68: $90,088 | F68: 4.6% | G68: =IF(C68=0,"",(", and "&D68&" ("&E68&")")) -> , and 312.40 ($90,088) | H68: =+IF(C68=0,"",(", and "&F68)) -> , and 4.6%
C70: =+SUM(C62:C69) -> 22653929.18
C71: =+X33-C70 -> 0
B72: =+"Applicable depreciation rate is "&H62&H63&H64&H65&H66&H67&H68 -> Applicable depreciation rate is 3.1%, 2.1%, 3.3%, 2.4%, 4.3%, and 4.6%

Sheet Form 42 4P p11
A1: ='Form 42 2P'!$A$1:$R$1 -> Tampa Electric Company | S1: Form 42-4P | W1: BB NOX | AF1: BB NOX | AH1: FERC | AI1: ACTIVE PROJECTS | AL1: BB NOX | AN1: FERC | AO1: ACTIVE PROJECTS | AR1: BB NOX | AT1: FERC | AU1: ACTIVE PROJECTS
A2: ='Form 42 2P'!$A$2:$R$2 -> Environmental Cost Recovery Clause | S2: Page 11 of 30 | Y2: BLENDED | AU2: See chart for project #s
A3: ='Form 42 2P'!$A$3:$R$3 -> Calculation of the Projected Period Amount | AI3: L7377 / L5077 / L8807 | AO3: L5003 / L7477 / L7478 / L6377
A4: ='Form 42 2P'!$A$4:$R$4 -> January 2022 to December 2022 | AO4: L7511 / L7777 / L5277
A6: Return on Capital Investments, Depreciation and Taxes | Y6: DEPREC. | Z6: DEPREC. | AH6: DEPREC. | AI6: DEPREC. | AN6: DEPREC. | AO6: DEPREC. | AT6: DEPREC. | AU6: DEPREC.
A7: For Project: Big Bend NOx Emissions Reduction | W7: Blended | X7: IN SERVICE | Y7: RATE | Z7: EXP. | AA7: ACC. DEPR. | AF7: 312.41 | AG7: IN SERVICE | AH7: RATE | AI7: EXP. | AJ7: ACC. DEPR. | AL7: 312.42 | AM7: IN SERVICE | AN7: RATE | AO7: EXP. | AP7: ACC. DEPR. | AR7: 312.43 | AS7: IN SERVICE | AT7: RATE | AU7: EXP. | AV7: ACC. DEPR.
A8: (in Dollars)
W9: 2020-12-19 | X9: 3190852 | Y9: Blended | Z9: 10184 | AA9: -1505355 | AF9: 2020-12-19 | AG9: 1675171 | AH9: 0.003333333333 | AI9: 5584 | AJ9: 940501 | AL9: 2020-12-19 | AM9: 1075718 | AN9: 0.003083333333 | AO9: 3317 | AP9: -2428762 | AR9: 2020-12-19 | AS9: 439963 | AT9: 0.002916666667 | AU9: 1283 | AV9: -17094
S10: End of | W10: Blended | AF10: 312.41 | AL10: 312.42 | AR10: 312.43
F11: Beginning of | G11: ='Form 42 2P'!$D$10 -> Projected | H11: ='Form 42 2P'!$E$10 -> Projected | I11: ='Form 42 2P'!$F$10 -> Projected | J11: ='Form 42 2P'!$G$10 -> Projected | K11: ='Form 42 2P'!$H$10 -> Projected | L11: ='Form 42 2P'!$I$10 -> Projected | M11: ='Form 42 2P'!$J$10 -> Projected | N11: ='Form 42 2P'!$K$10 -> Projected | O11: ='Form 42 2P'!$L$10 -> Projected | P11: ='Form 42 2P'!$M$10 -> Projected | Q11: ='Form 42 2P'!$N$10 -> Projected | R11: ='Form 42 2P'!$O$10 -> Projected | S11: Period | W11: 2021-01-01 | X11: 3190852 | Y11: Blended | Z11: 10184 | AA11: -1495171 | AB11: 0 | AF11: 2021-01-01 | AG11: 1675171 | AH11: 0.003333333333 | AI11: 5584 | AJ11: 946085 | AL11: 2021-01-01 | AM11: 1075718 | AN11: 0.003083333333 | AO11: 3317 | AP11: -2425445 | AR11: 2021-01-01 | AS11: 439963 | AT11: 0.002916666667 | AU11: 1283 | AV11: -15811
A12: Line | B12: Description | F12: Period Amount | G12: ='Form 42 2P'!$D$11 -> January | H12: ='Form 42 2P'!$E$11 -> February | I12: ='Form 42 2P'!$F$11 -> March | J12: ='Form 42 2P'!$G$11 -> April | K12: ='Form 42 2P'!$H$11 -> May | L12: ='Form 42 2P'!$I$11 -> June | M12: ='Form 42 2P'!$J$11 -> July | N12: ='Form 42 2P'!$K$11 -> August | O12: ='Form 42 2P'!$L$11 -> September | P12: ='Form 42 2P'!$M$11 -> October | Q12: ='Form 42 2P'!$N$11 -> November | R12: ='Form 42 2P'!$O$11 -> December | S12: Total | W12: 2121-02-19 | X12: 3190852 | Y12: Blended | Z12: 10184 | AA12: -1484987 | AF12: 2121-02-19 | AG12: 1675171 | AH12: 0.003333333333 | AI12: 5584 | AJ12: 951669 | AL12: 2121-02-19 | AM12: 1075718 | AN12: 0.003083333333 | AO12: 3317 | AP12: -2422128 | AR12: 2121-02-19 | AS12: 439963 | AT12: 0.002916666667 | AU12: 1283 | AV12: -14528
W13: 2121-03-19 | X13: 3190852 | Y13: Blended | Z13: 10184 | AA13: -1474803 | AF13: 2121-03-19 | AG13: 1675171 | AH13: 0.003333333333 | AI13: 5584 | AJ13: 957253 | AL13: 2121-03-19 | AM13: 1075718 | AN13: 0.003083333333 | AO13: 3317 | AP13: -2418811 | AR13: 2121-03-19 | AS13: 439963 | AT13: 0.002916666667 | AU13: 1283 | AV13: -13245
A14: 1. | B14: Investments | W14: 2121-04-19 | X14: 3190852 | Y14: Blended | Z14: 10184 | AA14: -1464619 | AF14: 2121-04-19 | AG14: 1675171 | AH14: 0.003333333333 | AI14: 5584 | AJ14: 962837 | AL14: 2121-04-19 | AM14: 1075718 | AN14: 0.003083333333 | AO14: 3317 | AP14: -2415494 | AR14: 2121-04-19 | AS14: 439963 | AT14: 0.002916666667 | AU14: 1283 | AV14: -11962
B15: a. Expenditures/Additions | G15: 0 | H15: 0 | I15: 0 | J15: 0 | K15: 0 | L15: 0 | M15: 0 | N15: 0 | O15: 0 | P15: 0 | Q15: 0 | R15: 0 | S15: =SUM(G15:R15) -> 0 | W15: 2121-05-19 | X15: 3190852 | Y15: Blended | Z15: 10184 | AA15: -1454435 | AF15: 2121-05-19 | AG15: 1675171 | AH15: 0.003333333333 | AI15: 5584 | AJ15: 968421 | AL15: 2121-05-19 | AM15: 1075718 | AN15: 0.003083333333 | AO15: 3317 | AP15: -2412177 | AR15: 2121-05-19 | AS15: 439963 | AT15: 0.002916666667 | AU15: 1283 | AV15: -10679
B16: b. Clearings to Plant | G16: 0 | H16: 0 | I16: 0 | J16: 0 | K16: 0 | L16: 0 | M16: 0 | N16: 0 | O16: 0 | P16: 0 | Q16: 0 | R16: 0 | S16: =SUM(G16:R16) -> 0 | W16: 2121-06-19 | X16: 3190852 | Y16: Blended | Z16: 10184 | AA16: -1444251 | AF16: 2121-06-19 | AG16: 1675171 | AH16: 0.003333333333 | AI16: 5584 | AJ16: 974005 | AL16: 2121-06-19 | AM16: 1075718 | AN16: 0.003083333333 | AO16: 3317 | AP16: -2408860 | AR16: 2121-06-19 | AS16: 439963 | AT16: 0.002916666667 | AU16: 1283 | AV16: -9396
B17: c. Retirements | G17: 0 | H17: 0 | I17: 0 | J17: 0 | K17: 0 | L17: 0 | M17: 0 | N17: 0 | O17: 0 | P17: 0 | Q17: 0 | R17: 0 | S17: =SUM(G17:R17) -> 0 | W17: 2121-07-19 | X17: 3190852 | Y17: Blended | Z17: 10184 | AA17: -1434067 | AF17: 2121-07-19 | AG17: 1675171 | AH17: 0.003333333333 | AI17: 5584 | AJ17: 979589 | AL17: 2121-07-19 | AM17: 1075718 | AN17: 0.003083333333 | AO17: 3317 | AP17: -2405543 | AR17: 2121-07-19 | AS17: 439963 | AT17: 0.002916666667 | AU17: 1283 | AV17: -8113
B18: d. Other | G18: 0 | H18: 0 | I18: 0 | J18: 0 | K18: 0 | L18: 0 | M18: 0 | N18: 0 | O18: 0 | P18: 0 | Q18: 0 | R18: 0 | S18: 0 | W18: 2121-08-19 | X18: 3190852 | Y18: Blended | Z18: 10184 | AA18: -1423883 | AF18: 2121-08-19 | AG18: 1675171 | AH18: 0.003333333333 | AI18: 5584 | AJ18: 985173 | AL18: 2121-08-19 | AM18: 1075718 | AN18: 0.003083333333 | AO18: 3317 | AP18: -2402226 | AR18: 2121-08-19 | AS18: 439963 | AT18: 0.002916666667 | AU18: 1283 | AV18: -6830
W19: 2121-09-19 | X19: 3190852 | Y19: Blended | Z19: 10184 | AA19: -1413699 | AF19: 2121-09-19 | AG19: 1675171 | AH19: 0.003333333333 | AI19: 5584 | AJ19: 990757 | AL19: 2121-09-19 | AM19: 1075718 | AN19: 0.003083333333 | AO19: 3317 | AP19: -2398909 | AR19: 2121-09-19 | AS19: 439963 | AT19: 0.002916666667 | AU19: 1283 | AV19: -5547
A20: 2. | B20: Plant-in-Service/Depreciation Base (A) | F20: 3190852 | G20: =+$X$24 -> 3190852 | H20: =+$X$25 -> 3190852 | I20: =+$X$26 -> 3190852 | J20: =+$X$27 -> 3190852 | K20: =+$X$28 -> 3190852 | L20: =+$X$29 -> 3190852 | M20: =+$X$30 -> 3190852 | N20: =+$X$31 -> 3190852 | O20: =+$X$32 -> 3190852 | P20: =+$X$33 -> 3190852 | Q20: =+$X$34 -> 3190852 | R20: =+$X$35 -> 3190852 | T20: =R20-X35 -> 0 | U20: ck | W20: 2121-10-19 | X20: 3190852 | Y20: Blended | Z20: 10184 | AA20: -1403515 | AF20: 2121-10-19 | AG20: 1675171 | AH20: 0.003333333333 | AI20: 5584 | AJ20: 996341 | AL20: 2121-10-19 | AM20: 1075718 | AN20: 0.003083333333 | AO20: 3317 | AP20: -2395592 | AR20: 2121-10-19 | AS20: 439963 | AT20: 0.002916666667 | AU20: 1283 | AV20: -4264
A21: 3. | B21: Less: Accumulated Depreciation | F21: 1383147 | G21: =+F21-G32 -> 1370713 | H21: 1358279 | I21: 1345845 | J21: 1333411 | K21: 1320977 | L21: 1308543 | M21: 1296109 | N21: 1283675 | O21: 1271241 | P21: 1258807 | Q21: 1246373 | R21: 1233939 | T21: =R21+AA35 -> 0 | U21: ck | W21: 2121-11-19 | X21: 3190852 | Y21: Blended | Z21: 10184 | AA21: -1393331 | AB21: 0 | AC21: in-service activity | AF21: 2121-11-19 | AG21: 1675171 | AH21: 0.003333333333 | AI21: 5584 | AJ21: 1001925 | AL21: 2121-11-19 | AM21: 1075718 | AN21: 0.003083333333 | AO21: 3317 | AP21: -2392275 | AR21: 2121-11-19 | AS21: 439963 | AT21: 0.002916666667 | AU21: 1283 | AV21: -2981
A22: 4. | B22: CWIP - Non-Interest Bearing | F22: 0 | G22: =F22+G15-G16 -> 0 | H22: =+H15+G22-H16 -> 0 | I22: 0 | J22: 0 | K22: 0 | L22: 0 | M22: 0 | N22: 0 | O22: 0 | P22: =+P15+O22-P16 -> 0 | Q22: 0 | R22: 0 | W22: 2121-12-19 | X22: 3190852 | Y22: Blended | Z22: 10184 | AA22: -1383147 | AB22: 122208 | AC22: depreciation activity | AF22: 2121-12-19 | AG22: 1675171 | AH22: 0.003333333333 | AI22: 5584 | AJ22: 1007509 | AL22: 2121-12-19 | AM22: 1075718 | AN22: 0.003083333333 | AO22: 3317 | AP22: -2388958 | AR22: 2121-12-19 | AS22: 439963 | AT22: 0.002916666667 | AU22: 1283 | AV22: -1698
A23: 5. | B23: Net Investment (Lines 2 + 3 + 4) | F23: 4573999 | G23: =G20+G21+G22 -> 4561565 | H23: 4549131 | I23: 4536697 | J23: 4524263 | K23: 4511829 | L23: 4499395 | M23: 4486961 | N23: 4474527 | O23: 4462093 | P23: 4449659 | Q23: 4437225 | R23: 4424791 | W23: Blended | AF23: 312.41 | AL23: 312.42 | AR23: 312.43
W24: =+AR24 -> 2022-01-01 | X24: =SUM(AG24,AM24,AS24) -> 3190852 | Y24: Blended | Z24: =SUM(AI24,AO24,AU24) -> 12434 | AA24: =+Z24+AA22 -> -1370713 | AB24: =AA24-AA22-AU24-AO24-AI24 -> 0 | AF24: 2022-01-01 | AG24: =AG22 -> 1675171 | AH24: =(_xlfn.XLOOKUP(AF23,'Revised 2022 Depreciation Rates'!$A:$A,'Revised 2022 Depreciation Rates'!$B:$B)/12) -> 0.004333333333 | AI24: =IF(AG22=AJ22,0,IF((AG24-AJ22)<ROUND((AG22*AH24),0),AG24-AJ22,ROUND((AG22*AH24),0))) -> 7259 | AJ24: =ROUND(+AI24+AJ22,) -> 1014768 | AL24: =+AF24 -> 2022-01-01 | AM24: =+AM22 -> 1075718 | AN24: =(_xlfn.XLOOKUP(AL23,'Revised 2022 Depreciation Rates'!$A:$A,'Revised 2022 Depreciation Rates'!$B:$B)/12) -> 0.003583333333 | AO24: =IF(AM22=AP22,0,IF((AM24-AP22)<ROUND((AM22*AN24),0),AM24-AP22,ROUND((AM22*AN24),0))) -> 3855 | AP24: =ROUND(+AO24+AP22,) -> -2385103 | AR24: =+AL24 -> 2022-01-01 | AS24: =+AS22 -> 439963 | AT24: =(_xlfn.XLOOKUP(AR23,'Revised 2022 Depreciation Rates'!$A:$A,'Revised 2022 Depreciation Rates'!$B:$B)/12) -> 0.003 | AU24: =IF(AS22=AV22,0,IF((AS24-AV22)<ROUND((AS22*AT24),0),AS24-AV22,ROUND((AS22*AT24),0))) -> 1320 | AV24: =ROUND(+AU24+AV22,) -> -378
A25: 6. | B25: Average Net Investment | G25: =ROUND((+F23+G23)/2,0) -> 4567782 | H25: 4555348 | I25: 4542914 | J25: 4530480 | K25: 4518046 | L25: 4505612 | M25: 4493178 | N25: 4480744 | O25: 4468310 | P25: 4455876 | Q25: 4443442 | R25: 4431008 | W25: 2022-02-19 | X25: 3190852 | Y25: Blended | Z25: 12434 | AA25: =+AA24+Z25 -> -1358279 | AF25: 2022-02-19 | AG25: =AG24 -> 1675171 | AH25: =(_xlfn.XLOOKUP(AF23,'Revised 2022 Depreciation Rates'!$A:$A,'Revised 2022 Depreciation Rates'!$B:$B)/12) -> 0.004333333333 | AI25: =IF(AG24=AJ24,0,IF((AG25-AJ24)<ROUND((AG24*AH25),0),AG25-AJ24,ROUND((AG24*AH25),0))) -> 7259 | AJ25: =ROUND(+AI25+AJ24,0) -> 1022027 | AL25: =+AF25 -> 2022-02-19 | AM25: =AM24 -> 1075718 | AN25: =(_xlfn.XLOOKUP(AL23,'Revised 2022 Depreciation Rates'!$A:$A,'Revised 2022 Depreciation Rates'!$B:$B)/12) -> 0.003583333333 | AO25: =IF(AM24=AP24,0,IF((AM25-AP24)<ROUND((AM24*AN25),0),AM25-AP24,ROUND((AM24*AN25),0))) -> 3855 | AP25: =ROUND(+AO25+AP24,0) -> -2381248 | AR25: =+AL25 -> 2022-02-19 | AS25: =+AS24 -> 439963 | AT25: =(_xlfn.XLOOKUP(AR23,'Revised 2022 Depreciation Rates'!$A:$A,'Revised 2022 Depreciation Rates'!$B:$B)/12) -> 0.003 | AU25: =IF(AS24=AV24,0,IF((AS25-AV24)<ROUND((AS24*AT25),0),AS25-AV24,ROUND((AS24*AT25),0))) -> 1320 | AV25: =ROUND(+AU25+AV24,0) -> 942
W26: 2022-03-19 | X26: 3190852 | Y26: Blended | Z26: 12434 | AA26: =+AA25+Z26 -> -1345845 | AF26: 2022-03-19 | AG26: =AG25 -> 1675171 | AH26: =(_xlfn.XLOOKUP(AF23,'Revised 2022 Depreciation Rates'!$A:$A,'Revised 2022 Depreciation Rates'!$B:$B)/12) -> 0.004333333333 | AI26: 7259 | AJ26: 1029286 | AL26: 2022-03-19 | AM26: 1075718 | AN26: =(_xlfn.XLOOKUP(AL23,'Revised 2022 Depreciation Rates'!$A:$A,'Revised 2022 Depreciation Rates'!$B:$B)/12) -> 0.003583333333 | AO26: 3855 | AP26: -2377393 | AR26: 2022-03-19 | AS26: =+AS25 -> 439963 | AT26: =(_xlfn.XLOOKUP(AR23,'Revised 2022 Depreciation Rates'!$A:$A,'Revised 2022 Depreciation Rates'!$B:$B)/12) -> 0.003 | AU26: 1320 | AV26: 2262
A27: 7. | B27: Return on Average Net Investment | G27: 1 | H27: 2 | I27: 3 | J27: 4 | K27: 5 | L27: 6 | M27: 7 | N27: 8 | O27: 9 | P27: 10 | Q27: 11 | R27: 12 | S27: 13 | W27: 2022-04-19 | X27: 3190852 | Y27: Blended | Z27: 12434 | AA27: -1333411 | AF27: 2022-04-19 | AG27: 1675171 | AH27: =(_xlfn.XLOOKUP(AF23,'Revised 2022 Depreciation Rates'!$A:$A,'Revised 2022 Depreciation Rates'!$B:$B)/12) -> 0.004333333333 | AI27: 7259 | AJ27: 1036545 | AL27: 2022-04-19 | AM27: 1075718 | AN27: =(_xlfn.XLOOKUP(AL23,'Revised 2022 Depreciation Rates'!$A:$A,'Revised 2022 Depreciation Rates'!$B:$B)/12) -> 0.003583333333 | AO27: 3855 | AP27: -2373538 | AR27: 2022-04-19 | AS27: =+AS26 -> 439963 | AT27: =(_xlfn.XLOOKUP(AR23,'Revised 2022 Depreciation Rates'!$A:$A,'Revised 2022 Depreciation Rates'!$B:$B)/12) -> 0.003 | AU27: 1320 | AV27: 3582
B28: a. Equity Component Grossed Up For Taxes (B) | G28: =ROUND(+G25*(G58)/12,0) -> 23904 | H28: =ROUND(+H25*(H58)/12,0) -> 23839 | I28: 23774 | J28: 23709 | K28: 23644 | L28: 23579 | M28: 23514 | N28: 23448 | O28: 23383 | P28: 23318 | Q28: 23253 | R28: 23188 | S28: =SUM(G28:R28) -> 282553 | W28: 2022-05-19 | X28: 3190852 | Y28: Blended | Z28: 12434 | AA28: -1320977 | AF28: 2022-05-19 | AG28: 1675171 | AH28: =(_xlfn.XLOOKUP(AF23,'Revised 2022 Depreciation Rates'!$A:$A,'Revised 2022 Depreciation Rates'!$B:$B)/12) -> 0.004333333333 | AI28: 7259 | AJ28: 1043804 | AL28: 2022-05-19 | AM28: 1075718 | AN28: =(_xlfn.XLOOKUP(AL23,'Revised 2022 Depreciation Rates'!$A:$A,'Revised 2022 Depreciation Rates'!$B:$B)/12) -> 0.003583333333 | AO28: 3855 | AP28: -2369683 | AR28: 2022-05-19 | AS28: =+AS27 -> 439963 | AT28: =(_xlfn.XLOOKUP(AR23,'Revised 2022 Depreciation Rates'!$A:$A,'Revised 2022 Depreciation Rates'!$B:$B)/12) -> 0.003 | AU28: 1320 | AV28: 4902
B29: b. Debt Component Grossed Up For Taxes (C) | G29: =ROUND(+G25*(G59)/12,0) -> 6225 | H29: =ROUND(+H25*(H59)/12,0) -> 6208 | I29: 6191 | J29: 6174 | K29: 6157 | L29: 6140 | M29: 6123 | N29: 6106 | O29: 6089 | P29: 6072 | Q29: 6055 | R29: 6038 | S29: =SUM(G29:R29) -> 73578 | W29: 2022-06-19 | X29: 3190852 | Y29: Blended | Z29: 12434 | AA29: -1308543 | AF29: 2022-06-19 | AG29: 1675171 | AH29: =(_xlfn.XLOOKUP(AF23,'Revised 2022 Depreciation Rates'!$A:$A,'Revised 2022 Depreciation Rates'!$B:$B)/12) -> 0.004333333333 | AI29: 7259 | AJ29: 1051063 | AL29: 2022-06-19 | AM29: 1075718 | AN29: =(_xlfn.XLOOKUP(AL23,'Revised 2022 Depreciation Rates'!$A:$A,'Revised 2022 Depreciation Rates'!$B:$B)/12) -> 0.003583333333 | AO29: 3855 | AP29: -2365828 | AR29: 2022-06-19 | AS29: =+AS28 -> 439963 | AT29: =(_xlfn.XLOOKUP(AR23,'Revised 2022 Depreciation Rates'!$A:$A,'Revised 2022 Depreciation Rates'!$B:$B)/12) -> 0.003 | AU29: 1320 | AV29: 6222
W30: 2022-07-19 | X30: 3190852 | Y30: Blended | Z30: 12434 | AA30: -1296109 | AF30: 2022-07-19 | AG30: 1675171 | AH30: =(_xlfn.XLOOKUP(AF23,'Revised 2022 Depreciation Rates'!$A:$A,'Revised 2022 Depreciation Rates'!$B:$B)/12) -> 0.004333333333 | AI30: 7259 | AJ30: 1058322 | AL30: 2022-07-19 | AM30: 1075718 | AN30: =(_xlfn.XLOOKUP(AL23,'Revised 2022 Depreciation Rates'!$A:$A,'Revised 2022 Depreciation Rates'!$B:$B)/12) -> 0.003583333333 | AO30: 3855 | AP30: -2361973 | AR30: 2022-07-19 | AS30: =+AS29 -> 439963 | AT30: =(_xlfn.XLOOKUP(AR23,'Revised 2022 Depreciation Rates'!$A:$A,'Revised 2022 Depreciation Rates'!$B:$B)/12) -> 0.003 | AU30: 1320 | AV30: 7542
A31: 8. | B31: Investment Expenses | W31: 2022-08-19 | X31: 3190852 | Y31: Blended | Z31: 12434 | AA31: -1283675 | AF31: 2022-08-19 | AG31: 1675171 | AH31: =(_xlfn.XLOOKUP(AF23,'Revised 2022 Depreciation Rates'!$A:$A,'Revised 2022 Depreciation Rates'!$B:$B)/12) -> 0.004333333333 | AI31: 7259 | AJ31: 1065581 | AL31: 2022-08-19 | AM31: 1075718 | AN31: =(_xlfn.XLOOKUP(AL23,'Revised 2022 Depreciation Rates'!$A:$A,'Revised 2022 Depreciation Rates'!$B:$B)/12) -> 0.003583333333 | AO31: 3855 | AP31: -2358118 | AR31: 2022-08-19 | AS31: 439963 | AT31: =(_xlfn.XLOOKUP(AR23,'Revised 2022 Depreciation Rates'!$A:$A,'Revised 2022 Depreciation Rates'!$B:$B)/12) -> 0.003 | AU31: 1320 | AV31: 8862
B32: a. Depreciation (D) | G32: =+$Z$24 -> 12434 | H32: =+$Z$25 -> 12434 | I32: =+$Z$26 -> 12434 | J32: =+$Z$27 -> 12434 | K32: =+$Z$28 -> 12434 | L32: =+$Z$29 -> 12434 | M32: =+$Z$30 -> 12434 | N32: =+$Z$31 -> 12434 | O32: =+$Z$32 -> 12434 | P32: =+$Z$33 -> 12434 | Q32: =+$Z$34 -> 12434 | R32: =+$Z$35 -> 12434 | S32: =SUM(G32:R32) -> 149208 | T32: =+S32-AB35 -> 0 | U32: ck | W32: 2022-09-19 | X32: 3190852 | Y32: Blended | Z32: 12434 | AA32: -1271241 | AF32: 2022-09-19 | AG32: 1675171 | AH32: =(_xlfn.XLOOKUP(AF23,'Revised 2022 Depreciation Rates'!$A:$A,'Revised 2022 Depreciation Rates'!$B:$B)/12) -> 0.004333333333 | AI32: 7259 | AJ32: 1072840 | AL32: 2022-09-19 | AM32: 1075718 | AN32: =(_xlfn.XLOOKUP(AL23,'Revised 2022 Depreciation Rates'!$A:$A,'Revised 2022 Depreciation Rates'!$B:$B)/12) -> 0.003583333333 | AO32: 3855 | AP32: -2354263 | AR32: 2022-09-19 | AS32: 439963 | AT32: =(_xlfn.XLOOKUP(AR23,'Revised 2022 Depreciation Rates'!$A:$A,'Revised 2022 Depreciation Rates'!$B:$B)/12) -> 0.003 | AU32: 1320 | AV32: 10182
B33: b. Amortization | G33: 0 | H33: 0 | I33: 0 | J33: 0 | K33: 0 | L33: 0 | M33: 0 | N33: 0 | O33: 0 | P33: 0 | Q33: 0 | R33: 0 | S33: =SUM(G33:R33) -> 0 | W33: 2022-10-19 | X33: 3190852 | Y33: Blended | Z33: 12434 | AA33: -1258807 | AF33: 2022-10-19 | AG33: 1675171 | AH33: =(_xlfn.XLOOKUP(AF23,'Revised 2022 Depreciation Rates'!$A:$A,'Revised 2022 Depreciation Rates'!$B:$B)/12) -> 0.004333333333 | AI33: 7259 | AJ33: 1080099 | AL33: 2022-10-19 | AM33: 1075718 | AN33: =(_xlfn.XLOOKUP(AL23,'Revised 2022 Depreciation Rates'!$A:$A,'Revised 2022 Depreciation Rates'!$B:$B)/12) -> 0.003583333333 | AO33: 3855 | AP33: -2350408 | AR33: 2022-10-19 | AS33: 439963 | AT33: =(_xlfn.XLOOKUP(AR23,'Revised 2022 Depreciation Rates'!$A:$A,'Revised 2022 Depreciation Rates'!$B:$B)/12) -> 0.003 | AU33: 1320 | AV33: 11502
B34: c. Dismantlement | G34: 0 | H34: 0 | I34: 0 | J34: 0 | K34: 0 | L34: 0 | M34: 0 | N34: 0 | O34: 0 | P34: 0 | Q34: 0 | R34: 0 | S34: =SUM(G34:R34) -> 0 | W34: 2022-11-19 | X34: 3190852 | Y34: Blended | Z34: 12434 | AA34: -1246373 | AB34: =X35-X22 -> 0 | AC34: in-service activity | AF34: 2022-11-19 | AG34: 1675171 | AH34: =(_xlfn.XLOOKUP(AF23,'Revised 2022 Depreciation Rates'!$A:$A,'Revised 2022 Depreciation Rates'!$B:$B)/12) -> 0.004333333333 | AI34: 7259 | AJ34: 1087358 | AL34: 2022-11-19 | AM34: 1075718 | AN34: =(_xlfn.XLOOKUP(AL23,'Revised 2022 Depreciation Rates'!$A:$A,'Revised 2022 Depreciation Rates'!$B:$B)/12) -> 0.003583333333 | AO34: 3855 | AP34: -2346553 | AR34: 2022-11-19 | AS34: 439963 | AT34: =(_xlfn.XLOOKUP(AR23,'Revised 2022 Depreciation Rates'!$A:$A,'Revised 2022 Depreciation Rates'!$B:$B)/12) -> 0.003 | AU34: 1320 | AV34: 12822
B35: d. Property Taxes | G35: 0 | H35: 0 | I35: 0 | J35: 0 | K35: 0 | L35: 0 | M35: 0 | N35: 0 | O35: 0 | P35: 0 | Q35: 0 | R35: 0 | S35: =SUM(G35:R35) -> 0 | W35: 2022-12-19 | X35: 3190852 | Y35: Blended | Z35: 12434 | AA35: -1233939 | AB35: =AA35-AA22 -> 149208 | AC35: depreciation activity | AF35: 2022-12-19 | AG35: 1675171 | AH35: =(_xlfn.XLOOKUP(AF23,'Revised 2022 Depreciation Rates'!$A:$A,'Revised 2022 Depreciation Rates'!$B:$B)/12) -> 0.004333333333 | AI35: =IF(AG34=AJ34,0,IF((AG35-AJ34)<ROUND((AG34*AH35),0),AG35-AJ34,ROUND((AG34*AH35),0))) -> 7259 | AJ35: 1094617 | AL35: 2022-12-19 | AM35: 1075718 | AN35: =(_xlfn.XLOOKUP(AL23,'Revised 2022 Depreciation Rates'!$A:$A,'Revised 2022 Depreciation Rates'!$B:$B)/12) -> 0.003583333333 | AO35: =IF(AM34=AP34,0,IF((AM35-AP34)<ROUND((AM34*AN35),0),AM35-AP34,ROUND((AM34*AN35),0))) -> 3855 | AP35: -2342698 | AR35: 2022-12-19 | AS35: 439963 | AT35: =(_xlfn.XLOOKUP(AR23,'Revised 2022 Depreciation Rates'!$A:$A,'Revised 2022 Depreciation Rates'!$B:$B)/12) -> 0.003 | AU35: =IF(AS34=AV34,0,IF((AS35-AV34)<ROUND((AS34*AT35),0),AS35-AV34,ROUND((AS34*AT35),0))) -> 1320 | AV35: 14142
B36: e. Other | G36: 0 | H36: 0 | I36: 0 | J36: 0 | K36: 0 | L36: 0 | M36: 0 | N36: 0 | O36: 0 | P36: 0 | Q36: 0 | R36: 0 | S36: =SUM(G36:R36) -> 0
AF37: CM Depr Base | AG37: =+IF(AG7="","",IF(AG7="IN SERVICE",CHOOSE($C$60,AG24,AG25,AG26,AG27,AG28,AG29,AG30,AG31,AG32,AG33,AG34,AG35),"")) -> 1675171 | AH37: =+IF(AH7="","",IF(AH7="IN SERVICE",CHOOSE($C$60,AH24,AH25,AH26,AH27,AH28,AH29,AH30,AH31,AH32,AH33,AH34,AH35),"")) ->  | AM37: 1075718 | AS37: 439963
A38: 9. | B38: Total System Recoverable Expenses (Lines 7 + 8) | G38: =ROUND(+G28+G29+G32+G33+G34+G35+G36,0) -> 42563 | H38: 42481 | I38: 42399 | J38: 42317 | K38: 42235 | L38: 42153 | M38: 42071 | N38: 41988 | O38: 41906 | P38: 41824 | Q38: 41742 | R38: 41660 | S38: =SUM(G38:R38) -> 505339
B39: a. Recoverable Costs Allocated to Energy | G39: =ROUND(+G38*1,0) -> 42563 | H39: 42481 | I39: 42399 | J39: 42317 | K39: 42235 | L39: 42153 | M39: 42071 | N39: 41988 | O39: 41906 | P39: 41824 | Q39: 41742 | R39: 41660 | S39: =SUM(G39:R39) -> 505339
B40: b. Recoverable Costs Allocated to Demand | G40: =ROUND(+G38*0,0) -> 0 | H40: 0 | I40: 0 | J40: 0 | K40: 0 | L40: 0 | M40: 0 | N40: 0 | O40: 0 | P40: 0 | Q40: 0 | R40: 0 | S40: =SUM(G40:R40) -> 0
A42: 10. | B42: Energy Jurisdictional Factor | G42: ='Form 42 2P'!D48 -> 1 | H42: ='Form 42 2P'!E48 -> 1 | I42: ='Form 42 2P'!F48 -> 1 | J42: ='Form 42 2P'!G48 -> 1 | K42: ='Form 42 2P'!H48 -> 1 | L42: ='Form 42 2P'!I48 -> 1 | M42: ='Form 42 2P'!J48 -> 1 | N42: ='Form 42 2P'!K48 -> 1 | O42: ='Form 42 2P'!L48 -> 1 | P42: ='Form 42 2P'!M48 -> 1 | Q42: ='Form 42 2P'!N48 -> 1 | R42: ='Form 42 2P'!O48 -> 1
A43: 11. | B43: Demand Jurisdictional Factor | G43: =+'Form 42 2P'!D49 -> 1 | H43: =+'Form 42 2P'!E49 -> 1 | I43: =+'Form 42 2P'!F49 -> 1 | J43: =+'Form 42 2P'!G49 -> 1 | K43: =+'Form 42 2P'!H49 -> 1 | L43: =+'Form 42 2P'!I49 -> 1 | M43: =+'Form 42 2P'!J49 -> 1 | N43: =+'Form 42 2P'!K49 -> 1 | O43: =+'Form 42 2P'!L49 -> 1 | P43: =+'Form 42 2P'!M49 -> 1 | Q43: =+'Form 42 2P'!N49 -> 1 | R43: =+'Form 42 2P'!O49 -> 1
A45: 12. | B45: Retail Energy-Related Recoverable Costs (E) | G45: =ROUND((+G39*G42),0) -> 42563 | H45: 42481 | I45: 42399 | J45: 42317 | K45: 42235 | L45: 42153 | M45: 42071 | N45: 41988 | O45: 41906 | P45: 41824 | Q45: 41742 | R45: 41660 | S45: =SUM(G45:R45) -> 505339
A46: 13. | B46: Retail Demand-Related Recoverable Costs (F) | G46: =(+G40*G43) -> 0 | H46: 0 | I46: 0 | J46: 0 | K46: 0 | L46: 0 | M46: 0 | N46: 0 | O46: 0 | P46: 0 | Q46: 0 | R46: 0 | S46: =SUM(G46:R46) -> 0
A47: 14. | B47: Total Jurisdictional Recoverable Costs (Lines 12 + 13) | G47: =G45+G46 -> 42563 | H47: =H45+H46 -> 42481 | I47: 42399 | J47: 42317 | K47: 42235 | L47: 42153 | M47: 42071 | N47: 41988 | O47: 41906 | P47: 41824 | Q47: 41742 | R47: 41660 | S47: =SUM(G47:R47) -> 505339
A49: Notes:
A50: (A) | B50: =+B61 -> Applicable depreciable base for Big Bend; accounts 312.41 ($1,675,171), 312.42 ($1,075,718), and 312.43 ($439,963).
A51: (B) | B51: ='Tot 8E pg1-30'!$B$52 -> Line 6 x 6.2798% x 1/12. Based on ROE of 9.95% and weighted income tax rate of 25.345% (expansion factor of 1.34315)
A52: (C) | B52: ='Tot 8E pg1-30'!$B$53 -> Line 6 x 1.6353% x 1/12
A53: (D) | B53: =+B68 -> Applicable depreciation rate is 5.2%, 4.3%, and 3.6%
A54: (E) | B54: Line 9a x Line 10
A55: (F) | B55: Line 9b x Line 11
F58: ROI WACC-Equity | G58: ='Form 42 8P'!$E$50 -> 0.062798 | H58: ='Form 42 8P'!$E$50 -> 0.062798 | I58: ='Form 42 8P'!$E$50 -> 0.062798 | J58: ='Form 42 8P'!$E$50 -> 0.062798 | K58: ='Form 42 8P'!$E$50 -> 0.062798 | L58: ='Form 42 8P'!$E$50 -> 0.062798 | M58: ='Form 42 8P'!$E$50 -> 0.062798 | N58: ='Form 42 8P'!$E$50 -> 0.062798 | O58: ='Form 42 8P'!$E$50 -> 0.062798 | P58: ='Form 42 8P'!$E$50 -> 0.062798 | Q58: ='Form 42 8P'!$E$50 -> 0.062798 | R58: ='Form 42 8P'!$E$50 -> 0.062798
F59: ROI WACC-Debt | G59: ='Form 42 8P'!$E$59 -> 0.016353 | H59: ='Form 42 8P'!$E$59 -> 0.016353 | I59: ='Form 42 8P'!$E$59 -> 0.016353 | J59: ='Form 42 8P'!$E$59 -> 0.016353 | K59: ='Form 42 8P'!$E$59 -> 0.016353 | L59: ='Form 42 8P'!$E$59 -> 0.016353 | M59: ='Form 42 8P'!$E$59 -> 0.016353 | N59: ='Form 42 8P'!$E$59 -> 0.016353 | O59: ='Form 42 8P'!$E$59 -> 0.016353 | P59: ='Form 42 8P'!$E$59 -> 0.016353 | Q59: ='Form 42 8P'!$E$59 -> 0.016353 | R59: ='Form 42 8P'!$E$59 -> 0.016353
B60: CM | C60: 12
B61: =+"Applicable depreciable base for Big Bend; accounts "&G62&G63&G64&"." -> Applicable depreciable base for Big Bend; accounts 312.41 ($1,675,171), 312.42 ($1,075,718), and 312.43 ($439,963).
A62: =+INDEX($AF$29:$DP$29,1,MATCH($B62,$AF$7:$DP$7,0)+2)*12 -> 0.052 | B62: 312.41 | C62: =+INDEX($AF$37:$DP$37,1,MATCH($B62,$AF$7:$DP$7,0)+1) -> 1675171 | D62: =+TEXT(B62,"#.00") -> 312.41 | E62: =+TEXT(C62,"$#,###") -> $1,675,171 | F62: =+IF(C62=0,"",TEXT(A62,"#.0%")) -> 5.2% | G62: =+D62&" ("&E62&")" -> 312.41 ($1,675,171) | H62: =+F62 -> 5.2%
A63: =+INDEX($AF$29:$DP$29,1,MATCH($B63,$AF$7:$DP$7,0)+2)*12 -> 0.043 | B63: 312.42 | C63: =+INDEX($AF$37:$DP$37,1,MATCH($B63,$AF$7:$DP$7,0)+1) -> 1075718 | D63: =+TEXT(B63,"#.00") -> 312.42 | E63: =+TEXT(C63,"$#,###") -> $1,075,718 | F63: 4.3% | G63: =IF(C63=0,"",(", "&D63&" ("&E63&")")) -> , 312.42 ($1,075,718) | H63: =+IF(C63=0,"",(", "&F63)) -> , 4.3%
A64: =+INDEX($AF$29:$DP$29,1,MATCH($B64,$AF$7:$DP$7,0)+2)*12 -> 0.036 | B64: 312.43 | C64: =+INDEX($AF$37:$DP$37,1,MATCH($B64,$AF$7:$DP$7,0)+1) -> 439963 | D64: 312.43 | E64: =+TEXT(C64,"$#,###") -> $439,963 | F64: 3.6% | G64: =IF(C64=0,"",(", and "&D64&" ("&E64&")")) -> , and 312.43 ($439,963) | H64: =+IF(C64=0,"",(", and "&F64)) -> , and 3.6%
C66: =+SUM(C62:C65) -> 3190852
C67: =+X32-C66 -> 0
B68: =+"Applicable depreciation rate is "&H62&H63&H64 -> Applicable depreciation rate is 5.2%, 4.3%, and 3.6%

Sheet Form 42 4P p12
A1: ='Form 42 2P'!$A$1:$R$1 -> Tampa Electric Company | S1: Form 42-4P | AE1: PM Minimization
A2: ='Form 42 2P'!$A$2:$R$2 -> Environmental Cost Recovery Clause | S2: Page 12 of 30 | W2: Total PM Minimization | AH2: L50 02 / L50 06 | AN2: L50 10 / L72 77 / L82 77 | AT2: L50 04 / L50 11 | AZ2: A70 32 | BF2: L7877 | BL2: L8821 and L8826
A3: ='Form 42 2P'!$A$3:$R$3 -> Calculation of the Projected Period Amount | W3: BLENDED | X3: IN SERVICE | Y3: DEPREC. | Z3: DEPREC. | AE3: 312.41 | AF3: IN SERVICE | AG3: DEPREC. | AH3: DEPREC. | AK3: 312.42 | AL3: IN SERVICE | AM3: DEPREC. | AN3: DEPREC. | AQ3: 312.43 | AR3: IN SERVICE | AS3: DEPREC. | AT3: DEPREC. | AW3: 315.41 | AX3: IN SERVICE | AY3: DEPREC. | AZ3: DEPREC. | BC3: 315.44 | BD3: IN SERVICE | BE3: DEPREC. | BF3: DEPREC. | BI3: 315.43 | BJ3: IN SERVICE | BK3: DEPREC. | BL3: DEPREC.
A4: ='Form 42 2P'!$A$4:$R$4 -> January 2022 to December 2022 | Y4: RATE | Z4: EXP. | AA4: ACC. DEPR. | AG4: RATE | AH4: EXP. | AI4: ACC. DEPR. | AM4: RATE | AN4: EXP. | AO4: ACC. DEPR. | AS4: RATE | AT4: EXP. | AU4: ACC. DEPR. | AY4: RATE | AZ4: EXP. | BA4: ACC. DEPR. | BE4: RATE | BF4: EXP. | BG4: ACC. DEPR. | BK4: RATE | BL4: EXP. | BM4: ACC. DEPR.
A6: Return on Capital Investments, Depreciation and Taxes | W6: 2020-12-20 | X6: 19757749.58 | Y6: Blended | Z6: 60872 | AA6: 7275250 | AE6: 2020-12-20 | AF6: 5831465.32 | AG6: 0.003333333333 | AH6: 19438 | AI6: 1777915 | AK6: 2020-12-20 | AL6: 5153072 | AM6: 0.003083333333 | AN6: 15889 | AO6: 2822837 | AQ6: 2020-12-20 | AR6: 7875560.24 | AS6: 0.002916666667 | AT6: 22970 | AU6: 2314801 | AW6: 2020-12-20 | AX6: 17504 | AY6: 0.002916666667 | AZ6: 51 | BA6: 8946 | BC6: 2020-12-20 | BD6: 351594 | BE6: 0.002666666667 | BF6: 938 | BG6: 152047 | BI6: 2020-12-20 | BJ6: 528554.02 | BK6: 0.003 | BL6: 1586 | BM6: 198704
A7: For Project: PM Minimization and Monitoring | W7: Blended | AE7: 312.41 | AK7: 312.42 | AQ7: 312.43 | AW7: 315.41 | BC7: 315.44 | BI7: 315.43
A8: (in Dollars) | W8: Jan 21 | X8: 19757749.58 | Y8: Blended | Z8: 60872 | AA8: 7336122 | AB8: 0 | AE8: Jan 21 | AF8: 5831465.32 | AG8: 0.003333333333 | AH8: 19438 | AI8: 1797353 | AK8: Jan 21 | AL8: 5153072 | AM8: 0.003083333333 | AN8: 15889 | AO8: 2838726 | AQ8: Jan 21 | AR8: 7875560.24 | AS8: 0.002916666667 | AT8: 22970 | AU8: 2337771 | AW8: Jan 21 | AX8: 17504 | AY8: 0.002916666667 | AZ8: 51 | BA8: 8997 | BC8: Jan 21 | BD8: 351594 | BE8: 0.002666666667 | BF8: 938 | BG8: 152985 | BI8: Jan 21 | BJ8: 528554.02 | BK8: 0.003 | BL8: 1586 | BM8: 200290
W9: 2121-02-21 | X9: 19757749.58 | Y9: Blended | Z9: 60872 | AA9: 7396994 | AE9: 2121-02-21 | AF9: 5831465.32 | AG9: 0.003333333333 | AH9: 19438 | AI9: 1816791 | AK9: 2121-02-21 | AL9: 5153072 | AM9: 0.003083333333 | AN9: 15889 | AO9: 2854615 | AQ9: 2121-02-21 | AR9: 7875560.24 | AS9: 0.002916666667 | AT9: 22970 | AU9: 2360741 | AW9: 2121-02-21 | AX9: 17504 | AY9: 0.002916666667 | AZ9: 51 | BA9: 9048 | BC9: 2121-02-21 | BD9: 351594 | BE9: 0.002666666667 | BF9: 938 | BG9: 153923 | BI9: 2121-02-21 | BJ9: 528554.02 | BK9: 0.003 | BL9: 1586 | BM9: 201876
S10: End of | W10: 2121-03-21 | X10: 19757749.58 | Y10: Blended | Z10: 60872 | AA10: 7457866 | AE10: 2121-03-21 | AF10: 5831465.32 | AG10: 0.003333333333 | AH10: 19438 | AI10: 1836229 | AK10: 2121-03-21 | AL10: 5153072 | AM10: 0.003083333333 | AN10: 15889 | AO10: 2870504 | AQ10: 2121-03-21 | AR10: 7875560.24 | AS10: 0.002916666667 | AT10: 22970 | AU10: 2383711 | AW10: 2121-03-21 | AX10: 17504 | AY10: 0.002916666667 | AZ10: 51 | BA10: 9099 | BC10: 2121-03-21 | BD10: 351594 | BE10: 0.002666666667 | BF10: 938 | BG10: 154861 | BI10: 2121-03-21 | BJ10: 528554.02 | BK10: 0.003 | BL10: 1586 | BM10: 203462
F11: Beginning of | G11: ='Form 42 2P'!$D$10 -> Projected | H11: ='Form 42 2P'!$E$10 -> Projected | I11: ='Form 42 2P'!$F$10 -> Projected | J11: ='Form 42 2P'!$G$10 -> Projected | K11: ='Form 42 2P'!$H$10 -> Projected | L11: ='Form 42 2P'!$I$10 -> Projected | M11: ='Form 42 2P'!$J$10 -> Projected | N11: ='Form 42 2P'!$K$10 -> Projected | O11: ='Form 42 2P'!$L$10 -> Projected | P11: ='Form 42 2P'!$M$10 -> Projected | Q11: ='Form 42 2P'!$N$10 -> Projected | R11: ='Form 42 2P'!$O$10 -> Projected | S11: Period | W11: 2121-04-21 | X11: 19757749.58 | Y11: Blended | Z11: 60872 | AA11: 7518738 | AE11: 2121-04-21 | AF11: 5831465.32 | AG11: 0.003333333333 | AH11: 19438 | AI11: 1855667 | AK11: 2121-04-21 | AL11: 5153072 | AM11: 0.003083333333 | AN11: 15889 | AO11: 2886393 | AQ11: 2121-04-21 | AR11: 7875560.24 | AS11: 0.002916666667 | AT11: 22970 | AU11: 2406681 | AW11: 2121-04-21 | AX11: 17504 | AY11: 0.002916666667 | AZ11: 51 | BA11: 9150 | BC11: 2121-04-21 | BD11: 351594 | BE11: 0.002666666667 | BF11: 938 | BG11: 155799 | BI11: 2121-04-21 | BJ11: 528554.02 | BK11: 0.003 | BL11: 1586 | BM11: 205048
A12: Line | B12: Description | F12: Period Amount | G12: ='Form 42 2P'!$D$11 -> January | H12: ='Form 42 2P'!$E$11 -> February | I12: ='Form 42 2P'!$F$11 -> March | J12: ='Form 42 2P'!$G$11 -> April | K12: ='Form 42 2P'!$H$11 -> May | L12: ='Form 42 2P'!$I$11 -> June | M12: ='Form 42 2P'!$J$11 -> July | N12: ='Form 42 2P'!$K$11 -> August | O12: ='Form 42 2P'!$L$11 -> September | P12: ='Form 42 2P'!$M$11 -> October | Q12: ='Form 42 2P'!$N$11 -> November | R12: ='Form 42 2P'!$O$11 -> December | S12: Total | W12: 2121-05-21 | X12: 19757749.58 | Y12: Blended | Z12: 60872 | AA12: 7579610 | AE12: 2121-05-21 | AF12: 5831465.32 | AG12: 0.003333333333 | AH12: 19438 | AI12: 1875105 | AK12: 2121-05-21 | AL12: 5153072 | AM12: 0.003083333333 | AN12: 15889 | AO12: 2902282 | AQ12: 2121-05-21 | AR12: 7875560.24 | AS12: 0.002916666667 | AT12: 22970 | AU12: 2429651 | AW12: 2121-05-21 | AX12: 17504 | AY12: 0.002916666667 | AZ12: 51 | BA12: 9201 | BC12: 2121-05-21 | BD12: 351594 | BE12: 0.002666666667 | BF12: 938 | BG12: 156737 | BI12: 2121-05-21 | BJ12: 528554.02 | BK12: 0.003 | BL12: 1586 | BM12: 206634
W13: 2121-06-21 | X13: 19757749.58 | Y13: Blended | Z13: 60872 | AA13: 7640482 | AE13: 2121-06-21 | AF13: 5831465.32 | AG13: 0.003333333333 | AH13: 19438 | AI13: 1894543 | AK13: 2121-06-21 | AL13: 5153072 | AM13: 0.003083333333 | AN13: 15889 | AO13: 2918171 | AQ13: 2121-06-21 | AR13: 7875560.24 | AS13: 0.002916666667 | AT13: 22970 | AU13: 2452621 | AW13: 2121-06-21 | AX13: 17504 | AY13: 0.002916666667 | AZ13: 51 | BA13: 9252 | BC13: 2121-06-21 | BD13: 351594 | BE13: 0.002666666667 | BF13: 938 | BG13: 157675 | BI13: 2121-06-21 | BJ13: 528554.02 | BK13: 0.003 | BL13: 1586 | BM13: 208220
A14: 1. | B14: Investments | W14: 2121-07-21 | X14: 19757749.58 | Y14: Blended | Z14: 60872 | AA14: 7701354 | AE14: 2121-07-21 | AF14: 5831465.32 | AG14: 0.003333333333 | AH14: 19438 | AI14: 1913981 | AK14: 2121-07-21 | AL14: 5153072 | AM14: 0.003083333333 | AN14: 15889 | AO14: 2934060 | AQ14: 2121-07-21 | AR14: 7875560.24 | AS14: 0.002916666667 | AT14: 22970 | AU14: 2475591 | AW14: 2121-07-21 | AX14: 17504 | AY14: 0.002916666667 | AZ14: 51 | BA14: 9303 | BC14: 2121-07-21 | BD14: 351594 | BE14: 0.002666666667 | BF14: 938 | BG14: 158613 | BI14: 2121-07-21 | BJ14: 528554.02 | BK14: 0.003 | BL14: 1586 | BM14: 209806
B15: a. Expenditures/Additions | G15: 0 | H15: 0 | I15: 0 | J15: 0 | K15: 0 | L15: 0 | M15: 0 | N15: 0 | O15: 0 | P15: 0 | Q15: 0 | R15: 0 | S15: =SUM(G15:R15) -> 0 | W15: 2121-08-21 | X15: 19757749.58 | Y15: Blended | Z15: 60872 | AA15: 7762226 | AE15: 2121-08-21 | AF15: 5831465.32 | AG15: 0.003333333333 | AH15: 19438 | AI15: 1933419 | AK15: 2121-08-21 | AL15: 5153072 | AM15: 0.003083333333 | AN15: 15889 | AO15: 2949949 | AQ15: 2121-08-21 | AR15: 7875560.24 | AS15: 0.002916666667 | AT15: 22970 | AU15: 2498561 | AW15: 2121-08-21 | AX15: 17504 | AY15: 0.002916666667 | AZ15: 51 | BA15: 9354 | BC15: 2121-08-21 | BD15: 351594 | BE15: 0.002666666667 | BF15: 938 | BG15: 159551 | BI15: 2121-08-21 | BJ15: 528554.02 | BK15: 0.003 | BL15: 1586 | BM15: 211392
B16: b. Clearings to Plant | G16: 0 | H16: 0 | I16: 0 | J16: 0 | K16: 0 | L16: 0 | M16: 0 | N16: 0 | O16: 0 | P16: 0 | Q16: 0 | R16: 0 | S16: =SUM(G16:R16) -> 0 | T16: =ROUND(S16-AB31,6) -> 0 | U16: ck | W16: 2121-09-21 | X16: 19757749.58 | Y16: Blended | Z16: 60872 | AA16: 7823098 | AE16: 2121-09-21 | AF16: 5831465.32 | AG16: 0.003333333333 | AH16: 19438 | AI16: 1952857 | AK16: 2121-09-21 | AL16: 5153072 | AM16: 0.003083333333 | AN16: 15889 | AO16: 2965838 | AQ16: 2121-09-21 | AR16: 7875560.24 | AS16: 0.002916666667 | AT16: 22970 | AU16: 2521531 | AW16: 2121-09-21 | AX16: 17504 | AY16: 0.002916666667 | AZ16: 51 | BA16: 9405 | BC16: 2121-09-21 | BD16: 351594 | BE16: 0.002666666667 | BF16: 938 | BG16: 160489 | BI16: 2121-09-21 | BJ16: 528554.02 | BK16: 0.003 | BL16: 1586 | BM16: 212978
B17: c. Retirements | G17: 0 | H17: 0 | I17: 0 | J17: 0 | K17: 0 | L17: 0 | M17: 0 | N17: 0 | O17: 0 | P17: 0 | Q17: 0 | R17: 0 | S17: =SUM(G17:R17) -> 0 | W17: 2121-10-21 | X17: 19757749.58 | Y17: Blended | Z17: 60872 | AA17: 7883970 | AE17: 2121-10-21 | AF17: 5831465.32 | AG17: 0.003333333333 | AH17: 19438 | AI17: 1972295 | AK17: 2121-10-21 | AL17: 5153072 | AM17: 0.003083333333 | AN17: 15889 | AO17: 2981727 | AQ17: 2121-10-21 | AR17: 7875560.24 | AS17: 0.002916666667 | AT17: 22970 | AU17: 2544501 | AW17: 2121-10-21 | AX17: 17504 | AY17: 0.002916666667 | AZ17: 51 | BA17: 9456 | BC17: 2121-10-21 | BD17: 351594 | BE17: 0.002666666667 | BF17: 938 | BG17: 161427 | BI17: 2121-10-21 | BJ17: 528554.02 | BK17: 0.003 | BL17: 1586 | BM17: 214564
B18: d. Other | G18: 0 | H18: 0 | I18: 0 | J18: 0 | K18: 0 | L18: 0 | M18: 0 | N18: 0 | O18: 0 | P18: 0 | Q18: 0 | R18: 0 | S18: 0 | W18: 2121-11-21 | X18: 19757749.58 | Y18: Blended | Z18: 60872 | AA18: 7944842 | AB18: 0 | AC18: in-service activity | AE18: 2121-11-21 | AF18: 5831465.32 | AG18: 0.003333333333 | AH18: 19438 | AI18: 1991733 | AK18: 2121-11-21 | AL18: 5153072 | AM18: 0.003083333333 | AN18: 15889 | AO18: 2997616 | AQ18: 2121-11-21 | AR18: 7875560.24 | AS18: 0.002916666667 | AT18: 22970 | AU18: 2567471 | AW18: 2121-11-21 | AX18: 17504 | AY18: 0.002916666667 | AZ18: 51 | BA18: 9507 | BC18: 2121-11-21 | BD18: 351594 | BE18: 0.002666666667 | BF18: 938 | BG18: 162365 | BI18: 2121-11-21 | BJ18: 528554.02 | BK18: 0.003 | BL18: 1586 | BM18: 216150
W19: 2121-12-21 | X19: 19757749.58 | Y19: Blended | Z19: 60872 | AA19: 8005714 | AB19: 730464 | AC19: depreciation activity | AE19: 2121-12-21 | AF19: 5831465.32 | AG19: 0.003333333333 | AH19: 19438 | AI19: 2011171 | AK19: 2121-12-21 | AL19: 5153072 | AM19: 0.003083333333 | AN19: 15889 | AO19: 3013505 | AQ19: 2121-12-21 | AR19: 7875560.24 | AS19: 0.002916666667 | AT19: 22970 | AU19: 2590441 | AW19: 2121-12-21 | AX19: 17504 | AY19: 0.002916666667 | AZ19: 51 | BA19: 9558 | BC19: 2121-12-21 | BD19: 351594 | BE19: 0.002666666667 | BF19: 938 | BG19: 163303 | BI19: 2121-12-21 | BJ19: 528554.02 | BK19: 0.003 | BL19: 1586 | BM19: 217736
A20: 2. | B20: Plant-in-Service/Depreciation Base (A) | F20: 19757749.58 | G20: =$X$21 -> 19757749.58 | H20: =$X$22 -> 19757749.58 | I20: =$X$23 -> 19757749.58 | J20: =$X$24 -> 19757749.58 | K20: =$X$25 -> 19757749.58 | L20: =$X$26 -> 19757749.58 | M20: =$X$27 -> 19757749.58 | N20: =$X$28 -> 19757749.58 | O20: =$X$29 -> 19757749.58 | P20: =$X$30 -> 19757749.58 | Q20: =$X$31 -> 19757749.58 | R20: =$X$32 -> 19757749.58 | T20: =R20-X32 -> 0 | U20: ck | W20: Blended | AE20: 312.41 | AK20: 312.42 | AQ20: 312.43 | AW20: 315.41 | BC20: 315.44 | BI20: 315.43
A21: 3. | B21: Less: Accumulated Depreciation | F21: -8005714 | G21: =-G32+F21 -> -8075444 | H21: =-H32+G21 -> -8145174 | I21: -8214904 | J21: -8284634 | K21: -8354364 | L21: -8424094 | M21: -8493824 | N21: -8563554 | O21: -8633284 | P21: -8703014 | Q21: -8772744 | R21: -8842474 | T21: =R21+AA32 -> 0 | U21: ck | W21: =+BI21 -> 2022-01-21 | X21: =AR21+AX21+BD21+AF21+AL21+BJ21 -> 19757749.58 | Y21: Blended | Z21: =AT21+AZ21+BF21+AH21+AN21+BL21 -> 69730 | AA21: =ROUND(+AA19+Z21,0) -> 8075444 | AB21: =AA21-AA19-BL21-BF21-AZ21-AT21-AN21-AH21 -> 0 | AE21: 2022-01-21 | AF21: =AF19+0 -> 5831465.32 | AG21: =(_xlfn.XLOOKUP(AE20,'Revised 2022 Depreciation Rates'!$A:$A,'Revised 2022 Depreciation Rates'!$B:$B)/12) -> 0.004333333333 | AH21: =IF(AF19=AI19,0,IF((AF21-AI19)<ROUND((AF19*AG21),0),AF21-AI19,ROUND((AF19*AG21),0))) -> 25270 | AI21: =ROUND(+AI19+AH21,0) -> 2036441 | AK21: =+AE21 -> 2022-01-21 | AL21: =AL19 -> 5153072 | AM21: =(_xlfn.XLOOKUP(AK20,'Revised 2022 Depreciation Rates'!$A:$A,'Revised 2022 Depreciation Rates'!$B:$B)/12) -> 0.003583333333 | AN21: =IF(AL19=AO19,0,IF((AL21-AO19)<ROUND((AL19*AM21),0),AL21-AO19,ROUND((AL19*AM21),0))) -> 18465 | AO21: =ROUND(+AO19+AN21,0) -> 3031970 | AQ21: =+AE21 -> 2022-01-21 | AR21: =AR19 -> 7875560.24 | AS21: =(_xlfn.XLOOKUP(AQ20,'Revised 2022 Depreciation Rates'!$A:$A,'Revised 2022 Depreciation Rates'!$B:$B)/12) -> 0.003 | AT21: =IF(AR19=AU19,0,IF((AR21-AU19)<ROUND((AR19*AS21),0),AR21-AU19,ROUND((AR19*AS21),0))) -> 23627 | AU21: =ROUND(+AU19+AT21,0) -> 2614068 | AW21: =+AQ21 -> 2022-01-21 | AX21: =AX19 -> 17504 | AY21: =(_xlfn.XLOOKUP(AW20,'Revised 2022 Depreciation Rates'!$A:$A,'Revised 2022 Depreciation Rates'!$B:$B)/12) -> 0.003666666667 | AZ21: =IF(AX19=BA19,0,IF((AX21-BA19)<ROUND((AX19*AY21),0),AX21-BA19,ROUND((AX19*AY21),0))) -> 64 | BA21: =ROUND(+BA19+AZ21,0) -> 9622 | BC21: =+AW21 -> 2022-01-21 | BD21: =BD19 -> 351594 | BE21: =(_xlfn.XLOOKUP(BC20,'Revised 2022 Depreciation Rates'!$A:$A,'Revised 2022 Depreciation Rates'!$B:$B)/12) -> 0.002416666667 | BF21: =IF(BD19=BG19,0,IF((BD21-BG19)<ROUND((BD19*BE21),0),BD21-BG19,ROUND((BD19*BE21),0))) -> 850 | BG21: =ROUND(+BG19+BF21,0) -> 164153 | BI21: =+BC21 -> 2022-01-21 | BJ21: =BJ19 -> 528554.02 | BK21: =(_xlfn.XLOOKUP(BI20,'Revised 2022 Depreciation Rates'!$A:$A,'Revised 2022 Depreciation Rates'!$B:$B)/12) -> 0.00275 | BL21: =IF(BJ19=BM19,0,IF((BJ21-BM19)<ROUND((BJ19*BK21),0),BJ21-BM19,ROUND((BJ19*BK21),0))) -> 1454 | BM21: =ROUND(+BM19+BL21,0) -> 219190
A22: 4. | B22: CWIP - Non-Interest Bearing | F22: 0 | G22: =F22+G15-G16 -> 0 | H22: =H15+G22-H16 -> 0 | I22: =I15+H22-I16 -> 0 | J22: =J15+I22-J16 -> 0 | K22: 0 | L22: 0 | M22: 0 | N22: =N15+M22-N16 -> 0 | O22: =O15+N22-O16 -> 0 | P22: =P15+O22-P16 -> 0 | Q22: =Q15+P22-Q16 -> 0 | R22: =R15+Q22-R16 -> 0 | W22: 2022-02-21 | X22: 19757749.58 | Y22: Blended | Z22: 69730 | AA22: =ROUND(+AA21+Z22,0) -> 8145174 | AE22: 2022-02-21 | AF22: =AF21+0 -> 5831465.32 | AG22: =(_xlfn.XLOOKUP(AE20,'Revised 2022 Depreciation Rates'!$A:$A,'Revised 2022 Depreciation Rates'!$B:$B)/12) -> 0.004333333333 | AH22: =IF(AF21=AI21,0,IF((AF22-AI21)<ROUND((AF21*AG22),0),AF22-AI21,ROUND((AF21*AG22),0))) -> 25270 | AI22: =ROUND(+AI21+AH22,0) -> 2061711 | AK22: =+AE22 -> 2022-02-21 | AL22: =AL21 -> 5153072 | AM22: =(_xlfn.XLOOKUP(AK20,'Revised 2022 Depreciation Rates'!$A:$A,'Revised 2022 Depreciation Rates'!$B:$B)/12) -> 0.003583333333 | AN22: =IF(AL21=AO21,0,IF((AL22-AO21)<ROUND((AL21*AM22),0),AL22-AO21,ROUND((AL21*AM22),0))) -> 18465 | AO22: =ROUND(+AO21+AN22,0) -> 3050435 | AQ22: =+AE22 -> 2022-02-21 | AR22: =AR21+0 -> 7875560.24 | AS22: =(_xlfn.XLOOKUP(AQ20,'Revised 2022 Depreciation Rates'!$A:$A,'Revised 2022 Depreciation Rates'!$B:$B)/12) -> 0.003 | AT22: =IF(AR21=AU21,0,IF((AR22-AU21)<ROUND((AR21*AS22),0),AR22-AU21,ROUND((AR21*AS22),0))) -> 23627 | AU22: =ROUND(+AU21+AT22,0) -> 2637695 | AW22: =+AQ22 -> 2022-02-21 | AX22: =AX21+0 -> 17504 | AY22: =(_xlfn.XLOOKUP(AW20,'Revised 2022 Depreciation Rates'!$A:$A,'Revised 2022 Depreciation Rates'!$B:$B)/12) -> 0.003666666667 | AZ22: =IF(AX21=BA21,0,IF((AX22-BA21)<ROUND((AX21*AY22),0),AX22-BA21,ROUND((AX21*AY22),0))) -> 64 | BA22: =ROUND(+BA21+AZ22,0) -> 9686 | BC22: =+AW22 -> 2022-02-21 | BD22: =BD21+0 -> 351594 | BE22: =(_xlfn.XLOOKUP(BC20,'Revised 2022 Depreciation Rates'!$A:$A,'Revised 2022 Depreciation Rates'!$B:$B)/12) -> 0.002416666667 | BF22: =IF(BD21=BG21,0,IF((BD22-BG21)<ROUND((BD21*BE22),0),BD22-BG21,ROUND((BD21*BE22),0))) -> 850 | BG22: =ROUND(+BG21+BF22,0) -> 165003 | BI22: =+BC22 -> 2022-02-21 | BJ22: =BJ21 -> 528554.02 | BK22: =(_xlfn.XLOOKUP(BI20,'Revised 2022 Depreciation Rates'!$A:$A,'Revised 2022 Depreciation Rates'!$B:$B)/12) -> 0.00275 | BL22: =IF(BJ21=BM21,0,IF((BJ22-BM21)<ROUND((BJ21*BK22),0),BJ22-BM21,ROUND((BJ21*BK22),0))) -> 1454 | BM22: =ROUND(+BM21+BL22,0) -> 220644
A23: 5. | B23: Net Investment (Lines 2 + 3 + 4) | F23: 11752035.58 | G23: =G20+G21+G22 -> 11682305.58 | H23: 11612575.58 | I23: 11542845.58 | J23: 11473115.58 | K23: 11403385.58 | L23: 11333655.58 | M23: 11263925.58 | N23: 11194195.58 | O23: 11124465.58 | P23: 11054735.58 | Q23: =Q20+Q21+Q22 -> 10985005.58 | R23: 10915275.58 | W23: 2022-03-21 | X23: 19757749.58 | Y23: Blended | Z23: 69730 | AA23: =ROUND(+AA22+Z23,0) -> 8214904 | AE23: 2022-03-21 | AF23: =AF22+0 -> 5831465.32 | AG23: =(_xlfn.XLOOKUP(AE20,'Revised 2022 Depreciation Rates'!$A:$A,'Revised 2022 Depreciation Rates'!$B:$B)/12) -> 0.004333333333 | AH23: 25270 | AI23: 2086981 | AK23: 2022-03-21 | AL23: 5153072 | AM23: =(_xlfn.XLOOKUP(AK20,'Revised 2022 Depreciation Rates'!$A:$A,'Revised 2022 Depreciation Rates'!$B:$B)/12) -> 0.003583333333 | AN23: 18465 | AO23: 3068900 | AQ23: 2022-03-21 | AR23: 7875560.24 | AS23: =(_xlfn.XLOOKUP(AQ20,'Revised 2022 Depreciation Rates'!$A:$A,'Revised 2022 Depreciation Rates'!$B:$B)/12) -> 0.003 | AT23: 23627 | AU23: 2661322 | AW23: 2022-03-21 | AX23: 17504 | AY23: =(_xlfn.XLOOKUP(AW20,'Revised 2022 Depreciation Rates'!$A:$A,'Revised 2022 Depreciation Rates'!$B:$B)/12) -> 0.003666666667 | AZ23: 64 | BA23: 9750 | BC23: 2022-03-21 | BD23: =BD22+0 -> 351594 | BE23: =(_xlfn.XLOOKUP(BC20,'Revised 2022 Depreciation Rates'!$A:$A,'Revised 2022 Depreciation Rates'!$B:$B)/12) -> 0.002416666667 | BF23: 850 | BG23: 165853 | BI23: 2022-03-21 | BJ23: =BJ22 -> 528554.02 | BK23: =(_xlfn.XLOOKUP(BI20,'Revised 2022 Depreciation Rates'!$A:$A,'Revised 2022 Depreciation Rates'!$B:$B)/12) -> 0.00275 | BL23: 1454 | BM23: 222098
W24: 2022-04-21 | X24: 19757749.58 | Y24: Blended | Z24: 69730 | AA24: 8284634 | AE24: 2022-04-21 | AF24: =AF23+0 -> 5831465.32 | AG24: =(_xlfn.XLOOKUP(AE20,'Revised 2022 Depreciation Rates'!$A:$A,'Revised 2022 Depreciation Rates'!$B:$B)/12) -> 0.004333333333 | AH24: 25270 | AI24: 2112251 | AK24: 2022-04-21 | AL24: 5153072 | AM24: =(_xlfn.XLOOKUP(AK20,'Revised 2022 Depreciation Rates'!$A:$A,'Revised 2022 Depreciation Rates'!$B:$B)/12) -> 0.003583333333 | AN24: 18465 | AO24: 3087365 | AQ24: 2022-04-21 | AR24: 7875560.24 | AS24: =(_xlfn.XLOOKUP(AQ20,'Revised 2022 Depreciation Rates'!$A:$A,'Revised 2022 Depreciation Rates'!$B:$B)/12) -> 0.003 | AT24: 23627 | AU24: 2684949 | AW24: 2022-04-21 | AX24: 17504 | AY24: =(_xlfn.XLOOKUP(AW20,'Revised 2022 Depreciation Rates'!$A:$A,'Revised 2022 Depreciation Rates'!$B:$B)/12) -> 0.003666666667 | AZ24: 64 | BA24: 9814 | BC24: 2022-04-21 | BD24: =BD23 -> 351594 | BE24: =(_xlfn.XLOOKUP(BC20,'Revised 2022 Depreciation Rates'!$A:$A,'Revised 2022 Depreciation Rates'!$B:$B)/12) -> 0.002416666667 | BF24: 850 | BG24: 166703 | BI24: 2022-04-21 | BJ24: 528554.02 | BK24: =(_xlfn.XLOOKUP(BI20,'Revised 2022 Depreciation Rates'!$A:$A,'Revised 2022 Depreciation Rates'!$B:$B)/12) -> 0.00275 | BL24: 1454 | BM24: 223552
A25: 6. | B25: Average Net Investment | G25: =ROUND((+F23+G23)/2,0) -> 11717171 | H25: 11647441 | I25: 11577711 | J25: 11507981 | K25: 11438251 | L25: 11368521 | M25: 11298791 | N25: 11229061 | O25: 11159331 | P25: 11089601 | Q25: 11019871 | R25: 10950141 | W25: 2022-05-21 | X25: 19757749.58 | Y25: Blended | Z25: 69730 | AA25: 8354364 | AE25: 2022-05-21 | AF25: =AF24+0 -> 5831465.32 | AG25: =(_xlfn.XLOOKUP(AE20,'Revised 2022 Depreciation Rates'!$A:$A,'Revised 2022 Depreciation Rates'!$B:$B)/12) -> 0.004333333333 | AH25: 25270 | AI25: 2137521 | AK25: 2022-05-21 | AL25: 5153072 | AM25: =(_xlfn.XLOOKUP(AK20,'Revised 2022 Depreciation Rates'!$A:$A,'Revised 2022 Depreciation Rates'!$B:$B)/12) -> 0.003583333333 | AN25: 18465 | AO25: 3105830 | AQ25: 2022-05-21 | AR25: 7875560.24 | AS25: =(_xlfn.XLOOKUP(AQ20,'Revised 2022 Depreciation Rates'!$A:$A,'Revised 2022 Depreciation Rates'!$B:$B)/12) -> 0.003 | AT25: 23627 | AU25: 2708576 | AW25: 2022-05-21 | AX25: 17504 | AY25: =(_xlfn.XLOOKUP(AW20,'Revised 2022 Depreciation Rates'!$A:$A,'Revised 2022 Depreciation Rates'!$B:$B)/12) -> 0.003666666667 | AZ25: 64 | BA25: 9878 | BC25: 2022-05-21 | BD25: 351594 | BE25: =(_xlfn.XLOOKUP(BC20,'Revised 2022 Depreciation Rates'!$A:$A,'Revised 2022 Depreciation Rates'!$B:$B)/12) -> 0.002416666667 | BF25: 850 | BG25: 167553 | BI25: 2022-05-21 | BJ25: 528554.02 | BK25: =(_xlfn.XLOOKUP(BI20,'Revised 2022 Depreciation Rates'!$A:$A,'Revised 2022 Depreciation Rates'!$B:$B)/12) -> 0.00275 | BL25: 1454 | BM25: 225006
W26: 2022-06-21 | X26: 19757749.58 | Y26: Blended | Z26: 69730 | AA26: 8424094 | AE26: 2022-06-21 | AF26: =AF25+0 -> 5831465.32 | AG26: =(_xlfn.XLOOKUP(AE20,'Revised 2022 Depreciation Rates'!$A:$A,'Revised 2022 Depreciation Rates'!$B:$B)/12) -> 0.004333333333 | AH26: 25270 | AI26: 2162791 | AK26: 2022-06-21 | AL26: 5153072 | AM26: =(_xlfn.XLOOKUP(AK20,'Revised 2022 Depreciation Rates'!$A:$A,'Revised 2022 Depreciation Rates'!$B:$B)/12) -> 0.003583333333 | AN26: 18465 | AO26: 3124295 | AQ26: 2022-06-21 | AR26: 7875560.24 | AS26: =(_xlfn.XLOOKUP(AQ20,'Revised 2022 Depreciation Rates'!$A:$A,'Revised 2022 Depreciation Rates'!$B:$B)/12) -> 0.003 | AT26: 23627 | AU26: 2732203 | AW26: 2022-06-21 | AX26: 17504 | AY26: =(_xlfn.XLOOKUP(AW20,'Revised 2022 Depreciation Rates'!$A:$A,'Revised 2022 Depreciation Rates'!$B:$B)/12) -> 0.003666666667 | AZ26: 64 | BA26: 9942 | BC26: 2022-06-21 | BD26: 351594 | BE26: =(_xlfn.XLOOKUP(BC20,'Revised 2022 Depreciation Rates'!$A:$A,'Revised 2022 Depreciation Rates'!$B:$B)/12) -> 0.002416666667 | BF26: 850 | BG26: 168403 | BI26: 2022-06-21 | BJ26: 528554.02 | BK26: =(_xlfn.XLOOKUP(BI20,'Revised 2022 Depreciation Rates'!$A:$A,'Revised 2022 Depreciation Rates'!$B:$B)/12) -> 0.00275 | BL26: 1454 | BM26: 226460
A27: 7. | B27: Return on Average Net Investment | G27: 1 | H27: 2 | I27: 3 | J27: 4 | K27: 5 | L27: 6 | M27: 7 | N27: 8 | O27: 9 | P27: 10 | Q27: 11 | R27: 12 | S27: 13 | W27: 2022-07-21 | X27: 19757749.58 | Y27: Blended | Z27: 69730 | AA27: 8493824 | AE27: 2022-07-21 | AF27: =AF26+0 -> 5831465.32 | AG27: =(_xlfn.XLOOKUP(AE20,'Revised 2022 Depreciation Rates'!$A:$A,'Revised 2022 Depreciation Rates'!$B:$B)/12) -> 0.004333333333 | AH27: 25270 | AI27: 2188061 | AK27: 2022-07-21 | AL27: 5153072 | AM27: =(_xlfn.XLOOKUP(AK20,'Revised 2022 Depreciation Rates'!$A:$A,'Revised 2022 Depreciation Rates'!$B:$B)/12) -> 0.003583333333 | AN27: 18465 | AO27: 3142760 | AQ27: 2022-07-21 | AR27: 7875560.24 | AS27: =(_xlfn.XLOOKUP(AQ20,'Revised 2022 Depreciation Rates'!$A:$A,'Revised 2022 Depreciation Rates'!$B:$B)/12) -> 0.003 | AT27: 23627 | AU27: 2755830 | AW27: 2022-07-21 | AX27: 17504 | AY27: =(_xlfn.XLOOKUP(AW20,'Revised 2022 Depreciation Rates'!$A:$A,'Revised 2022 Depreciation Rates'!$B:$B)/12) -> 0.003666666667 | AZ27: 64 | BA27: 10006 | BC27: 2022-07-21 | BD27: 351594 | BE27: =(_xlfn.XLOOKUP(BC20,'Revised 2022 Depreciation Rates'!$A:$A,'Revised 2022 Depreciation Rates'!$B:$B)/12) -> 0.002416666667 | BF27: 850 | BG27: 169253 | BI27: 2022-07-21 | BJ27: 528554.02 | BK27: =(_xlfn.XLOOKUP(BI20,'Revised 2022 Depreciation Rates'!$A:$A,'Revised 2022 Depreciation Rates'!$B:$B)/12) -> 0.00275 | BL27: 1454 | BM27: 227914
B28: a. Equity Component Grossed Up For Taxes (B) | G28: =ROUND(+G25*(G58)/12,0) -> 61318 | H28: =ROUND(+H25*(H58)/12,0) -> 60953 | I28: 60588 | J28: 60223 | K28: 59858 | L28: 59493 | M28: 59128 | N28: 58764 | O28: 58399 | P28: 58034 | Q28: 57669 | R28: 57304 | S28: =SUM(G28:R28) -> 711731 | W28: 2022-08-21 | X28: 19757749.58 | Y28: Blended | Z28: 69730 | AA28: 8563554 | AE28: 2022-08-21 | AF28: 5831465.32 | AG28: =(_xlfn.XLOOKUP(AE20,'Revised 2022 Depreciation Rates'!$A:$A,'Revised 2022 Depreciation Rates'!$B:$B)/12) -> 0.004333333333 | AH28: 25270 | AI28: 2213331 | AK28: 2022-08-21 | AL28: =AL27 -> 5153072 | AM28: =(_xlfn.XLOOKUP(AK20,'Revised 2022 Depreciation Rates'!$A:$A,'Revised 2022 Depreciation Rates'!$B:$B)/12) -> 0.003583333333 | AN28: 18465 | AO28: 3161225 | AQ28: 2022-08-21 | AR28: 7875560.24 | AS28: =(_xlfn.XLOOKUP(AQ20,'Revised 2022 Depreciation Rates'!$A:$A,'Revised 2022 Depreciation Rates'!$B:$B)/12) -> 0.003 | AT28: 23627 | AU28: 2779457 | AW28: 2022-08-21 | AX28: 17504 | AY28: =(_xlfn.XLOOKUP(AW20,'Revised 2022 Depreciation Rates'!$A:$A,'Revised 2022 Depreciation Rates'!$B:$B)/12) -> 0.003666666667 | AZ28: 64 | BA28: 10070 | BC28: 2022-08-21 | BD28: 351594 | BE28: =(_xlfn.XLOOKUP(BC20,'Revised 2022 Depreciation Rates'!$A:$A,'Revised 2022 Depreciation Rates'!$B:$B)/12) -> 0.002416666667 | BF28: 850 | BG28: 170103 | BI28: 2022-08-21 | BJ28: 528554.02 | BK28: =(_xlfn.XLOOKUP(BI20,'Revised 2022 Depreciation Rates'!$A:$A,'Revised 2022 Depreciation Rates'!$B:$B)/12) -> 0.00275 | BL28: 1454 | BM28: 229368
B29: b. Debt Component Grossed Up For Taxes (C) | G29: =ROUND(+G25*(G59)/12,0) -> 15968 | H29: =ROUND(+H25*(H59)/12,0) -> 15873 | I29: 15778 | J29: 15683 | K29: 15587 | L29: 15492 | M29: 15397 | N29: 15302 | O29: 15207 | P29: 15112 | Q29: 15017 | R29: 14922 | S29: =SUM(G29:R29) -> 185338 | W29: 2022-09-21 | X29: 19757749.58 | Y29: Blended | Z29: 69730 | AA29: 8633284 | AE29: 2022-09-21 | AF29: 5831465.32 | AG29: =(_xlfn.XLOOKUP(AE20,'Revised 2022 Depreciation Rates'!$A:$A,'Revised 2022 Depreciation Rates'!$B:$B)/12) -> 0.004333333333 | AH29: 25270 | AI29: 2238601 | AK29: 2022-09-21 | AL29: =AL28 -> 5153072 | AM29: =(_xlfn.XLOOKUP(AK20,'Revised 2022 Depreciation Rates'!$A:$A,'Revised 2022 Depreciation Rates'!$B:$B)/12) -> 0.003583333333 | AN29: 18465 | AO29: 3179690 | AQ29: 2022-09-21 | AR29: 7875560.24 | AS29: =(_xlfn.XLOOKUP(AQ20,'Revised 2022 Depreciation Rates'!$A:$A,'Revised 2022 Depreciation Rates'!$B:$B)/12) -> 0.003 | AT29: 23627 | AU29: 2803084 | AW29: 2022-09-21 | AX29: 17504 | AY29: =(_xlfn.XLOOKUP(AW20,'Revised 2022 Depreciation Rates'!$A:$A,'Revised 2022 Depreciation Rates'!$B:$B)/12) -> 0.003666666667 | AZ29: 64 | BA29: 10134 | BC29: 2022-09-21 | BD29: 351594 | BE29: =(_xlfn.XLOOKUP(BC20,'Revised 2022 Depreciation Rates'!$A:$A,'Revised 2022 Depreciation Rates'!$B:$B)/12) -> 0.002416666667 | BF29: 850 | BG29: 170953 | BI29: 2022-09-21 | BJ29: 528554.02 | BK29: =(_xlfn.XLOOKUP(BI20,'Revised 2022 Depreciation Rates'!$A:$A,'Revised 2022 Depreciation Rates'!$B:$B)/12) -> 0.00275 | BL29: 1454 | BM29: 230822
W30: 2022-10-21 | X30: 19757749.58 | Y30: Blended | Z30: 69730 | AA30: 8703014 | AE30: 2022-10-21 | AF30: 5831465.32 | AG30: =(_xlfn.XLOOKUP(AE20,'Revised 2022 Depreciation Rates'!$A:$A,'Revised 2022 Depreciation Rates'!$B:$B)/12) -> 0.004333333333 | AH30: 25270 | AI30: 2263871 | AK30: 2022-10-21 | AL30: =AL29 -> 5153072 | AM30: =(_xlfn.XLOOKUP(AK20,'Revised 2022 Depreciation Rates'!$A:$A,'Revised 2022 Depreciation Rates'!$B:$B)/12) -> 0.003583333333 | AN30: 18465 | AO30: 3198155 | AQ30: 2022-10-21 | AR30: 7875560.24 | AS30: =(_xlfn.XLOOKUP(AQ20,'Revised 2022 Depreciation Rates'!$A:$A,'Revised 2022 Depreciation Rates'!$B:$B)/12) -> 0.003 | AT30: 23627 | AU30: 2826711 | AW30: 2022-10-21 | AX30: 17504 | AY30: =(_xlfn.XLOOKUP(AW20,'Revised 2022 Depreciation Rates'!$A:$A,'Revised 2022 Depreciation Rates'!$B:$B)/12) -> 0.003666666667 | AZ30: 64 | BA30: 10198 | BC30: 2022-10-21 | BD30: 351594 | BE30: =(_xlfn.XLOOKUP(BC20,'Revised 2022 Depreciation Rates'!$A:$A,'Revised 2022 Depreciation Rates'!$B:$B)/12) -> 0.002416666667 | BF30: 850 | BG30: 171803 | BI30: 2022-10-21 | BJ30: 528554.02 | BK30: =(_xlfn.XLOOKUP(BI20,'Revised 2022 Depreciation Rates'!$A:$A,'Revised 2022 Depreciation Rates'!$B:$B)/12) -> 0.00275 | BL30: 1454 | BM30: 232276
A31: 8. | B31: Investment Expenses | W31: 2022-11-21 | X31: 19757749.58 | Y31: Blended | Z31: 69730 | AA31: 8772744 | AB31: =X32-X19 -> 0 | AC31: in-service activity | AE31: 2022-11-21 | AF31: 5831465.32 | AG31: =(_xlfn.XLOOKUP(AE20,'Revised 2022 Depreciation Rates'!$A:$A,'Revised 2022 Depreciation Rates'!$B:$B)/12) -> 0.004333333333 | AH31: 25270 | AI31: 2289141 | AK31: 2022-11-21 | AL31: =AL30 -> 5153072 | AM31: =(_xlfn.XLOOKUP(AK20,'Revised 2022 Depreciation Rates'!$A:$A,'Revised 2022 Depreciation Rates'!$B:$B)/12) -> 0.003583333333 | AN31: 18465 | AO31: 3216620 | AQ31: 2022-11-21 | AR31: 7875560.24 | AS31: =(_xlfn.XLOOKUP(AQ20,'Revised 2022 Depreciation Rates'!$A:$A,'Revised 2022 Depreciation Rates'!$B:$B)/12) -> 0.003 | AT31: 23627 | AU31: 2850338 | AW31: 2022-11-21 | AX31: 17504 | AY31: =(_xlfn.XLOOKUP(AW20,'Revised 2022 Depreciation Rates'!$A:$A,'Revised 2022 Depreciation Rates'!$B:$B)/12) -> 0.003666666667 | AZ31: 64 | BA31: 10262 | BC31: 2022-11-21 | BD31: 351594 | BE31: =(_xlfn.XLOOKUP(BC20,'Revised 2022 Depreciation Rates'!$A:$A,'Revised 2022 Depreciation Rates'!$B:$B)/12) -> 0.002416666667 | BF31: 850 | BG31: 172653 | BI31: 2022-11-21 | BJ31: 528554.02 | BK31: =(_xlfn.XLOOKUP(BI20,'Revised 2022 Depreciation Rates'!$A:$A,'Revised 2022 Depreciation Rates'!$B:$B)/12) -> 0.00275 | BL31: 1454 | BM31: 233730
B32: a. Depreciation (D) | G32: =$Z$21 -> 69730 | H32: =$Z$22 -> 69730 | I32: =$Z$23 -> 69730 | J32: =$Z$24 -> 69730 | K32: =$Z$25 -> 69730 | L32: =$Z$26 -> 69730 | M32: =$Z$27 -> 69730 | N32: =$Z$28 -> 69730 | O32: =$Z$29 -> 69730 | P32: =$Z$30 -> 69730 | Q32: =$Z$31 -> 69730 | R32: =$Z$32 -> 69730 | S32: =SUM(G32:R32) -> 836760 | T32: =+S32-AB32 -> 0 | U32: ck | W32: 2022-12-21 | X32: 19757749.58 | Y32: Blended | Z32: 69730 | AA32: 8842474 | AB32: =AA32-AA19 -> 836760 | AC32: depreciation activity | AE32: 2022-12-21 | AF32: 5831465.32 | AG32: =(_xlfn.XLOOKUP(AE20,'Revised 2022 Depreciation Rates'!$A:$A,'Revised 2022 Depreciation Rates'!$B:$B)/12) -> 0.004333333333 | AH32: =IF(AF31=AI31,0,IF((AF32-AI31)<ROUND((AF31*AG32),0),AF32-AI31,ROUND((AF31*AG32),0))) -> 25270 | AI32: 2314411 | AK32: 2022-12-21 | AL32: =AL31 -> 5153072 | AM32: =(_xlfn.XLOOKUP(AK20,'Revised 2022 Depreciation Rates'!$A:$A,'Revised 2022 Depreciation Rates'!$B:$B)/12) -> 0.003583333333 | AN32: =IF(AL31=AO31,0,IF((AL32-AO31)<ROUND((AL31*AM32),0),AL32-AO31,ROUND((AL31*AM32),0))) -> 18465 | AO32: 3235085 | AQ32: 2022-12-21 | AR32: 7875560.24 | AS32: =(_xlfn.XLOOKUP(AQ20,'Revised 2022 Depreciation Rates'!$A:$A,'Revised 2022 Depreciation Rates'!$B:$B)/12) -> 0.003 | AT32: =IF(AR31=AU31,0,IF((AR32-AU31)<ROUND((AR31*AS32),0),AR32-AU31,ROUND((AR31*AS32),0))) -> 23627 | AU32: 2873965 | AW32: 2022-12-21 | AX32: 17504 | AY32: =(_xlfn.XLOOKUP(AW20,'Revised 2022 Depreciation Rates'!$A:$A,'Revised 2022 Depreciation Rates'!$B:$B)/12) -> 0.003666666667 | AZ32: =IF(AX31=BA31,0,IF((AX32-BA31)<ROUND((AX31*AY32),0),AX32-BA31,ROUND((AX31*AY32),0))) -> 64 | BA32: 10326 | BC32: 2022-12-21 | BD32: 351594 | BE32: =(_xlfn.XLOOKUP(BC20,'Revised 2022 Depreciation Rates'!$A:$A,'Revised 2022 Depreciation Rates'!$B:$B)/12) -> 0.002416666667 | BF32: =IF(BD31=BG31,0,IF((BD32-BG31)<ROUND((BD31*BE32),0),BD32-BG31,ROUND((BD31*BE32),0))) -> 850 | BG32: 173503 | BI32: 2022-12-21 | BJ32: 528554.02 | BK32: =(_xlfn.XLOOKUP(BI20,'Revised 2022 Depreciation Rates'!$A:$A,'Revised 2022 Depreciation Rates'!$B:$B)/12) -> 0.00275 | BL32: =IF(BJ31=BM31,0,IF((BJ32-BM31)<ROUND((BJ31*BK32),0),BJ32-BM31,ROUND((BJ31*BK32),0))) -> 1454 | BM32: 235184
B33: b. Amortization | G33: 0 | H33: 0 | I33: 0 | J33: 0 | K33: 0 | L33: 0 | M33: 0 | N33: 0 | O33: 0 | P33: 0 | Q33: 0 | R33: 0 | S33: =SUM(G33:R33) -> 0
B34: c. Dismantlement | G34: 0 | H34: 0 | I34: 0 | J34: 0 | K34: 0 | L34: 0 | M34: 0 | N34: 0 | O34: 0 | P34: 0 | Q34: 0 | R34: 0 | S34: =SUM(G34:R34) -> 0 | AE34: CM Depr Base | AF34: =+IF(AF3="","",IF(AF3="IN SERVICE",CHOOSE($C$60,AF21,AF22,AF23,AF24,AF25,AF26,AF27,AF28,AF29,AF30,AF31,AF32),"")) -> 5831465.32 | AG34: =+IF(AG3="","",IF(AG3="IN SERVICE",CHOOSE($C$60,AG21,AG22,AG23,AG24,AG25,AG26,AG27,AG28,AG29,AG30,AG31,AG32),"")) ->  | AL34: 5153072 | AR34: 7875560.24 | AX34: 17504 | BD34: 351594 | BJ34: 528554.02
B35: d. Property Taxes | G35: 0 | H35: 0 | I35: 0 | J35: 0 | K35: 0 | L35: 0 | M35: 0 | N35: 0 | O35: 0 | P35: 0 | Q35: 0 | R35: 0 | S35: =SUM(G35:R35) -> 0
B36: e. Other | G36: 0 | H36: 0 | I36: 0 | J36: 0 | K36: 0 | L36: 0 | M36: 0 | N36: 0 | O36: 0 | P36: 0 | Q36: 0 | R36: 0 | S36: =SUM(G36:R36) -> 0
A38: 9. | B38: Total System Recoverable Expenses (Lines 7 + 8) | G38: =ROUND(+G28+G29+G32+G33+G34+G35+G36,0) -> 147016 | H38: 146556 | I38: 146096 | J38: 145636 | K38: 145175 | L38: 144715 | M38: 144255 | N38: 143796 | O38: 143336 | P38: 142876 | Q38: =ROUND(+Q28+Q29+Q32+Q33+Q34+Q35+Q36,0) -> 142416 | R38: 141956 | S38: =SUM(G38:R38) -> 1733829
B39: a. Recoverable Costs Allocated to Energy | G39: =ROUND(+G38*1,0) -> 147016 | H39: 146556 | I39: 146096 | J39: 145636 | K39: 145175 | L39: 144715 | M39: 144255 | N39: 143796 | O39: 143336 | P39: 142876 | Q39: 142416 | R39: 141956 | S39: =SUM(G39:R39) -> 1733829
